Workbook

Sheet Tutorial(1) (hidden)
A1: Parameter Definitions
A5: Definition | B5: Symbol | C5: Expression
A6: ConductionPowerLossatHSMOSFET | B6: PHC= | C6: (Iload)^2*RTHS*D*Ts*fs
A7: Switching Point at High Side MOSFET | B7: Vsp = | C7: Vth+Iload/(gm*#HS)
A8: Driver Current for High Side MOSFET at Turn-on interval | B8: Idr(LH) = | C8: (Vdr-Vsp)/(Rdr_source+Rgex+Rgin/#HS)
A9: Driver Current for High Side MOSFET at Turn-oFF interval | B9: Idr(HL) = | C9: Vsp/(Rdr_sink+Rgex+Rgin/#HS)
A10: Gate Charge at Switching moment | B10: Qgs(sw)= | C10: (Qgd+Qgs/2)*#HS
A11: Turn-on Time of Hiigh Side MOSFET | B11: tr = | C11: Qgs(sw)/Idriver(L-H)
A12: Turn-off Time of High Side MOSFT | B12: tf= | C12: Qgs(sw)/Idriver(H-L)
A13: Switching Loss at High Side MOSFET | B13: PswHS= | C13: 0.5*Vin*(Iload)*(tr+tf)*fs
A14: Conduction Loss at Low Side MOSFET | B14: PconLS= | C14: Iload^2*RTLS*(1-D)*Ts*fs
A15: Diode Reverse Recovery Loss | B15: PQrr= | C15: Vin*IDS*(Qrr-Coss*VDSmea)/IDSmea*fs
A16: Power Loss at Deadtime Interval | B16: PDT= | C16: VD*Iload*(tpdhDRVH+tpdlDRVH)*fs
A17: Total Gate Charge of MOSFET | B17: Qg= | C17: Qg(4.5V)+(Vdrive-4.5)r*(Qg(10V)-Qg(4.5V))/5.5
A18: Driver Loss for Both HS MOSFETs | B18: PdrHS= | C18: Vdr*Qiss(HS)*#HS*fs
A19: Driver Loss for Both LS MOSFETs | B19: PdrLS= | C19: Vdr*Qiss(LS)*#LS*fs
A20: Inductor Winding Loss | B20: Pw= | C20: Iload^2*Rwinding
A21: Inductor Core Loss | B21: Pc= | C21: Eloss@onecycle*fs
A22: Parasitic Capacitance of HS LS MOSFETs | B22: Pcsw= | C22: (0.5*Coss@LS*#LS+Coss@HS*#HS)*Vin^2*fs
A23: Output Capacitance ESR Loss | B23: Pesr= | C23: (Iripple/1.732)^2*ESR
A24: Total Powre Loss at High Side MOSFET | B24: PHS= | C24: PHC+PswHC
A25: Total Powre Loss at Low Side MOSFET | B25: PLS= | C25: PswLS
A26: Total Powr Loss in inductor Capacitor and PCB | B26: PLCR= | C26: Pw+Pc+Pcsw+Pesr
A27: Output Power | B27: Pout= | C27: Iload*Vout
A28: Temperature Increase of MOSFE die at HS | B28: ΔTHS= | C28: ThermalResistance*PHS/#HS
A29: Temperature Increase of MOSFE die at LS | B29: ΔTLS= | C29: ThermalResistance*PLS/#LS
B30: RDSon= | C30: RDSon(Vdr=4.5V)+(Vdr-4.5)*(RDSon(Vdr=10V)-RDSon(Vdr=4.5V))/5.5
A31: Total RDSon with thermal effect at HS | B31: RTHS= | C31: (RDSon+RDSon*ΔTHS*TemperatureCoefficient)/#HS
A32: Total RDSon with thermal effect at LS | B32: RTLS= | C32: (RDSon+RDSon*ΔTLS*TemperatureCoefficient)/#LS
A33: Temperature at HS MOSFET | B33: TLS= | C33: ΔTLS+25
A34: Temperature at LS MOSFET | B34: THS= | C34: ΔTHS+25
A35: Power Loss in each MOSFET at LS | B35: PLOSS LS/EACH= | C35: PLS/#LS
A36: Power Loss in each MOSFET at HS | B36: PLOSS HS/EACH= | C36: PHS/#HS

Sheet Tutorial
A1: Tutorial for Efficiency Simulator&MOSFET Selector for T3&T6
A3: Efficiency Simulator
A4: This simulation tool includes macro programming. A security warning appears every time you open this tool. Click "Options" in the following figure and choose "Enable this content" to enable macro.
A28: Simulation Circuit
A29: This simulator models a basic synchronous Buck converter. The structure of the Buck converter circuit is shown below.
A38: Circuit parameters can be entered into the two spreadsheets titled “Circuit 1” and “Circuit 2”. In each of these spreadsheets, the circuit parameters are organized into five major regions, as indicated in the diagram below. Area 1 contains the topology parameters of the synchronous Buck converter, including Vin, Vout, Iout, fs, Iripple, and Vripple. Area 2 contains parameters specific to the driver device. Note that in this circuit, both the high-side and low-side MOSFETs share the same driver. Area 3 contains parameters specific to the circuit’s output inductor and capacitor. Finally, Areas 4 and 5 contain the parameters of the high-side and low-side MOSFETs. In this simulator, parameter values for high side and low side MOSFETs are preloaded to the spreadsheet "MOSFETs". Users have the flexibiligy to define new MOSFETs in spreadsheet "MOSFETs" and then use the user defined MOSFETs in spreadsheet "Circuit1" or "Circuit2". MOSFETs that are not defined in spreadsheet "MOSFETs" can not be simulated in this simulator.
A45: The simulator will automatically run each time a user-definable parameter (denoted by a yellow background) is altered. No additional buttons need to be pressed in order to start the simulation.
A70: Any cell that is open to user input is marked with a yellow background. Cells with white backgrounds contain the simulator’s results based upon the user’s input parameters. As such, the white cells may not be directly edited by the user.
A73: Efficiency simulation results
A74: The user may view the efficiency results for Circuits 1 and 2 by clicking the tab titled “Efficiency”. An example of an efficiency simulation curve is shown below. Above each simulation curve is a title that shows which MOSFETs, drivers, input voltages, output voltages, and switching frequencies were used in the circuit. The buttons “Show Circuit 1” and “Don’t Show Circuit 1” control whether the efficiency curve for Circuit 1 is displayed on the graph. Similar buttons exist to control whether the efficiency curve for Circuit 2 is displayed.
A105: PowerLossComponents
A106: By clicking the tab titled “Power Loss Components,” the user may view a chart explaining the losses of power within the circuit. There are 9 components contributing to the circuit’s power loss, including conduction loss at the high-side MOSFET, switching loss at the high-side MOSFET, conduction loss of the low-side MOSFET, diode reverse recovery loss, deadtime power loss, driver loss for the high-side MOSFET, driver loss for the low-side MOSFET, winding loss, PCB loss, and ESR loss at the output capacitors. By using the pull-down menus above the chart, the user may select which circuit is shown in the chart, as well as the output current at which the simulation is run.
A140: MOSFET database and Driver database
A141: In this simulator, the parameter values for both the high-side and the low-side single MOSFETs have been pre-loaded into the spreadsheet titled “MOSFETs”. Dual MOSFETs are categorized in another spreadsheet with title "Duals". Within the “MOSFETs” and "Duals" spreadsheet, users have the ability to define new MOSFET devices for use in the simulator. Users who wish to define a new MOSFET device must enter both the device name and the device parameters, including RDSon (Vg=4.5V), Coss(Q1), Qgd, Qgs, Vth, diode forward voltage VSD, transconductance gm, internal Rgin, thermal resistance, RDSon temperature coefficient, RDSon (Vg=10V), and maximum drain-source current ID-Max. After the name and parameters of a user-defined MOSFET have been entered into the spreadsheet, this new device becomes available for selection from the pull-down menus in either “Circuit1” or “Circuit2”. Devices that have not been defined within this spreadsheet will not appear within the pull-down menus. Similarly, a collection of driver devices has been pre-loaded into the spreadsheet titled “Drivers”. Users may select from the pre-loaded driver devices, or may define a new device by entering the device name and parameters. For the driver database, the user-defined parameters include maximum driver voltage, high-side source resistance, high-side sinking resistance, rise delay time tpdh DRVH, fall delay time tpdl DRVH, external gate resistance Rgex, and quiescent current.
H153: Single MOSFET database snapshot
I164: Driver database snapshot
A191: ON SEMI T3/T6 MOSFET Selector Tutorial
A192: This selector includes macro programming. A security warning appears every time you open this tool. Click "Options" in the following figure and choose "Enable this content" to enable macro.
A220: Simulation Circuit
A221: This MOSFET selector is a basic synchronous Buck converter. The structure of the Buck converter circuit is shown below.
A230: Circuit parameters can be entered into the spreadsheet titled “MOSFETSelector”. In this spreadsheet, the circuit parameters are organized into five major regions, as indicated in the diagram below. Area 1 contains the topology parameters of the synchronous Buck converter, including Vin, Vout, Iout, fs, Iripple, and Vripple. Area 2 contains parameters specific to the driver device. Note that in this circuit, both the high-side and low-side MOSFETs share the same driver. Areas 3 and 4 contain the parameters of the high-side and low-side MOSFETs, like numbers of MOSFETs and external gate resistance. Finally, Area 5 contains parameters specific to the circuit’s output inductor and capacitor. The section marked with red or blue border is the section to output selection results based on desied efficiency, load current where desired efficiency is specified and packages. The red section suggests MOSFET pairs, and blu section suggests single MOSFETs based on the MOSFET specified by users. Dual T3 MOSFETs are also included in the selector.
A266: Any cell that is open to user input is marked with a yellow background. Cells with white backgrounds contain the simulator’s results based upon the user’s input parameters. As such, the white cells may not be directly edited by the user.
A274: For updates or suggestions, please contact Zhiyang Chen Zhiyang.Chen@onsemi.com

Sheet Circuit1
A1: =CONCATENATE(Circuit1!F16,"x",Circuit1!F29,"+",Circuit1!J16,"x",Circuit1!J26,"@",Circuit1!B5,"kHz;"," Vin=",$B$3,"V;","Vout=",B4,"V;","Driver=",F3,"(",F4,"V)") -> NTD4804Nx1+NTMFS4897NFx1@300kHz; Vin=15V;Vout=1.2V;Driver=NCP5359A(5V) | M1: Design Goal | Q1: Design Goal | U1: Design Goal
A2: Buck Circuit Parameters: | D2: Driver Parameters: | H2: Output L-C | M2: Target Effieciency | N2: Load Current | Q2: Target Effieciency | R2: Load Current | S2: HS MOSFET | U2: Target Effieciency | V2: Load Current | W2: LS MOSFET
A3: Input Voltage | B3: 15 | C3: V | E3: Driver | F3: NCP5359A | H3: Capacitor | M3: 90 | N3: 30 | Q3: 95 | R3: 30 | S3: NTD4806N | U3: 90 | V3: 30 | W3: NTD4813NH | Y3: 0.993578 | Z3: 0.800782454
A4: Output Voltage | B4: 1.2 | C4: V | D4: Driver Voltage Vdr | E4: Vcc | F4: 5 | G4: V | I4: ESR_Coutput | J4: 5 | K4: mΩ | Y4: 2.987188 | Z4: 0.8851230115
A5: Switching Frequency | B5: 300 | C5: kHz | D5: Sourcing Resistance @ HS | F5: =IF(ISNUMBER(VLOOKUP(F3,Drivers!A1:J20,3,0)), VLOOKUP(F3,Drivers!A1:J20,3,0),0.001) -> 2 | G5: Ω | I5: Capacitor Actual Value | J5: 88 | K5: uF | M5: Display Number | Y5: 4.98699 | Z5: 0.9001409254
A6: Duty Cycle | B6: =B4/B3 -> 0.08 | D6: Sinking Resistance @ HS | F6: =IF(ISNUMBER(VLOOKUP(F3,Drivers!A1:J20,4,0)), VLOOKUP(F3,Drivers!A1:J20,4,0),0.7) -> 1 | G6: Ω | M6: 10 | Y6: 6.98894 | Z6: 0.9011609795
A7: Period Ts (s) | B7: =1/B5/1000*1000000 -> 3.333333333 | C7: us | D7: Rise Delay Time | E7: tpdHDRVH | F7: =IF(ISNUMBER(VLOOKUP(F3,Drivers!A1:J20,5,0)), VLOOKUP(F3,Drivers!A1:J20,5,0),0.00000003) -> 20 | G7: ns | H7: Inductor | Y7: 8.989548 | Z7: 0.8963625674
A8: Current Ripple Peak-to-Avg | B8: =B6*B7*0.000001*(B3-B4)/J10/2*1000000 -> 1.84 | C8: A | D8: Fall Delay Time | E8: tpdLDRVH | F8: =IF(ISNUMBER(VLOOKUP(F3,Drivers!A1:J20,6,0)), VLOOKUP(F3,Drivers!A1:J20,6,0),0.000000015) -> 20 | G8: ns | I8: Core loss | J8: 30 | K8: mW | M8: Suggestios for High Efficiency Pairs | Q8: Suggestions for LS MOSFET | U8: Suggestions for HS MOSFET | Y8: 10.997684 | Z8: 0.8892855009
A9: Voltage Ripple | B9: =0.5*B8*0.5*B7*0.000001/J5*1000000*1000+B8*J4 -> 26.62424242 | C9: mV | D9: Quiescent Current | F9: =IF(ISNUMBER(VLOOKUP(F3,Drivers!A1:J20,8,0)), VLOOKUP(F3,Drivers!A1:J20,8,0),0.001) -> 5 | G9: mA | I9: WindingResistance | J9: 1.5 | K9: mΩ | M9: HS MOSFET | N9: LS MOSFET | O9: Efficiency | Q9: HS MOSFET | R9: LS MOSFET | S9: Efficiency | U9: HS MOSFET | V9: LS MOSFET | W9: Efficiency | Y9: 12.991568 | Z9: 0.8807366781
A10: Maximum Output Current | B10: 30 | C10: A | D10: Maxim Driver Voltage | E10: MAX-Vcc | F10: =IF(ISNUMBER(VLOOKUP(F3,Drivers!A1:J20,2,0)), VLOOKUP(F3,Drivers!A1:J20,2,0),0.001) -> 15 | G10: V | I10: Inductor Actual Value | J10: 1 | K10: uH | M10: =Control1!$X$17 -> NTMFS4937N | N10: =Control1!$Y$17 -> NTMFS4825NFE | O10: =Control1!$Z$17 -> 0.9586683476 | Q10: =Control1!$X$26 -> NTD4806N | R10: =Control1!$Y$26 -> NTMFS4825NFE | S10: =Control1!$Z$26 -> 0.9387806495 | U10: =Control1!$X$37 -> NTMFS4934N | V10: =Control1!$Y$37 -> NTD4813NH | W10: =Control1!$Z$37 -> 0.8863338192 | Y10: 14.967428 | Z10: 0.870943065
A11: Current Ripple Ratio | B11: =B8/B10*100 -> 6.133333333 | C11: % | M11: =Control1!$X$18 -> NTMFS4934N | N11: =Control1!$Y$18 -> NTMFS4825NFE | O11: =Control1!$Z$18 -> 0.9586399465 | Q11: =Control1!$X$20 -> NTD4806N | R11: =Control1!$Y$20 -> NTMFS4897NF | S11: =Control1!$Z$20 -> 0.9387302615 | U11: =Control1!$X$39 -> NTMFS4937N | V11: =Control1!$Y$39 -> NTD4813NH | W11: =Control1!$Z$39 -> 0.8859599042 | Y11: 16.994394 | Z11: 0.8597879841
A12: Voltage Ripple Ratio | B12: =B9/1000/B4*100 -> 2.218686869 | C12: % | H12: PCB Resistance | I12: R-PCB | J12: 1 | K12: mΩ | M12: =Control1!$X$12 -> NTMFS4937N | N12: =Control1!$Y$12 -> NTMFS4897NF | O12: =Control1!$Z$12 -> 0.9586148773 | Q12: =Control1!$X$29 -> NTD4806N | R12: =Control1!$Y$29 -> NTMFS4933N | S12: =Control1!$Z$29 -> 0.9377556093 | U12: =Control1!$X$30 -> NTTFS4932N | V12: =Control1!$Y$30 -> NTD4813NH | W12: =Control1!$Z$30 -> 0.8857511095 | Y12: 17.982324 | Z12: 0.8537634946
M13: =Control1!$X$11 -> NTMFS4934N | N13: =Control1!$Y$11 -> NTMFS4897NF | O13: =Control1!$Z$11 -> 0.9585858749 | Q13: =Control1!$X$22 -> NTD4806N | R13: =Control1!$Y$22 -> NTMFS4934N | S13: =Control1!$Z$22 -> 0.9365527047 | U13: =Control1!$X$33 -> NTMFS4936N | V13: =Control1!$Y$33 -> NTD4813NH | W13: =Control1!$Z$33 -> 0.8852530111 | Y13: 20.003642 | Z13: 0.8416057426
B14: =IF(ISBLANK(B1), "Default", B1) | M14: =Control1!$X$10 -> NTTFS4932N | N14: =Control1!$Y$10 -> NTMFS4825NFE | O14: =Control1!$Z$10 -> 0.9584376392 | Q14: =Control1!$X$27 -> NTD4806N | R14: =Control1!$Y$27 -> NTMFS4833N | S14: =Control1!$Z$27 -> 0.9362240692 | U14: =Control1!$X$38 -> NTMFS4923NE | V14: =Control1!$Y$38 -> NTD4813NH | W14: =Control1!$Z$38 -> 0.8849795732 | Z14: 0.84
D15: High-Side MOSFET: | H15: Low-Side MOSFET: | M15: =Control1!$X$15 -> NTTFS4932N | N15: =Control1!$Y$15 -> NTMFS4897NF | O15: =Control1!$Z$15 -> 0.9583847231 | Q15: =Control1!$X$21 -> NTD4806N | R15: =Control1!$Y$21 -> NTMFS4852N | S15: =Control1!$Z$21 -> 0.9355775241 | U15: =Control1!$X$36 -> NTMFS4935N | V15: =Control1!$Y$36 -> NTD4813NH | W15: =Control1!$Z$36 -> 0.884979343 | Z15: 0.82
A16: Enable auto zoom in and out? | B16: No | D16: MOSFET Selected | F16: NTD4804N | H16: MOSFET Selected | J16: NTMFS4897NF | M16: =Control1!$X$14 -> NTMFS4936N | N16: =Control1!$Y$14 -> NTMFS4825NFE | O16: =Control1!$Z$14 -> 0.9578684066 | Q16: =Control1!$X$25 -> NTD4806N | R16: =Control1!$Y$25 -> NTMFS4845N | S16: =Control1!$Z$25 -> 0.9317999802 | U16: =Control1!$X$32 -> NTMFS4825NFE | V16: =Control1!$Y$32 -> NTD4813NH | W16: =Control1!$Z$32 -> 0.8848214569 | Z16: 0.81
D17: Drain-to-Source On Resistance | E17: RDS(on) | F17: =Constants!H17 -> 4.6 | G17: mΩ | H17: Drain-to-Source On Resistance | I17: RDS(on) | J17: =Constants!I17 -> 2 | K17: mΩ | M17: =Control1!$X$13 -> NTMFS4936N | N17: =Control1!$Y$13 -> NTMFS4897NF | O17: =Control1!$Z$13 -> 0.9578149177 | Q17: =Control1!$X$28 -> NTD4806N | R17: =Control1!$Y$28 -> NTMFS4834N | S17: =Control1!$Z$28 -> 0.9316898594 | U17: =Control1!$X$34 -> NTMFS4897NF | V17: =Control1!$Y$34 -> NTD4813NH | W17: =Control1!$Z$34 -> 0.8847698764
D18: Total Gate Charge | E18: QG(TOT) | F18: =Constants!H18 -> 30 | G18: nC | H18: Total Gate Charge | I18: QG(TOT) | J18: =Constants!I18 -> 40.2 | K18: nC | M18: =Control1!$X$19 -> NTMFS4937N | N18: =Control1!$Y$19 -> NTMFS4933N | O18: =Control1!$Z$19 -> 0.9576412731 | Q18: =Control1!$X$24 -> NTD4806N | R18: =Control1!$Y$24 -> NTMFS4898N | S18: =Control1!$Z$24 -> 0.9315402621 | U18: =Control1!$X$31 -> NTMFS4852N | V18: =Control1!$Y$31 -> NTD4813NH | W18: =Control1!$Z$31 -> 0.8837820437
D19: Output Capacitance | E19: Coss | F19: =Constants!H19 -> 952 | G19: pF | H19: Output Capacitance | I19: Coss | J19: =Constants!I19 -> 1150 | K19: pF | M19: =Control1!$X$16 -> NTMFS4934N | N19: =Control1!$Y$16 -> NTMFS4933N | O19: =Control1!$Z$16 -> 0.9576075012 | Q19: =Control1!$X$23 -> NTD4806N | R19: =Control1!$Y$23 -> NTMFS4846N | S19: =Control1!$Z$23 -> 0.9304337282 | U19: =Control1!$X$35 -> NTD4904N | V19: =Control1!$Y$35 -> NTD4813NH | W19: =Control1!$Z$35 -> 0.8833637085
A20: Buck converter circuit | D20: Gate-to-Drain Charge | E20: QGD | F20: =Constants!H20 -> 13 | G20: nC | H20: Diode Reverse Recovery Charge | I20: QRR | J20: =Constants!I20 -> 34 | K20: nC
D21: Gate-to-Source Charge | E21: QGS | F21: =Constants!H21 -> 13 | G21: nC | H21: SD Forward Diode Voltage | I21: VSD | J21: =Constants!I21 -> 0.35 | K21: V
D22: Gate Threshold Voltage | E22: VGS(TH) | F22: =Constants!H22 -> 2 | G22: V | H22: Junction-to-Ambient Thermal Resistance | I22: RѲJA | J22: =Constants!I22 -> 45.7 | K22: °C/W | N22: =Control1!$X$10 -> NTTFS4932N
D23: Forward Transconductance | E23: gFS | F23: =Constants!H23 -> 23 | G23: S | H23: RDSon Temperature Coefficient | J23: =Constants!I23 -> 0.52 | K23: %/°C
D24: Gate Resistance | E24: RG | F24: =Constants!H24 -> 0.6 | G24: Ω
D25: Junction-to-Ambient Thermal Resistance | E25: RѲJA | F25: =Constants!H25 -> 60 | G25: °C/W | H25: External Gate Resistance | I25: Rgex | J25: 0 | K25: Ω
D26: RDS(on) Temperature Coefficient | F26: =Constants!H26 -> 0.4666666667 | G26: %/°C | H26: Number of LS MOSFET | J26: 1 | M26: Note: | Q26: Note: | U26: Note:
M27: 1. All the cells with yellow background color except cell F16 and cell J16 must be filled before any MOSFET is suggested. | Q27: 1. All the cells with yellow background color except cell F16 and cell J16 must be filled before any MOSFET is suggested. | U27: 1. All the cells with yellow background color except cell F16 and cell J16 must be filled before any MOSFET is suggested.
D28: External Gate Resistance | E28: Rgex | F28: 0 | G28: Ω
D29: Number of HS MOSFET | F29: 1
A31: Note: | H31: For updates or suggestions, please contact Zhiyang Chen Zhiyang.Chen@onsemi.com
A32: 1. Only single phase is simulated.
A33: 2. Simulaton is performed at 25 °C and selfheating of MOSFETs is not taken into account.
X41: NTMFS4847N | Y41: NTMFS4933N
X42: NTMFS4851 | Y42: NTMFS4933N
X43: NTMFS4852N | Y43: NTMFS4825NFE
X44: NTMFS4852N | Y44: NTMFS4897
X45: NTMFS4852N | Y45: NTMFS4933N
X46: NTMFS4897 | Y46: NTMFS4825NFE
X47: NTMFS4897 | Y47: NTMFS4897
X48: NTMFS4897 | Y48: NTMFS4933N
X49: NTMFS4898N | Y49: NTMFS4825NFE
X50: NTMFS4898N | Y50: NTMFS4897
X51: NTMFS4898N | Y51: NTMFS4933N
X52: NTMFS4899N | Y52: NTMFS4933N
X53: NTMFS4921 | Y53: NTMFS4933N
X54: NTMFS4923NE | Y54: NTMFS4825NFE
X55: NTMFS4923NE | Y55: NTMFS4897
X56: NTMFS4923NE | Y56: NTMFS4933N
X57: NTMFS4925 | Y57: NTMFS4933N
X58: NTMFS4926 | Y58: NTMFS4933N
X59: NTMFS4933N | Y59: NTMFS4825NFE
X60: NTMFS4933N | Y60: NTMFS4897
X61: NTMFS4933N | Y61: NTMFS4933N
X62: NTMFS4933N | Y62: NTMFS4934N
X63: NTMFS4934N | Y63: NTMFS4825NFE
X64: NTMFS4934N | Y64: NTMFS4897
X65: NTMFS4934N | Y65: NTMFS4933N
X66: NTMFS4935N | Y66: NTMFS4825NFE
X67: NTMFS4935N | Y67: NTMFS4897
X68: NTMFS4935N | Y68: NTMFS4933N
X69: NTMFS4936 | Y69: NTMFS4933N
X70: NTMFS4937N | Y70: NTMFS4933N
X71: NTMFS4939N | Y71: NTMFS4933N
X72: NTMFS4941N | Y72: NTMFS4933N
X73: NTMFS4943N | Y73: NTMFS4933N
X74: NTTFS4824N | Y74: NTMFS4933N
X75: NTTFS4932N | Y75: NTMFS4825NFE
X76: NTTFS4932N | Y76: NTMFS4897
X77: NTTFS4932N | Y77: NTMFS4933N
X78: NTTFS4937N | Y78: NTMFS4933N
X79: NTTFS4939N | Y79: NTMFS4933N
X80: NTTFS4941N | Y80: NTMFS4933N
X81: NTD4809N | Y81: NTMFS4898N
X82: NTD4809N | Y82: NTMFS4923NE
X83: NTD4809N | Y83: NTMFS4933N
X84: NTD4809N | Y84: NTMFS4934N
X85: NTD4809N | Y85: NTMFS4935N
X86: NTD4809N | Y86: NTTFS4932N
X87: NTD4809NH | Y87: NTMFS4825NFE
X88: NTD4809NH | Y88: NTMFS4833N
X89: NTD4809NH | Y89: NTMFS4834N
X90: NTD4809NH | Y90: NTMFS4835N
X91: NTD4809NH | Y91: NTMFS4845
X92: NTD4809NH | Y92: NTMFS4846
X93: NTD4809NH | Y93: NTMFS4852N
X94: NTD4809NH | Y94: NTMFS4897
X95: NTD4809NH | Y95: NTMFS4898N
X96: NTD4809NH | Y96: NTMFS4923NE
X97: NTD4809NH | Y97: NTMFS4933N
X98: NTD4809NH | Y98: NTMFS4934N
X99: NTD4809NH | Y99: NTMFS4935N
X100: NTD4809NH | Y100: NTMFS4936
X101: NTD4809NH | Y101: NTTFS4932N
X102: NTD4810N | Y102: NTMFS4825NFE
X103: NTD4810N | Y103: NTMFS4833N
X104: NTD4810N | Y104: NTMFS4834N
X105: NTD4810N | Y105: NTMFS4845
X106: NTD4810N | Y106: NTMFS4846
X107: NTD4810N | Y107: NTMFS4852N
X108: NTD4810N | Y108: NTMFS4897
X109: NTD4810N | Y109: NTMFS4898N
X110: NTD4810N | Y110: NTMFS4923NE
X111: NTD4810N | Y111: NTMFS4933N
X112: NTD4810N | Y112: NTMFS4934N
X113: NTD4810N | Y113: NTMFS4935N
X114: NTD4810N | Y114: NTTFS4932N
X115: NTD4813NH | Y115: NTMFS4825NFE
X116: NTD4813NH | Y116: NTMFS4833N
X117: NTD4813NH | Y117: NTMFS4852N
X118: NTD4813NH | Y118: NTMFS4897
X119: NTD4813NH | Y119: NTMFS4933N
X120: NTD4813NH | Y120: NTMFS4934N
X121: NTD4815N | Y121: NTMFS4825NFE
X122: NTD4815N | Y122: NTMFS4833N
X123: NTD4815N | Y123: NTMFS4852N
X124: NTD4815N | Y124: NTMFS4897
X125: NTD4815N | Y125: NTMFS4933N
X126: NTD4815N | Y126: NTMFS4934N
X127: NTD4855N | Y127: NTD4904N
X128: NTD4855N | Y128: NTMFS4825NFE
X129: NTD4855N | Y129: NTMFS4833N
X130: NTD4855N | Y130: NTMFS4834N
X131: NTD4855N | Y131: NTMFS4835N
X132: NTD4855N | Y132: NTMFS4845
X133: NTD4855N | Y133: NTMFS4846
X134: NTD4855N | Y134: NTMFS4852N
X135: NTD4855N | Y135: NTMFS4897
X136: NTD4855N | Y136: NTMFS4898N
X137: NTD4855N | Y137: NTMFS4923NE
X138: NTD4855N | Y138: NTMFS4933N
X139: NTD4855N | Y139: NTMFS4934N
X140: NTD4855N | Y140: NTMFS4935N
X141: NTD4855N | Y141: NTMFS4936
X142: NTD4855N | Y142: NTTFS4932N
X143: NTD4856N | Y143: NTD4904N
X144: NTD4856N | Y144: NTMFS4825NFE
X145: NTD4856N | Y145: NTMFS4833N
X146: NTD4856N | Y146: NTMFS4834N
X147: NTD4856N | Y147: NTMFS4835N
X148: NTD4856N | Y148: NTMFS4845
X149: NTD4856N | Y149: NTMFS4846
X150: NTD4856N | Y150: NTMFS4852N
X151: NTD4856N | Y151: NTMFS4897
X152: NTD4856N | Y152: NTMFS4898N
X153: NTD4856N | Y153: NTMFS4923NE
X154: NTD4856N | Y154: NTMFS4933N
X155: NTD4856N | Y155: NTMFS4934N
X156: NTD4856N | Y156: NTMFS4935N
X157: NTD4856N | Y157: NTMFS4936
X158: NTD4856N | Y158: NTTFS4932N
X159: NTD4857N | Y159: NTD4904N
X160: NTD4857N | Y160: NTMFS4825NFE
X161: NTD4857N | Y161: NTMFS4833N
X162: NTD4857N | Y162: NTMFS4834N
X163: NTD4857N | Y163: NTMFS4835N
X164: NTD4857N | Y164: NTMFS4845
X165: NTD4857N | Y165: NTMFS4846
X166: NTD4857N | Y166: NTMFS4852N
X167: NTD4857N | Y167: NTMFS4897
X168: NTD4857N | Y168: NTMFS4898N
X169: NTD4857N | Y169: NTMFS4923NE
X170: NTD4857N | Y170: NTMFS4933N
X171: NTD4857N | Y171: NTMFS4934N
X172: NTD4857N | Y172: NTMFS4935N
X173: NTD4857N | Y173: NTMFS4936
X174: NTD4857N | Y174: NTTFS4932N
X175: NTD4858N | Y175: NTD4904N
X176: NTD4858N | Y176: NTMFS4825NFE
X177: NTD4858N | Y177: NTMFS4833N
X178: NTD4858N | Y178: NTMFS4834N
X179: NTD4858N | Y179: NTMFS4835N
X180: NTD4858N | Y180: NTMFS4845
X181: NTD4858N | Y181: NTMFS4846
X182: NTD4858N | Y182: NTMFS4852N
X183: NTD4858N | Y183: NTMFS4897
X184: NTD4858N | Y184: NTMFS4898N
X185: NTD4858N | Y185: NTMFS4923NE
X186: NTD4858N | Y186: NTMFS4933N
X187: NTD4858N | Y187: NTMFS4934N
X188: NTD4858N | Y188: NTMFS4935N
X189: NTD4858N | Y189: NTMFS4936
X190: NTD4858N | Y190: NTTFS4932N
X191: NTD4863N | Y191: NTMFS4825NFE
X192: NTD4863N | Y192: NTMFS4833N
X193: NTD4863N | Y193: NTMFS4834N
X194: NTD4863N | Y194: NTMFS4845
X195: NTD4863N | Y195: NTMFS4852N
X196: NTD4863N | Y196: NTMFS4897
X197: NTD4863N | Y197: NTMFS4898N
X198: NTD4863N | Y198: NTMFS4933N
X199: NTD4863N | Y199: NTMFS4934N
X200: NTD4863N | Y200: NTTFS4932N
X201: NTD4904N | Y201: NTD4804N
X202: NTD4904N | Y202: NTD4855N
X203: NTD4904N | Y203: NTD4904N
X204: NTD4904N | Y204: NTMFS4825NFE
X205: NTD4904N | Y205: NTMFS4833N
X206: NTD4904N | Y206: NTMFS4834N
X207: NTD4904N | Y207: NTMFS4835N
X208: NTD4904N | Y208: NTMFS4845
... 802 more rows

Sheet Circuit2
A1: =CONCATENATE(Circuit2!F16,"x",Circuit2!F29,"+",Circuit2!J16,"x",Circuit2!J26,"@",Circuit2!B5,"kHz;"," Vin=",$B$3,"V;","Vout=",B4,"V;","Driver=",F3,"(",F4,"V)") -> NTD4804Nx1+NTMFS4897NFx1@300kHz; Vin=12V;Vout=1.2V;Driver=NCP5901(5V)
A2: Buck Circuit Parameters: | D2: Driver Parameters: | H2: Output L-C
A3: Input Voltage | B3: 12 | C3: V | E3: Driver | F3: NCP5901 | H3: Capacitor
A4: Output Voltage | B4: 1.2 | C4: V | D4: Driver Voltage Vdr | E4: Vcc | F4: 5 | G4: V | I4: ESR_Coutput | J4: 5 | K4: mΩ
A5: Switching Frequency | B5: 300 | C5: kHz | D5: Sourcing Resistance @ HS | F5: =IF(ISNUMBER(VLOOKUP(F3,Drivers!A1:J20,3,0)), VLOOKUP(F3,Drivers!A1:J20,3,0),0.001) -> 2 | G5: Ω | I5: Capacitor Actual Value | J5: 88 | K5: uF
A6: Duty Cycle | B6: =B4/B3 -> 0.1 | D6: Sinking Resistance @ HS | F6: =IF(ISNUMBER(VLOOKUP(F3,Drivers!A1:J20,4,0)), VLOOKUP(F3,Drivers!A1:J20,4,0),0.7) -> 1 | G6: Ω
A7: Period Ts (s) | B7: =1/B5/1000*1000000 -> 3.333333333 | C7: us | D7: Rise Delay Time | E7: tpdHDRVH | F7: =IF(ISNUMBER(VLOOKUP(F3,Drivers!A1:J20,5,0)), VLOOKUP(F3,Drivers!A1:J20,5,0),0.00000003) -> 27 | G7: ns | H7: Inductor
A8: Current Ripple Peak-to-Avg | B8: =B6*B7*0.000001*(B3-B4)/2/J10*1000000 -> 1.8 | C8: A | D8: Fall Delay Time | E8: tpdLDRVH | F8: =IF(ISNUMBER(VLOOKUP(F3,Drivers!A1:J20,6,0)), VLOOKUP(F3,Drivers!A1:J20,6,0),0.000000015) -> 20 | G8: ns | I8: Core loss | J8: 30 | K8: mW
A9: Voltage Ripple | B9: =0.5*B8*0.5*B7*0.000001/J5*1000000*1000 -> 17.04545455 | C9: mV | D9: Quiescent Current | F9: =IF(ISNUMBER(VLOOKUP(F3,Drivers!A1:J20,8,0)), VLOOKUP(F3,Drivers!A1:J20,8,0),0.001) -> 2.2 | G9: mA | I9: WindingResistance | J9: 1.5 | K9: mΩ
A10: Maximum Output Current | B10: =Circuit1!$B$10 -> 30 | C10: A | D10: Maxim Driver Voltage | E10: MAX-Vcc | F10: =IF(ISNUMBER(VLOOKUP(F3,Drivers!A1:J20,2,0)), VLOOKUP(F3,Drivers!A1:J20,2,0),0.001) -> 15 | G10: V | I10: Inductor Actual Value | J10: 1 | K10: uH
A11: Current Ripple Ratio | B11: =B8/B10*100 -> 6 | C11: %
A12: Voltage Ripple Ratio | B12: =B9/1000/B4*100 -> 1.420454545 | C12: % | H12: PCB Resistance | I12: R-PCB | J12: 1 | K12: mΩ
B14: =IF(ISBLANK(B1), "Default", B1)
D15: High-Side MOSFET: | H15: Low-Side MOSFET:
A16: Enable auto zoom in and out? | B16: No | D16: MOSFET Selected | F16: NTD4804N | H16: MOSFET Selected | J16: NTMFS4897NF
D17: Drain-to-Source On Resistance | E17: RDS(on) | F17: =Constants!J17 -> 4.6 | G17: mΩ | H17: Drain-to-Source On Resistance | I17: RDS(on) | J17: =Constants!K17 -> 2 | K17: mΩ
D18: Total Gate Charge | E18: QG(TOT) | F18: =Constants!J18 -> 30 | G18: nC | H18: Total Gate Charge | I18: QG(TOT) | J18: =Constants!K18 -> 40.2 | K18: nC
D19: Output Capacitance | E19: Coss | F19: =Constants!J19 -> 952 | G19: pF | H19: Output Capacitance | I19: Coss | J19: =Constants!K19 -> 1150 | K19: pF
A20: Buck converter circuit | D20: Gate-to-Drain Charge | E20: QGD | F20: =Constants!J20 -> 13 | G20: nC | H20: Diode Reverse Recovery Charge | I20: QRR | J20: =Constants!K20 -> 34 | K20: nC
D21: Gate-to-Source Charge | E21: QGS | F21: =Constants!J21 -> 13 | G21: nC | H21: SD Forward Diode Voltage | I21: VSD | J21: =Constants!K21 -> 0.35 | K21: V
D22: Gate Threshold Voltage | E22: VGS(TH) | F22: =Constants!J22 -> 2 | G22: V | H22: Junction-to-Ambient Thermal Resistance | I22: RѲJA | J22: =Constants!K22 -> 45.7 | K22: °C/W
D23: Forward Transconductance | E23: gFS | F23: =Constants!J23 -> 23 | G23: S | H23: RDSon Temperature Coefficient | J23: =Constants!K23 -> 0.52 | K23: %/°C
D24: Gate Resistance | E24: RG | F24: =Constants!J24 -> 0.6 | G24: Ω
D25: Junction-to-Ambient Thermal Resistance | E25: RѲJA | F25: =Constants!J25 -> 60 | G25: °C/W | H25: External Gate Resistance | I25: Rgex | J25: 0 | K25: Ω
D26: RDS(on) Temperature Coefficient | F26: =Constants!J26 -> 0.4666666667 | G26: %/°C | H26: Number of LS MOSFET | J26: 1
D28: External Gate Resistance | E28: Rgex | F28: 0 | G28: Ω
D29: Number of HS MOSFET | F29: 1
A31: Note: | H31: For updates or suggestions, please contact Zhiyang Chen Zhiyang.Chen@onsemi.com
A32: 1. Only single phase is simulated.
A33: 2. Simulaton is performed at 25 °C and selfheating of MOSFETs is not taken into account.
L41: NTMFS4847N | M41: NTMFS4933N
L42: NTMFS4851 | M42: NTMFS4933N
L43: NTMFS4852N | M43: NTMFS4825NFE
L44: NTMFS4852N | M44: NTMFS4897
L45: NTMFS4852N | M45: NTMFS4933N
L46: NTMFS4897 | M46: NTMFS4825NFE
L47: NTMFS4897 | M47: NTMFS4897
L48: NTMFS4897 | M48: NTMFS4933N
L49: NTMFS4898N | M49: NTMFS4825NFE
L50: NTMFS4898N | M50: NTMFS4897
L51: NTMFS4898N | M51: NTMFS4933N
L52: NTMFS4899N | M52: NTMFS4933N
L53: NTMFS4921 | M53: NTMFS4933N
L54: NTMFS4923NE | M54: NTMFS4825NFE
L55: NTMFS4923NE | M55: NTMFS4897
L56: NTMFS4923NE | M56: NTMFS4933N
L57: NTMFS4925 | M57: NTMFS4933N
L58: NTMFS4926 | M58: NTMFS4933N
L59: NTMFS4933N | M59: NTMFS4825NFE
L60: NTMFS4933N | M60: NTMFS4897
L61: NTMFS4933N | M61: NTMFS4933N
L62: NTMFS4933N | M62: NTMFS4934N
L63: NTMFS4934N | M63: NTMFS4825NFE
L64: NTMFS4934N | M64: NTMFS4897
L65: NTMFS4934N | M65: NTMFS4933N
L66: NTMFS4935N | M66: NTMFS4825NFE
L67: NTMFS4935N | M67: NTMFS4897
L68: NTMFS4935N | M68: NTMFS4933N
L69: NTMFS4936 | M69: NTMFS4933N
L70: NTMFS4937N | M70: NTMFS4933N
L71: NTMFS4939N | M71: NTMFS4933N
L72: NTMFS4941N | M72: NTMFS4933N
L73: NTMFS4943N | M73: NTMFS4933N
L74: NTTFS4824N | M74: NTMFS4933N
L75: NTTFS4932N | M75: NTMFS4825NFE
L76: NTTFS4932N | M76: NTMFS4897
L77: NTTFS4932N | M77: NTMFS4933N
L78: NTTFS4937N | M78: NTMFS4933N
L79: NTTFS4939N | M79: NTMFS4933N
L80: NTTFS4941N | M80: NTMFS4933N
L81: NTD4809N | M81: NTMFS4898N
L82: NTD4809N | M82: NTMFS4923NE
L83: NTD4809N | M83: NTMFS4933N
L84: NTD4809N | M84: NTMFS4934N
L85: NTD4809N | M85: NTMFS4935N
L86: NTD4809N | M86: NTTFS4932N
L87: NTD4809NH | M87: NTMFS4825NFE
L88: NTD4809NH | M88: NTMFS4833N
L89: NTD4809NH | M89: NTMFS4834N
L90: NTD4809NH | M90: NTMFS4835N
L91: NTD4809NH | M91: NTMFS4845
L92: NTD4809NH | M92: NTMFS4846
L93: NTD4809NH | M93: NTMFS4852N
L94: NTD4809NH | M94: NTMFS4897
L95: NTD4809NH | M95: NTMFS4898N
L96: NTD4809NH | M96: NTMFS4923NE
L97: NTD4809NH | M97: NTMFS4933N
L98: NTD4809NH | M98: NTMFS4934N
L99: NTD4809NH | M99: NTMFS4935N
L100: NTD4809NH | M100: NTMFS4936
L101: NTD4809NH | M101: NTTFS4932N
L102: NTD4810N | M102: NTMFS4825NFE
L103: NTD4810N | M103: NTMFS4833N
L104: NTD4810N | M104: NTMFS4834N
L105: NTD4810N | M105: NTMFS4845
L106: NTD4810N | M106: NTMFS4846
L107: NTD4810N | M107: NTMFS4852N
L108: NTD4810N | M108: NTMFS4897
L109: NTD4810N | M109: NTMFS4898N
L110: NTD4810N | M110: NTMFS4923NE
L111: NTD4810N | M111: NTMFS4933N
L112: NTD4810N | M112: NTMFS4934N
L113: NTD4810N | M113: NTMFS4935N
L114: NTD4810N | M114: NTTFS4932N
L115: NTD4813NH | M115: NTMFS4825NFE
L116: NTD4813NH | M116: NTMFS4833N
L117: NTD4813NH | M117: NTMFS4852N
L118: NTD4813NH | M118: NTMFS4897
L119: NTD4813NH | M119: NTMFS4933N
L120: NTD4813NH | M120: NTMFS4934N
L121: NTD4815N | M121: NTMFS4825NFE
L122: NTD4815N | M122: NTMFS4833N
L123: NTD4815N | M123: NTMFS4852N
L124: NTD4815N | M124: NTMFS4897
L125: NTD4815N | M125: NTMFS4933N
L126: NTD4815N | M126: NTMFS4934N
L127: NTD4855N | M127: NTD4904N
L128: NTD4855N | M128: NTMFS4825NFE
L129: NTD4855N | M129: NTMFS4833N
L130: NTD4855N | M130: NTMFS4834N
L131: NTD4855N | M131: NTMFS4835N
L132: NTD4855N | M132: NTMFS4845
L133: NTD4855N | M133: NTMFS4846
L134: NTD4855N | M134: NTMFS4852N
L135: NTD4855N | M135: NTMFS4897
L136: NTD4855N | M136: NTMFS4898N
L137: NTD4855N | M137: NTMFS4923NE
L138: NTD4855N | M138: NTMFS4933N
L139: NTD4855N | M139: NTMFS4934N
L140: NTD4855N | M140: NTMFS4935N
L141: NTD4855N | M141: NTMFS4936
L142: NTD4855N | M142: NTTFS4932N
L143: NTD4856N | M143: NTD4904N
L144: NTD4856N | M144: NTMFS4825NFE
L145: NTD4856N | M145: NTMFS4833N
L146: NTD4856N | M146: NTMFS4834N
L147: NTD4856N | M147: NTMFS4835N
L148: NTD4856N | M148: NTMFS4845
L149: NTD4856N | M149: NTMFS4846
L150: NTD4856N | M150: NTMFS4852N
L151: NTD4856N | M151: NTMFS4897
L152: NTD4856N | M152: NTMFS4898N
L153: NTD4856N | M153: NTMFS4923NE
L154: NTD4856N | M154: NTMFS4933N
L155: NTD4856N | M155: NTMFS4934N
L156: NTD4856N | M156: NTMFS4935N
L157: NTD4856N | M157: NTMFS4936
L158: NTD4856N | M158: NTTFS4932N
L159: NTD4857N | M159: NTD4904N
L160: NTD4857N | M160: NTMFS4825NFE
L161: NTD4857N | M161: NTMFS4833N
L162: NTD4857N | M162: NTMFS4834N
L163: NTD4857N | M163: NTMFS4835N
L164: NTD4857N | M164: NTMFS4845
L165: NTD4857N | M165: NTMFS4846
L166: NTD4857N | M166: NTMFS4852N
L167: NTD4857N | M167: NTMFS4897
L168: NTD4857N | M168: NTMFS4898N
L169: NTD4857N | M169: NTMFS4923NE
L170: NTD4857N | M170: NTMFS4933N
L171: NTD4857N | M171: NTMFS4934N
L172: NTD4857N | M172: NTMFS4935N
L173: NTD4857N | M173: NTMFS4936
L174: NTD4857N | M174: NTTFS4932N
L175: NTD4858N | M175: NTD4904N
L176: NTD4858N | M176: NTMFS4825NFE
L177: NTD4858N | M177: NTMFS4833N
L178: NTD4858N | M178: NTMFS4834N
L179: NTD4858N | M179: NTMFS4835N
L180: NTD4858N | M180: NTMFS4845
L181: NTD4858N | M181: NTMFS4846
L182: NTD4858N | M182: NTMFS4852N
L183: NTD4858N | M183: NTMFS4897
L184: NTD4858N | M184: NTMFS4898N
L185: NTD4858N | M185: NTMFS4923NE
L186: NTD4858N | M186: NTMFS4933N
L187: NTD4858N | M187: NTMFS4934N
L188: NTD4858N | M188: NTMFS4935N
L189: NTD4858N | M189: NTMFS4936
L190: NTD4858N | M190: NTTFS4932N
L191: NTD4863N | M191: NTMFS4825NFE
L192: NTD4863N | M192: NTMFS4833N
L193: NTD4863N | M193: NTMFS4834N
L194: NTD4863N | M194: NTMFS4845
L195: NTD4863N | M195: NTMFS4852N
L196: NTD4863N | M196: NTMFS4897
L197: NTD4863N | M197: NTMFS4898N
L198: NTD4863N | M198: NTMFS4933N
L199: NTD4863N | M199: NTMFS4934N
L200: NTD4863N | M200: NTTFS4932N
L201: NTD4904N | M201: NTD4804N
L202: NTD4904N | M202: NTD4855N
L203: NTD4904N | M203: NTD4904N
L204: NTD4904N | M204: NTMFS4825NFE
L205: NTD4904N | M205: NTMFS4833N
L206: NTD4904N | M206: NTMFS4834N
L207: NTD4904N | M207: NTMFS4835N
L208: NTD4904N | M208: NTMFS4845
L209: NTD4904N | M209: NTMFS4846
L210: NTD4904N | M210: NTMFS4852N
... 800 more rows

Sheet Results (hidden)
A1: Simulation Summary | D1: =Circuit1!$A$1 -> NTD4804Nx1+NTMFS4897NFx1@300kHz; Vin=15V;Vout=1.2V;Driver=NCP5359A(5V)
A2: Iout (A) | B2: Power Loss in Each Highside MOSFET | C2: Power Loss in Each Lowside MOSFET | D2: PCB&Inductor Winding Loss (W) | E2: Driver Loss (W) | F2: Overall Efficiency | G2: Temperature at HS MOSFET | H2: Temperature at LS MOSFET
A3: =Circuit1Details!A2 -> 0.6 | B3: =Circuit1Details!W2/MAX(Circuit1!$F$29,1) -> 0.1495234699 | C3: =Circuit1Details!X2/MAX(Circuit1!$J$26,1) -> 0.005194993636 | D3: =Circuit1Details!Y2 -> 0.039364 | E3: =Circuit1Details!Z2 -> 0.06336363636 | F3: =Circuit1Details!V2 -> 0.5954525873 | G3: =Circuit1Details!AA2 -> 8.971408195 | H3: =Circuit1Details!AD2 -> 0.2374112091
A4: =Circuit1Details!A3 -> 1.2 | B4: =Circuit1Details!W3/MAX(Circuit1!$F$29,1) -> 0.1701044727 | C4: =Circuit1Details!X3/MAX(Circuit1!$J$26,1) -> 0.009387683055 | D4: =Circuit1Details!Y3 -> 0.04206704417 | E4: =Circuit1Details!Z3 -> 0.06336363636 | F4: =Circuit1Details!V3 -> 0.7359551326 | G4: =Circuit1Details!AA3 -> 10.20626836 | H4: =Circuit1Details!AD3 -> 0.4290171156
A5: =Circuit1Details!A4 -> 1.8 | B5: =Circuit1Details!W4/MAX(Circuit1!$F$29,1) -> 0.1897441554 | C5: =Circuit1Details!X4/MAX(Circuit1!$J$26,1) -> 0.01518000437 | D5: =Circuit1Details!Y4 -> 0.04657334415 | E5: =Circuit1Details!Z4 -> 0.06336363636 | F5: =Circuit1Details!V4 -> 0.79805531 | G5: =Circuit1Details!AA4 -> 11.38464933 | H5: =Circuit1Details!AD4 -> 0.6937261999
A6: =Circuit1Details!A5 -> 2.4 | B6: =Circuit1Details!W5/MAX(Circuit1!$F$29,1) -> 0.2232422176 | C6: =Circuit1Details!X5/MAX(Circuit1!$J$26,1) -> 0.02222371446 | D6: =Circuit1Details!Y5 -> 0.05288778378 | E6: =Circuit1Details!Z5 -> 0.06336363636 | F6: =Circuit1Details!V5 -> 0.8291502669 | G6: =Circuit1Details!AA5 -> 13.39453305 | H6: =Circuit1Details!AD5 -> 1.015623751
A7: =Circuit1Details!A6 -> 3 | B7: =Circuit1Details!W6/MAX(Circuit1!$F$29,1) -> 0.257805121 | C7: =Circuit1Details!X6/MAX(Circuit1!$J$26,1) -> 0.03055522177 | D7: =Circuit1Details!Y6 -> 0.06101508799 | E7: =Circuit1Details!Z6 -> 0.06336363636 | F7: =Circuit1Details!V6 -> 0.8481649806 | G7: =Circuit1Details!AA6 -> 15.46830726 | H7: =Circuit1Details!AD6 -> 1.396373635
A8: =Circuit1Details!A7 -> 3.6 | B8: =Circuit1Details!W7/MAX(Circuit1!$F$29,1) -> 0.2924354052 | C8: =Circuit1Details!X7/MAX(Circuit1!$J$26,1) -> 0.04019632882 | D8: =Circuit1Details!Y7 -> 0.07096145704 | E8: =Circuit1Details!Z7 -> 0.06336363636 | F8: =Circuit1Details!V7 -> 0.8607849666 | G8: =Circuit1Details!AA7 -> 17.54612431 | H8: =Circuit1Details!AD7 -> 1.836972227
A9: =Circuit1Details!A8 -> 4.2 | B9: =Circuit1Details!W8/MAX(Circuit1!$F$29,1) -> 0.3271513803 | C9: =Circuit1Details!X8/MAX(Circuit1!$J$26,1) -> 0.05116070364 | D9: =Circuit1Details!Y8 -> 0.08273430079 | E9: =Circuit1Details!Z8 -> 0.06336363636 | F9: =Circuit1Details!V8 -> 0.8695459837 | G9: =Circuit1Details!AA8 -> 19.62908282 | H9: =Circuit1Details!AD8 -> 2.338044156
A10: =Circuit1Details!A9 -> 4.8 | B10: =Circuit1Details!W9/MAX(Circuit1!$F$29,1) -> 0.3619754492 | C10: =Circuit1Details!X9/MAX(Circuit1!$J$26,1) -> 0.06346204281 | D10: =Circuit1Details!Y9 -> 0.09634219921 | E10: =Circuit1Details!Z9 -> 0.06336363636 | F10: =Circuit1Details!V9 -> 0.8757976721 | G10: =Circuit1Details!AA9 -> 21.71852695 | H10: =Circuit1Details!AD9 -> 2.900215356
A11: =Circuit1Details!A10 -> 5.4 | B11: =Circuit1Details!W10/MAX(Circuit1!$F$29,1) -> 0.3969304164 | C11: =Circuit1Details!X10/MAX(Circuit1!$J$26,1) -> 0.077115351 | D11: =Circuit1Details!Y10 -> 0.1117948853 | E11: =Circuit1Details!Z10 -> 0.06336363636 | F11: =Circuit1Details!V10 -> 0.8803244465 | G11: =Circuit1Details!AA10 -> 23.81582499 | H11: =Circuit1Details!AD10 -> 3.524171541
A12: =Circuit1Details!A11 -> 6 | B12: =Circuit1Details!W11/MAX(Circuit1!$F$29,1) -> 0.4320389064 | C12: =Circuit1Details!X11/MAX(Circuit1!$J$26,1) -> 0.09213716707 | D12: =Circuit1Details!Y11 -> 0.1291032185 | E12: =Circuit1Details!Z11 -> 0.06336363636 | F12: =Circuit1Details!V11 -> 0.8836132693 | G12: =Circuit1Details!AA11 -> 25.92233438 | H12: =Circuit1Details!AD11 -> 4.210668535
A13: =Circuit1Details!A12 -> 6.6 | B13: =Circuit1Details!W12/MAX(Circuit1!$F$29,1) -> 0.467323163 | C13: =Circuit1Details!X12/MAX(Circuit1!$J$26,1) -> 0.1085456197 | D13: =Circuit1Details!Y12 -> 0.1482791536 | E13: =Circuit1Details!Z12 -> 0.06336363636 | F13: =Circuit1Details!V12 -> 0.885982374 | G13: =Circuit1Details!AA12 -> 28.03938978 | H13: =Circuit1Details!AD12 -> 4.960534821
A14: =Circuit1Details!A13 -> 7.2 | B14: =Circuit1Details!W13/MAX(Circuit1!$F$29,1) -> 0.5028049837 | C14: =Circuit1Details!X13/MAX(Circuit1!$J$26,1) -> 0.1263604185 | D14: =Circuit1Details!Y13 -> 0.1693357057 | E14: =Circuit1Details!Z13 -> 0.06336363636 | F14: =Circuit1Details!V13 -> 0.8876484708 | G14: =Circuit1Details!AA13 -> 30.16829902 | H14: =Circuit1Details!AD13 -> 5.774671124
A15: =Circuit1Details!A14 -> 7.8 | B15: =Circuit1Details!W14/MAX(Circuit1!$F$29,1) -> 0.5385057072 | C15: =Circuit1Details!X14/MAX(Circuit1!$J$26,1) -> 0.1456028142 | D15: =Circuit1Details!Y14 -> 0.1922869112 | E15: =Circuit1Details!Z14 -> 0.06336363636 | F15: =Circuit1Details!V14 -> 0.8887642044 | G15: =Circuit1Details!AA14 -> 32.31034243 | H15: =Circuit1Details!AD14 -> 6.65404861
A16: =Circuit1Details!A15 -> 8.4 | B16: =Circuit1Details!W15/MAX(Circuit1!$F$29,1) -> 0.5744462247 | C16: =Circuit1Details!X15/MAX(Circuit1!$J$26,1) -> 0.166295542 | D16: =Circuit1Details!Y15 -> 0.2171477855 | E16: =Circuit1Details!Z15 -> 0.06336363636 | F16: =Circuit1Details!V15 -> 0.8894401716 | G16: =Circuit1Details!AA15 -> 34.46677348 | H16: =Circuit1Details!AD15 -> 7.59970627
A17: =Circuit1Details!A16 -> 9 | B17: =Circuit1Details!W16/MAX(Circuit1!$F$29,1) -> 0.6106470006 | C17: =Circuit1Details!X16/MAX(Circuit1!$J$26,1) -> 0.1884627518 | D17: =Circuit1Details!Y16 -> 0.2439342755 | E17: =Circuit1Details!Z16 -> 0.06336363636 | F17: =Circuit1Details!V16 -> 0.8897584468 | G17: =Circuit1Details!AA16 -> 36.63882003 | H17: =Circuit1Details!AD16 -> 8.612747756
A18: =Circuit1Details!A17 -> 9.6 | B18: =Circuit1Details!W17/MAX(Circuit1!$F$29,1) -> 0.6471280972 | C18: =Circuit1Details!X17/MAX(Circuit1!$J$26,1) -> 0.2121299292 | D18: =Circuit1Details!Y17 -> 0.2726632088 | E18: =Circuit1Details!Z17 -> 0.06336363636 | F18: =Circuit1Details!V17 -> 0.8897812067 | G18: =Circuit1Details!AA17 -> 38.82768583 | H18: =Circuit1Details!AD17 -> 9.694337766
A19: =Circuit1Details!A18 -> 10.2 | B19: =Circuit1Details!W18/MAX(Circuit1!$F$29,1) -> 0.6839092011 | C19: =Circuit1Details!X18/MAX(Circuit1!$J$26,1) -> 0.2373238082 | D19: =Circuit1Details!Y18 -> 0.3033522378 | E19: =Circuit1Details!Z18 -> 0.06336363636 | F19: =Circuit1Details!V18 -> 0.8895564073 | G19: =Circuit1Details!AA18 -> 41.03455207 | H19: =Circuit1Details!AD18 -> 10.84569804
A20: =Circuit1Details!A19 -> 10.8 | B20: =Circuit1Details!W19/MAX(Circuit1!$F$29,1) -> 0.7210096488 | C20: =Circuit1Details!X19/MAX(Circuit1!$J$26,1) -> 0.264072275 | D20: =Circuit1Details!Y19 -> 0.3360197792 | E20: =Circuit1Details!Z19 -> 0.06336363636 | F20: =Circuit1Details!V19 -> 0.8891216265 | G20: =Circuit1Details!AA19 -> 43.26057893 | H20: =Circuit1Details!AD19 -> 12.06810297 | K20: =Circuit1!B10 -> 30
A21: =Circuit1Details!A20 -> 11.4 | B21: =Circuit1Details!W20/MAX(Circuit1!$F$29,1) -> 0.7584484509 | C21: =Circuit1Details!X20/MAX(Circuit1!$J$26,1) -> 0.2924042651 | D21: =Circuit1Details!Y20 -> 0.3706849498 | E21: =Circuit1Details!Z20 -> 0.06336363636 | F21: =Circuit1Details!V20 -> 0.888506728 | G21: =Circuit1Details!AA20 -> 45.50690706 | H21: =Circuit1Details!AD20 -> 13.36287491
A22: =Circuit1Details!A21 -> 12 | B22: =Circuit1Details!W21/MAX(Circuit1!$F$29,1) -> 0.7962443157 | C22: =Circuit1Details!X21/MAX(Circuit1!$J$26,1) -> 0.3223496525 | D22: =Circuit1Details!Y21 -> 0.4073674968 | E22: =Circuit1Details!Z21 -> 0.06336363636 | F22: =Circuit1Details!V21 -> 0.8877357485 | G22: =Circuit1Details!AA21 -> 47.77465894 | H22: =Circuit1Details!AD21 -> 14.73137912
A23: =Circuit1Details!A22 -> 12.6 | B23: =Circuit1Details!W22/MAX(Circuit1!$F$29,1) -> 0.8344156702 | C23: =Circuit1Details!X22/MAX(Circuit1!$J$26,1) -> 0.3539391327 | D23: =Circuit1Details!Y22 -> 0.4460877247 | E23: =Circuit1Details!Z22 -> 0.06336363636 | F23: =Circuit1Details!V22 -> 0.8868282595 | G23: =Circuit1Details!AA22 -> 50.06494021 | H23: =Circuit1Details!AD22 -> 16.17501836
A24: =Circuit1Details!A23 -> 13.2 | B24: =Circuit1Details!W23/MAX(Circuit1!$F$29,1) -> 0.8729806806 | C24: =Circuit1Details!X23/MAX(Circuit1!$J$26,1) -> 0.3872040983 | D24: =Circuit1Details!Y23 -> 0.4868664173 | E24: =Circuit1Details!Z23 -> 0.06336363636 | F24: =Circuit1Details!V23 -> 0.8858003677 | G24: =Circuit1Details!AA23 -> 52.37884083 | H24: =Circuit1Details!AD23 -> 17.69522729
A25: =Circuit1Details!A24 -> 13.8 | B25: =Circuit1Details!W24/MAX(Circuit1!$F$29,1) -> 0.9119572696 | C25: =Circuit1Details!X24/MAX(Circuit1!$J$26,1) -> 0.4221765099 | D25: =Circuit1Details!Y24 -> 0.5297247568 | E25: =Circuit1Details!Z24 -> 0.06336363636 | F25: =Circuit1Details!V24 -> 0.8846654611 | G25: =Circuit1Details!AA24 -> 54.71743618 | H25: =Circuit1Details!AD24 -> 19.2934665
A26: =Circuit1Details!A25 -> 14.4 | B26: =Circuit1Details!W25/MAX(Circuit1!$F$29,1) -> 0.9513631336 | C26: =Circuit1Details!X25/MAX(Circuit1!$J$26,1) -> 0.4588887606 | D26: =Circuit1Details!Y25 -> 0.5746842382 | E26: =Circuit1Details!Z25 -> 0.06336363636 | F26: =Circuit1Details!V25 -> 0.8834347721 | G26: =Circuit1Details!AA25 -> 57.08178801 | H26: =Circuit1Details!AD25 -> 20.97121636
A27: =Circuit1Details!A26 -> 15 | B27: =Circuit1Details!W26/MAX(Circuit1!$F$29,1) -> 0.9912157567 | C27: =Circuit1Details!X26/MAX(Circuit1!$J$26,1) -> 0.4973735372 | D27: =Circuit1Details!Y26 -> 0.6217665823 | E27: =Circuit1Details!Z26 -> 0.06336363636 | F27: =Circuit1Details!V26 -> 0.8821178095 | G27: =Circuit1Details!AA26 -> 59.4729454 | H27: =Circuit1Details!AD26 -> 22.72997065
A28: =Circuit1Details!A27 -> 15.6 | B28: =Circuit1Details!W27/MAX(Circuit1!$F$29,1) -> 1.031532424 | C28: =Circuit1Details!X27/MAX(Circuit1!$J$26,1) -> 0.5376636771 | D28: =Circuit1Details!Y27 -> 0.6709936451 | E28: =Circuit1Details!Z27 -> 0.06336363636 | F28: =Circuit1Details!V27 -> 0.8807226924 | G28: =Circuit1Details!AA27 -> 61.89194546 | H28: =Circuit1Details!AD27 -> 24.57123004
A29: =Circuit1Details!A28 -> 16.2 | B29: =Circuit1Details!W28/MAX(Circuit1!$F$29,1) -> 1.072330235 | C29: =Circuit1Details!X28/MAX(Circuit1!$J$26,1) -> 0.5797920236 | D29: =Circuit1Details!Y28 -> 0.7223873263 | E29: =Circuit1Details!Z28 -> 0.06336363636 | F29: =Circuit1Details!V28 -> 0.8792564117 | G29: =Circuit1Details!AA28 -> 64.33981408 | H29: =Circuit1Details!AD28 -> 26.49649548
A30: =Circuit1Details!A29 -> 16.8 | B30: =Circuit1Details!W29/MAX(Circuit1!$F$29,1) -> 1.113626109 | C30: =Circuit1Details!X29/MAX(Circuit1!$J$26,1) -> 0.6237912792 | D30: =Circuit1Details!Y29 -> 0.7759694765 | E30: =Circuit1Details!Z29 -> 0.06336363636 | F30: =Circuit1Details!V29 -> 0.8777250359 | G30: =Circuit1Details!AA29 -> 66.81756653 | H30: =Circuit1Details!AD29 -> 28.50726146
A31: =Circuit1Details!A30 -> 17.4 | B31: =Circuit1Details!W30/MAX(Circuit1!$F$29,1) -> 1.155436799 | C31: =Circuit1Details!X30/MAX(Circuit1!$J$26,1) -> 0.6696938601 | D31: =Circuit1Details!Y30 -> 0.8317618045 | E31: =Circuit1Details!Z30 -> 0.06336363636 | F31: =Circuit1Details!V30 -> 0.876133876 | G31: =Circuit1Details!AA30 -> 69.32620795 | H31: =Circuit1Details!AD30 -> 30.60500941
A32: =Circuit1Details!A31 -> 18 | B32: =Circuit1Details!W31/MAX(Circuit1!$F$29,1) -> 1.197778897 | C32: =Circuit1Details!X31/MAX(Circuit1!$J$26,1) -> 0.7175317512 | D32: =Circuit1Details!Y31 -> 0.889785785 | E32: =Circuit1Details!Z31 -> 0.06336363636 | F32: =Circuit1Details!V31 -> 0.8744876163 | G32: =Circuit1Details!AA31 -> 71.86673381 | H32: =Circuit1Details!AD31 -> 32.79120103
A33: =Circuit1Details!A32 -> 18.6 | B33: =Circuit1Details!W32/MAX(Circuit1!$F$29,1) -> 1.240668838 | C33: =Circuit1Details!X32/MAX(Circuit1!$J$26,1) -> 0.7673363645 | D33: =Circuit1Details!Y32 -> 0.9500625684 | E33: =Circuit1Details!Z32 -> 0.06336363636 | F33: =Circuit1Details!V32 -> 0.8727904212 | G33: =Circuit1Details!AA32 -> 74.44013028 | H33: =Circuit1Details!AD32 -> 35.06727186
A34: =Circuit1Details!A33 -> 19.2 | B34: =Circuit1Details!W33/MAX(Circuit1!$F$29,1) -> 1.284122908 | C34: =Circuit1Details!X33/MAX(Circuit1!$J$26,1) -> 0.8191384022 | D34: =Circuit1Details!Y33 -> 1.012612893 | E34: =Circuit1Details!Z33 -> 0.06336363636 | F34: =Circuit1Details!V33 -> 0.8710460212 | G34: =Circuit1Details!AA33 -> 77.04737445 | H34: =Circuit1Details!AD33 -> 37.43462498
A35: =Circuit1Details!A34 -> 19.8 | B35: =Circuit1Details!W34/MAX(Circuit1!$F$29,1) -> 1.328157244 | C35: =Circuit1Details!X34/MAX(Circuit1!$J$26,1) -> 0.8729677252 | D35: =Circuit1Details!Y34 -> 1.077457 | E35: =Circuit1Details!Z34 -> 0.06336363636 | F35: =Circuit1Details!V34 -> 0.8692577835 | G35: =Circuit1Details!AA34 -> 79.68943463 | H35: =Circuit1Details!AD34 -> 39.89462504
A36: =Circuit1Details!A35 -> 20.4 | B36: =Circuit1Details!W35/MAX(Circuit1!$F$29,1) -> 1.37278784 | C36: =Circuit1Details!X35/MAX(Circuit1!$J$26,1) -> 0.9288532289 | D36: =Circuit1Details!Y35 -> 1.144614556 | E36: =Circuit1Details!Z35 -> 0.06336363636 | F36: =Circuit1Details!V35 -> 0.8674287691 | G36: =Circuit1Details!AA35 -> 82.36727042 | H36: =Circuit1Details!AD35 -> 42.44859256
A37: =Circuit1Details!A36 -> 21 | B37: =Circuit1Details!W36/MAX(Circuit1!$F$29,1) -> 1.418030547 | C37: =Circuit1Details!X36/MAX(Circuit1!$J$26,1) -> 0.9868227277 | D37: =Circuit1Details!Y36 -> 1.214104574 | E37: =Circuit1Details!Z36 -> 0.06336363636 | F37: =Circuit1Details!V36 -> 0.8655617801 | G37: =Circuit1Details!AA36 -> 85.08183284 | H37: =Circuit1Details!AD36 -> 45.09779865

Sheet Circuit1Details (hidden)
A1: I(Load) | B1: PHC | C1: Vsp | D1: Idr(LH) | E1: Idr(HL) | F1: Qgs(sw) | G1: tr | H1: tf | I1: PswHS | J1: PconLS | K1: PQrr | L1: PDT | M1: Pout | N1: PdrHS | O1: PdrLS | P1: Pw | Q1: Pc | S1: Pcsw | U1: Pesr | V1: Circuit1 Efficiency | W1: PHS | X1: PLS | Y1: PLCR | Z1: Pdr | AA1: 0 | AB1: =AA1/((1+(AA1/150)^(1))^(1/1)) -> 0 | AC1: RTHS | AD1: 0 | AE1: =AD1/((1+(AD1/150)^(1))^(1)) -> 0 | AF1: RTLS | AG1: =Circuit1!$B$6 -> 0.08 | AH1: Rdson Correction Factor for HS
A2: =Circuit1!$B$10/50*1 -> 0.6 | B2: =AG1*Circuit1!$B$7/1000000*AC2*(A2*A2+((Circuit1!$B$8)^2)/3)*Circuit1!$B$5*1000 -> 0.0005382536533 | C2: =(Circuit1!$F$22+A2/(Circuit1!$F$23*Circuit1!$F$29))/(1+((Circuit1!$F$22+A2/(Circuit1!$F$23*Circuit1!$F$29))/Circuit1!$F$4)^(5))^(0.2) -> 2.021688555 | D2: =MAX((Circuit1!$F$4-C2), 0.001)/(Circuit1!$F$5+Circuit1!$F$28+Circuit1!$F$24/Circuit1!$F$29) -> 1.145504402 | E2: =C2/(Circuit1!$F$6+Circuit1!$F$28+Circuit1!$F$24/Circuit1!$F$29) -> 1.263555347 | F2: =(Circuit1!$F$20/1000000000+Circuit1!$F$21/2/1000000000)*MAX(Circuit1!$F$29,1) -> 1.95e-08 | G2: =F2/D2/(1+F2/D2/0.00000003) -> 1.086045792e-08 | H2: =F2/E2 -> 1.543264413e-08 | I2: =0.5*Circuit1!$B$3*(G2*MAX(A2-Circuit1!$B$8, 0)+H2*(A2+Circuit1!$B$8))*Circuit1!$B$5*1000 -> 0.08472521626 | J2: =MIN(MAX((1-AG1-Circuit1!$F$7/1000000000+Circuit1!$F$8/1000000000),0.001),1)*Circuit1!$B$7/1000000*AF2*(A2*A2+Circuit1!$B$8^2/3)*Circuit1!$B$5*1000 -> 0.002674993636 | K2: =Circuit1!$B$3*$AN$2*Circuit1!$J$26*0.000000001*Circuit1!$B$5*1000 -> 0.153 | L2: =Circuit1!$J$21*A2*(Circuit1!$F$7/1000000000+Circuit1!$F$8/1000000000)*Circuit1!$B$5*1000 -> 0.00252 | M2: =A2*Circuit1!$B$4 -> 0.72 | N2: =Circuit1!$F$4*($AN$3/1000000000*Circuit1!$F$29)*Circuit1!$B$5*1000+Circuit1!$F$4*Circuit1!$F$9/1000/2 -> 0.06336363636 | O2: =Circuit1!$F$4*($AN$4/1000000000*Circuit1!$J$26)*Circuit1!$B$5*1000+Circuit1!$F$4*Circuit1!$F$9/1000/2 -> 0.07871818182 | P2: =(A2*A2+((Circuit1!$B$8)^2)/3)*(Circuit1!$J$9+Circuit1!$J$12)/1000*(1+0.002*AE1) -> 0.003721333333 | Q2: =Circuit1!$J$8/1000 -> 0.03 | R2: =0 -> 0 | S2: =(Circuit1!$F$19/1000000000000*Circuit1!$F$29)*Circuit1!$B$3*Circuit1!$B$3*Circuit1!$B$5*1000 -> 0.06426 | T2: 0 | U2: =Circuit1!$B$8*Circuit1!$B$8/3*Circuit1!$J$4/1000 -> 0.005642666667 | V2: =M2/(U2+T2+S2+R2+Q2+P2+N2+M2+L2+J2+I2+B2+O2+K2) -> 0.5954525873 | W2: =B2+I2+S2+T2 -> 0.1495234699 | X2: =J2+L2 -> 0.005194993636 | Y2: =P2+Q2+U2 -> 0.039364 | Z2: =N2 -> 0.06336363636 | AA2: =W2*Circuit1!$F$25/MAX(Circuit1!$F$29,1) -> 8.971408195 | AB2: =AA2/((1+(AA2/150)^(1))^(1/1)) -> 8.465114856 | AC2: =$AN$6*(1+AB1*0.85*Circuit1!$F$26/100)/1000/MAX(Circuit1!$F$29,1) -> 0.00452 | AD2: =X2*Circuit1!$J$22/MAX(Circuit1!$J$26,1) -> 0.2374112091 | AE2: =AD2/((1+(AD2/150)^(1))^(1)) -> 0.2370360424 | AF2: =$AN$7*(1+AE1*Circuit1!$J$23*0.85/100)/MAX(Circuit1!$J$26,1)/1000 -> 0.001953333333 | AG2: =(U2+T2+S2+R2+Q2+P2+N2+M2+L2+J2+I2+B2+O2+K2)/A2/Circuit1!$B$3 -> 0.1343515869 | AH2: 0.005 | AI2: =(A2*A2+((Circuit1!$B$8)^2)/3)*Circuit1!$J$9/1000*50 -> 0.11164 | AK2: 0.8656741554 | AM2: Qrr | AN2: =VLOOKUP(Circuit1!$J$16,MOSFETs!$A$2:$S$120,14,0) -> 34
A3: =Circuit1!$B$10/50*2 -> 1.2 | B3: =AG2*Circuit1!$B$7/1000000*AC3*(A3*A3+((Circuit1!$B$8)^2)/3)*Circuit1!$B$5*1000 -> 0.001612166229 | C3: =(Circuit1!$F$22+A3/(Circuit1!$F$23*Circuit1!$F$29))/(1+((Circuit1!$F$22+A3/(Circuit1!$F$23*Circuit1!$F$29))/Circuit1!$F$4)^(5))^(0.2) -> 2.047426629 | D3: =MAX((Circuit1!$F$4-C3), 0.001)/(Circuit1!$F$5+Circuit1!$F$28+Circuit1!$F$24/Circuit1!$F$29) -> 1.135605143 | E3: =C3/(Circuit1!$F$6+Circuit1!$F$28+Circuit1!$F$24/Circuit1!$F$29) -> 1.279641643 | F3: =(Circuit1!$F$20/1000000000+Circuit1!$F$21/2/1000000000)*MAX(Circuit1!$F$29,1) -> 1.95e-08 | G3: =F3/D3/(1+F3/D3/0.00000003) -> 1.092066747e-08 | H3: =F3/E3 -> 1.52386413e-08 | I3: =0.5*Circuit1!$B$3*(G3*MAX(A3-Circuit1!$B$8, 0)+H3*(A3+Circuit1!$B$8))*Circuit1!$B$5*1000 -> 0.1042323065 | J3: =MIN(MAX((1-AG2-Circuit1!$F$7/1000000000+Circuit1!$F$8/1000000000),0.001),1)*Circuit1!$B$7/1000000*AF3*(A3*A3+Circuit1!$B$8^2/3)*Circuit1!$B$5*1000 -> 0.004347683055 | K3: =Circuit1!$B$3*$AN$2*Circuit1!$J$26*0.000000001*Circuit1!$B$5*1000 -> 0.153 | L3: =Circuit1!$J$21*A3*(Circuit1!$F$7/1000000000+Circuit1!$F$8/1000000000)*Circuit1!$B$5*1000 -> 0.00504 | M3: =A3*Circuit1!$B$4 -> 1.44 | N3: =Circuit1!$F$4*($AN$3/1000000000*Circuit1!$F$29)*Circuit1!$B$5*1000+Circuit1!$F$4*Circuit1!$F$9/1000/2 -> 0.06336363636 | O3: =Circuit1!$F$4*($AN$4/1000000000*Circuit1!$J$26)*Circuit1!$B$5*1000+Circuit1!$F$4*Circuit1!$F$9/1000/2 -> 0.07871818182 | P3: =(A3*A3+((Circuit1!$B$8)^2)/3)*(Circuit1!$J$9+Circuit1!$J$12)/1000*(1+0.002*AE2) -> 0.006424377508 | Q3: =Circuit1!$J$8/1000 -> 0.03 | R3: =0 -> 0 | S3: =(Circuit1!$F$19/1000000000000*Circuit1!$F$29)*Circuit1!$B$3*Circuit1!$B$3*Circuit1!$B$5*1000 -> 0.06426 | T3: 0 | U3: =Circuit1!$B$8*Circuit1!$B$8/3*Circuit1!$J$4/1000 -> 0.005642666667 | V3: =M3/(U3+T3+S3+R3+Q3+P3+N3+M3+L3+J3+I3+B3+O3+K3) -> 0.7359551326 | W3: =B3+I3+S3+T3 -> 0.1701044727 | X3: =J3+L3 -> 0.009387683055 | Y3: =P3+Q3+U3 -> 0.04206704417 | Z3: =N3 -> 0.06336363636 | AA3: =W3*Circuit1!$F$25/MAX(Circuit1!$F$29,1) -> 10.20626836 | AB3: 9.55605714 | AC3: =$AN$6*(1+AB2*0.85*Circuit1!$F$26/100)/1000/MAX(Circuit1!$F$29,1) -> 0.004671773866 | AD3: =X3*Circuit1!$J$22/MAX(Circuit1!$J$26,1) -> 0.4290171156 | AE3: 0.4277935771 | AF3: =$AN$7*(1+AE2*Circuit1!$J$23*0.85/100)/MAX(Circuit1!$J$26,1)/1000 -> 0.001955379839 | AG3: =(U3+T3+S3+R3+Q3+P3+N3+M3+L3+J3+I3+B3+O3+K3)/A3/Circuit1!$B$3 -> 0.1087022788 | AI3: =(A3*A3+((Circuit1!$B$8)^2)/3)*Circuit1!$J$9/1000*50 -> 0.19264 | AK3: 0.9231456474 | AM3: QTOT_HS | AN3: =(VLOOKUP(Circuit1!$F$16, MOSFETs!$A$2:$S$120,17,0)+(Circuit1!$F$4-4.5)*(VLOOKUP(Circuit1!$F$16, MOSFETs!$A$2:$S$120,18,0)-VLOOKUP(Circuit1!$F$16, MOSFETs!$A$2:$S$120,17,0))/5.5) -> 33.90909091
A4: =Circuit1!$B$10/50*3 -> 1.8 | B4: =AG3*Circuit1!$B$7/1000000*AC4*(A4*A4+((Circuit1!$B$8)^2)/3)*Circuit1!$B$5*1000 -> 0.002227771437 | C4: =(Circuit1!$F$22+A4/(Circuit1!$F$23*Circuit1!$F$29))/(1+((Circuit1!$F$22+A4/(Circuit1!$F$23*Circuit1!$F$29))/Circuit1!$F$4)^(5))^(0.2) -> 2.07314211 | D4: =MAX((Circuit1!$F$4-C4), 0.001)/(Circuit1!$F$5+Circuit1!$F$28+Circuit1!$F$24/Circuit1!$F$29) -> 1.125714573 | E4: =C4/(Circuit1!$F$6+Circuit1!$F$28+Circuit1!$F$24/Circuit1!$F$29) -> 1.295713819 | F4: =(Circuit1!$F$20/1000000000+Circuit1!$F$21/2/1000000000)*MAX(Circuit1!$F$29,1) -> 1.95e-08 | G4: 1.09814946e-08 | H4: 1.504961954e-08 | I4: =0.5*Circuit1!$B$3*(G4*MAX(A4-Circuit1!$B$8, 0)+H4*(A4+Circuit1!$B$8))*Circuit1!$B$5*1000 -> 0.123256384 | J4: =MIN(MAX((1-AG3-Circuit1!$F$7/1000000000+Circuit1!$F$8/1000000000),0.001),1)*Circuit1!$B$7/1000000*AF4*(A4*A4+Circuit1!$B$8^2/3)*Circuit1!$B$5*1000 -> 0.007620004374 | K4: =Circuit1!$B$3*$AN$2*Circuit1!$J$26*0.000000001*Circuit1!$B$5*1000 -> 0.153 | L4: =Circuit1!$J$21*A4*(Circuit1!$F$7/1000000000+Circuit1!$F$8/1000000000)*Circuit1!$B$5*1000 -> 0.00756 | M4: =A4*Circuit1!$B$4 -> 2.16 | N4: =Circuit1!$F$4*($AN$3/1000000000*Circuit1!$F$29)*Circuit1!$B$5*1000+Circuit1!$F$4*Circuit1!$F$9/1000/2 -> 0.06336363636 | O4: =Circuit1!$F$4*($AN$4/1000000000*Circuit1!$J$26)*Circuit1!$B$5*1000+Circuit1!$F$4*Circuit1!$F$9/1000/2 -> 0.07871818182 | P4: =(A4*A4+((Circuit1!$B$8)^2)/3)*(Circuit1!$J$9+Circuit1!$J$12)/1000*(1+0.002*AE3) -> 0.01093067749 | Q4: =Circuit1!$J$8/1000 -> 0.03 | R4: =0 -> 0 | S4: =(Circuit1!$F$19/1000000000000*Circuit1!$F$29)*Circuit1!$B$3*Circuit1!$B$3*Circuit1!$B$5*1000 -> 0.06426 | T4: 0 | U4: =Circuit1!$B$8*Circuit1!$B$8/3*Circuit1!$J$4/1000 -> 0.005642666667 | V4: 0.79805531 | W4: 0.1897441554 | X4: 0.01518000437 | Y4: 0.04657334415 | Z4: 0.06336363636 | AA4: =W4*Circuit1!$F$25/MAX(Circuit1!$F$29,1) -> 11.38464933 | AB4: 10.58153552 | AC4: =$AN$6*(1+AB3*0.85*Circuit1!$F$26/100)/1000/MAX(Circuit1!$F$29,1) -> 0.004691333734 | AD4: =X4*Circuit1!$J$22/MAX(Circuit1!$J$26,1) -> 0.6937261999 | AE4: 0.6905325962 | AF4: =$AN$7*(1+AE3*Circuit1!$J$23*0.85/100)/MAX(Circuit1!$J$26,1)/1000 -> 0.001957026789 | AG4: =(U4+T4+S4+R4+Q4+P4+N4+M4+L4+J4+I4+B4+O4+K4)/A4/Circuit1!$B$3 -> 0.1002436786 | AH4: Rdson Correction Factor for LS | AI4: =(A4*A4+((Circuit1!$B$8)^2)/3)*Circuit1!$J$9/1000*50 -> 0.32764 | AK4: 0.9437661581 | AM4: QTOT_LS | AN4: =(VLOOKUP(Circuit1!$J$16, MOSFETs!$A$2:$S$120,17,0)+(Circuit1!$F$4-4.5)*(VLOOKUP(Circuit1!$J$16, MOSFETs!$A$2:$S$120,18,0)-VLOOKUP(Circuit1!$J$16, MOSFETs!$A$2:$S4120,17,0))/5.5) -> 44.14545455
A5: =Circuit1!$B$10/50*4 -> 2.4 | B5: =AG4*Circuit1!$B$7/1000000*AC5*(A5*A5+((Circuit1!$B$8)^2)/3)*Circuit1!$B$5*1000 -> 0.003252211917 | C5: =(Circuit1!$F$22+A5/(Circuit1!$F$23*Circuit1!$F$29))/(1+((Circuit1!$F$22+A5/(Circuit1!$F$23*Circuit1!$F$29))/Circuit1!$F$4)^(5))^(0.2) -> 2.098833864 | D5: =MAX((Circuit1!$F$4-C5), 0.001)/(Circuit1!$F$5+Circuit1!$F$28+Circuit1!$F$24/Circuit1!$F$29) -> 1.115833129 | E5: =C5/(Circuit1!$F$6+Circuit1!$F$28+Circuit1!$F$24/Circuit1!$F$29) -> 1.311771165 | F5: =(Circuit1!$F$20/1000000000+Circuit1!$F$21/2/1000000000)*MAX(Circuit1!$F$29,1) -> 1.95e-08 | G5: 1.104294606e-08 | H5: 1.486539765e-08 | I5: =0.5*Circuit1!$B$3*(G5*MAX(A5-Circuit1!$B$8, 0)+H5*(A5+Circuit1!$B$8))*Circuit1!$B$5*1000 -> 0.1557300056 | J5: =MIN(MAX((1-AG4-Circuit1!$F$7/1000000000+Circuit1!$F$8/1000000000),0.001),1)*Circuit1!$B$7/1000000*AF5*(A5*A5+Circuit1!$B$8^2/3)*Circuit1!$B$5*1000 -> 0.01214371446 | K5: =Circuit1!$B$3*$AN$2*Circuit1!$J$26*0.000000001*Circuit1!$B$5*1000 -> 0.153 | L5: =Circuit1!$J$21*A5*(Circuit1!$F$7/1000000000+Circuit1!$F$8/1000000000)*Circuit1!$B$5*1000 -> 0.01008 | M5: =A5*Circuit1!$B$4 -> 2.88 | N5: =Circuit1!$F$4*($AN$3/1000000000*Circuit1!$F$29)*Circuit1!$B$5*1000+Circuit1!$F$4*Circuit1!$F$9/1000/2 -> 0.06336363636 | O5: =Circuit1!$F$4*($AN$4/1000000000*Circuit1!$J$26)*Circuit1!$B$5*1000+Circuit1!$F$4*Circuit1!$F$9/1000/2 -> 0.07871818182 | P5: =(A5*A5+((Circuit1!$B$8)^2)/3)*(Circuit1!$J$9+Circuit1!$J$12)/1000*(1+0.002*AE4) -> 0.01724511712 | Q5: =Circuit1!$J$8/1000 -> 0.03 | R5: =0 -> 0 | S5: =(Circuit1!$F$19/1000000000000*Circuit1!$F$29)*Circuit1!$B$3*Circuit1!$B$3*Circuit1!$B$5*1000 -> 0.06426 | T5: 0 | U5: =Circuit1!$B$8*Circuit1!$B$8/3*Circuit1!$J$4/1000 -> 0.005642666667 | V5: 0.8291502669 | W5: 0.2232422176 | X5: 0.02222371446 | Y5: 0.05288778378 | Z5: 0.06336363636 | AA5: =W5*Circuit1!$F$25/MAX(Circuit1!$F$29,1) -> 13.39453305 | AB5: 12.29649438 | AC5: =$AN$6*(1+AB4*0.85*Circuit1!$F$26/100)/1000/MAX(Circuit1!$F$29,1) -> 0.004709719877 | AD5: =X5*Circuit1!$J$22/MAX(Circuit1!$J$26,1) -> 1.015623751 | AE5: 1.008793387 | AF5: =$AN$7*(1+AE4*Circuit1!$J$23*0.85/100)/MAX(Circuit1!$J$26,1)/1000 -> 0.001959295208 | AG5: =(U5+T5+S5+R5+Q5+P5+N5+M5+L5+J5+I5+B5+O5+K5)/A5/Circuit1!$B$3 -> 0.09648432039 | AH5: 0.005 | AI5: =(A5*A5+((Circuit1!$B$8)^2)/3)*Circuit1!$J$9/1000*50 -> 0.51664 | AK5: 0.9541533756
A6: =Circuit1!$B$10/50*5 -> 3 | B6: =AG5*Circuit1!$B$7/1000000*AC6*(A6*A6+((Circuit1!$B$8)^2)/3)*Circuit1!$B$5*1000 -> 0.004632596964 | C6: =(Circuit1!$F$22+A6/(Circuit1!$F$23*Circuit1!$F$29))/(1+((Circuit1!$F$22+A6/(Circuit1!$F$23*Circuit1!$F$29))/Circuit1!$F$4)^(5))^(0.2) -> 2.124500722 | D6: =MAX((Circuit1!$F$4-C6), 0.001)/(Circuit1!$F$5+Circuit1!$F$28+Circuit1!$F$24/Circuit1!$F$29) -> 1.105961261 | E6: =C6/(Circuit1!$F$6+Circuit1!$F$28+Circuit1!$F$24/Circuit1!$F$29) -> 1.327812951 | F6: =(Circuit1!$F$20/1000000000+Circuit1!$F$21/2/1000000000)*MAX(Circuit1!$F$29,1) -> 1.95e-08 | G6: 1.110502859e-08 | H6: 1.468580343e-08 | I6: =0.5*Circuit1!$B$3*(G6*MAX(A6-Circuit1!$B$8, 0)+H6*(A6+Circuit1!$B$8))*Circuit1!$B$5*1000 -> 0.188912524 | J6: =MIN(MAX((1-AG5-Circuit1!$F$7/1000000000+Circuit1!$F$8/1000000000),0.001),1)*Circuit1!$B$7/1000000*AF6*(A6*A6+Circuit1!$B$8^2/3)*Circuit1!$B$5*1000 -> 0.01795522177 | K6: =Circuit1!$B$3*$AN$2*Circuit1!$J$26*0.000000001*Circuit1!$B$5*1000 -> 0.153 | L6: =Circuit1!$J$21*A6*(Circuit1!$F$7/1000000000+Circuit1!$F$8/1000000000)*Circuit1!$B$5*1000 -> 0.0126 | M6: =A6*Circuit1!$B$4 -> 3.6 | N6: =Circuit1!$F$4*($AN$3/1000000000*Circuit1!$F$29)*Circuit1!$B$5*1000+Circuit1!$F$4*Circuit1!$F$9/1000/2 -> 0.06336363636 | O6: =Circuit1!$F$4*($AN$4/1000000000*Circuit1!$J$26)*Circuit1!$B$5*1000+Circuit1!$F$4*Circuit1!$F$9/1000/2 -> 0.07871818182 | P6: =(A6*A6+((Circuit1!$B$8)^2)/3)*(Circuit1!$J$9+Circuit1!$J$12)/1000*(1+0.002*AE5) -> 0.02537242132 | Q6: =Circuit1!$J$8/1000 -> 0.03 | R6: =0 -> 0 | S6: =(Circuit1!$F$19/1000000000000*Circuit1!$F$29)*Circuit1!$B$3*Circuit1!$B$3*Circuit1!$B$5*1000 -> 0.06426 | T6: 0 | U6: =Circuit1!$B$8*Circuit1!$B$8/3*Circuit1!$J$4/1000 -> 0.005642666667 | V6: 0.8481649806 | W6: 0.257805121 | X6: 0.03055522177 | Y6: 0.06101508799 | Z6: 0.06336363636 | AA6: =W6*Circuit1!$F$25/MAX(Circuit1!$F$29,1) -> 15.46830726 | AB6: 14.02229906 | AC6: =$AN$6*(1+AB5*0.85*Circuit1!$F$26/100)/1000/MAX(Circuit1!$F$29,1) -> 0.004740467947 | AD6: =X6*Circuit1!$J$22/MAX(Circuit1!$J$26,1) -> 1.396373635 | AE6: 1.383494467 | AF6: =$AN$7*(1+AE5*Circuit1!$J$23*0.85/100)/MAX(Circuit1!$J$26,1)/1000 -> 0.001962042986 | AG6: =(U6+T6+S6+R6+Q6+P6+N6+M6+L6+J6+I6+B6+O6+K6)/A6/Circuit1!$B$3 -> 0.0943212722 | AI6: =(A6*A6+((Circuit1!$B$8)^2)/3)*Circuit1!$J$9/1000*50 -> 0.75964 | AK6: 0.9602753908 | AM6: RonHS(VGS) | AN6: =(VLOOKUP(Circuit1!$F$16,MOSFETs!$A$1:$S$120,2,0)+(Circuit1!$F$4-4.5)*(VLOOKUP(Circuit1!$F$16,MOSFETs!$A$1:$S$120,13,0)-VLOOKUP(Circuit1!$F$16,MOSFETs!$A$1:$S$120,2,0))/7.5) -> 4.52
A7: =Circuit1!$B$10/50*6 -> 3.6 | B7: =AG6*Circuit1!$B$7/1000000*AC7*(A7*A7+((Circuit1!$B$8)^2)/3)*Circuit1!$B$5*1000 -> 0.006340481114 | C7: =(Circuit1!$F$22+A7/(Circuit1!$F$23*Circuit1!$F$29))/(1+((Circuit1!$F$22+A7/(Circuit1!$F$23*Circuit1!$F$29))/Circuit1!$F$4)^(5))^(0.2) -> 2.150141473 | D7: =MAX((Circuit1!$F$4-C7), 0.001)/(Circuit1!$F$5+Circuit1!$F$28+Circuit1!$F$24/Circuit1!$F$29) -> 1.096099433 | E7: =C7/(Circuit1!$F$6+Circuit1!$F$28+Circuit1!$F$24/Circuit1!$F$29) -> 1.343838421 | F7: =(Circuit1!$F$20/1000000000+Circuit1!$F$21/2/1000000000)*MAX(Circuit1!$F$29,1) -> 1.95e-08 | G7: 1.116774888e-08 | H7: 1.451067308e-08 | I7: =0.5*Circuit1!$B$3*(G7*MAX(A7-Circuit1!$B$8, 0)+H7*(A7+Circuit1!$B$8))*Circuit1!$B$5*1000 -> 0.2218349241 | J7: =MIN(MAX((1-AG6-Circuit1!$F$7/1000000000+Circuit1!$F$8/1000000000),0.001),1)*Circuit1!$B$7/1000000*AF7*(A7*A7+Circuit1!$B$8^2/3)*Circuit1!$B$5*1000 -> 0.02507632882 | K7: =Circuit1!$B$3*$AN$2*Circuit1!$J$26*0.000000001*Circuit1!$B$5*1000 -> 0.153 | L7: =Circuit1!$J$21*A7*(Circuit1!$F$7/1000000000+Circuit1!$F$8/1000000000)*Circuit1!$B$5*1000 -> 0.01512 | M7: =A7*Circuit1!$B$4 -> 4.32 | N7: =Circuit1!$F$4*($AN$3/1000000000*Circuit1!$F$29)*Circuit1!$B$5*1000+Circuit1!$F$4*Circuit1!$F$9/1000/2 -> 0.06336363636 | O7: =Circuit1!$F$4*($AN$4/1000000000*Circuit1!$J$26)*Circuit1!$B$5*1000+Circuit1!$F$4*Circuit1!$F$9/1000/2 -> 0.07871818182 | P7: =(A7*A7+((Circuit1!$B$8)^2)/3)*(Circuit1!$J$9+Circuit1!$J$12)/1000*(1+0.002*AE6) -> 0.03531879037 | Q7: =Circuit1!$J$8/1000 -> 0.03 | R7: =0 -> 0 | S7: =(Circuit1!$F$19/1000000000000*Circuit1!$F$29)*Circuit1!$B$3*Circuit1!$B$3*Circuit1!$B$5*1000 -> 0.06426 | T7: 0 | U7: =Circuit1!$B$8*Circuit1!$B$8/3*Circuit1!$J$4/1000 -> 0.005642666667 | V7: 0.8607849666 | W7: 0.2924354052 | X7: 0.04019632882 | Y7: 0.07096145704 | Z7: 0.06336363636 | AA7: =W7*Circuit1!$F$25/MAX(Circuit1!$F$29,1) -> 17.54612431 | AB7: 15.70862148 | AC7: =$AN$6*(1+AB6*0.85*Circuit1!$F$26/100)/1000/MAX(Circuit1!$F$29,1) -> 0.004771410474 | AD7: =X7*Circuit1!$J$22/MAX(Circuit1!$J$26,1) -> 1.836972227 | AE7: 1.81474795 | AF7: =$AN$7*(1+AE6*Circuit1!$J$23*0.85/100)/MAX(Circuit1!$J$26,1)/1000 -> 0.001965278056 | AG7: =(U7+T7+S7+R7+Q7+P7+N7+M7+L7+J7+I7+B7+O7+K7)/A7/Circuit1!$B$3 -> 0.0929384261 | AH7: Factor for LL | AI7: =(A7*A7+((Circuit1!$B$8)^2)/3)*Circuit1!$J$9/1000*50 -> 1.05664 | AK7: 0.9642134279 | AM7: RonLS(VGS) | AN7: =(VLOOKUP(Circuit1!$J$16,MOSFETs!$A$1:$S$120,2,0)+(Circuit1!$F$4-4.5)*(VLOOKUP(Circuit1!$J$16,MOSFETs!$A$1:$S$120,13,0)-VLOOKUP(Circuit1!$J$16,MOSFETs!$A$1:$S$120,2,0))/7.5) -> 1.953333333
A8: =Circuit1!$B$10/50*7 -> 4.2 | B8: =AG7*Circuit1!$B$7/1000000*AC8*(A8*A8+((Circuit1!$B$8)^2)/3)*Circuit1!$B$5*1000 -> 0.008375595747 | C8: =(Circuit1!$F$22+A8/(Circuit1!$F$23*Circuit1!$F$29))/(1+((Circuit1!$F$22+A8/(Circuit1!$F$23*Circuit1!$F$29))/Circuit1!$F$4)^(5))^(0.2) -> 2.175754867 | D8: =MAX((Circuit1!$F$4-C8), 0.001)/(Circuit1!$F$5+Circuit1!$F$28+Circuit1!$F$24/Circuit1!$F$29) -> 1.086248128 | E8: =C8/(Circuit1!$F$6+Circuit1!$F$28+Circuit1!$F$24/Circuit1!$F$29) -> 1.359846792 | F8: =(Circuit1!$F$20/1000000000+Circuit1!$F$21/2/1000000000)*MAX(Circuit1!$F$29,1) -> 1.95e-08 | G8: 1.123111362e-08 | H8: 1.433985072e-08 | I8: =0.5*Circuit1!$B$3*(G8*MAX(A8-Circuit1!$B$8, 0)+H8*(A8+Circuit1!$B$8))*Circuit1!$B$5*1000 -> 0.2545157846 | J8: =MIN(MAX((1-AG7-Circuit1!$F$7/1000000000+Circuit1!$F$8/1000000000),0.001),1)*Circuit1!$B$7/1000000*AF8*(A8*A8+Circuit1!$B$8^2/3)*Circuit1!$B$5*1000 -> 0.03352070364 | K8: =Circuit1!$B$3*$AN$2*Circuit1!$J$26*0.000000001*Circuit1!$B$5*1000 -> 0.153 | L8: =Circuit1!$J$21*A8*(Circuit1!$F$7/1000000000+Circuit1!$F$8/1000000000)*Circuit1!$B$5*1000 -> 0.01764 | M8: =A8*Circuit1!$B$4 -> 5.04 | N8: =Circuit1!$F$4*($AN$3/1000000000*Circuit1!$F$29)*Circuit1!$B$5*1000+Circuit1!$F$4*Circuit1!$F$9/1000/2 -> 0.06336363636 | O8: =Circuit1!$F$4*($AN$4/1000000000*Circuit1!$J$26)*Circuit1!$B$5*1000+Circuit1!$F$4*Circuit1!$F$9/1000/2 -> 0.07871818182 | P8: =(A8*A8+((Circuit1!$B$8)^2)/3)*(Circuit1!$J$9+Circuit1!$J$12)/1000*(1+0.002*AE7) -> 0.04709163412 | Q8: =Circuit1!$J$8/1000 -> 0.03 | R8: =0 -> 0 | S8: =(Circuit1!$F$19/1000000000000*Circuit1!$F$29)*Circuit1!$B$3*Circuit1!$B$3*Circuit1!$B$5*1000 -> 0.06426 | T8: 0 | U8: =Circuit1!$B$8*Circuit1!$B$8/3*Circuit1!$J$4/1000 -> 0.005642666667 | V8: 0.8695459837 | W8: 0.3271513803 | X8: 0.05116070364 | Y8: 0.08273430079 | Z8: 0.06336363636 | AA8: =W8*Circuit1!$F$25/MAX(Circuit1!$F$29,1) -> 19.62908282 | AB8: 17.35765102 | AC8: =$AN$6*(1+AB7*0.85*Circuit1!$F$26/100)/1000/MAX(Circuit1!$F$29,1) -> 0.004801645111 | AD8: =X8*Circuit1!$J$22/MAX(Circuit1!$J$26,1) -> 2.338044156 | AE8: 2.302160471 | AF8: =$AN$7*(1+AE7*Circuit1!$J$23*0.85/100)/MAX(Circuit1!$J$26,1)/1000 -> 0.001969001383 | AG8: =(U8+T8+S8+R8+Q8+P8+N8+M8+L8+J8+I8+B8+O8+K8)/A8/Circuit1!$B$3 -> 0.09200203497 | AH8: 0.005 | AI8: =(A8*A8+((Circuit1!$B$8)^2)/3)*Circuit1!$J$9/1000*50 -> 1.40764 | AK8: 0.9668370807
A9: =Circuit1!$B$10/50*8 -> 4.8 | B9: =AG8*Circuit1!$B$7/1000000*AC9*(A9*A9+((Circuit1!$B$8)^2)/3)*Circuit1!$B$5*1000 -> 0.01074245999 | C9: =(Circuit1!$F$22+A9/(Circuit1!$F$23*Circuit1!$F$29))/(1+((Circuit1!$F$22+A9/(Circuit1!$F$23*Circuit1!$F$29))/Circuit1!$F$4)^(5))^(0.2) -> 2.201339615 | D9: =MAX((Circuit1!$F$4-C9), 0.001)/(Circuit1!$F$5+Circuit1!$F$28+Circuit1!$F$24/Circuit1!$F$29) -> 1.07640784 | E9: =C9/(Circuit1!$F$6+Circuit1!$F$28+Circuit1!$F$24/Circuit1!$F$29) -> 1.375837259 | F9: =(Circuit1!$F$20/1000000000+Circuit1!$F$21/2/1000000000)*MAX(Circuit1!$F$29,1) -> 1.95e-08 | G9: 1.129512943e-08 | H9: 1.41731879e-08 | I9: =0.5*Circuit1!$B$3*(G9*MAX(A9-Circuit1!$B$8, 0)+H9*(A9+Circuit1!$B$8))*Circuit1!$B$5*1000 -> 0.2869729892 | J9: =MIN(MAX((1-AG8-Circuit1!$F$7/1000000000+Circuit1!$F$8/1000000000),0.001),1)*Circuit1!$B$7/1000000*AF9*(A9*A9+Circuit1!$B$8^2/3)*Circuit1!$B$5*1000 -> 0.04330204281 | K9: =Circuit1!$B$3*$AN$2*Circuit1!$J$26*0.000000001*Circuit1!$B$5*1000 -> 0.153 | L9: =Circuit1!$J$21*A9*(Circuit1!$F$7/1000000000+Circuit1!$F$8/1000000000)*Circuit1!$B$5*1000 -> 0.02016 | M9: =A9*Circuit1!$B$4 -> 5.76 | N9: =Circuit1!$F$4*($AN$3/1000000000*Circuit1!$F$29)*Circuit1!$B$5*1000+Circuit1!$F$4*Circuit1!$F$9/1000/2 -> 0.06336363636 | O9: =Circuit1!$F$4*($AN$4/1000000000*Circuit1!$J$26)*Circuit1!$B$5*1000+Circuit1!$F$4*Circuit1!$F$9/1000/2 -> 0.07871818182 | P9: =(A9*A9+((Circuit1!$B$8)^2)/3)*(Circuit1!$J$9+Circuit1!$J$12)/1000*(1+0.002*AE8) -> 0.06069953254 | Q9: =Circuit1!$J$8/1000 -> 0.03 | R9: =0 -> 0 | S9: =(Circuit1!$F$19/1000000000000*Circuit1!$F$29)*Circuit1!$B$3*Circuit1!$B$3*Circuit1!$B$5*1000 -> 0.06426 | T9: 0 | U9: =Circuit1!$B$8*Circuit1!$B$8/3*Circuit1!$J$4/1000 -> 0.005642666667 | V9: 0.8757976721 | W9: 0.3619754492 | X9: 0.06346204281 | Y9: 0.09634219921 | Z9: 0.06336363636 | AA9: =W9*Circuit1!$F$25/MAX(Circuit1!$F$29,1) -> 21.71852695 | AB9: 18.97162235 | AC9: =$AN$6*(1+AB8*0.85*Circuit1!$F$26/100)/1000/MAX(Circuit1!$F$29,1) -> 0.004831211111 | AD9: =X9*Circuit1!$J$22/MAX(Circuit1!$J$26,1) -> 2.900215356 | AE9: 2.845203994 | AF9: =$AN$7*(1+AE8*Circuit1!$J$23*0.85/100)/MAX(Circuit1!$J$26,1)/1000 -> 0.001973209573 | AG9: =(U9+T9+S9+R9+Q9+P9+N9+M9+L9+J9+I9+B9+O9+K9)/A9/Circuit1!$B$3 -> 0.09134529874 | AI9: =(A9*A9+((Circuit1!$B$8)^2)/3)*Circuit1!$J$9/1000*50 -> 1.81264 | AK9: 0.9679780007
A10: =Circuit1!$B$10/50*9 -> 5.4 | B10: =AG9*Circuit1!$B$7/1000000*AC10*(A10*A10+((Circuit1!$B$8)^2)/3)*Circuit1!$B$5*1000 -> 0.01344664648 | C10: =(Circuit1!$F$22+A10/(Circuit1!$F$23*Circuit1!$F$29))/(1+((Circuit1!$F$22+A10/(Circuit1!$F$23*Circuit1!$F$29))/Circuit1!$F$4)^(5))^(0.2) -> 2.226894384 | D10: =MAX((Circuit1!$F$4-C10), 0.001)/(Circuit1!$F$5+Circuit1!$F$28+Circuit1!$F$24/Circuit1!$F$29) -> 1.066579083 | E10: =C10/(Circuit1!$F$6+Circuit1!$F$28+Circuit1!$F$24/Circuit1!$F$29) -> 1.39180899 | F10: =(Circuit1!$F$20/1000000000+Circuit1!$F$21/2/1000000000)*MAX(Circuit1!$F$29,1) -> 1.95e-08 | G10: 1.135980287e-08 | H10: 1.401054321e-08 | I10: =0.5*Circuit1!$B$3*(G10*MAX(A10-Circuit1!$B$8, 0)+H10*(A10+Circuit1!$B$8))*Circuit1!$B$5*1000 -> 0.3192237699 | J10: =MIN(MAX((1-AG9-Circuit1!$F$7/1000000000+Circuit1!$F$8/1000000000),0.001),1)*Circuit1!$B$7/1000000*AF10*(A10*A10+Circuit1!$B$8^2/3)*Circuit1!$B$5*1000 -> 0.054435351 | K10: =Circuit1!$B$3*$AN$2*Circuit1!$J$26*0.000000001*Circuit1!$B$5*1000 -> 0.153 | L10: =Circuit1!$J$21*A10*(Circuit1!$F$7/1000000000+Circuit1!$F$8/1000000000)*Circuit1!$B$5*1000 -> 0.02268 | M10: =A10*Circuit1!$B$4 -> 6.48 | N10: =Circuit1!$F$4*($AN$3/1000000000*Circuit1!$F$29)*Circuit1!$B$5*1000+Circuit1!$F$4*Circuit1!$F$9/1000/2 -> 0.06336363636 | O10: =Circuit1!$F$4*($AN$4/1000000000*Circuit1!$J$26)*Circuit1!$B$5*1000+Circuit1!$F$4*Circuit1!$F$9/1000/2 -> 0.07871818182 | P10: =(A10*A10+((Circuit1!$B$8)^2)/3)*(Circuit1!$J$9+Circuit1!$J$12)/1000*(1+0.002*AE9) -> 0.07615221861 | Q10: =Circuit1!$J$8/1000 -> 0.03 | R10: =0 -> 0 | S10: =(Circuit1!$F$19/1000000000000*Circuit1!$F$29)*Circuit1!$B$3*Circuit1!$B$3*Circuit1!$B$5*1000 -> 0.06426 | T10: 0 | U10: =Circuit1!$B$8*Circuit1!$B$8/3*Circuit1!$J$4/1000 -> 0.005642666667 | V10: 0.8803244465 | W10: 0.3969304164 | X10: 0.077115351 | Y10: 0.1117948853 | Z10: 0.06336363636 | AA10: =W10*Circuit1!$F$25/MAX(Circuit1!$F$29,1) -> 23.81582499 | AB10: 20.5526381 | AC10: =$AN$6*(1+AB9*0.85*Circuit1!$F$26/100)/1000/MAX(Circuit1!$F$29,1) -> 0.004860148541 | AD10: =X10*Circuit1!$J$22/MAX(Circuit1!$J$26,1) -> 3.524171541 | AE10: 3.443273628 | AF10: =$AN$7*(1+AE9*Circuit1!$J$23*0.85/100)/MAX(Circuit1!$J$26,1)/1000 -> 0.001977898066 | AG10: =(U10+T10+S10+R10+Q10+P10+N10+M10+L10+J10+I10+B10+O10+K10)/A10/Circuit1!$B$3 -> 0.09087558606 | AI10: =(A10*A10+((Circuit1!$B$8)^2)/3)*Circuit1!$J$9/1000*50 -> 2.27164 | AK10: 0.9687247812
A11: =Circuit1!$B$10/50*10 -> 6 | B11: =AG10*Circuit1!$B$7/1000000*AC11*(A11*A11+((Circuit1!$B$8)^2)/3)*Circuit1!$B$5*1000 -> 0.01649415999 | C11: =(Circuit1!$F$22+A11/(Circuit1!$F$23*Circuit1!$F$29))/(1+((Circuit1!$F$22+A11/(Circuit1!$F$23*Circuit1!$F$29))/Circuit1!$F$4)^(5))^(0.2) -> 2.252417803 | D11: =MAX((Circuit1!$F$4-C11), 0.001)/(Circuit1!$F$5+Circuit1!$F$28+Circuit1!$F$24/Circuit1!$F$29) -> 1.056762383 | E11: =C11/(Circuit1!$F$6+Circuit1!$F$28+Circuit1!$F$24/Circuit1!$F$29) -> 1.407761127 | F11: =(Circuit1!$F$20/1000000000+Circuit1!$F$21/2/1000000000)*MAX(Circuit1!$F$29,1) -> 1.95e-08 | G11: 1.142514048e-08 | H11: 1.385178183e-08 | I11: =0.5*Circuit1!$B$3*(G11*MAX(A11-Circuit1!$B$8, 0)+H11*(A11+Circuit1!$B$8))*Circuit1!$B$5*1000 -> 0.3512847464 | J11: =MIN(MAX((1-AG10-Circuit1!$F$7/1000000000+Circuit1!$F$8/1000000000),0.001),1)*Circuit1!$B$7/1000000*AF11*(A11*A11+Circuit1!$B$8^2/3)*Circuit1!$B$5*1000 -> 0.06693716707 | K11: =Circuit1!$B$3*$AN$2*Circuit1!$J$26*0.000000001*Circuit1!$B$5*1000 -> 0.153 | L11: =Circuit1!$J$21*A11*(Circuit1!$F$7/1000000000+Circuit1!$F$8/1000000000)*Circuit1!$B$5*1000 -> 0.0252 | M11: =A11*Circuit1!$B$4 -> 7.2 | N11: =Circuit1!$F$4*($AN$3/1000000000*Circuit1!$F$29)*Circuit1!$B$5*1000+Circuit1!$F$4*Circuit1!$F$9/1000/2 -> 0.06336363636 | O11: =Circuit1!$F$4*($AN$4/1000000000*Circuit1!$J$26)*Circuit1!$B$5*1000+Circuit1!$F$4*Circuit1!$F$9/1000/2 -> 0.07871818182 | P11: =(A11*A11+((Circuit1!$B$8)^2)/3)*(Circuit1!$J$9+Circuit1!$J$12)/1000*(1+0.002*AE10) -> 0.09346055183 | Q11: =Circuit1!$J$8/1000 -> 0.03 | R11: =0 -> 0 | S11: =(Circuit1!$F$19/1000000000000*Circuit1!$F$29)*Circuit1!$B$3*Circuit1!$B$3*Circuit1!$B$5*1000 -> 0.06426 | T11: 0 | U11: =Circuit1!$B$8*Circuit1!$B$8/3*Circuit1!$J$4/1000 -> 0.005642666667 | V11: 0.8836132693 | W11: 0.4320389064 | X11: 0.09213716707 | Y11: 0.1291032185 | Z11: 0.06336363636 | AA11: =W11*Circuit1!$F$25/MAX(Circuit1!$F$29,1) -> 25.92233438 | AB11: 22.10265212 | AC11: =$AN$6*(1+AB10*0.85*Circuit1!$F$26/100)/1000/MAX(Circuit1!$F$29,1) -> 0.004888495099 | AD11: =X11*Circuit1!$J$22/MAX(Circuit1!$J$26,1) -> 4.210668535 | AE11: 4.095697699 | AF11: =$AN$7*(1+AE10*Circuit1!$J$23*0.85/100)/MAX(Circuit1!$J$26,1)/1000 -> 0.00198306164 | AG11: =(U11+T11+S11+R11+Q11+P11+N11+M11+L11+J11+I11+B11+O11+K11)/A11/Circuit1!$B$3 -> 0.09053734567 | AH11: =Circuit1!$B$8^2/3 -> 1.128533333 | AI11: =(A11*A11+((Circuit1!$B$8)^2)/3)*Circuit1!$J$9/1000*50 -> 2.78464 | AK11: 0.9691965363
A12: =Circuit1!$B$10/50*11 -> 6.6 | B12: =AG11*Circuit1!$B$7/1000000*AC12*(A12*A12+((Circuit1!$B$8)^2)/3)*Circuit1!$B$5*1000 -> 0.01989119994 | C12: =(Circuit1!$F$22+A12/(Circuit1!$F$23*Circuit1!$F$29))/(1+((Circuit1!$F$22+A12/(Circuit1!$F$23*Circuit1!$F$29))/Circuit1!$F$4)^(5))^(0.2) -> 2.277908458 | D12: =MAX((Circuit1!$F$4-C12), 0.001)/(Circuit1!$F$5+Circuit1!$F$28+Circuit1!$F$24/Circuit1!$F$29) -> 1.046958286 | E12: =C12/(Circuit1!$F$6+Circuit1!$F$28+Circuit1!$F$24/Circuit1!$F$29) -> 1.423692786 | F12: =(Circuit1!$F$20/1000000000+Circuit1!$F$21/2/1000000000)*MAX(Circuit1!$F$29,1) -> 1.95e-08 | G12: 1.14911487e-08 | H12: 1.369677517e-08 | I12: =0.5*Circuit1!$B$3*(G12*MAX(A12-Circuit1!$B$8, 0)+H12*(A12+Circuit1!$B$8))*Circuit1!$B$5*1000 -> 0.3831719631 | J12: =MIN(MAX((1-AG11-Circuit1!$F$7/1000000000+Circuit1!$F$8/1000000000),0.001),1)*Circuit1!$B$7/1000000*AF12*(A12*A12+Circuit1!$B$8^2/3)*Circuit1!$B$5*1000 -> 0.08082561971 | K12: =Circuit1!$B$3*$AN$2*Circuit1!$J$26*0.000000001*Circuit1!$B$5*1000 -> 0.153 | L12: =Circuit1!$J$21*A12*(Circuit1!$F$7/1000000000+Circuit1!$F$8/1000000000)*Circuit1!$B$5*1000 -> 0.02772 | M12: =A12*Circuit1!$B$4 -> 7.92 | N12: =Circuit1!$F$4*($AN$3/1000000000*Circuit1!$F$29)*Circuit1!$B$5*1000+Circuit1!$F$4*Circuit1!$F$9/1000/2 -> 0.06336363636 | O12: =Circuit1!$F$4*($AN$4/1000000000*Circuit1!$J$26)*Circuit1!$B$5*1000+Circuit1!$F$4*Circuit1!$F$9/1000/2 -> 0.07871818182 | P12: =(A12*A12+((Circuit1!$B$8)^2)/3)*(Circuit1!$J$9+Circuit1!$J$12)/1000*(1+0.002*AE11) -> 0.1126364869 | Q12: =Circuit1!$J$8/1000 -> 0.03 | R12: =0 -> 0 | S12: =(Circuit1!$F$19/1000000000000*Circuit1!$F$29)*Circuit1!$B$3*Circuit1!$B$3*Circuit1!$B$5*1000 -> 0.06426 | T12: 0 | U12: =Circuit1!$B$8*Circuit1!$B$8/3*Circuit1!$J$4/1000 -> 0.005642666667 | V12: 0.885982374 | W12: 0.467323163 | X12: 0.1085456197 | Y12: 0.1482791536 | Z12: 0.06336363636 | AA12: =W12*Circuit1!$F$25/MAX(Circuit1!$F$29,1) -> 28.03938978 | AB12: 23.62347159 | AC12: =$AN$6*(1+AB11*0.85*Circuit1!$F$26/100)/1000/MAX(Circuit1!$F$29,1) -> 0.004916285817 | AD12: =X12*Circuit1!$J$22/MAX(Circuit1!$J$26,1) -> 4.960534821 | AE12: 4.801740159 | AF12: =$AN$7*(1+AE11*Circuit1!$J$23*0.85/100)/MAX(Circuit1!$J$26,1)/1000 -> 0.001988694495 | AG12: =(U12+T12+S12+R12+Q12+P12+N12+M12+L12+J12+I12+B12+O12+K12)/A12/Circuit1!$B$3 -> 0.09029525005 | AI12: =(A12*A12+((Circuit1!$B$8)^2)/3)*Circuit1!$J$9/1000*50 -> 3.35164 | AK12: 0.9694661509
A13: =Circuit1!$B$10/50*12 -> 7.2 | B13: =AG12*Circuit1!$B$7/1000000*AC13*(A13*A13+((Circuit1!$B$8)^2)/3)*Circuit1!$B$5*1000 -> 0.02364406017 | C13: =(Circuit1!$F$22+A13/(Circuit1!$F$23*Circuit1!$F$29))/(1+((Circuit1!$F$22+A13/(Circuit1!$F$23*Circuit1!$F$29))/Circuit1!$F$4)^(5))^(0.2) -> 2.303364891 | D13: =MAX((Circuit1!$F$4-C13), 0.001)/(Circuit1!$F$5+Circuit1!$F$28+Circuit1!$F$24/Circuit1!$F$29) -> 1.037167349 | E13: =C13/(Circuit1!$F$6+Circuit1!$F$28+Circuit1!$F$24/Circuit1!$F$29) -> 1.439603057 | F13: =(Circuit1!$F$20/1000000000+Circuit1!$F$21/2/1000000000)*MAX(Circuit1!$F$29,1) -> 1.95e-08 | G13: 1.155783391e-08 | H13: 1.354540052e-08 | I13: =0.5*Circuit1!$B$3*(G13*MAX(A13-Circuit1!$B$8, 0)+H13*(A13+Circuit1!$B$8))*Circuit1!$B$5*1000 -> 0.4149009235 | J13: =MIN(MAX((1-AG12-Circuit1!$F$7/1000000000+Circuit1!$F$8/1000000000),0.001),1)*Circuit1!$B$7/1000000*AF13*(A13*A13+Circuit1!$B$8^2/3)*Circuit1!$B$5*1000 -> 0.09612041848 | K13: =Circuit1!$B$3*$AN$2*Circuit1!$J$26*0.000000001*Circuit1!$B$5*1000 -> 0.153 | L13: =Circuit1!$J$21*A13*(Circuit1!$F$7/1000000000+Circuit1!$F$8/1000000000)*Circuit1!$B$5*1000 -> 0.03024 | M13: =A13*Circuit1!$B$4 -> 8.64 | N13: =Circuit1!$F$4*($AN$3/1000000000*Circuit1!$F$29)*Circuit1!$B$5*1000+Circuit1!$F$4*Circuit1!$F$9/1000/2 -> 0.06336363636 | O13: =Circuit1!$F$4*($AN$4/1000000000*Circuit1!$J$26)*Circuit1!$B$5*1000+Circuit1!$F$4*Circuit1!$F$9/1000/2 -> 0.07871818182 | P13: =(A13*A13+((Circuit1!$B$8)^2)/3)*(Circuit1!$J$9+Circuit1!$J$12)/1000*(1+0.002*AE12) -> 0.133693039 | Q13: =Circuit1!$J$8/1000 -> 0.03 | R13: =0 -> 0 | S13: =(Circuit1!$F$19/1000000000000*Circuit1!$F$29)*Circuit1!$B$3*Circuit1!$B$3*Circuit1!$B$5*1000 -> 0.06426 | T13: 0 | U13: =Circuit1!$B$8*Circuit1!$B$8/3*Circuit1!$J$4/1000 -> 0.005642666667 | V13: 0.8876484708 | W13: 0.5028049837 | X13: 0.1263604185 | Y13: 0.1693357057 | Z13: 0.06336363636 | AA13: =W13*Circuit1!$F$25/MAX(Circuit1!$F$29,1) -> 30.16829902 | AB13: 25.11676515 | AC13: =$AN$6*(1+AB12*0.85*Circuit1!$F$26/100)/1000/MAX(Circuit1!$F$29,1) -> 0.004943553097 | AD13: =X13*Circuit1!$J$22/MAX(Circuit1!$J$26,1) -> 5.774671124 | AE13: 5.560600208 | AF13: =$AN$7*(1+AE12*Circuit1!$J$23*0.85/100)/MAX(Circuit1!$J$26,1)/1000 -> 0.001994790277 | AG13: =(U13+T13+S13+R13+Q13+P13+N13+M13+L13+J13+I13+B13+O13+K13)/A13/Circuit1!$B$3 -> 0.09012576783 | AI13: =(A13*A13+((Circuit1!$B$8)^2)/3)*Circuit1!$J$9/1000*50 -> 3.97264 | AK13: 0.9695823721
A14: =Circuit1!$B$10/50*13 -> 7.8 | B14: =AG13*Circuit1!$B$7/1000000*AC14*(A14*A14+((Circuit1!$B$8)^2)/3)*Circuit1!$B$5*1000 -> 0.02775908486 | C14: =(Circuit1!$F$22+A14/(Circuit1!$F$23*Circuit1!$F$29))/(1+((Circuit1!$F$22+A14/(Circuit1!$F$23*Circuit1!$F$29))/Circuit1!$F$4)^(5))^(0.2) -> 2.328785607 | D14: =MAX((Circuit1!$F$4-C14), 0.001)/(Circuit1!$F$5+Circuit1!$F$28+Circuit1!$F$24/Circuit1!$F$29) -> 1.027390151 | E14: =C14/(Circuit1!$F$6+Circuit1!$F$28+Circuit1!$F$24/Circuit1!$F$29) -> 1.455491004 | F14: =(Circuit1!$F$20/1000000000+Circuit1!$F$21/2/1000000000)*MAX(Circuit1!$F$29,1) -> 1.95e-08 | G14: 1.162520239e-08 | H14: 1.339754072e-08 | I14: =0.5*Circuit1!$B$3*(G14*MAX(A14-Circuit1!$B$8, 0)+H14*(A14+Circuit1!$B$8))*Circuit1!$B$5*1000 -> 0.4464866224 | J14: =MIN(MAX((1-AG13-Circuit1!$F$7/1000000000+Circuit1!$F$8/1000000000),0.001),1)*Circuit1!$B$7/1000000*AF14*(A14*A14+Circuit1!$B$8^2/3)*Circuit1!$B$5*1000 -> 0.1128428142 | K14: =Circuit1!$B$3*$AN$2*Circuit1!$J$26*0.000000001*Circuit1!$B$5*1000 -> 0.153 | L14: =Circuit1!$J$21*A14*(Circuit1!$F$7/1000000000+Circuit1!$F$8/1000000000)*Circuit1!$B$5*1000 -> 0.03276 | M14: =A14*Circuit1!$B$4 -> 9.36 | N14: =Circuit1!$F$4*($AN$3/1000000000*Circuit1!$F$29)*Circuit1!$B$5*1000+Circuit1!$F$4*Circuit1!$F$9/1000/2 -> 0.06336363636 | O14: =Circuit1!$F$4*($AN$4/1000000000*Circuit1!$J$26)*Circuit1!$B$5*1000+Circuit1!$F$4*Circuit1!$F$9/1000/2 -> 0.07871818182 | P14: =(A14*A14+((Circuit1!$B$8)^2)/3)*(Circuit1!$J$9+Circuit1!$J$12)/1000*(1+0.002*AE13) -> 0.1566442445 | Q14: =Circuit1!$J$8/1000 -> 0.03 | R14: =0 -> 0 | S14: =(Circuit1!$F$19/1000000000000*Circuit1!$F$29)*Circuit1!$B$3*Circuit1!$B$3*Circuit1!$B$5*1000 -> 0.06426 | T14: 0 | U14: =Circuit1!$B$8*Circuit1!$B$8/3*Circuit1!$J$4/1000 -> 0.005642666667 | V14: 0.8887642044 | W14: 0.5385057072 | X14: 0.1456028142 | Y14: 0.1922869112 | Z14: 0.06336363636 | AA14: =W14*Circuit1!$F$25/MAX(Circuit1!$F$29,1) -> 32.31034243 | AB14: 26.58407252 | AC14: =$AN$6*(1+AB13*0.85*Circuit1!$F$26/100)/1000/MAX(Circuit1!$F$29,1) -> 0.004970326855 | AD14: =X14*Circuit1!$J$22/MAX(Circuit1!$J$26,1) -> 6.65404861 | AE14: 6.371410764 | AF14: =$AN$7*(1+AE13*Circuit1!$J$23*0.85/100)/MAX(Circuit1!$J$26,1)/1000 -> 0.002001342073 | AG14: =(U14+T14+S14+R14+Q14+P14+N14+M14+L14+J14+I14+B14+O14+K14)/A14/Circuit1!$B$3 -> 0.09001262608 | AI14: =(A14*A14+((Circuit1!$B$8)^2)/3)*Circuit1!$J$9/1000*50 -> 4.64764 | AK14: 0.969579041
A15: =Circuit1!$B$10/50*14 -> 8.4 | B15: =AG14*Circuit1!$B$7/1000000*AC15*(A15*A15+((Circuit1!$B$8)^2)/3)*Circuit1!$B$5*1000 -> 0.03224264985 | C15: =(Circuit1!$F$22+A15/(Circuit1!$F$23*Circuit1!$F$29))/(1+((Circuit1!$F$22+A15/(Circuit1!$F$23*Circuit1!$F$29))/Circuit1!$F$4)^(5))^(0.2) -> 2.354169063 | D15: =MAX((Circuit1!$F$4-C15), 0.001)/(Circuit1!$F$5+Circuit1!$F$28+Circuit1!$F$24/Circuit1!$F$29) -> 1.017627284 | E15: =C15/(Circuit1!$F$6+Circuit1!$F$28+Circuit1!$F$24/Circuit1!$F$29) -> 1.471355664 | F15: =(Circuit1!$F$20/1000000000+Circuit1!$F$21/2/1000000000)*MAX(Circuit1!$F$29,1) -> 1.95e-08 | G15: 1.169326035e-08 | H15: 1.325308386e-08 | I15: =0.5*Circuit1!$B$3*(G15*MAX(A15-Circuit1!$B$8, 0)+H15*(A15+Circuit1!$B$8))*Circuit1!$B$5*1000 -> 0.4779435749 | J15: =MIN(MAX((1-AG14-Circuit1!$F$7/1000000000+Circuit1!$F$8/1000000000),0.001),1)*Circuit1!$B$7/1000000*AF15*(A15*A15+Circuit1!$B$8^2/3)*Circuit1!$B$5*1000 -> 0.131015542 | K15: =Circuit1!$B$3*$AN$2*Circuit1!$J$26*0.000000001*Circuit1!$B$5*1000 -> 0.153 | L15: =Circuit1!$J$21*A15*(Circuit1!$F$7/1000000000+Circuit1!$F$8/1000000000)*Circuit1!$B$5*1000 -> 0.03528 | M15: =A15*Circuit1!$B$4 -> 10.08 | N15: =Circuit1!$F$4*($AN$3/1000000000*Circuit1!$F$29)*Circuit1!$B$5*1000+Circuit1!$F$4*Circuit1!$F$9/1000/2 -> 0.06336363636 | O15: =Circuit1!$F$4*($AN$4/1000000000*Circuit1!$J$26)*Circuit1!$B$5*1000+Circuit1!$F$4*Circuit1!$F$9/1000/2 -> 0.07871818182 | P15: =(A15*A15+((Circuit1!$B$8)^2)/3)*(Circuit1!$J$9+Circuit1!$J$12)/1000*(1+0.002*AE14) -> 0.1815051188 | Q15: =Circuit1!$J$8/1000 -> 0.03 | R15: =0 -> 0 | S15: =(Circuit1!$F$19/1000000000000*Circuit1!$F$29)*Circuit1!$B$3*Circuit1!$B$3*Circuit1!$B$5*1000 -> 0.06426 | T15: 0 | U15: =Circuit1!$B$8*Circuit1!$B$8/3*Circuit1!$J$4/1000 -> 0.005642666667 | V15: 0.8894401716 | W15: 0.5744462247 | X15: 0.166295542 | Y15: 0.2171477855 | Z15: 0.06336363636 | AA15: =W15*Circuit1!$F$25/MAX(Circuit1!$F$29,1) -> 34.46677348 | AB15: 28.0268144 | AC15: =$AN$6*(1+AB14*0.85*Circuit1!$F$26/100)/1000/MAX(Circuit1!$F$29,1) -> 0.004996634698 | AD15: =X15*Circuit1!$J$22/MAX(Circuit1!$J$26,1) -> 7.59970627 | AE15: 7.233236454 | AF15: =$AN$7*(1+AE14*Circuit1!$J$23*0.85/100)/MAX(Circuit1!$J$26,1)/1000 -> 0.002008342395 | AG15: =(U15+T15+S15+R15+Q15+P15+N15+M15+L15+J15+I15+B15+O15+K15)/A15/Circuit1!$B$3 -> 0.08994421723 | AI15: =(A15*A15+((Circuit1!$B$8)^2)/3)*Circuit1!$J$9/1000*50 -> 5.37664 | AK15: 0.9694803806
A16: =Circuit1!$B$10/50*15 -> 9 | B16: =AG15*Circuit1!$B$7/1000000*AC16*(A16*A16+((Circuit1!$B$8)^2)/3)*Circuit1!$B$5*1000 -> 0.03710115591 | C16: =(Circuit1!$F$22+A16/(Circuit1!$F$23*Circuit1!$F$29))/(1+((Circuit1!$F$22+A16/(Circuit1!$F$23*Circuit1!$F$29))/Circuit1!$F$4)^(5))^(0.2) -> 2.379513676 | D16: =MAX((Circuit1!$F$4-C16), 0.001)/(Circuit1!$F$5+Circuit1!$F$28+Circuit1!$F$24/Circuit1!$F$29) -> 1.007879355 | E16: =C16/(Circuit1!$F$6+Circuit1!$F$28+Circuit1!$F$24/Circuit1!$F$29) -> 1.487196048 | F16: =(Circuit1!$F$20/1000000000+Circuit1!$F$21/2/1000000000)*MAX(Circuit1!$F$29,1) -> 1.95e-08 | G16: 1.176201389e-08 | H16: 1.311192296e-08 | I16: =0.5*Circuit1!$B$3*(G16*MAX(A16-Circuit1!$B$8, 0)+H16*(A16+Circuit1!$B$8))*Circuit1!$B$5*1000 -> 0.5092858447 | J16: =MIN(MAX((1-AG15-Circuit1!$F$7/1000000000+Circuit1!$F$8/1000000000),0.001),1)*Circuit1!$B$7/1000000*AF16*(A16*A16+Circuit1!$B$8^2/3)*Circuit1!$B$5*1000 -> 0.1506627518 | K16: =Circuit1!$B$3*$AN$2*Circuit1!$J$26*0.000000001*Circuit1!$B$5*1000 -> 0.153 | L16: =Circuit1!$J$21*A16*(Circuit1!$F$7/1000000000+Circuit1!$F$8/1000000000)*Circuit1!$B$5*1000 -> 0.0378 | M16: =A16*Circuit1!$B$4 -> 10.8 | N16: =Circuit1!$F$4*($AN$3/1000000000*Circuit1!$F$29)*Circuit1!$B$5*1000+Circuit1!$F$4*Circuit1!$F$9/1000/2 -> 0.06336363636 | O16: =Circuit1!$F$4*($AN$4/1000000000*Circuit1!$J$26)*Circuit1!$B$5*1000+Circuit1!$F$4*Circuit1!$F$9/1000/2 -> 0.07871818182 | P16: =(A16*A16+((Circuit1!$B$8)^2)/3)*(Circuit1!$J$9+Circuit1!$J$12)/1000*(1+0.002*AE15) -> 0.2082916088 | Q16: =Circuit1!$J$8/1000 -> 0.03 | R16: =0 -> 0 | S16: =(Circuit1!$F$19/1000000000000*Circuit1!$F$29)*Circuit1!$B$3*Circuit1!$B$3*Circuit1!$B$5*1000 -> 0.06426 | T16: 0 | U16: =Circuit1!$B$8*Circuit1!$B$8/3*Circuit1!$J$4/1000 -> 0.005642666667 | V16: 0.8897584468 | W16: 0.6106470006 | X16: 0.1884627518 | Y16: 0.2439342755 | Z16: 0.06336363636 | AA16: =W16*Circuit1!$F$25/MAX(Circuit1!$F$29,1) -> 36.63882003 | AB16: 29.44630171 | AC16: =$AN$6*(1+AB15*0.85*Circuit1!$F$26/100)/1000/MAX(Circuit1!$F$29,1) -> 0.005022502098 | AD16: =X16*Circuit1!$J$22/MAX(Circuit1!$J$26,1) -> 8.612747756 | AE16: 8.14507145 | AF16: =$AN$7*(1+AE15*Circuit1!$J$23*0.85/100)/MAX(Circuit1!$J$26,1)/1000 -> 0.002015783168 | AG16: =(U16+T16+S16+R16+Q16+P16+N16+M16+L16+J16+I16+B16+O16+K16)/A16/Circuit1!$B$3 -> 0.0899120433 | AI16: =(A16*A16+((Circuit1!$B$8)^2)/3)*Circuit1!$J$9/1000*50 -> 6.15964 | AK16: 0.9693041828
A17: =Circuit1!$B$10/50*16 -> 9.6 | B17: =AG16*Circuit1!$B$7/1000000*AC17*(A17*A17+((Circuit1!$B$8)^2)/3)*Circuit1!$B$5*1000 -> 0.04234102793 | C17: =(Circuit1!$F$22+A17/(Circuit1!$F$23*Circuit1!$F$29))/(1+((Circuit1!$F$22+A17/(Circuit1!$F$23*Circuit1!$F$29))/Circuit1!$F$4)^(5))^(0.2) -> 2.404817822 | D17: =MAX((Circuit1!$F$4-C17), 0.001)/(Circuit1!$F$5+Circuit1!$F$28+Circuit1!$F$24/Circuit1!$F$29) -> 0.9981469915 | E17: =C17/(Circuit1!$F$6+Circuit1!$F$28+Circuit1!$F$24/Circuit1!$F$29) -> 1.503011139 | F17: =(Circuit1!$F$20/1000000000+Circuit1!$F$21/2/1000000000)*MAX(Circuit1!$F$29,1) -> 1.95e-08 | G17: 1.183146898e-08 | H17: 1.297395575e-08 | I17: =0.5*Circuit1!$B$3*(G17*MAX(A17-Circuit1!$B$8, 0)+H17*(A17+Circuit1!$B$8))*Circuit1!$B$5*1000 -> 0.5405270692 | J17: =MIN(MAX((1-AG16-Circuit1!$F$7/1000000000+Circuit1!$F$8/1000000000),0.001),1)*Circuit1!$B$7/1000000*AF17*(A17*A17+Circuit1!$B$8^2/3)*Circuit1!$B$5*1000 -> 0.1718099292 | K17: =Circuit1!$B$3*$AN$2*Circuit1!$J$26*0.000000001*Circuit1!$B$5*1000 -> 0.153 | L17: =Circuit1!$J$21*A17*(Circuit1!$F$7/1000000000+Circuit1!$F$8/1000000000)*Circuit1!$B$5*1000 -> 0.04032 | M17: =A17*Circuit1!$B$4 -> 11.52 | N17: =Circuit1!$F$4*($AN$3/1000000000*Circuit1!$F$29)*Circuit1!$B$5*1000+Circuit1!$F$4*Circuit1!$F$9/1000/2 -> 0.06336363636 | O17: =Circuit1!$F$4*($AN$4/1000000000*Circuit1!$J$26)*Circuit1!$B$5*1000+Circuit1!$F$4*Circuit1!$F$9/1000/2 -> 0.07871818182 | P17: =(A17*A17+((Circuit1!$B$8)^2)/3)*(Circuit1!$J$9+Circuit1!$J$12)/1000*(1+0.002*AE16) -> 0.2370205422 | Q17: =Circuit1!$J$8/1000 -> 0.03 | R17: =0 -> 0 | S17: =(Circuit1!$F$19/1000000000000*Circuit1!$F$29)*Circuit1!$B$3*Circuit1!$B$3*Circuit1!$B$5*1000 -> 0.06426 | T17: 0 | U17: =Circuit1!$B$8*Circuit1!$B$8/3*Circuit1!$J$4/1000 -> 0.005642666667 | V17: 0.8897812067 | W17: 0.6471280972 | X17: 0.2121299292 | Y17: 0.2726632088 | Z17: 0.06336363636 | AA17: =W17*Circuit1!$F$25/MAX(Circuit1!$F$29,1) -> 38.82768583 | AB17: 30.84374438 | AC17: =$AN$6*(1+AB16*0.85*Circuit1!$F$26/100)/1000/MAX(Circuit1!$F$29,1) -> 0.005047952559 | AD17: =X17*Circuit1!$J$22/MAX(Circuit1!$J$26,1) -> 9.694337766 | AE17: 9.105837347 | AF17: =$AN$7*(1+AE16*Circuit1!$J$23*0.85/100)/MAX(Circuit1!$J$26,1)/1000 -> 0.002023655708 | AG17: =(U17+T17+S17+R17+Q17+P17+N17+M17+L17+J17+I17+B17+O17+K17)/A17/Circuit1!$B$3 -> 0.08990974343 | AI17: =(A17*A17+((Circuit1!$B$8)^2)/3)*Circuit1!$J$9/1000*50 -> 6.99664 | AK17: 0.9690638084
A18: =Circuit1!$B$10/50*17 -> 10.2 | B18: =AG17*Circuit1!$B$7/1000000*AC18*(A18*A18+((Circuit1!$B$8)^2)/3)*Circuit1!$B$5*1000 -> 0.04796871709 | C18: =(Circuit1!$F$22+A18/(Circuit1!$F$23*Circuit1!$F$29))/(1+((Circuit1!$F$22+A18/(Circuit1!$F$23*Circuit1!$F$29))/Circuit1!$F$4)^(5))^(0.2) -> 2.430079831 | D18: =MAX((Circuit1!$F$4-C18), 0.001)/(Circuit1!$F$5+Circuit1!$F$28+Circuit1!$F$24/Circuit1!$F$29) -> 0.9884308342 | E18: =C18/(Circuit1!$F$6+Circuit1!$F$28+Circuit1!$F$24/Circuit1!$F$29) -> 1.518799894 | F18: =(Circuit1!$F$20/1000000000+Circuit1!$F$21/2/1000000000)*MAX(Circuit1!$F$29,1) -> 1.95e-08 | G18: 1.190163148e-08 | H18: 1.283908438e-08 | I18: =0.5*Circuit1!$B$3*(G18*MAX(A18-Circuit1!$B$8, 0)+H18*(A18+Circuit1!$B$8))*Circuit1!$B$5*1000 -> 0.571680484 | J18: =MIN(MAX((1-AG17-Circuit1!$F$7/1000000000+Circuit1!$F$8/1000000000),0.001),1)*Circuit1!$B$7/1000000*AF18*(A18*A18+Circuit1!$B$8^2/3)*Circuit1!$B$5*1000 -> 0.1944838082 | K18: =Circuit1!$B$3*$AN$2*Circuit1!$J$26*0.000000001*Circuit1!$B$5*1000 -> 0.153 | L18: =Circuit1!$J$21*A18*(Circuit1!$F$7/1000000000+Circuit1!$F$8/1000000000)*Circuit1!$B$5*1000 -> 0.04284 | M18: =A18*Circuit1!$B$4 -> 12.24 | N18: =Circuit1!$F$4*($AN$3/1000000000*Circuit1!$F$29)*Circuit1!$B$5*1000+Circuit1!$F$4*Circuit1!$F$9/1000/2 -> 0.06336363636 | O18: =Circuit1!$F$4*($AN$4/1000000000*Circuit1!$J$26)*Circuit1!$B$5*1000+Circuit1!$F$4*Circuit1!$F$9/1000/2 -> 0.07871818182 | P18: =(A18*A18+((Circuit1!$B$8)^2)/3)*(Circuit1!$J$9+Circuit1!$J$12)/1000*(1+0.002*AE17) -> 0.2677095711 | Q18: =Circuit1!$J$8/1000 -> 0.03 | R18: =0 -> 0 | S18: =(Circuit1!$F$19/1000000000000*Circuit1!$F$29)*Circuit1!$B$3*Circuit1!$B$3*Circuit1!$B$5*1000 -> 0.06426 | T18: 0 | U18: =Circuit1!$B$8*Circuit1!$B$8/3*Circuit1!$J$4/1000 -> 0.005642666667 | V18: 0.8895564073 | W18: 0.6839092011 | X18: 0.2373238082 | Y18: 0.3033522378 | Z18: 0.06336363636 | AA18: =W18*Circuit1!$F$25/MAX(Circuit1!$F$29,1) -> 41.03455207 | AB18: 32.22025934 | AC18: =$AN$6*(1+AB17*0.85*Circuit1!$F$26/100)/1000/MAX(Circuit1!$F$29,1) -> 0.005073007774 | AD18: =X18*Circuit1!$J$22/MAX(Circuit1!$J$26,1) -> 10.84569804 | AE18: 10.11438121 | AF18: =$AN$7*(1+AE17*Circuit1!$J$23*0.85/100)/MAX(Circuit1!$J$26,1)/1000 -> 0.002031950705 | AG18: =(U18+T18+S18+R18+Q18+P18+N18+M18+L18+J18+I18+B18+O18+K18)/A18/Circuit1!$B$3 -> 0.08993246448 | AI18: =(A18*A18+((Circuit1!$B$8)^2)/3)*Circuit1!$J$9/1000*50 -> 7.88764 | AK18: 0.9687694849
A19: =Circuit1!$B$10/50*18 -> 10.8 | B19: =AG18*Circuit1!$B$7/1000000*AC19*(A19*A19+((Circuit1!$B$8)^2)/3)*Circuit1!$B$5*1000 -> 0.05399070432 | C19: =(Circuit1!$F$22+A19/(Circuit1!$F$23*Circuit1!$F$29))/(1+((Circuit1!$F$22+A19/(Circuit1!$F$23*Circuit1!$F$29))/Circuit1!$F$4)^(5))^(0.2) -> 2.455297992 | D19: =MAX((Circuit1!$F$4-C19), 0.001)/(Circuit1!$F$5+Circuit1!$F$28+Circuit1!$F$24/Circuit1!$F$29) -> 0.9787315415 | E19: =C19/(Circuit1!$F$6+Circuit1!$F$28+Circuit1!$F$24/Circuit1!$F$29) -> 1.534561245 | F19: =(Circuit1!$F$20/1000000000+Circuit1!$F$21/2/1000000000)*MAX(Circuit1!$F$29,1) -> 1.95e-08 | G19: 1.197250713e-08 | H19: 1.270721521e-08 | I19: =0.5*Circuit1!$B$3*(G19*MAX(A19-Circuit1!$B$8, 0)+H19*(A19+Circuit1!$B$8))*Circuit1!$B$5*1000 -> 0.6027589445 | J19: =MIN(MAX((1-AG18-Circuit1!$F$7/1000000000+Circuit1!$F$8/1000000000),0.001),1)*Circuit1!$B$7/1000000*AF19*(A19*A19+Circuit1!$B$8^2/3)*Circuit1!$B$5*1000 -> 0.218712275 | K19: =Circuit1!$B$3*$AN$2*Circuit1!$J$26*0.000000001*Circuit1!$B$5*1000 -> 0.153 | L19: =Circuit1!$J$21*A19*(Circuit1!$F$7/1000000000+Circuit1!$F$8/1000000000)*Circuit1!$B$5*1000 -> 0.04536 | M19: =A19*Circuit1!$B$4 -> 12.96 | N19: =Circuit1!$F$4*($AN$3/1000000000*Circuit1!$F$29)*Circuit1!$B$5*1000+Circuit1!$F$4*Circuit1!$F$9/1000/2 -> 0.06336363636 | O19: =Circuit1!$F$4*($AN$4/1000000000*Circuit1!$J$26)*Circuit1!$B$5*1000+Circuit1!$F$4*Circuit1!$F$9/1000/2 -> 0.07871818182 | P19: =(A19*A19+((Circuit1!$B$8)^2)/3)*(Circuit1!$J$9+Circuit1!$J$12)/1000*(1+0.002*AE18) -> 0.3003771125 | Q19: =Circuit1!$J$8/1000 -> 0.03 | R19: =0 -> 0 | S19: =(Circuit1!$F$19/1000000000000*Circuit1!$F$29)*Circuit1!$B$3*Circuit1!$B$3*Circuit1!$B$5*1000 -> 0.06426 | T19: 0 | U19: =Circuit1!$B$8*Circuit1!$B$8/3*Circuit1!$J$4/1000 -> 0.005642666667 | V19: 0.8891216265 | W19: 0.7210096488 | X19: 0.264072275 | Y19: 0.3360197792 | Z19: 0.06336363636 | AA19: =W19*Circuit1!$F$25/MAX(Circuit1!$F$29,1) -> 43.26057893 | AB19: 33.57687779 | AC19: =$AN$6*(1+AB18*0.85*Circuit1!$F$26/100)/1000/MAX(Circuit1!$F$29,1) -> 0.00509768777 | AD19: =X19*Circuit1!$J$22/MAX(Circuit1!$J$26,1) -> 12.06810297 | AE19: 11.16947389 | AF19: =$AN$7*(1+AE18*Circuit1!$J$23*0.85/100)/MAX(Circuit1!$J$26,1)/1000 -> 0.002040658204 | AG19: =(U19+T19+S19+R19+Q19+P19+N19+M19+L19+J19+I19+B19+O19+K19)/A19/Circuit1!$B$3 -> 0.08997644149 | AI19: =(A19*A19+((Circuit1!$B$8)^2)/3)*Circuit1!$J$9/1000*50 -> 8.83264 | AK19: 0.9684291747
A20: =Circuit1!$B$10/50*19 -> 11.4 | B20: =AG19*Circuit1!$B$7/1000000*AC20*(A20*A20+((Circuit1!$B$8)^2)/3)*Circuit1!$B$5*1000 -> 0.06041350422 | C20: =(Circuit1!$F$22+A20/(Circuit1!$F$23*Circuit1!$F$29))/(1+((Circuit1!$F$22+A20/(Circuit1!$F$23*Circuit1!$F$29))/Circuit1!$F$4)^(5))^(0.2) -> 2.480470551 | D20: =MAX((Circuit1!$F$4-C20), 0.001)/(Circuit1!$F$5+Circuit1!$F$28+Circuit1!$F$24/Circuit1!$F$29) -> 0.9690497881 | E20: =C20/(Circuit1!$F$6+Circuit1!$F$28+Circuit1!$F$24/Circuit1!$F$29) -> 1.550294094 | F20: =(Circuit1!$F$20/1000000000+Circuit1!$F$21/2/1000000000)*MAX(Circuit1!$F$29,1) -> 1.95e-08 | G20: 1.204410151e-08 | H20: 1.257825858e-08 | I20: =0.5*Circuit1!$B$3*(G20*MAX(A20-Circuit1!$B$8, 0)+H20*(A20+Circuit1!$B$8))*Circuit1!$B$5*1000 -> 0.6337749467 | J20: =MIN(MAX((1-AG19-Circuit1!$F$7/1000000000+Circuit1!$F$8/1000000000),0.001),1)*Circuit1!$B$7/1000000*AF20*(A20*A20+Circuit1!$B$8^2/3)*Circuit1!$B$5*1000 -> 0.2445242651 | K20: =Circuit1!$B$3*$AN$2*Circuit1!$J$26*0.000000001*Circuit1!$B$5*1000 -> 0.153 | L20: =Circuit1!$J$21*A20*(Circuit1!$F$7/1000000000+Circuit1!$F$8/1000000000)*Circuit1!$B$5*1000 -> 0.04788 | M20: =A20*Circuit1!$B$4 -> 13.68 | N20: =Circuit1!$F$4*($AN$3/1000000000*Circuit1!$F$29)*Circuit1!$B$5*1000+Circuit1!$F$4*Circuit1!$F$9/1000/2 -> 0.06336363636 | O20: =Circuit1!$F$4*($AN$4/1000000000*Circuit1!$J$26)*Circuit1!$B$5*1000+Circuit1!$F$4*Circuit1!$F$9/1000/2 -> 0.07871818182 | P20: =(A20*A20+((Circuit1!$B$8)^2)/3)*(Circuit1!$J$9+Circuit1!$J$12)/1000*(1+0.002*AE19) -> 0.3350422831 | Q20: =Circuit1!$J$8/1000 -> 0.03 | R20: =0 -> 0 | S20: =(Circuit1!$F$19/1000000000000*Circuit1!$F$29)*Circuit1!$B$3*Circuit1!$B$3*Circuit1!$B$5*1000 -> 0.06426 | T20: 0 | U20: =Circuit1!$B$8*Circuit1!$B$8/3*Circuit1!$J$4/1000 -> 0.005642666667 | V20: 0.888506728 | W20: 0.7584484509 | X20: 0.2924042651 | Y20: 0.3706849498 | Z20: 0.06336363636 | AA20: =W20*Circuit1!$F$25/MAX(Circuit1!$F$29,1) -> 45.50690706 | AB20: 34.91455193 | AC20: =$AN$6*(1+AB19*0.85*Circuit1!$F$26/100)/1000/MAX(Circuit1!$F$29,1) -> 0.005122011034 | AD20: =X20*Circuit1!$J$22/MAX(Circuit1!$J$26,1) -> 13.36287491 | AE20: 12.26980878 | AF20: =$AN$7*(1+AE19*Circuit1!$J$23*0.85/100)/MAX(Circuit1!$J$26,1)/1000 -> 0.002049767592 | AG20: =(U20+T20+S20+R20+Q20+P20+N20+M20+L20+J20+I20+B20+O20+K20)/A20/Circuit1!$B$3 -> 0.09003871043 | AI20: =(A20*A20+((Circuit1!$B$8)^2)/3)*Circuit1!$J$9/1000*50 -> 9.83164 | AK20: 0.9680491706
A21: =Circuit1!$B$10/50*20 -> 12 | B21: =AG20*Circuit1!$B$7/1000000*AC21*(A21*A21+((Circuit1!$B$8)^2)/3)*Circuit1!$B$5*1000 -> 0.06724366905 | C21: =(Circuit1!$F$22+A21/(Circuit1!$F$23*Circuit1!$F$29))/(1+((Circuit1!$F$22+A21/(Circuit1!$F$23*Circuit1!$F$29))/Circuit1!$F$4)^(5))^(0.2) -> 2.505595711 | D21: =MAX((Circuit1!$F$4-C21), 0.001)/(Circuit1!$F$5+Circuit1!$F$28+Circuit1!$F$24/Circuit1!$F$29) -> 0.9593862649 | E21: =C21/(Circuit1!$F$6+Circuit1!$F$28+Circuit1!$F$24/Circuit1!$F$29) -> 1.56599732 | F21: =(Circuit1!$F$20/1000000000+Circuit1!$F$21/2/1000000000)*MAX(Circuit1!$F$29,1) -> 1.95e-08 | G21: 1.211642004e-08 | H21: 1.245212859e-08 | I21: =0.5*Circuit1!$B$3*(G21*MAX(A21-Circuit1!$B$8, 0)+H21*(A21+Circuit1!$B$8))*Circuit1!$B$5*1000 -> 0.6647406466 | J21: =MIN(MAX((1-AG20-Circuit1!$F$7/1000000000+Circuit1!$F$8/1000000000),0.001),1)*Circuit1!$B$7/1000000*AF21*(A21*A21+Circuit1!$B$8^2/3)*Circuit1!$B$5*1000 -> 0.2719496525 | K21: =Circuit1!$B$3*$AN$2*Circuit1!$J$26*0.000000001*Circuit1!$B$5*1000 -> 0.153 | L21: =Circuit1!$J$21*A21*(Circuit1!$F$7/1000000000+Circuit1!$F$8/1000000000)*Circuit1!$B$5*1000 -> 0.0504 | M21: =A21*Circuit1!$B$4 -> 14.4 | N21: =Circuit1!$F$4*($AN$3/1000000000*Circuit1!$F$29)*Circuit1!$B$5*1000+Circuit1!$F$4*Circuit1!$F$9/1000/2 -> 0.06336363636 | O21: =Circuit1!$F$4*($AN$4/1000000000*Circuit1!$J$26)*Circuit1!$B$5*1000+Circuit1!$F$4*Circuit1!$F$9/1000/2 -> 0.07871818182 | P21: =(A21*A21+((Circuit1!$B$8)^2)/3)*(Circuit1!$J$9+Circuit1!$J$12)/1000*(1+0.002*AE20) -> 0.3717248301 | Q21: =Circuit1!$J$8/1000 -> 0.03 | R21: =0 -> 0 | S21: =(Circuit1!$F$19/1000000000000*Circuit1!$F$29)*Circuit1!$B$3*Circuit1!$B$3*Circuit1!$B$5*1000 -> 0.06426 | T21: 0 | U21: =Circuit1!$B$8*Circuit1!$B$8/3*Circuit1!$J$4/1000 -> 0.005642666667 | V21: 0.8877357485 | W21: 0.7962443157 | X21: 0.3223496525 | Y21: 0.4073674968 | Z21: 0.06336363636 | AA21: =W21*Circuit1!$F$25/MAX(Circuit1!$F$29,1) -> 47.77465894 | AB21: 36.23416104 | AC21: =$AN$6*(1+AB20*0.85*Circuit1!$F$26/100)/1000/MAX(Circuit1!$F$29,1) -> 0.00514599464 | AD21: =X21*Circuit1!$J$22/MAX(Circuit1!$J$26,1) -> 14.73137912 | AE21: 13.4140009 | AF21: =$AN$7*(1+AE20*Circuit1!$J$23*0.85/100)/MAX(Circuit1!$J$26,1)/1000 -> 0.00205926759 | AG21: =(U21+T21+S21+R21+Q21+P21+N21+M21+L21+J21+I21+B21+O21+K21)/A21/Circuit1!$B$3 -> 0.09011690713 | AI21: =(A21*A21+((Circuit1!$B$8)^2)/3)*Circuit1!$J$9/1000*50 -> 10.88464 | AK21: 0.9676345132
A22: =Circuit1!$B$10/50*21 -> 12.6 | B22: =AG21*Circuit1!$B$7/1000000*AC22*(A22*A22+((Circuit1!$B$8)^2)/3)*Circuit1!$B$5*1000 -> 0.07448779243 | C22: =(Circuit1!$F$22+A22/(Circuit1!$F$23*Circuit1!$F$29))/(1+((Circuit1!$F$22+A22/(Circuit1!$F$23*Circuit1!$F$29))/Circuit1!$F$4)^(5))^(0.2) -> 2.530671634 | D22: =MAX((Circuit1!$F$4-C22), 0.001)/(Circuit1!$F$5+Circuit1!$F$28+Circuit1!$F$24/Circuit1!$F$29) -> 0.9497416794 | E22: =C22/(Circuit1!$F$6+Circuit1!$F$28+Circuit1!$F$24/Circuit1!$F$29) -> 1.581669771 | F22: =(Circuit1!$F$20/1000000000+Circuit1!$F$21/2/1000000000)*MAX(Circuit1!$F$29,1) -> 1.95e-08 | G22: 1.218946799e-08 | H22: 1.232874293e-08 | I22: =0.5*Circuit1!$B$3*(G22*MAX(A22-Circuit1!$B$8, 0)+H22*(A22+Circuit1!$B$8))*Circuit1!$B$5*1000 -> 0.6956678778 | J22: =MIN(MAX((1-AG21-Circuit1!$F$7/1000000000+Circuit1!$F$8/1000000000),0.001),1)*Circuit1!$B$7/1000000*AF22*(A22*A22+Circuit1!$B$8^2/3)*Circuit1!$B$5*1000 -> 0.3010191327 | K22: =Circuit1!$B$3*$AN$2*Circuit1!$J$26*0.000000001*Circuit1!$B$5*1000 -> 0.153 | L22: =Circuit1!$J$21*A22*(Circuit1!$F$7/1000000000+Circuit1!$F$8/1000000000)*Circuit1!$B$5*1000 -> 0.05292 | M22: =A22*Circuit1!$B$4 -> 15.12 | N22: =Circuit1!$F$4*($AN$3/1000000000*Circuit1!$F$29)*Circuit1!$B$5*1000+Circuit1!$F$4*Circuit1!$F$9/1000/2 -> 0.06336363636 | O22: =Circuit1!$F$4*($AN$4/1000000000*Circuit1!$J$26)*Circuit1!$B$5*1000+Circuit1!$F$4*Circuit1!$F$9/1000/2 -> 0.07871818182 | P22: =(A22*A22+((Circuit1!$B$8)^2)/3)*(Circuit1!$J$9+Circuit1!$J$12)/1000*(1+0.002*AE21) -> 0.410445058 | Q22: =Circuit1!$J$8/1000 -> 0.03 | R22: =0 -> 0 | S22: =(Circuit1!$F$19/1000000000000*Circuit1!$F$29)*Circuit1!$B$3*Circuit1!$B$3*Circuit1!$B$5*1000 -> 0.06426 | T22: 0 | U22: =Circuit1!$B$8*Circuit1!$B$8/3*Circuit1!$J$4/1000 -> 0.005642666667 | V22: 0.8868282595 | W22: 0.8344156702 | X22: 0.3539391327 | Y22: 0.4460877247 | Z22: 0.06336363636 | AA22: =W22*Circuit1!$F$25/MAX(Circuit1!$F$29,1) -> 50.06494021 | AB22: 37.53651701 | AC22: =$AN$6*(1+AB21*0.85*Circuit1!$F$26/100)/1000/MAX(Circuit1!$F$29,1) -> 0.005169654351 | AD22: =X22*Circuit1!$J$22/MAX(Circuit1!$J$26,1) -> 16.17501836 | AE22: 14.60058665 | AF22: =$AN$7*(1+AE21*Circuit1!$J$23*0.85/100)/MAX(Circuit1!$J$26,1)/1000 -> 0.00206914624 | AG22: =(U22+T22+S22+R22+Q22+P22+N22+M22+L22+J22+I22+B22+O22+K22)/A22/Circuit1!$B$3 -> 0.09020912352 | AI22: =(A22*A22+((Circuit1!$B$8)^2)/3)*Circuit1!$J$9/1000*50 -> 11.99164 | AK22: 0.9671892905
A23: =Circuit1!$B$10/50*22 -> 13.2 | B23: =AG22*Circuit1!$B$7/1000000*AC23*(A23*A23+((Circuit1!$B$8)^2)/3)*Circuit1!$B$5*1000 -> 0.08215251263 | C23: =(Circuit1!$F$22+A23/(Circuit1!$F$23*Circuit1!$F$29))/(1+((Circuit1!$F$22+A23/(Circuit1!$F$23*Circuit1!$F$29))/Circuit1!$F$4)^(5))^(0.2) -> 2.555696437 | D23: =MAX((Circuit1!$F$4-C23), 0.001)/(Circuit1!$F$5+Circuit1!$F$28+Circuit1!$F$24/Circuit1!$F$29) -> 0.9401167551 | E23: =C23/(Circuit1!$F$6+Circuit1!$F$28+Circuit1!$F$24/Circuit1!$F$29) -> 1.597310273 | F23: =(Circuit1!$F$20/1000000000+Circuit1!$F$21/2/1000000000)*MAX(Circuit1!$F$29,1) -> 1.95e-08 | G23: 1.226325044e-08 | H23: 1.220802265e-08 | I23: =0.5*Circuit1!$B$3*(G23*MAX(A23-Circuit1!$B$8, 0)+H23*(A23+Circuit1!$B$8))*Circuit1!$B$5*1000 -> 0.7265681679 | J23: =MIN(MAX((1-AG22-Circuit1!$F$7/1000000000+Circuit1!$F$8/1000000000),0.001),1)*Circuit1!$B$7/1000000*AF23*(A23*A23+Circuit1!$B$8^2/3)*Circuit1!$B$5*1000 -> 0.3317640983 | K23: =Circuit1!$B$3*$AN$2*Circuit1!$J$26*0.000000001*Circuit1!$B$5*1000 -> 0.153 | L23: =Circuit1!$J$21*A23*(Circuit1!$F$7/1000000000+Circuit1!$F$8/1000000000)*Circuit1!$B$5*1000 -> 0.05544 | M23: =A23*Circuit1!$B$4 -> 15.84 | N23: =Circuit1!$F$4*($AN$3/1000000000*Circuit1!$F$29)*Circuit1!$B$5*1000+Circuit1!$F$4*Circuit1!$F$9/1000/2 -> 0.06336363636 | O23: =Circuit1!$F$4*($AN$4/1000000000*Circuit1!$J$26)*Circuit1!$B$5*1000+Circuit1!$F$4*Circuit1!$F$9/1000/2 -> 0.07871818182 | P23: =(A23*A23+((Circuit1!$B$8)^2)/3)*(Circuit1!$J$9+Circuit1!$J$12)/1000*(1+0.002*AE22) -> 0.4512237507 | Q23: =Circuit1!$J$8/1000 -> 0.03 | R23: =0 -> 0 | S23: =(Circuit1!$F$19/1000000000000*Circuit1!$F$29)*Circuit1!$B$3*Circuit1!$B$3*Circuit1!$B$5*1000 -> 0.06426 | T23: 0 | U23: =Circuit1!$B$8*Circuit1!$B$8/3*Circuit1!$J$4/1000 -> 0.005642666667 | V23: 0.8858003677 | W23: 0.8729806806 | X23: 0.3872040983 | Y23: 0.4868664173 | Z23: 0.06336363636 | AA23: =W23*Circuit1!$F$25/MAX(Circuit1!$F$29,1) -> 52.37884083 | AB23: 38.82236944 | AC23: =$AN$6*(1+AB22*0.85*Circuit1!$F$26/100)/1000/MAX(Circuit1!$F$29,1) -> 0.005193004726 | AD23: =X23*Circuit1!$J$22/MAX(Circuit1!$J$26,1) -> 17.69522729 | AE23: 15.82802407 | AF23: =$AN$7*(1+AE22*Circuit1!$J$23*0.85/100)/MAX(Circuit1!$J$26,1)/1000 -> 0.002079390905 | AG23: =(U23+T23+S23+R23+Q23+P23+N23+M23+L23+J23+I23+B23+O23+K23)/A23/Circuit1!$B$3 -> 0.0903138031 | AI23: =(A23*A23+((Circuit1!$B$8)^2)/3)*Circuit1!$J$9/1000*50 -> 13.15264 | AK23: 0.9667168553
A24: =Circuit1!$B$10/50*23 -> 13.8 | B24: =AG23*Circuit1!$B$7/1000000*AC24*(A24*A24+((Circuit1!$B$8)^2)/3)*Circuit1!$B$5*1000 -> 0.09024451536 | C24: =(Circuit1!$F$22+A24/(Circuit1!$F$23*Circuit1!$F$29))/(1+((Circuit1!$F$22+A24/(Circuit1!$F$23*Circuit1!$F$29))/Circuit1!$F$4)^(5))^(0.2) -> 2.580668198 | D24: =MAX((Circuit1!$F$4-C24), 0.001)/(Circuit1!$F$5+Circuit1!$F$28+Circuit1!$F$24/Circuit1!$F$29) -> 0.9305122315 | E24: =C24/(Circuit1!$F$6+Circuit1!$F$28+Circuit1!$F$24/Circuit1!$F$29) -> 1.612917624 | F24: =(Circuit1!$F$20/1000000000+Circuit1!$F$21/2/1000000000)*MAX(Circuit1!$F$29,1) -> 1.95e-08 | G24: 1.233777228e-08 | H24: 1.208989208e-08 | I24: =0.5*Circuit1!$B$3*(G24*MAX(A24-Circuit1!$B$8, 0)+H24*(A24+Circuit1!$B$8))*Circuit1!$B$5*1000 -> 0.7574527543 | J24: =MIN(MAX((1-AG23-Circuit1!$F$7/1000000000+Circuit1!$F$8/1000000000),0.001),1)*Circuit1!$B$7/1000000*AF24*(A24*A24+Circuit1!$B$8^2/3)*Circuit1!$B$5*1000 -> 0.3642165099 | K24: =Circuit1!$B$3*$AN$2*Circuit1!$J$26*0.000000001*Circuit1!$B$5*1000 -> 0.153 | L24: =Circuit1!$J$21*A24*(Circuit1!$F$7/1000000000+Circuit1!$F$8/1000000000)*Circuit1!$B$5*1000 -> 0.05796 | M24: =A24*Circuit1!$B$4 -> 16.56 | N24: =Circuit1!$F$4*($AN$3/1000000000*Circuit1!$F$29)*Circuit1!$B$5*1000+Circuit1!$F$4*Circuit1!$F$9/1000/2 -> 0.06336363636 | O24: =Circuit1!$F$4*($AN$4/1000000000*Circuit1!$J$26)*Circuit1!$B$5*1000+Circuit1!$F$4*Circuit1!$F$9/1000/2 -> 0.07871818182 | P24: =(A24*A24+((Circuit1!$B$8)^2)/3)*(Circuit1!$J$9+Circuit1!$J$12)/1000*(1+0.002*AE23) -> 0.4940820901 | Q24: =Circuit1!$J$8/1000 -> 0.03 | R24: =0 -> 0 | S24: =(Circuit1!$F$19/1000000000000*Circuit1!$F$29)*Circuit1!$B$3*Circuit1!$B$3*Circuit1!$B$5*1000 -> 0.06426 | T24: 0 | U24: =Circuit1!$B$8*Circuit1!$B$8/3*Circuit1!$J$4/1000 -> 0.005642666667 | V24: 0.8846654611 | W24: 0.9119572696 | X24: 0.4221765099 | Y24: 0.5297247568 | Z24: 0.06336363636 | AA24: =W24*Circuit1!$F$25/MAX(Circuit1!$F$29,1) -> 54.71743618 | AB24: 40.0924102 | AC24: =$AN$6*(1+AB23*0.85*Circuit1!$F$26/100)/1000/MAX(Circuit1!$F$29,1) -> 0.005216059202 | AD24: =X24*Circuit1!$J$22/MAX(Circuit1!$J$26,1) -> 19.2934665 | AE24: 17.09469382 | AF24: =$AN$7*(1+AE23*Circuit1!$J$23*0.85/100)/MAX(Circuit1!$J$26,1)/1000 -> 0.002089988272 | AG24: =(U24+T24+S24+R24+Q24+P24+N24+M24+L24+J24+I24+B24+O24+K24)/A24/Circuit1!$B$3 -> 0.09042966355 | AI24: =(A24*A24+((Circuit1!$B$8)^2)/3)*Circuit1!$J$9/1000*50 -> 14.36764 | AK24: 0.9662199866
A25: =Circuit1!$B$10/50*24 -> 14.4 | B25: =AG24*Circuit1!$B$7/1000000*AC25*(A25*A25+((Circuit1!$B$8)^2)/3)*Circuit1!$B$5*1000 -> 0.09877053598 | C25: =(Circuit1!$F$22+A25/(Circuit1!$F$23*Circuit1!$F$29))/(1+((Circuit1!$F$22+A25/(Circuit1!$F$23*Circuit1!$F$29))/Circuit1!$F$4)^(5))^(0.2) -> 2.605584952 | D25: =MAX((Circuit1!$F$4-C25), 0.001)/(Circuit1!$F$5+Circuit1!$F$28+Circuit1!$F$24/Circuit1!$F$29) -> 0.9209288645 | E25: =C25/(Circuit1!$F$6+Circuit1!$F$28+Circuit1!$F$24/Circuit1!$F$29) -> 1.628490595 | F25: =(Circuit1!$F$20/1000000000+Circuit1!$F$21/2/1000000000)*MAX(Circuit1!$F$29,1) -> 1.95e-08 | G25: 1.24130382e-08 | H25: 1.197427855e-08 | I25: =0.5*Circuit1!$B$3*(G25*MAX(A25-Circuit1!$B$8, 0)+H25*(A25+Circuit1!$B$8))*Circuit1!$B$5*1000 -> 0.7883325976 | J25: =MIN(MAX((1-AG24-Circuit1!$F$7/1000000000+Circuit1!$F$8/1000000000),0.001),1)*Circuit1!$B$7/1000000*AF25*(A25*A25+Circuit1!$B$8^2/3)*Circuit1!$B$5*1000 -> 0.3984087606 | K25: =Circuit1!$B$3*$AN$2*Circuit1!$J$26*0.000000001*Circuit1!$B$5*1000 -> 0.153 | L25: =Circuit1!$J$21*A25*(Circuit1!$F$7/1000000000+Circuit1!$F$8/1000000000)*Circuit1!$B$5*1000 -> 0.06048 | M25: =A25*Circuit1!$B$4 -> 17.28 | N25: =Circuit1!$F$4*($AN$3/1000000000*Circuit1!$F$29)*Circuit1!$B$5*1000+Circuit1!$F$4*Circuit1!$F$9/1000/2 -> 0.06336363636 | O25: =Circuit1!$F$4*($AN$4/1000000000*Circuit1!$J$26)*Circuit1!$B$5*1000+Circuit1!$F$4*Circuit1!$F$9/1000/2 -> 0.07871818182 | P25: =(A25*A25+((Circuit1!$B$8)^2)/3)*(Circuit1!$J$9+Circuit1!$J$12)/1000*(1+0.002*AE24) -> 0.5390415715 | Q25: =Circuit1!$J$8/1000 -> 0.03 | R25: =0 -> 0 | S25: =(Circuit1!$F$19/1000000000000*Circuit1!$F$29)*Circuit1!$B$3*Circuit1!$B$3*Circuit1!$B$5*1000 -> 0.06426 | T25: 0 | U25: =Circuit1!$B$8*Circuit1!$B$8/3*Circuit1!$J$4/1000 -> 0.005642666667 | V25: 0.8834347721 | W25: 0.9513631336 | X25: 0.4588887606 | Y25: 0.5746842382 | Z25: 0.06336363636 | AA25: =W25*Circuit1!$F$25/MAX(Circuit1!$F$29,1) -> 57.08178801 | AB25: 41.34727773 | AC25: =$AN$6*(1+AB24*0.85*Circuit1!$F$26/100)/1000/MAX(Circuit1!$F$29,1) -> 0.005238830187 | AD25: =X25*Circuit1!$J$22/MAX(Circuit1!$J$26,1) -> 20.97121636 | AE25: 18.39890083 | AF25: =$AN$7*(1+AE24*Circuit1!$J$23*0.85/100)/MAX(Circuit1!$J$26,1)/1000 -> 0.002100924361 | AG25: =(U25+T25+S25+R25+Q25+P25+N25+M25+L25+J25+I25+B25+O25+K25)/A25/Circuit1!$B$3 -> 0.09055563866 | AI25: =(A25*A25+((Circuit1!$B$8)^2)/3)*Circuit1!$J$9/1000*50 -> 15.63664 | AK25: 0.9657010108
A26: =Circuit1!$B$10/50*25 -> 15 | B26: =AG25*Circuit1!$B$7/1000000*AC26*(A26*A26+((Circuit1!$B$8)^2)/3)*Circuit1!$B$5*1000 -> 0.1077373611 | C26: =(Circuit1!$F$22+A26/(Circuit1!$F$23*Circuit1!$F$29))/(1+((Circuit1!$F$22+A26/(Circuit1!$F$23*Circuit1!$F$29))/Circuit1!$F$4)^(5))^(0.2) -> 2.630444695 | D26: =MAX((Circuit1!$F$4-C26), 0.001)/(Circuit1!$F$5+Circuit1!$F$28+Circuit1!$F$24/Circuit1!$F$29) -> 0.9113674251 | E26: =C26/(Circuit1!$F$6+Circuit1!$F$28+Circuit1!$F$24/Circuit1!$F$29) -> 1.644027934 | F26: =(Circuit1!$F$20/1000000000+Circuit1!$F$21/2/1000000000)*MAX(Circuit1!$F$29,1) -> 1.95e-08 | G26: 1.248905266e-08 | H26: 1.186111233e-08 | I26: =0.5*Circuit1!$B$3*(G26*MAX(A26-Circuit1!$B$8, 0)+H26*(A26+Circuit1!$B$8))*Circuit1!$B$5*1000 -> 0.8192183955 | J26: =MIN(MAX((1-AG25-Circuit1!$F$7/1000000000+Circuit1!$F$8/1000000000),0.001),1)*Circuit1!$B$7/1000000*AF26*(A26*A26+Circuit1!$B$8^2/3)*Circuit1!$B$5*1000 -> 0.4343735372 | K26: =Circuit1!$B$3*$AN$2*Circuit1!$J$26*0.000000001*Circuit1!$B$5*1000 -> 0.153 | L26: =Circuit1!$J$21*A26*(Circuit1!$F$7/1000000000+Circuit1!$F$8/1000000000)*Circuit1!$B$5*1000 -> 0.063 | M26: =A26*Circuit1!$B$4 -> 18 | N26: =Circuit1!$F$4*($AN$3/1000000000*Circuit1!$F$29)*Circuit1!$B$5*1000+Circuit1!$F$4*Circuit1!$F$9/1000/2 -> 0.06336363636 | O26: =Circuit1!$F$4*($AN$4/1000000000*Circuit1!$J$26)*Circuit1!$B$5*1000+Circuit1!$F$4*Circuit1!$F$9/1000/2 -> 0.07871818182 | P26: =(A26*A26+((Circuit1!$B$8)^2)/3)*(Circuit1!$J$9+Circuit1!$J$12)/1000*(1+0.002*AE25) -> 0.5861239156 | Q26: =Circuit1!$J$8/1000 -> 0.03 | R26: =0 -> 0 | S26: =(Circuit1!$F$19/1000000000000*Circuit1!$F$29)*Circuit1!$B$3*Circuit1!$B$3*Circuit1!$B$5*1000 -> 0.06426 | T26: 0 | U26: =Circuit1!$B$8*Circuit1!$B$8/3*Circuit1!$J$4/1000 -> 0.005642666667 | V26: 0.8821178095 | W26: 0.9912157567 | X26: 0.4973735372 | Y26: 0.6217665823 | Z26: 0.06336363636 | AA26: =W26*Circuit1!$F$25/MAX(Circuit1!$F$29,1) -> 59.4729454 | AB26: 42.58756086 | AC26: =$AN$6*(1+AB25*0.85*Circuit1!$F$26/100)/1000/MAX(Circuit1!$F$29,1) -> 0.005261329125 | AD26: =X26*Circuit1!$J$22/MAX(Circuit1!$J$26,1) -> 22.72997065 | AE26: 19.73887672 | AF26: =$AN$7*(1+AE25*Circuit1!$J$23*0.85/100)/MAX(Circuit1!$J$26,1)/1000 -> 0.002112184537 | AG26: =(U26+T26+S26+R26+Q26+P26+N26+M26+L26+J26+I26+B26+O26+K26)/A26/Circuit1!$B$3 -> 0.0906908342 | AI26: =(A26*A26+((Circuit1!$B$8)^2)/3)*Circuit1!$J$9/1000*50 -> 16.95964 | AK26: 0.965161894
A27: =Circuit1!$B$10/50*26 -> 15.6 | B27: =AG26*Circuit1!$B$7/1000000*AC27*(A27*A27+((Circuit1!$B$8)^2)/3)*Circuit1!$B$5*1000 -> 0.1171518297 | C27: =(Circuit1!$F$22+A27/(Circuit1!$F$23*Circuit1!$F$29))/(1+((Circuit1!$F$22+A27/(Circuit1!$F$23*Circuit1!$F$29))/Circuit1!$F$4)^(5))^(0.2) -> 2.655245379 | D27: =MAX((Circuit1!$F$4-C27), 0.001)/(Circuit1!$F$5+Circuit1!$F$28+Circuit1!$F$24/Circuit1!$F$29) -> 0.9018287004 | E27: =C27/(Circuit1!$F$6+Circuit1!$F$28+Circuit1!$F$24/Circuit1!$F$29) -> 1.659528362 | F27: =(Circuit1!$F$20/1000000000+Circuit1!$F$21/2/1000000000)*MAX(Circuit1!$F$29,1) -> 1.95e-08 | G27: 1.256581992e-08 | H27: 1.175032645e-08 | I27: =0.5*Circuit1!$B$3*(G27*MAX(A27-Circuit1!$B$8, 0)+H27*(A27+Circuit1!$B$8))*Circuit1!$B$5*1000 -> 0.8501205946 | J27: =MIN(MAX((1-AG26-Circuit1!$F$7/1000000000+Circuit1!$F$8/1000000000),0.001),1)*Circuit1!$B$7/1000000*AF27*(A27*A27+Circuit1!$B$8^2/3)*Circuit1!$B$5*1000 -> 0.4721436771 | K27: =Circuit1!$B$3*$AN$2*Circuit1!$J$26*0.000000001*Circuit1!$B$5*1000 -> 0.153 | L27: =Circuit1!$J$21*A27*(Circuit1!$F$7/1000000000+Circuit1!$F$8/1000000000)*Circuit1!$B$5*1000 -> 0.06552 | M27: =A27*Circuit1!$B$4 -> 18.72 | N27: =Circuit1!$F$4*($AN$3/1000000000*Circuit1!$F$29)*Circuit1!$B$5*1000+Circuit1!$F$4*Circuit1!$F$9/1000/2 -> 0.06336363636 | O27: =Circuit1!$F$4*($AN$4/1000000000*Circuit1!$J$26)*Circuit1!$B$5*1000+Circuit1!$F$4*Circuit1!$F$9/1000/2 -> 0.07871818182 | P27: =(A27*A27+((Circuit1!$B$8)^2)/3)*(Circuit1!$J$9+Circuit1!$J$12)/1000*(1+0.002*AE26) -> 0.6353509784 | Q27: =Circuit1!$J$8/1000 -> 0.03 | R27: =0 -> 0 | S27: =(Circuit1!$F$19/1000000000000*Circuit1!$F$29)*Circuit1!$B$3*Circuit1!$B$3*Circuit1!$B$5*1000 -> 0.06426 | T27: 0 | U27: =Circuit1!$B$8*Circuit1!$B$8/3*Circuit1!$J$4/1000 -> 0.005642666667 | V27: 0.8807226924 | W27: 1.031532424 | X27: 0.5376636771 | Y27: 0.6709936451 | Z27: 0.06336363636 | AA27: =W27*Circuit1!$F$25/MAX(Circuit1!$F$29,1) -> 61.89194546 | AB27: 43.81380235 | AC27: =$AN$6*(1+AB26*0.85*Circuit1!$F$26/100)/1000/MAX(Circuit1!$F$29,1) -> 0.005283566574 | AD27: =X27*Circuit1!$J$22/MAX(Circuit1!$J$26,1) -> 24.57123004 | AE27: 21.11278305 | AF27: =$AN$7*(1+AE26*Circuit1!$J$23*0.85/100)/MAX(Circuit1!$J$26,1)/1000 -> 0.002123753531 | AG27: =(U27+T27+S27+R27+Q27+P27+N27+M27+L27+J27+I27+B27+O27+K27)/A27/Circuit1!$B$3 -> 0.09083449387 | AI27: =(A27*A27+((Circuit1!$B$8)^2)/3)*Circuit1!$J$9/1000*50 -> 18.33664 | AK27: 0.9646043127
A28: =Circuit1!$B$10/50*27 -> 16.2 | B28: =AG27*Circuit1!$B$7/1000000*AC28*(A28*A28+((Circuit1!$B$8)^2)/3)*Circuit1!$B$5*1000 -> 0.1270208334 | C28: =(Circuit1!$F$22+A28/(Circuit1!$F$23*Circuit1!$F$29))/(1+((Circuit1!$F$22+A28/(Circuit1!$F$23*Circuit1!$F$29))/Circuit1!$F$4)^(5))^(0.2) -> 2.679984919 | D28: =MAX((Circuit1!$F$4-C28), 0.001)/(Circuit1!$F$5+Circuit1!$F$28+Circuit1!$F$24/Circuit1!$F$29) -> 0.8923134926 | E28: =C28/(Circuit1!$F$6+Circuit1!$F$28+Circuit1!$F$24/Circuit1!$F$29) -> 1.674990575 | F28: =(Circuit1!$F$20/1000000000+Circuit1!$F$21/2/1000000000)*MAX(Circuit1!$F$29,1) -> 1.95e-08 | G28: 1.264334397e-08 | H28: 1.164185656e-08 | I28: =0.5*Circuit1!$B$3*(G28*MAX(A28-Circuit1!$B$8, 0)+H28*(A28+Circuit1!$B$8))*Circuit1!$B$5*1000 -> 0.8810494013 | J28: =MIN(MAX((1-AG27-Circuit1!$F$7/1000000000+Circuit1!$F$8/1000000000),0.001),1)*Circuit1!$B$7/1000000*AF28*(A28*A28+Circuit1!$B$8^2/3)*Circuit1!$B$5*1000 -> 0.5117520236 | K28: =Circuit1!$B$3*$AN$2*Circuit1!$J$26*0.000000001*Circuit1!$B$5*1000 -> 0.153 | L28: =Circuit1!$J$21*A28*(Circuit1!$F$7/1000000000+Circuit1!$F$8/1000000000)*Circuit1!$B$5*1000 -> 0.06804 | M28: =A28*Circuit1!$B$4 -> 19.44 | N28: =Circuit1!$F$4*($AN$3/1000000000*Circuit1!$F$29)*Circuit1!$B$5*1000+Circuit1!$F$4*Circuit1!$F$9/1000/2 -> 0.06336363636 | O28: =Circuit1!$F$4*($AN$4/1000000000*Circuit1!$J$26)*Circuit1!$B$5*1000+Circuit1!$F$4*Circuit1!$F$9/1000/2 -> 0.07871818182 | P28: =(A28*A28+((Circuit1!$B$8)^2)/3)*(Circuit1!$J$9+Circuit1!$J$12)/1000*(1+0.002*AE27) -> 0.6867446596 | Q28: =Circuit1!$J$8/1000 -> 0.03 | R28: =0 -> 0 | S28: =(Circuit1!$F$19/1000000000000*Circuit1!$F$29)*Circuit1!$B$3*Circuit1!$B$3*Circuit1!$B$5*1000 -> 0.06426 | T28: 0 | U28: =Circuit1!$B$8*Circuit1!$B$8/3*Circuit1!$J$4/1000 -> 0.005642666667 | V28: 0.8792564117 | W28: 1.072330235 | X28: 0.5797920236 | Y28: 0.7223873263 | Z28: 0.06336363636 | AA28: =W28*Circuit1!$F$25/MAX(Circuit1!$F$29,1) -> 64.33981408 | AB28: 45.02650221 | AC28: =$AN$6*(1+AB27*0.85*Circuit1!$F$26/100)/1000/MAX(Circuit1!$F$29,1) -> 0.005305552267 | AD28: =X28*Circuit1!$J$22/MAX(Circuit1!$J$26,1) -> 26.49649548 | AE28: 22.51871523 | AF28: =$AN$7*(1+AE27*Circuit1!$J$23*0.85/100)/MAX(Circuit1!$J$26,1)/1000 -> 0.002135615472 | AG28: =(U28+T28+S28+R28+Q28+P28+N28+M28+L28+J28+I28+B28+O28+K28)/A28/Circuit1!$B$3 -> 0.09098597285 | AI28: =(A28*A28+((Circuit1!$B$8)^2)/3)*Circuit1!$J$9/1000*50 -> 19.76764 | AK28: 0.9640297089
A29: =Circuit1!$B$10/50*28 -> 16.8 | B29: =AG28*Circuit1!$B$7/1000000*AC29*(A29*A29+((Circuit1!$B$8)^2)/3)*Circuit1!$B$5*1000 -> 0.1373513162 | C29: =(Circuit1!$F$22+A29/(Circuit1!$F$23*Circuit1!$F$29))/(1+((Circuit1!$F$22+A29/(Circuit1!$F$23*Circuit1!$F$29))/Circuit1!$F$4)^(5))^(0.2) -> 2.704661191 | D29: =MAX((Circuit1!$F$4-C29), 0.001)/(Circuit1!$F$5+Circuit1!$F$28+Circuit1!$F$24/Circuit1!$F$29) -> 0.8828226188 | E29: =C29/(Circuit1!$F$6+Circuit1!$F$28+Circuit1!$F$24/Circuit1!$F$29) -> 1.690413244 | F29: =(Circuit1!$F$20/1000000000+Circuit1!$F$21/2/1000000000)*MAX(Circuit1!$F$29,1) -> 1.95e-08 | G29: 1.272162856e-08 | H29: 1.153564081e-08 | I29: =0.5*Circuit1!$B$3*(G29*MAX(A29-Circuit1!$B$8, 0)+H29*(A29+Circuit1!$B$8))*Circuit1!$B$5*1000 -> 0.9120147926 | J29: =MIN(MAX((1-AG28-Circuit1!$F$7/1000000000+Circuit1!$F$8/1000000000),0.001),1)*Circuit1!$B$7/1000000*AF29*(A29*A29+Circuit1!$B$8^2/3)*Circuit1!$B$5*1000 -> 0.5532312792 | K29: =Circuit1!$B$3*$AN$2*Circuit1!$J$26*0.000000001*Circuit1!$B$5*1000 -> 0.153 | L29: =Circuit1!$J$21*A29*(Circuit1!$F$7/1000000000+Circuit1!$F$8/1000000000)*Circuit1!$B$5*1000 -> 0.07056 | M29: =A29*Circuit1!$B$4 -> 20.16 | N29: =Circuit1!$F$4*($AN$3/1000000000*Circuit1!$F$29)*Circuit1!$B$5*1000+Circuit1!$F$4*Circuit1!$F$9/1000/2 -> 0.06336363636 | O29: =Circuit1!$F$4*($AN$4/1000000000*Circuit1!$J$26)*Circuit1!$B$5*1000+Circuit1!$F$4*Circuit1!$F$9/1000/2 -> 0.07871818182 | P29: =(A29*A29+((Circuit1!$B$8)^2)/3)*(Circuit1!$J$9+Circuit1!$J$12)/1000*(1+0.002*AE28) -> 0.7403268099 | Q29: =Circuit1!$J$8/1000 -> 0.03 | R29: =0 -> 0 | S29: =(Circuit1!$F$19/1000000000000*Circuit1!$F$29)*Circuit1!$B$3*Circuit1!$B$3*Circuit1!$B$5*1000 -> 0.06426 | T29: 0 | U29: =Circuit1!$B$8*Circuit1!$B$8/3*Circuit1!$J$4/1000 -> 0.005642666667 | V29: 0.8777250359 | W29: 1.113626109 | X29: 0.6237912792 | Y29: 0.7759694765 | Z29: 0.06336363636 | AA29: =W29*Circuit1!$F$25/MAX(Circuit1!$F$29,1) -> 66.81756653 | AB29: 46.2261206 | AC29: =$AN$6*(1+AB28*0.85*Circuit1!$F$26/100)/1000/MAX(Circuit1!$F$29,1) -> 0.005327295167 | AD29: =X29*Circuit1!$J$22/MAX(Circuit1!$J$26,1) -> 28.50726146 | AE29: 23.95470741 | AF29: =$AN$7*(1+AE28*Circuit1!$J$23*0.85/100)/MAX(Circuit1!$J$26,1)/1000 -> 0.002147753916 | AG29: =(U29+T29+S29+R29+Q29+P29+N29+M29+L29+J29+I29+B29+O29+K29)/A29/Circuit1!$B$3 -> 0.091144717 | AI29: =(A29*A29+((Circuit1!$B$8)^2)/3)*Circuit1!$J$9/1000*50 -> 21.25264 | AK29: 0.963439334
A30: =Circuit1!$B$10/50*29 -> 17.4 | B30: =AG29*Circuit1!$B$7/1000000*AC30*(A30*A30+((Circuit1!$B$8)^2)/3)*Circuit1!$B$5*1000 -> 0.1481502741 | C30: =(Circuit1!$F$22+A30/(Circuit1!$F$23*Circuit1!$F$29))/(1+((Circuit1!$F$22+A30/(Circuit1!$F$23*Circuit1!$F$29))/Circuit1!$F$4)^(5))^(0.2) -> 2.729272031 | D30: =MAX((Circuit1!$F$4-C30), 0.001)/(Circuit1!$F$5+Circuit1!$F$28+Circuit1!$F$24/Circuit1!$F$29) -> 0.873356911 | E30: =C30/(Circuit1!$F$6+Circuit1!$F$28+Circuit1!$F$24/Circuit1!$F$29) -> 1.70579502 | F30: =(Circuit1!$F$20/1000000000+Circuit1!$F$21/2/1000000000)*MAX(Circuit1!$F$29,1) -> 1.95e-08 | G30: 1.280067715e-08 | H30: 1.143161973e-08 | I30: =0.5*Circuit1!$B$3*(G30*MAX(A30-Circuit1!$B$8, 0)+H30*(A30+Circuit1!$B$8))*Circuit1!$B$5*1000 -> 0.9430265251 | J30: =MIN(MAX((1-AG29-Circuit1!$F$7/1000000000+Circuit1!$F$8/1000000000),0.001),1)*Circuit1!$B$7/1000000*AF30*(A30*A30+Circuit1!$B$8^2/3)*Circuit1!$B$5*1000 -> 0.5966138601 | K30: =Circuit1!$B$3*$AN$2*Circuit1!$J$26*0.000000001*Circuit1!$B$5*1000 -> 0.153 | L30: =Circuit1!$J$21*A30*(Circuit1!$F$7/1000000000+Circuit1!$F$8/1000000000)*Circuit1!$B$5*1000 -> 0.07308 | M30: =A30*Circuit1!$B$4 -> 20.88 | N30: =Circuit1!$F$4*($AN$3/1000000000*Circuit1!$F$29)*Circuit1!$B$5*1000+Circuit1!$F$4*Circuit1!$F$9/1000/2 -> 0.06336363636 | O30: =Circuit1!$F$4*($AN$4/1000000000*Circuit1!$J$26)*Circuit1!$B$5*1000+Circuit1!$F$4*Circuit1!$F$9/1000/2 -> 0.07871818182 | P30: =(A30*A30+((Circuit1!$B$8)^2)/3)*(Circuit1!$J$9+Circuit1!$J$12)/1000*(1+0.002*AE29) -> 0.7961191378 | Q30: =Circuit1!$J$8/1000 -> 0.03 | R30: =0 -> 0 | S30: =(Circuit1!$F$19/1000000000000*Circuit1!$F$29)*Circuit1!$B$3*Circuit1!$B$3*Circuit1!$B$5*1000 -> 0.06426 | T30: 0 | U30: =Circuit1!$B$8*Circuit1!$B$8/3*Circuit1!$J$4/1000 -> 0.005642666667 | V30: 0.876133876 | W30: 1.155436799 | X30: 0.6696938601 | Y30: 0.8317618045 | Z30: 0.06336363636 | AA30: =W30*Circuit1!$F$25/MAX(Circuit1!$F$29,1) -> 69.32620795 | AB30: 47.41308068 | AC30: =$AN$6*(1+AB29*0.85*Circuit1!$F$26/100)/1000/MAX(Circuit1!$F$29,1) -> 0.005348803525 | AD30: =X30*Circuit1!$J$22/MAX(Circuit1!$J$26,1) -> 30.60500941 | AE30: 25.41873798 | AF30: =$AN$7*(1+AE29*Circuit1!$J$23*0.85/100)/MAX(Circuit1!$J$26,1)/1000 -> 0.002160151889 | AG30: =(U30+T30+S30+R30+Q30+P30+N30+M30+L30+J30+I30+B30+O30+K30)/A30/Circuit1!$B$3 -> 0.09131024629 | AI30: =(A30*A30+((Circuit1!$B$8)^2)/3)*Circuit1!$J$9/1000*50 -> 22.79164 | AK30: 0.9628342826
A31: =Circuit1!$B$10/50*30 -> 18 | B31: =AG30*Circuit1!$B$7/1000000*AC31*(A31*A31+((Circuit1!$B$8)^2)/3)*Circuit1!$B$5*1000 -> 0.1594247532 | C31: =(Circuit1!$F$22+A31/(Circuit1!$F$23*Circuit1!$F$29))/(1+((Circuit1!$F$22+A31/(Circuit1!$F$23*Circuit1!$F$29))/Circuit1!$F$4)^(5))^(0.2) -> 2.753815239 | D31: =MAX((Circuit1!$F$4-C31), 0.001)/(Circuit1!$F$5+Circuit1!$F$28+Circuit1!$F$24/Circuit1!$F$29) -> 0.8639172156 | E31: =C31/(Circuit1!$F$6+Circuit1!$F$28+Circuit1!$F$24/Circuit1!$F$29) -> 1.721134525 | F31: =(Circuit1!$F$20/1000000000+Circuit1!$F$21/2/1000000000)*MAX(Circuit1!$F$29,1) -> 1.95e-08 | G31: 1.288049294e-08 | H31: 1.132973613e-08 | I31: =0.5*Circuit1!$B$3*(G31*MAX(A31-Circuit1!$B$8, 0)+H31*(A31+Circuit1!$B$8))*Circuit1!$B$5*1000 -> 0.9740941437 | J31: =MIN(MAX((1-AG30-Circuit1!$F$7/1000000000+Circuit1!$F$8/1000000000),0.001),1)*Circuit1!$B$7/1000000*AF31*(A31*A31+Circuit1!$B$8^2/3)*Circuit1!$B$5*1000 -> 0.6419317512 | K31: =Circuit1!$B$3*$AN$2*Circuit1!$J$26*0.000000001*Circuit1!$B$5*1000 -> 0.153 | L31: =Circuit1!$J$21*A31*(Circuit1!$F$7/1000000000+Circuit1!$F$8/1000000000)*Circuit1!$B$5*1000 -> 0.0756 | M31: =A31*Circuit1!$B$4 -> 21.6 | N31: =Circuit1!$F$4*($AN$3/1000000000*Circuit1!$F$29)*Circuit1!$B$5*1000+Circuit1!$F$4*Circuit1!$F$9/1000/2 -> 0.06336363636 | O31: =Circuit1!$F$4*($AN$4/1000000000*Circuit1!$J$26)*Circuit1!$B$5*1000+Circuit1!$F$4*Circuit1!$F$9/1000/2 -> 0.07871818182 | P31: =(A31*A31+((Circuit1!$B$8)^2)/3)*(Circuit1!$J$9+Circuit1!$J$12)/1000*(1+0.002*AE30) -> 0.8541431183 | Q31: =Circuit1!$J$8/1000 -> 0.03 | R31: =0 -> 0 | S31: =(Circuit1!$F$19/1000000000000*Circuit1!$F$29)*Circuit1!$B$3*Circuit1!$B$3*Circuit1!$B$5*1000 -> 0.06426 | T31: 0 | U31: =Circuit1!$B$8*Circuit1!$B$8/3*Circuit1!$J$4/1000 -> 0.005642666667 | V31: 0.8744876163 | W31: 1.197778897 | X31: 0.7175317512 | Y31: 0.889785785 | Z31: 0.06336363636 | AA31: =W31*Circuit1!$F$25/MAX(Circuit1!$F$29,1) -> 71.86673381 | AB31: 48.58777108 | AC31: =$AN$6*(1+AB30*0.85*Circuit1!$F$26/100)/1000/MAX(Circuit1!$F$29,1) -> 0.005370084928 | AD31: =X31*Circuit1!$J$22/MAX(Circuit1!$J$26,1) -> 32.79120103 | AE31: 26.90873591 | AF31: =$AN$7*(1+AE30*Circuit1!$J$23*0.85/100)/MAX(Circuit1!$J$26,1)/1000 -> 0.002172791939 | AG31: =(U31+T31+S31+R31+Q31+P31+N31+M31+L31+J31+I31+B31+O31+K31)/A31/Circuit1!$B$3 -> 0.09148214167 | AI31: =(A31*A31+((Circuit1!$B$8)^2)/3)*Circuit1!$J$9/1000*50 -> 24.38464 | AK31: 0.9622155199
A32: =Circuit1!$B$10/50*31 -> 18.6 | B32: =AG31*Circuit1!$B$7/1000000*AC32*(A32*A32+((Circuit1!$B$8)^2)/3)*Circuit1!$B$5*1000 -> 0.171181848 | C32: =(Circuit1!$F$22+A32/(Circuit1!$F$23*Circuit1!$F$29))/(1+((Circuit1!$F$22+A32/(Circuit1!$F$23*Circuit1!$F$29))/Circuit1!$F$4)^(5))^(0.2) -> 2.778288579 | D32: =MAX((Circuit1!$F$4-C32), 0.001)/(Circuit1!$F$5+Circuit1!$F$28+Circuit1!$F$24/Circuit1!$F$29) -> 0.8545043928 | E32: =C32/(Circuit1!$F$6+Circuit1!$F$28+Circuit1!$F$24/Circuit1!$F$29) -> 1.736430362 | F32: =(Circuit1!$F$20/1000000000+Circuit1!$F$21/2/1000000000)*MAX(Circuit1!$F$29,1) -> 1.95e-08 | G32: 1.296107881e-08 | H32: 1.122993495e-08 | I32: =0.5*Circuit1!$B$3*(G32*MAX(A32-Circuit1!$B$8, 0)+H32*(A32+Circuit1!$B$8))*Circuit1!$B$5*1000 -> 1.00522699 | J32: =MIN(MAX((1-AG31-Circuit1!$F$7/1000000000+Circuit1!$F$8/1000000000),0.001),1)*Circuit1!$B$7/1000000*AF32*(A32*A32+Circuit1!$B$8^2/3)*Circuit1!$B$5*1000 -> 0.6892163645 | K32: =Circuit1!$B$3*$AN$2*Circuit1!$J$26*0.000000001*Circuit1!$B$5*1000 -> 0.153 | L32: =Circuit1!$J$21*A32*(Circuit1!$F$7/1000000000+Circuit1!$F$8/1000000000)*Circuit1!$B$5*1000 -> 0.07812 | M32: =A32*Circuit1!$B$4 -> 22.32 | N32: =Circuit1!$F$4*($AN$3/1000000000*Circuit1!$F$29)*Circuit1!$B$5*1000+Circuit1!$F$4*Circuit1!$F$9/1000/2 -> 0.06336363636 | O32: =Circuit1!$F$4*($AN$4/1000000000*Circuit1!$J$26)*Circuit1!$B$5*1000+Circuit1!$F$4*Circuit1!$F$9/1000/2 -> 0.07871818182 | P32: =(A32*A32+((Circuit1!$B$8)^2)/3)*(Circuit1!$J$9+Circuit1!$J$12)/1000*(1+0.002*AE31) -> 0.9144199017 | Q32: =Circuit1!$J$8/1000 -> 0.03 | R32: =0 -> 0 | S32: =(Circuit1!$F$19/1000000000000*Circuit1!$F$29)*Circuit1!$B$3*Circuit1!$B$3*Circuit1!$B$5*1000 -> 0.06426 | T32: 0 | U32: =Circuit1!$B$8*Circuit1!$B$8/3*Circuit1!$J$4/1000 -> 0.005642666667 | V32: 0.8727904212 | W32: 1.240668838 | X32: 0.7673363645 | Y32: 0.9500625684 | Z32: 0.06336363636 | AA32: =W32*Circuit1!$F$25/MAX(Circuit1!$F$29,1) -> 74.44013028 | AB32: 49.7505483 | AC32: =$AN$6*(1+AB31*0.85*Circuit1!$F$26/100)/1000/MAX(Circuit1!$F$29,1) -> 0.005391146344 | AD32: =X32*Circuit1!$J$22/MAX(Circuit1!$J$26,1) -> 35.06727186 | AE32: 28.42258777 | AF32: =$AN$7*(1+AE31*Circuit1!$J$23*0.85/100)/MAX(Circuit1!$J$26,1)/1000 -> 0.002185656183 | AG32: =(U32+T32+S32+R32+Q32+P32+N32+M32+L32+J32+I32+B32+O32+K32)/A32/Circuit1!$B$3 -> 0.09166003437 | AI32: =(A32*A32+((Circuit1!$B$8)^2)/3)*Circuit1!$J$9/1000*50 -> 26.03164 | AK32: 0.9615839043
A33: =Circuit1!$B$10/50*32 -> 19.2 | B33: =AG32*Circuit1!$B$7/1000000*AC33*(A33*A33+((Circuit1!$B$8)^2)/3)*Circuit1!$B$5*1000 -> 0.1834286991 | C33: =(Circuit1!$F$22+A33/(Circuit1!$F$23*Circuit1!$F$29))/(1+((Circuit1!$F$22+A33/(Circuit1!$F$23*Circuit1!$F$29))/Circuit1!$F$4)^(5))^(0.2) -> 2.802689777 | D33: =MAX((Circuit1!$F$4-C33), 0.001)/(Circuit1!$F$5+Circuit1!$F$28+Circuit1!$F$24/Circuit1!$F$29) -> 0.8451193167 | E33: =C33/(Circuit1!$F$6+Circuit1!$F$28+Circuit1!$F$24/Circuit1!$F$29) -> 1.75168111 | F33: =(Circuit1!$F$20/1000000000+Circuit1!$F$21/2/1000000000)*MAX(Circuit1!$F$29,1) -> 1.95e-08 | G33: 1.304243734e-08 | H33: 1.11321632e-08 | I33: =0.5*Circuit1!$B$3*(G33*MAX(A33-Circuit1!$B$8, 0)+H33*(A33+Circuit1!$B$8))*Circuit1!$B$5*1000 -> 1.036434208 | J33: =MIN(MAX((1-AG32-Circuit1!$F$7/1000000000+Circuit1!$F$8/1000000000),0.001),1)*Circuit1!$B$7/1000000*AF33*(A33*A33+Circuit1!$B$8^2/3)*Circuit1!$B$5*1000 -> 0.7384984022 | K33: =Circuit1!$B$3*$AN$2*Circuit1!$J$26*0.000000001*Circuit1!$B$5*1000 -> 0.153 | L33: =Circuit1!$J$21*A33*(Circuit1!$F$7/1000000000+Circuit1!$F$8/1000000000)*Circuit1!$B$5*1000 -> 0.08064 | M33: =A33*Circuit1!$B$4 -> 23.04 | N33: =Circuit1!$F$4*($AN$3/1000000000*Circuit1!$F$29)*Circuit1!$B$5*1000+Circuit1!$F$4*Circuit1!$F$9/1000/2 -> 0.06336363636 | O33: =Circuit1!$F$4*($AN$4/1000000000*Circuit1!$J$26)*Circuit1!$B$5*1000+Circuit1!$F$4*Circuit1!$F$9/1000/2 -> 0.07871818182 | P33: =(A33*A33+((Circuit1!$B$8)^2)/3)*(Circuit1!$J$9+Circuit1!$J$12)/1000*(1+0.002*AE32) -> 0.9769702263 | Q33: =Circuit1!$J$8/1000 -> 0.03 | R33: =0 -> 0 | S33: =(Circuit1!$F$19/1000000000000*Circuit1!$F$29)*Circuit1!$B$3*Circuit1!$B$3*Circuit1!$B$5*1000 -> 0.06426 | T33: 0 | U33: =Circuit1!$B$8*Circuit1!$B$8/3*Circuit1!$J$4/1000 -> 0.005642666667 | V33: 0.8710460212 | W33: 1.284122908 | X33: 0.8191384022 | Y33: 1.012612893 | Z33: 0.06336363636 | AA33: =W33*Circuit1!$F$25/MAX(Circuit1!$F$29,1) -> 77.04737445 | AB33: 50.90173888 | AC33: =$AN$6*(1+AB32*0.85*Circuit1!$F$26/100)/1000/MAX(Circuit1!$F$29,1) -> 0.005411994164 | AD33: =X33*Circuit1!$J$22/MAX(Circuit1!$J$26,1) -> 37.43462498 | AE33: 29.95814539 | AF33: =$AN$7*(1+AE32*Circuit1!$J$23*0.85/100)/MAX(Circuit1!$J$26,1)/1000 -> 0.002198726377 | AG33: =(U33+T33+S33+R33+Q33+P33+N33+M33+L33+J33+I33+B33+O33+K33)/A33/Circuit1!$B$3 -> 0.09184359729 | AI33: =(A33*A33+((Circuit1!$B$8)^2)/3)*Circuit1!$J$9/1000*50 -> 27.73264 | AK33: 0.9609402045
A34: =Circuit1!$B$10/50*33 -> 19.8 | B34: =AG33*Circuit1!$B$7/1000000*AC34*(A34*A34+((Circuit1!$B$8)^2)/3)*Circuit1!$B$5*1000 -> 0.1961724901 | C34: =(Circuit1!$F$22+A34/(Circuit1!$F$23*Circuit1!$F$29))/(1+((Circuit1!$F$22+A34/(Circuit1!$F$23*Circuit1!$F$29))/Circuit1!$F$4)^(5))^(0.2) -> 2.827016527 | D34: =MAX((Circuit1!$F$4-C34), 0.001)/(Circuit1!$F$5+Circuit1!$F$28+Circuit1!$F$24/Circuit1!$F$29) -> 0.8357628743 | E34: =C34/(Circuit1!$F$6+Circuit1!$F$28+Circuit1!$F$24/Circuit1!$F$29) -> 1.766885329 | F34: =(Circuit1!$F$20/1000000000+Circuit1!$F$21/2/1000000000)*MAX(Circuit1!$F$29,1) -> 1.95e-08 | G34: 1.312457078e-08 | H34: 1.103636986e-08 | I34: =0.5*Circuit1!$B$3*(G34*MAX(A34-Circuit1!$B$8, 0)+H34*(A34+Circuit1!$B$8))*Circuit1!$B$5*1000 -> 1.067724754 | J34: =MIN(MAX((1-AG33-Circuit1!$F$7/1000000000+Circuit1!$F$8/1000000000),0.001),1)*Circuit1!$B$7/1000000*AF34*(A34*A34+Circuit1!$B$8^2/3)*Circuit1!$B$5*1000 -> 0.7898077252 | K34: =Circuit1!$B$3*$AN$2*Circuit1!$J$26*0.000000001*Circuit1!$B$5*1000 -> 0.153 | L34: =Circuit1!$J$21*A34*(Circuit1!$F$7/1000000000+Circuit1!$F$8/1000000000)*Circuit1!$B$5*1000 -> 0.08316 | M34: =A34*Circuit1!$B$4 -> 23.76 | N34: =Circuit1!$F$4*($AN$3/1000000000*Circuit1!$F$29)*Circuit1!$B$5*1000+Circuit1!$F$4*Circuit1!$F$9/1000/2 -> 0.06336363636 | O34: =Circuit1!$F$4*($AN$4/1000000000*Circuit1!$J$26)*Circuit1!$B$5*1000+Circuit1!$F$4*Circuit1!$F$9/1000/2 -> 0.07871818182 | P34: =(A34*A34+((Circuit1!$B$8)^2)/3)*(Circuit1!$J$9+Circuit1!$J$12)/1000*(1+0.002*AE33) -> 1.041814334 | Q34: =Circuit1!$J$8/1000 -> 0.03 | R34: =0 -> 0 | S34: =(Circuit1!$F$19/1000000000000*Circuit1!$F$29)*Circuit1!$B$3*Circuit1!$B$3*Circuit1!$B$5*1000 -> 0.06426 | T34: 0 | U34: =Circuit1!$B$8*Circuit1!$B$8/3*Circuit1!$J$4/1000 -> 0.005642666667 | V34: 0.8692577835 | W34: 1.328157244 | X34: 0.8729677252 | Y34: 1.077457 | Z34: 0.06336363636 | AA34: =W34*Circuit1!$F$25/MAX(Circuit1!$F$29,1) -> 79.68943463 | AB34: 52.04164142 | AC34: =$AN$6*(1+AB33*0.85*Circuit1!$F$26/100)/1000/MAX(Circuit1!$F$29,1) -> 0.005432634244 | AD34: =X34*Circuit1!$J$22/MAX(Circuit1!$J$26,1) -> 39.89462504 | AE34: 31.51323401 | AF34: =$AN$7*(1+AE33*Circuit1!$J$23*0.85/100)/MAX(Circuit1!$J$26,1)/1000 -> 0.002211983972 | AG34: =(U34+T34+S34+R34+Q34+P34+N34+M34+L34+J34+I34+B34+O34+K34)/A34/Circuit1!$B$3 -> 0.09203253801 | AI34: =(A34*A34+((Circuit1!$B$8)^2)/3)*Circuit1!$J$9/1000*50 -> 29.48764 | AK34: 0.9602851147
A35: =Circuit1!$B$10/50*34 -> 20.4 | B35: =AG34*Circuit1!$B$7/1000000*AC35*(A35*A35+((Circuit1!$B$8)^2)/3)*Circuit1!$B$5*1000 -> 0.2094204443 | C35: =(Circuit1!$F$22+A35/(Circuit1!$F$23*Circuit1!$F$29))/(1+((Circuit1!$F$22+A35/(Circuit1!$F$23*Circuit1!$F$29))/Circuit1!$F$4)^(5))^(0.2) -> 2.85126649 | D35: =MAX((Circuit1!$F$4-C35), 0.001)/(Circuit1!$F$5+Circuit1!$F$28+Circuit1!$F$24/Circuit1!$F$29) -> 0.8264359653 | E35: =C35/(Circuit1!$F$6+Circuit1!$F$28+Circuit1!$F$24/Circuit1!$F$29) -> 1.782041556 | F35: =(Circuit1!$F$20/1000000000+Circuit1!$F$21/2/1000000000)*MAX(Circuit1!$F$29,1) -> 1.95e-08 | G35: 1.320748103e-08 | H35: 1.094250576e-08 | I35: =0.5*Circuit1!$B$3*(G35*MAX(A35-Circuit1!$B$8, 0)+H35*(A35+Circuit1!$B$8))*Circuit1!$B$5*1000 -> 1.099107396 | J35: =MIN(MAX((1-AG34-Circuit1!$F$7/1000000000+Circuit1!$F$8/1000000000),0.001),1)*Circuit1!$B$7/1000000*AF35*(A35*A35+Circuit1!$B$8^2/3)*Circuit1!$B$5*1000 -> 0.8431732289 | K35: =Circuit1!$B$3*$AN$2*Circuit1!$J$26*0.000000001*Circuit1!$B$5*1000 -> 0.153 | L35: =Circuit1!$J$21*A35*(Circuit1!$F$7/1000000000+Circuit1!$F$8/1000000000)*Circuit1!$B$5*1000 -> 0.08568 | M35: =A35*Circuit1!$B$4 -> 24.48 | N35: =Circuit1!$F$4*($AN$3/1000000000*Circuit1!$F$29)*Circuit1!$B$5*1000+Circuit1!$F$4*Circuit1!$F$9/1000/2 -> 0.06336363636 | O35: =Circuit1!$F$4*($AN$4/1000000000*Circuit1!$J$26)*Circuit1!$B$5*1000+Circuit1!$F$4*Circuit1!$F$9/1000/2 -> 0.07871818182 | P35: =(A35*A35+((Circuit1!$B$8)^2)/3)*(Circuit1!$J$9+Circuit1!$J$12)/1000*(1+0.002*AE34) -> 1.108971889 | Q35: =Circuit1!$J$8/1000 -> 0.03 | R35: =0 -> 0 | S35: =(Circuit1!$F$19/1000000000000*Circuit1!$F$29)*Circuit1!$B$3*Circuit1!$B$3*Circuit1!$B$5*1000 -> 0.06426 | T35: 0 | U35: =Circuit1!$B$8*Circuit1!$B$8/3*Circuit1!$J$4/1000 -> 0.005642666667 | V35: 0.8674287691 | W35: 1.37278784 | X35: 0.9288532289 | Y35: 1.144614556 | Z35: 0.06336363636 | AA35: =W35*Circuit1!$F$25/MAX(Circuit1!$F$29,1) -> 82.36727042 | AB35: 53.17052845 | AC35: =$AN$6*(1+AB34*0.85*Circuit1!$F$26/100)/1000/MAX(Circuit1!$F$29,1) -> 0.005453071936 | AD35: =X35*Circuit1!$J$22/MAX(Circuit1!$J$26,1) -> 42.44859256 | AE35: 33.08566095 | AF35: =$AN$7*(1+AE34*Circuit1!$J$23*0.85/100)/MAX(Circuit1!$J$26,1)/1000 -> 0.002225410192 | AG35: =(U35+T35+S35+R35+Q35+P35+N35+M35+L35+J35+I35+B35+O35+K35)/A35/Circuit1!$B$3 -> 0.09222659295 | AI35: =(A35*A35+((Circuit1!$B$8)^2)/3)*Circuit1!$J$9/1000*50 -> 31.29664 | AK35: 0.9596192657
A36: =Circuit1!$B$10/50*35 -> 21 | B36: =AG35*Circuit1!$B$7/1000000*AC36*(A36*A36+((Circuit1!$B$8)^2)/3)*Circuit1!$B$5*1000 -> 0.2231798206 | C36: =(Circuit1!$F$22+A36/(Circuit1!$F$23*Circuit1!$F$29))/(1+((Circuit1!$F$22+A36/(Circuit1!$F$23*Circuit1!$F$29))/Circuit1!$F$4)^(5))^(0.2) -> 2.875437295 | D36: =MAX((Circuit1!$F$4-C36), 0.001)/(Circuit1!$F$5+Circuit1!$F$28+Circuit1!$F$24/Circuit1!$F$29) -> 0.8171395019 | E36: =C36/(Circuit1!$F$6+Circuit1!$F$28+Circuit1!$F$24/Circuit1!$F$29) -> 1.797148309 | F36: =(Circuit1!$F$20/1000000000+Circuit1!$F$21/2/1000000000)*MAX(Circuit1!$F$29,1) -> 1.95e-08 | G36: 1.329116964e-08 | H36: 1.085052352e-08 | I36: =0.5*Circuit1!$B$3*(G36*MAX(A36-Circuit1!$B$8, 0)+H36*(A36+Circuit1!$B$8))*Circuit1!$B$5*1000 -> 1.130590727 | J36: =MIN(MAX((1-AG35-Circuit1!$F$7/1000000000+Circuit1!$F$8/1000000000),0.001),1)*Circuit1!$B$7/1000000*AF36*(A36*A36+Circuit1!$B$8^2/3)*Circuit1!$B$5*1000 -> 0.8986227277 | K36: =Circuit1!$B$3*$AN$2*Circuit1!$J$26*0.000000001*Circuit1!$B$5*1000 -> 0.153 | L36: =Circuit1!$J$21*A36*(Circuit1!$F$7/1000000000+Circuit1!$F$8/1000000000)*Circuit1!$B$5*1000 -> 0.0882 | M36: =A36*Circuit1!$B$4 -> 25.2 | N36: =Circuit1!$F$4*($AN$3/1000000000*Circuit1!$F$29)*Circuit1!$B$5*1000+Circuit1!$F$4*Circuit1!$F$9/1000/2 -> 0.06336363636 | O36: =Circuit1!$F$4*($AN$4/1000000000*Circuit1!$J$26)*Circuit1!$B$5*1000+Circuit1!$F$4*Circuit1!$F$9/1000/2 -> 0.07871818182 | P36: =(A36*A36+((Circuit1!$B$8)^2)/3)*(Circuit1!$J$9+Circuit1!$J$12)/1000*(1+0.002*AE35) -> 1.178461907 | Q36: =Circuit1!$J$8/1000 -> 0.03 | R36: =0 -> 0 | S36: =(Circuit1!$F$19/1000000000000*Circuit1!$F$29)*Circuit1!$B$3*Circuit1!$B$3*Circuit1!$B$5*1000 -> 0.06426 | T36: 0 | U36: =Circuit1!$B$8*Circuit1!$B$8/3*Circuit1!$J$4/1000 -> 0.005642666667 | V36: 0.8655617801 | W36: 1.418030547 | X36: 0.9868227277 | Y36: 1.214104574 | Z36: 0.06336363636 | AA36: =W36*Circuit1!$F$25/MAX(Circuit1!$F$29,1) -> 85.08183284 | AB36: 54.28864822 | AC36: =$AN$6*(1+AB35*0.85*Circuit1!$F$26/100)/1000/MAX(Circuit1!$F$29,1) -> 0.005473312128 | AD36: =X36*Circuit1!$J$22/MAX(Circuit1!$J$26,1) -> 45.09779865 | AE36: 34.67322463 | AF36: =$AN$7*(1+AE35*Circuit1!$J$23*0.85/100)/MAX(Circuit1!$J$26,1)/1000 -> 0.002238986107 | AG36: =(U36+T36+S36+R36+Q36+P36+N36+M36+L36+J36+I36+B36+O36+K36)/A36/Circuit1!$B$3 -> 0.09242552275 | AI36: =(A36*A36+((Circuit1!$B$8)^2)/3)*Circuit1!$J$9/1000*50 -> 33.15964 | AK36: 0.9589432352
A37: =Circuit1!$B$10/50*36 -> 21.6 | B37: =AG36*Circuit1!$B$7/1000000*AC37*(A37*A37+((Circuit1!$B$8)^2)/3)*Circuit1!$B$5*1000 -> 0.2374579099 | C37: =(Circuit1!$F$22+A37/(Circuit1!$F$23*Circuit1!$F$29))/(1+((Circuit1!$F$22+A37/(Circuit1!$F$23*Circuit1!$F$29))/Circuit1!$F$4)^(5))^(0.2) -> 2.899526541 | D37: =MAX((Circuit1!$F$4-C37), 0.001)/(Circuit1!$F$5+Circuit1!$F$28+Circuit1!$F$24/Circuit1!$F$29) -> 0.8078744075 | E37: =C37/(Circuit1!$F$6+Circuit1!$F$28+Circuit1!$F$24/Circuit1!$F$29) -> 1.812204088 | F37: =(Circuit1!$F$20/1000000000+Circuit1!$F$21/2/1000000000)*MAX(Circuit1!$F$29,1) -> 1.95e-08 | G37: 1.337563778e-08 | H37: =F37/E37 -> 1.076037745e-08 | I37: =0.5*Circuit1!$B$3*(G37*MAX(A37-Circuit1!$B$8, 0)+H37*(A37+Circuit1!$B$8))*Circuit1!$B$5*1000 -> 1.162183162 | J37: =MIN(MAX((1-AG36-Circuit1!$F$7/1000000000+Circuit1!$F$8/1000000000),0.001),1)*Circuit1!$B$7/1000000*AF37*(A37*A37+Circuit1!$B$8^2/3)*Circuit1!$B$5*1000 -> 0.9561828493 | K37: =Circuit1!$B$3*$AN$2*Circuit1!$J$26*0.000000001*Circuit1!$B$5*1000 -> 0.153 | L37: =Circuit1!$J$21*A37*(Circuit1!$F$7/1000000000+Circuit1!$F$8/1000000000)*Circuit1!$B$5*1000 -> 0.09072 | M37: =A37*Circuit1!$B$4 -> 25.92 | N37: =Circuit1!$F$4*($AN$3/1000000000*Circuit1!$F$29)*Circuit1!$B$5*1000+Circuit1!$F$4*Circuit1!$F$9/1000/2 -> 0.06336363636 | O37: =Circuit1!$F$4*($AN$4/1000000000*Circuit1!$J$26)*Circuit1!$B$5*1000+Circuit1!$F$4*Circuit1!$F$9/1000/2 -> 0.07871818182 | P37: =(A37*A37+((Circuit1!$B$8)^2)/3)*(Circuit1!$J$9+Circuit1!$J$12)/1000*(1+0.002*AE36) -> 1.250302681 | Q37: =Circuit1!$J$8/1000 -> 0.03 | R37: =0 -> 0 | S37: =(Circuit1!$F$19/1000000000000*Circuit1!$F$29)*Circuit1!$B$3*Circuit1!$B$3*Circuit1!$B$5*1000 -> 0.06426 | T37: 0 | U37: =Circuit1!$B$8*Circuit1!$B$8/3*Circuit1!$J$4/1000 -> 0.005642666667 | V37: 0.863659399 | W37: 1.463901072 | X37: 1.046902849 | Y37: =P37+Q37+U37 -> 1.285945348 | Z37: =N37 -> 0.06336363636 | AA37: =W37*Circuit1!$F$25/MAX(Circuit1!$F$29,1) -> 87.83406433 | AB37: 55.3962263 | AC37: =$AN$6*(1+AB36*0.85*Circuit1!$F$26/100)/1000/MAX(Circuit1!$F$29,1) -> 0.00549335927 | AD37: =X37*Circuit1!$J$22/MAX(Circuit1!$J$26,1) -> 47.84346021 | AE37: 36.2737238 | AF37: =$AN$7*(1+AE36*Circuit1!$J$23*0.85/100)/MAX(Circuit1!$J$26,1)/1000 -> 0.002252692709 | AG37: =(U37+T37+S37+R37+Q37+P37+N37+M37+L37+J37+I37+B37+O37+K37)/A37/Circuit1!$B$3 -> 0.09262910829 | AI37: =(A37*A37+((Circuit1!$B$8)^2)/3)*Circuit1!$J$9/1000*50 -> 35.07664 | AK37: 0.9582575554
A38: =Circuit1!$B$10/50*37 -> 22.2 | B38: =AG37*Circuit1!$B$7/1000000*AC38*(A38*A38+((Circuit1!$B$8)^2)/3)*Circuit1!$B$5*1000 -> 0.2522620301 | C38: =(Circuit1!$F$22+A38/(Circuit1!$F$23*Circuit1!$F$29))/(1+((Circuit1!$F$22+A38/(Circuit1!$F$23*Circuit1!$F$29))/Circuit1!$F$4)^(5))^(0.2) -> 2.923531796 | D38: =MAX((Circuit1!$F$4-C38), 0.001)/(Circuit1!$F$5+Circuit1!$F$28+Circuit1!$F$24/Circuit1!$F$29) -> 0.7986416168 | E38: =C38/(Circuit1!$F$6+Circuit1!$F$28+Circuit1!$F$24/Circuit1!$F$29) -> 1.827207373 | F38: =(Circuit1!$F$20/1000000000+Circuit1!$F$21/2/1000000000)*MAX(Circuit1!$F$29,1) -> 1.95e-08 | G38: 1.346088624e-08 | H38: 1.067202349e-08 | I38: =0.5*Circuit1!$B$3*(G38*MAX(A38-Circuit1!$B$8, 0)+H38*(A38+Circuit1!$B$8))*Circuit1!$B$5*1000 -> 1.193892949 | J38: =MIN(MAX((1-AG37-Circuit1!$F$7/1000000000+Circuit1!$F$8/1000000000),0.001),1)*Circuit1!$B$7/1000000*AF38*(A38*A38+Circuit1!$B$8^2/3)*Circuit1!$B$5*1000 -> 1.01587894 | K38: =Circuit1!$B$3*$AN$2*Circuit1!$J$26*0.000000001*Circuit1!$B$5*1000 -> 0.153 | L38: =Circuit1!$J$21*A38*(Circuit1!$F$7/1000000000+Circuit1!$F$8/1000000000)*Circuit1!$B$5*1000 -> 0.09324 | M38: =A38*Circuit1!$B$4 -> 26.64 | N38: =Circuit1!$F$4*($AN$3/1000000000*Circuit1!$F$29)*Circuit1!$B$5*1000+Circuit1!$F$4*Circuit1!$F$9/1000/2 -> 0.06336363636 | O38: =Circuit1!$F$4*($AN$4/1000000000*Circuit1!$J$26)*Circuit1!$B$5*1000+Circuit1!$F$4*Circuit1!$F$9/1000/2 -> 0.07871818182 | P38: =(A38*A38+((Circuit1!$B$8)^2)/3)*(Circuit1!$J$9+Circuit1!$J$12)/1000*(1+0.002*AE37) -> 1.324511724 | Q38: =Circuit1!$J$8/1000 -> 0.03 | R38: =0 -> 0 | S38: =(Circuit1!$F$19/1000000000000*Circuit1!$F$29)*Circuit1!$B$3*Circuit1!$B$3*Circuit1!$B$5*1000 -> 0.06426 | T38: 0 | U38: =Circuit1!$B$8*Circuit1!$B$8/3*Circuit1!$J$4/1000 -> 0.005642666667 | V38: 0.8617240203 | W38: 1.510414979 | X38: 1.10911894 | Y38: 1.360154391 | Z38: 0.06336363636 | AA38: =W38*Circuit1!$F$25/MAX(Circuit1!$F$29,1) -> 90.62489874 | AB38: 56.49346715 | AC38: =$AN$6*(1+AB37*0.85*Circuit1!$F$26/100)/1000/MAX(Circuit1!$F$29,1) -> 0.005513217407 | AD38: =X38*Circuit1!$J$22/MAX(Circuit1!$J$26,1) -> 50.68673555 | AE38: 37.8849669 | AF38: =$AN$7*(1+AE37*Circuit1!$J$23*0.85/100)/MAX(Circuit1!$J$26,1)/1000 -> 0.002266510992 | AG38: =(U38+T38+S38+R38+Q38+P38+N38+M38+L38+J38+I38+B38+O38+K38)/A38/Circuit1!$B$3 -> 0.09283714753 | AI38: =(A38*A38+((Circuit1!$B$8)^2)/3)*Circuit1!$J$9/1000*50 -> 37.04764 | AK38: 0.95756272
A39: =Circuit1!$B$10/50*38 -> 22.8 | B39: =AG38*Circuit1!$B$7/1000000*AC39*(A39*A39+((Circuit1!$B$8)^2)/3)*Circuit1!$B$5*1000 -> 0.2675995216 | C39: =(Circuit1!$F$22+A39/(Circuit1!$F$23*Circuit1!$F$29))/(1+((Circuit1!$F$22+A39/(Circuit1!$F$23*Circuit1!$F$29))/Circuit1!$F$4)^(5))^(0.2) -> 2.947450605 | D39: =MAX((Circuit1!$F$4-C39), 0.001)/(Circuit1!$F$5+Circuit1!$F$28+Circuit1!$F$24/Circuit1!$F$29) -> 0.7894420749 | E39: =C39/(Circuit1!$F$6+Circuit1!$F$28+Circuit1!$F$24/Circuit1!$F$29) -> 1.842156628 | F39: =(Circuit1!$F$20/1000000000+Circuit1!$F$21/2/1000000000)*MAX(Circuit1!$F$29,1) -> 1.95e-08 | G39: 1.354691539e-08 | H39: 1.058541912e-08 | I39: =0.5*Circuit1!$B$3*(G39*MAX(A39-Circuit1!$B$8, 0)+H39*(A39+Circuit1!$B$8))*Circuit1!$B$5*1000 -> 1.225728166 | J39: =MIN(MAX((1-AG38-Circuit1!$F$7/1000000000+Circuit1!$F$8/1000000000),0.001),1)*Circuit1!$B$7/1000000*AF39*(A39*A39+Circuit1!$B$8^2/3)*Circuit1!$B$5*1000 -> 1.077734981 | K39: =Circuit1!$B$3*$AN$2*Circuit1!$J$26*0.000000001*Circuit1!$B$5*1000 -> 0.153 | L39: =Circuit1!$J$21*A39*(Circuit1!$F$7/1000000000+Circuit1!$F$8/1000000000)*Circuit1!$B$5*1000 -> 0.09576 | M39: =A39*Circuit1!$B$4 -> 27.36 | N39: =Circuit1!$F$4*($AN$3/1000000000*Circuit1!$F$29)*Circuit1!$B$5*1000+Circuit1!$F$4*Circuit1!$F$9/1000/2 -> 0.06336363636 | O39: =Circuit1!$F$4*($AN$4/1000000000*Circuit1!$J$26)*Circuit1!$B$5*1000+Circuit1!$F$4*Circuit1!$F$9/1000/2 -> 0.07871818182 | P39: =(A39*A39+((Circuit1!$B$8)^2)/3)*(Circuit1!$J$9+Circuit1!$J$12)/1000*(1+0.002*AE38) -> 1.401105712 | Q39: =Circuit1!$J$8/1000 -> 0.03 | R39: =0 -> 0 | S39: =(Circuit1!$F$19/1000000000000*Circuit1!$F$29)*Circuit1!$B$3*Circuit1!$B$3*Circuit1!$B$5*1000 -> 0.06426 | T39: 0 | U39: =Circuit1!$B$8*Circuit1!$B$8/3*Circuit1!$J$4/1000 -> 0.005642666667 | V39: 0.8597578769 | W39: 1.557587688 | X39: 1.173494981 | Y39: 1.436748378 | Z39: 0.06336363636 | AA39: =W39*Circuit1!$F$25/MAX(Circuit1!$F$29,1) -> 93.45526126 | AB39: 57.58055552 | AC39: =$AN$6*(1+AB38*0.85*Circuit1!$F$26/100)/1000/MAX(Circuit1!$F$29,1) -> 0.005532890204 | AD39: =X39*Circuit1!$J$22/MAX(Circuit1!$J$26,1) -> 53.62872062 | AE39: 39.50478139 | AF39: =$AN$7*(1+AE38*Circuit1!$J$23*0.85/100)/MAX(Circuit1!$J$26,1)/1000 -> 0.002280422035 | AG39: =(U39+T39+S39+R39+Q39+P39+N39+M39+L39+J39+I39+B39+O39+K39)/A39/Circuit1!$B$3 -> 0.09304945282 | AI39: =(A39*A39+((Circuit1!$B$8)^2)/3)*Circuit1!$J$9/1000*50 -> 39.07264 | AK39: 0.956859189
A40: =Circuit1!$B$10/50*39 -> 23.4 | B40: =AG39*Circuit1!$B$7/1000000*AC40*(A40*A40+((Circuit1!$B$8)^2)/3)*Circuit1!$B$5*1000 -> 0.2834777423 | C40: =(Circuit1!$F$22+A40/(Circuit1!$F$23*Circuit1!$F$29))/(1+((Circuit1!$F$22+A40/(Circuit1!$F$23*Circuit1!$F$29))/Circuit1!$F$4)^(5))^(0.2) -> 2.971280485 | D40: =MAX((Circuit1!$F$4-C40), 0.001)/(Circuit1!$F$5+Circuit1!$F$28+Circuit1!$F$24/Circuit1!$F$29) -> 0.7802767366 | E40: =C40/(Circuit1!$F$6+Circuit1!$F$28+Circuit1!$F$24/Circuit1!$F$29) -> 1.857050303 | F40: =(Circuit1!$F$20/1000000000+Circuit1!$F$21/2/1000000000)*MAX(Circuit1!$F$29,1) -> 1.95e-08 | G40: 1.363372521e-08 | H40: 1.050052331e-08 | I40: =0.5*Circuit1!$B$3*(G40*MAX(A40-Circuit1!$B$8, 0)+H40*(A40+Circuit1!$B$8))*Circuit1!$B$5*1000 -> 1.257696729 | J40: =MIN(MAX((1-AG39-Circuit1!$F$7/1000000000+Circuit1!$F$8/1000000000),0.001),1)*Circuit1!$B$7/1000000*AF40*(A40*A40+Circuit1!$B$8^2/3)*Circuit1!$B$5*1000 -> 1.141773518 | K40: =Circuit1!$B$3*$AN$2*Circuit1!$J$26*0.000000001*Circuit1!$B$5*1000 -> 0.153 | L40: =Circuit1!$J$21*A40*(Circuit1!$F$7/1000000000+Circuit1!$F$8/1000000000)*Circuit1!$B$5*1000 -> 0.09828 | M40: =A40*Circuit1!$B$4 -> 28.08 | N40: =Circuit1!$F$4*($AN$3/1000000000*Circuit1!$F$29)*Circuit1!$B$5*1000+Circuit1!$F$4*Circuit1!$F$9/1000/2 -> 0.06336363636 | O40: =Circuit1!$F$4*($AN$4/1000000000*Circuit1!$J$26)*Circuit1!$B$5*1000+Circuit1!$F$4*Circuit1!$F$9/1000/2 -> 0.07871818182 | P40: =(A40*A40+((Circuit1!$B$8)^2)/3)*(Circuit1!$J$9+Circuit1!$J$12)/1000*(1+0.002*AE39) -> 1.480100436 | Q40: =Circuit1!$J$8/1000 -> 0.03 | R40: =0 -> 0 | S40: =(Circuit1!$F$19/1000000000000*Circuit1!$F$29)*Circuit1!$B$3*Circuit1!$B$3*Circuit1!$B$5*1000 -> 0.06426 | T40: 0 | U40: =Circuit1!$B$8*Circuit1!$B$8/3*Circuit1!$J$4/1000 -> 0.005642666667 | V40: 0.857763062 | W40: 1.605434471 | X40: 1.240053518 | Y40: 1.515743103 | Z40: 0.06336363636 | AA40: =W40*Circuit1!$F$25/MAX(Circuit1!$F$29,1) -> 96.32606827 | AB40: 58.65765788 | AC40: =$AN$6*(1+AB39*0.85*Circuit1!$F$26/100)/1000/MAX(Circuit1!$F$29,1) -> 0.005552380974 | AD40: =X40*Circuit1!$J$22/MAX(Circuit1!$J$26,1) -> 56.67044576 | AE40: 41.13102303 | AF40: =$AN$7*(1+AE39*Circuit1!$J$23*0.85/100)/MAX(Circuit1!$J$26,1)/1000 -> 0.002294407081 | AG40: =(U40+T40+S40+R40+Q40+P40+N40+M40+L40+J40+I40+B40+O40+K40)/A40/Circuit1!$B$3 -> 0.09326584875 | AI40: =(A40*A40+((Circuit1!$B$8)^2)/3)*Circuit1!$J$9/1000*50 -> 41.15164 | AK40: 0.9561473937
A41: =Circuit1!$B$10/50*40 -> 24 | B41: =AG40*Circuit1!$B$7/1000000*AC41*(A41*A41+((Circuit1!$B$8)^2)/3)*Circuit1!$B$5*1000 -> 0.2999040625 | C41: =(Circuit1!$F$22+A41/(Circuit1!$F$23*Circuit1!$F$29))/(1+((Circuit1!$F$22+A41/(Circuit1!$F$23*Circuit1!$F$29))/Circuit1!$F$4)^(5))^(0.2) -> 2.995018929 | D41: =MAX((Circuit1!$F$4-C41), 0.001)/(Circuit1!$F$5+Circuit1!$F$28+Circuit1!$F$24/Circuit1!$F$29) -> 0.7711465659 | E41: =C41/(Circuit1!$F$6+Circuit1!$F$28+Circuit1!$F$24/Circuit1!$F$29) -> 1.87188683 | F41: =(Circuit1!$F$20/1000000000+Circuit1!$F$21/2/1000000000)*MAX(Circuit1!$F$29,1) -> 1.95e-08 | G41: 1.372131522e-08 | H41: =F41/E41 -> 1.041729643e-08 | I41: =0.5*Circuit1!$B$3*(G41*MAX(A41-Circuit1!$B$8, 0)+H41*(A41+Circuit1!$B$8))*Circuit1!$B$5*1000 -> 1.289806391 | J41: =MIN(MAX((1-AG40-Circuit1!$F$7/1000000000+Circuit1!$F$8/1000000000),0.001),1)*Circuit1!$B$7/1000000*AF41*(A41*A41+Circuit1!$B$8^2/3)*Circuit1!$B$5*1000 -> 1.208015604 | K41: =Circuit1!$B$3*$AN$2*Circuit1!$J$26*0.000000001*Circuit1!$B$5*1000 -> 0.153 | L41: =Circuit1!$J$21*A41*(Circuit1!$F$7/1000000000+Circuit1!$F$8/1000000000)*Circuit1!$B$5*1000 -> 0.1008 | M41: =A41*Circuit1!$B$4 -> 28.8 | N41: =Circuit1!$F$4*($AN$3/1000000000*Circuit1!$F$29)*Circuit1!$B$5*1000+Circuit1!$F$4*Circuit1!$F$9/1000/2 -> 0.06336363636 | O41: =Circuit1!$F$4*($AN$4/1000000000*Circuit1!$J$26)*Circuit1!$B$5*1000+Circuit1!$F$4*Circuit1!$F$9/1000/2 -> 0.07871818182 | P41: =(A41*A41+((Circuit1!$B$8)^2)/3)*(Circuit1!$J$9+Circuit1!$J$12)/1000*(1+0.002*AE40) -> 1.561510768 | Q41: =Circuit1!$J$8/1000 -> 0.03 | R41: =0 -> 0 | S41: =(Circuit1!$F$19/1000000000000*Circuit1!$F$29)*Circuit1!$B$3*Circuit1!$B$3*Circuit1!$B$5*1000 -> 0.06426 | T41: 0 | U41: =Circuit1!$B$8*Circuit1!$B$8/3*Circuit1!$J$4/1000 -> 0.005642666667 | V41: 0.855741547 | W41: 1.653970454 | X41: 1.308815604 | Y41: 1.597153435 | Z41: 0.06336363636 | AA41: =W41*Circuit1!$F$25/MAX(Circuit1!$F$29,1) -> 99.23822722 | AB41: 59.72492362 | AC41: =$AN$6*(1+AB40*0.85*Circuit1!$F$26/100)/1000/MAX(Circuit1!$F$29,1) -> 0.005571692701 | AD41: =X41*Circuit1!$J$22/MAX(Circuit1!$J$26,1) -> 59.81287308 | AE41: 42.76158479 | AF41: =$AN$7*(1+AE40*Circuit1!$J$23*0.85/100)/MAX(Circuit1!$J$26,1)/1000 -> 0.002308447618 | AG41: =(U41+T41+S41+R41+Q41+P41+N41+M41+L41+J41+I41+B41+O41+K41)/A41/Circuit1!$B$3 -> 0.09348617031 | AI41: =(A41*A41+((Circuit1!$B$8)^2)/3)*Circuit1!$J$9/1000*50 -> 43.28464 | AK41: 0.9554277403
A42: =Circuit1!$B$10/50*41 -> 24.6 | B42: =AG41*Circuit1!$B$7/1000000*AC42*(A42*A42+((Circuit1!$B$8)^2)/3)*Circuit1!$B$5*1000 -> 0.3168858597 | C42: =(Circuit1!$F$22+A42/(Circuit1!$F$23*Circuit1!$F$29))/(1+((Circuit1!$F$22+A42/(Circuit1!$F$23*Circuit1!$F$29))/Circuit1!$F$4)^(5))^(0.2) -> 3.018663409 | D42: =MAX((Circuit1!$F$4-C42), 0.001)/(Circuit1!$F$5+Circuit1!$F$28+Circuit1!$F$24/Circuit1!$F$29) -> 0.762052535 | E42: =C42/(Circuit1!$F$6+Circuit1!$F$28+Circuit1!$F$24/Circuit1!$F$29) -> 1.886664631 | F42: =(Circuit1!$F$20/1000000000+Circuit1!$F$21/2/1000000000)*MAX(Circuit1!$F$29,1) -> 1.95e-08 | G42: 1.38096845e-08 | H42: 1.03357002e-08 | I42: =0.5*Circuit1!$B$3*(G42*MAX(A42-Circuit1!$B$8, 0)+H42*(A42+Circuit1!$B$8))*Circuit1!$B$5*1000 -> 1.322064748 | J42: =MIN(MAX((1-AG41-Circuit1!$F$7/1000000000+Circuit1!$F$8/1000000000),0.001),1)*Circuit1!$B$7/1000000*AF42*(A42*A42+Circuit1!$B$8^2/3)*Circuit1!$B$5*1000 -> 1.276480753 | K42: =Circuit1!$B$3*$AN$2*Circuit1!$J$26*0.000000001*Circuit1!$B$5*1000 -> 0.153 | L42: =Circuit1!$J$21*A42*(Circuit1!$F$7/1000000000+Circuit1!$F$8/1000000000)*Circuit1!$B$5*1000 -> 0.10332 | M42: =A42*Circuit1!$B$4 -> 29.52 | N42: =Circuit1!$F$4*($AN$3/1000000000*Circuit1!$F$29)*Circuit1!$B$5*1000+Circuit1!$F$4*Circuit1!$F$9/1000/2 -> 0.06336363636 | O42: =Circuit1!$F$4*($AN$4/1000000000*Circuit1!$J$26)*Circuit1!$B$5*1000+Circuit1!$F$4*Circuit1!$F$9/1000/2 -> 0.07871818182 | P42: =(A42*A42+((Circuit1!$B$8)^2)/3)*(Circuit1!$J$9+Circuit1!$J$12)/1000*(1+0.002*AE41) -> 1.645350626 | Q42: =Circuit1!$J$8/1000 -> 0.03 | R42: =0 -> 0 | S42: =(Circuit1!$F$19/1000000000000*Circuit1!$F$29)*Circuit1!$B$3*Circuit1!$B$3*Circuit1!$B$5*1000 -> 0.06426 | T42: 0 | U42: =Circuit1!$B$8*Circuit1!$B$8/3*Circuit1!$J$4/1000 -> 0.005642666667 | V42: 0.8536951959 | W42: 1.703210608 | X42: 1.379800753 | Y42: 1.680993293 | Z42: 0.06336363636 | AA42: =W42*Circuit1!$F$25/MAX(Circuit1!$F$29,1) -> 102.1926365 | AB42: 60.78248629 | AC42: =$AN$6*(1+AB41*0.85*Circuit1!$F$26/100)/1000/MAX(Circuit1!$F$29,1) -> 0.005590828064 | AD42: =X42*Circuit1!$J$22/MAX(Circuit1!$J$26,1) -> 63.05689442 | AE42: 44.39440549 | AF42: =$AN$7*(1+AE41*Circuit1!$J$23*0.85/100)/MAX(Circuit1!$J$26,1)/1000 -> 0.002322525453 | AG42: =(U42+T42+S42+R42+Q42+P42+N42+M42+L42+J42+I42+B42+O42+K42)/A42/Circuit1!$B$3 -> 0.09371026144 | AI42: =(A42*A42+((Circuit1!$B$8)^2)/3)*Circuit1!$J$9/1000*50 -> 45.47164 | AK42: 0.9547006127
A43: =Circuit1!$B$10/50*42 -> 25.2 | B43: =AG42*Circuit1!$B$7/1000000*AC43*(A43*A43+((Circuit1!$B$8)^2)/3)*Circuit1!$B$5*1000 -> 0.3344305132 | C43: =(Circuit1!$F$22+A43/(Circuit1!$F$23*Circuit1!$F$29))/(1+((Circuit1!$F$22+A43/(Circuit1!$F$23*Circuit1!$F$29))/Circuit1!$F$4)^(5))^(0.2) -> 3.042211378 | D43: =MAX((Circuit1!$F$4-C43), 0.001)/(Circuit1!$F$5+Circuit1!$F$28+Circuit1!$F$24/Circuit1!$F$29) -> 0.7529956238 | E43: =C43/(Circuit1!$F$6+Circuit1!$F$28+Circuit1!$F$24/Circuit1!$F$29) -> 1.901382111 | F43: =(Circuit1!$F$20/1000000000+Circuit1!$F$21/2/1000000000)*MAX(Circuit1!$F$29,1) -> 1.95e-08 | G43: 1.389883166e-08 | H43: 1.025569762e-08 | I43: =0.5*Circuit1!$B$3*(G43*MAX(A43-Circuit1!$B$8, 0)+H43*(A43+Circuit1!$B$8))*Circuit1!$B$5*1000 -> 1.354479236 | J43: =MIN(MAX((1-AG42-Circuit1!$F$7/1000000000+Circuit1!$F$8/1000000000),0.001),1)*Circuit1!$B$7/1000000*AF43*(A43*A43+Circuit1!$B$8^2/3)*Circuit1!$B$5*1000 -> 1.347186913 | K43: =Circuit1!$B$3*$AN$2*Circuit1!$J$26*0.000000001*Circuit1!$B$5*1000 -> 0.153 | L43: =Circuit1!$J$21*A43*(Circuit1!$F$7/1000000000+Circuit1!$F$8/1000000000)*Circuit1!$B$5*1000 -> 0.10584 | M43: =A43*Circuit1!$B$4 -> 30.24 | N43: =Circuit1!$F$4*($AN$3/1000000000*Circuit1!$F$29)*Circuit1!$B$5*1000+Circuit1!$F$4*Circuit1!$F$9/1000/2 -> 0.06336363636 | O43: =Circuit1!$F$4*($AN$4/1000000000*Circuit1!$J$26)*Circuit1!$B$5*1000+Circuit1!$F$4*Circuit1!$F$9/1000/2 -> 0.07871818182 | P43: =(A43*A43+((Circuit1!$B$8)^2)/3)*(Circuit1!$J$9+Circuit1!$J$12)/1000*(1+0.002*AE42) -> 1.731632952 | Q43: =Circuit1!$J$8/1000 -> 0.03 | R43: =0 -> 0 | S43: =(Circuit1!$F$19/1000000000000*Circuit1!$F$29)*Circuit1!$B$3*Circuit1!$B$3*Circuit1!$B$5*1000 -> 0.06426 | T43: 0 | U43: =Circuit1!$B$8*Circuit1!$B$8/3*Circuit1!$J$4/1000 -> 0.005642666667 | V43: 0.8516257777 | W43: 1.753169749 | X43: 1.453026913 | Y43: 1.767275619 | Z43: 0.06336363636 | AA43: =W43*Circuit1!$F$25/MAX(Circuit1!$F$29,1) -> 105.1901849 | AB43: 61.83046477 | AC43: =$AN$6*(1+AB42*0.85*Circuit1!$F$26/100)/1000/MAX(Circuit1!$F$29,1) -> 0.005609789458 | AD43: =X43*Circuit1!$J$22/MAX(Circuit1!$J$26,1) -> 66.40332991 | AE43: 46.02747791 | AF43: =$AN$7*(1+AE42*Circuit1!$J$23*0.85/100)/MAX(Circuit1!$J$26,1)/1000 -> 0.002336622792 | AG43: =(U43+T43+S43+R43+Q43+P43+N43+M43+L43+J43+I43+B43+O43+K43)/A43/Circuit1!$B$3 -> 0.09393797381 | AI43: =(A43*A43+((Circuit1!$B$8)^2)/3)*Circuit1!$J$9/1000*50 -> 47.71264 | AK43: 0.9539663753
A44: =Circuit1!$B$10/50*43 -> 25.8 | B44: =AG43*Circuit1!$B$7/1000000*AC44*(A44*A44+((Circuit1!$B$8)^2)/3)*Circuit1!$B$5*1000 -> 0.3525453993 | C44: =(Circuit1!$F$22+A44/(Circuit1!$F$23*Circuit1!$F$29))/(1+((Circuit1!$F$22+A44/(Circuit1!$F$23*Circuit1!$F$29))/Circuit1!$F$4)^(5))^(0.2) -> 3.06566027 | D44: =MAX((Circuit1!$F$4-C44), 0.001)/(Circuit1!$F$5+Circuit1!$F$28+Circuit1!$F$24/Circuit1!$F$29) -> 0.7439768191 | E44: =C44/(Circuit1!$F$6+Circuit1!$F$28+Circuit1!$F$24/Circuit1!$F$29) -> 1.916037669 | F44: =(Circuit1!$F$20/1000000000+Circuit1!$F$21/2/1000000000)*MAX(Circuit1!$F$29,1) -> 1.95e-08 | G44: 1.398875486e-08 | H44: 1.017725294e-08 | I44: =0.5*Circuit1!$B$3*(G44*MAX(A44-Circuit1!$B$8, 0)+H44*(A44+Circuit1!$B$8))*Circuit1!$B$5*1000 -> 1.387057135 | J44: =MIN(MAX((1-AG43-Circuit1!$F$7/1000000000+Circuit1!$F$8/1000000000),0.001),1)*Circuit1!$B$7/1000000*AF44*(A44*A44+Circuit1!$B$8^2/3)*Circuit1!$B$5*1000 -> 1.420150441 | K44: =Circuit1!$B$3*$AN$2*Circuit1!$J$26*0.000000001*Circuit1!$B$5*1000 -> 0.153 | L44: =Circuit1!$J$21*A44*(Circuit1!$F$7/1000000000+Circuit1!$F$8/1000000000)*Circuit1!$B$5*1000 -> 0.10836 | M44: =A44*Circuit1!$B$4 -> 30.96 | N44: =Circuit1!$F$4*($AN$3/1000000000*Circuit1!$F$29)*Circuit1!$B$5*1000+Circuit1!$F$4*Circuit1!$F$9/1000/2 -> 0.06336363636 | O44: =Circuit1!$F$4*($AN$4/1000000000*Circuit1!$J$26)*Circuit1!$B$5*1000+Circuit1!$F$4*Circuit1!$F$9/1000/2 -> 0.07871818182 | P44: =(A44*A44+((Circuit1!$B$8)^2)/3)*(Circuit1!$J$9+Circuit1!$J$12)/1000*(1+0.002*AE43) -> 1.820369703 | Q44: =Circuit1!$J$8/1000 -> 0.03 | R44: =0 -> 0 | S44: =(Circuit1!$F$19/1000000000000*Circuit1!$F$29)*Circuit1!$B$3*Circuit1!$B$3*Circuit1!$B$5*1000 -> 0.06426 | T44: 0 | U44: =Circuit1!$B$8*Circuit1!$B$8/3*Circuit1!$J$4/1000 -> 0.005642666667 | V44: 0.8495349759 | W44: 1.803862534 | X44: 1.528510441 | Y44: 1.85601237 | Z44: 0.06336363636 | AA44: =W44*Circuit1!$F$25/MAX(Circuit1!$F$29,1) -> 108.231752 | AB44: 62.86896432 | AC44: =$AN$6*(1+AB43*0.85*Circuit1!$F$26/100)/1000/MAX(Circuit1!$F$29,1) -> 0.005628579013 | AD44: =X44*Circuit1!$J$22/MAX(Circuit1!$J$26,1) -> 69.85292717 | AE44: 47.65885636 | AF44: =$AN$7*(1+AE43*Circuit1!$J$23*0.85/100)/MAX(Circuit1!$J$26,1)/1000 -> 0.002350722304 | AG44: =(U44+T44+S44+R44+Q44+P44+N44+M44+L44+J44+I44+B44+O44+K44)/A44/Circuit1!$B$3 -> 0.0941691658 | AI44: =(A44*A44+((Circuit1!$B$8)^2)/3)*Circuit1!$J$9/1000*50 -> 50.00764 | AK44: 0.9532253753
A45: =Circuit1!$B$10/50*44 -> 26.4 | B45: =AG44*Circuit1!$B$7/1000000*AC45*(A45*A45+((Circuit1!$B$8)^2)/3)*Circuit1!$B$5*1000 -> 0.3712378854 | C45: =(Circuit1!$F$22+A45/(Circuit1!$F$23*Circuit1!$F$29))/(1+((Circuit1!$F$22+A45/(Circuit1!$F$23*Circuit1!$F$29))/Circuit1!$F$4)^(5))^(0.2) -> 3.089007505 | D45: =MAX((Circuit1!$F$4-C45), 0.001)/(Circuit1!$F$5+Circuit1!$F$28+Circuit1!$F$24/Circuit1!$F$29) -> 0.7349971135 | E45: =C45/(Circuit1!$F$6+Circuit1!$F$28+Circuit1!$F$24/Circuit1!$F$29) -> 1.93062969 | F45: =(Circuit1!$F$20/1000000000+Circuit1!$F$21/2/1000000000)*MAX(Circuit1!$F$29,1) -> 1.95e-08 | G45: 1.407945173e-08 | H45: 1.010033156e-08 | I45: =0.5*Circuit1!$B$3*(G45*MAX(A45-Circuit1!$B$8, 0)+H45*(A45+Circuit1!$B$8))*Circuit1!$B$5*1000 -> 1.41980557 | J45: =MIN(MAX((1-AG44-Circuit1!$F$7/1000000000+Circuit1!$F$8/1000000000),0.001),1)*Circuit1!$B$7/1000000*AF45*(A45*A45+Circuit1!$B$8^2/3)*Circuit1!$B$5*1000 -> 1.495386107 | K45: =Circuit1!$B$3*$AN$2*Circuit1!$J$26*0.000000001*Circuit1!$B$5*1000 -> 0.153 | L45: =Circuit1!$J$21*A45*(Circuit1!$F$7/1000000000+Circuit1!$F$8/1000000000)*Circuit1!$B$5*1000 -> 0.11088 | M45: =A45*Circuit1!$B$4 -> 31.68 | N45: =Circuit1!$F$4*($AN$3/1000000000*Circuit1!$F$29)*Circuit1!$B$5*1000+Circuit1!$F$4*Circuit1!$F$9/1000/2 -> 0.06336363636 | O45: =Circuit1!$F$4*($AN$4/1000000000*Circuit1!$J$26)*Circuit1!$B$5*1000+Circuit1!$F$4*Circuit1!$F$9/1000/2 -> 0.07871818182 | P45: =(A45*A45+((Circuit1!$B$8)^2)/3)*(Circuit1!$J$9+Circuit1!$J$12)/1000*(1+0.002*AE44) -> 1.911571839 | Q45: =Circuit1!$J$8/1000 -> 0.03 | R45: =0 -> 0 | S45: =(Circuit1!$F$19/1000000000000*Circuit1!$F$29)*Circuit1!$B$3*Circuit1!$B$3*Circuit1!$B$5*1000 -> 0.06426 | T45: 0 | U45: =Circuit1!$B$8*Circuit1!$B$8/3*Circuit1!$J$4/1000 -> 0.005642666667 | V45: 0.8474243968 | W45: 1.855303455 | X45: 1.606266107 | Y45: 1.947214506 | Z45: 0.06336363636 | AA45: =W45*Circuit1!$F$25/MAX(Circuit1!$F$29,1) -> 111.3182073 | AB45: 63.89807763 | AC45: =$AN$6*(1+AB44*0.85*Circuit1!$F$26/100)/1000/MAX(Circuit1!$F$29,1) -> 0.005647198618 | AD45: =X45*Circuit1!$J$22/MAX(Circuit1!$J$26,1) -> 73.40636108 | AE45: 49.28666359 | AF45: =$AN$7*(1+AE44*Circuit1!$J$23*0.85/100)/MAX(Circuit1!$J$26,1)/1000 -> 0.00236480719 | AG45: =(U45+T45+S45+R45+Q45+P45+N45+M45+L45+J45+I45+B45+O45+K45)/A45/Circuit1!$B$3 -> 0.09440370173 | AI45: =(A45*A45+((Circuit1!$B$8)^2)/3)*Circuit1!$J$9/1000*50 -> 52.35664 | AK45: 0.9524779437
A46: =Circuit1!$B$10/50*45 -> 27 | B46: =AG45*Circuit1!$B$7/1000000*AC46*(A46*A46+((Circuit1!$B$8)^2)/3)*Circuit1!$B$5*1000 -> 0.3905153254 | C46: =(Circuit1!$F$22+A46/(Circuit1!$F$23*Circuit1!$F$29))/(1+((Circuit1!$F$22+A46/(Circuit1!$F$23*Circuit1!$F$29))/Circuit1!$F$4)^(5))^(0.2) -> 3.112250487 | D46: =MAX((Circuit1!$F$4-C46), 0.001)/(Circuit1!$F$5+Circuit1!$F$28+Circuit1!$F$24/Circuit1!$F$29) -> 0.726057505 | E46: =C46/(Circuit1!$F$6+Circuit1!$F$28+Circuit1!$F$24/Circuit1!$F$29) -> 1.945156554 | F46: =(Circuit1!$F$20/1000000000+Circuit1!$F$21/2/1000000000)*MAX(Circuit1!$F$29,1) -> 1.95e-08 | G46: 1.41709194e-08 | H46: 1.002490003e-08 | I46: =0.5*Circuit1!$B$3*(G46*MAX(A46-Circuit1!$B$8, 0)+H46*(A46+Circuit1!$B$8))*Circuit1!$B$5*1000 -> 1.45273151 | J46: =MIN(MAX((1-AG45-Circuit1!$F$7/1000000000+Circuit1!$F$8/1000000000),0.001),1)*Circuit1!$B$7/1000000*AF46*(A46*A46+Circuit1!$B$8^2/3)*Circuit1!$B$5*1000 -> 1.572907091 | K46: =Circuit1!$B$3*$AN$2*Circuit1!$J$26*0.000000001*Circuit1!$B$5*1000 -> 0.153 | L46: =Circuit1!$J$21*A46*(Circuit1!$F$7/1000000000+Circuit1!$F$8/1000000000)*Circuit1!$B$5*1000 -> 0.1134 | M46: =A46*Circuit1!$B$4 -> 32.4 | N46: =Circuit1!$F$4*($AN$3/1000000000*Circuit1!$F$29)*Circuit1!$B$5*1000+Circuit1!$F$4*Circuit1!$F$9/1000/2 -> 0.06336363636 | O46: =Circuit1!$F$4*($AN$4/1000000000*Circuit1!$J$26)*Circuit1!$B$5*1000+Circuit1!$F$4*Circuit1!$F$9/1000/2 -> 0.07871818182 | P46: =(A46*A46+((Circuit1!$B$8)^2)/3)*(Circuit1!$J$9+Circuit1!$J$12)/1000*(1+0.002*AE45) -> 2.00524933 | Q46: =Circuit1!$J$8/1000 -> 0.03 | R46: =0 -> 0 | S46: =(Circuit1!$F$19/1000000000000*Circuit1!$F$29)*Circuit1!$B$3*Circuit1!$B$3*Circuit1!$B$5*1000 -> 0.06426 | T46: 0 | U46: =Circuit1!$B$8*Circuit1!$B$8/3*Circuit1!$J$4/1000 -> 0.005642666667 | V46: 0.8452955758 | W46: 1.907506836 | X46: 1.686307091 | Y46: 2.040891997 | Z46: 0.06336363636 | AA46: =W46*Circuit1!$F$25/MAX(Circuit1!$F$29,1) -> 114.4504102 | AB46: 64.91788579 | AC46: =$AN$6*(1+AB45*0.85*Circuit1!$F$26/100)/1000/MAX(Circuit1!$F$29,1) -> 0.005665649933 | AD46: =X46*Circuit1!$J$22/MAX(Circuit1!$J$26,1) -> 77.06423407 | AE46: 50.90909697 | AF46: =$AN$7*(1+AE45*Circuit1!$J$23*0.85/100)/MAX(Circuit1!$J$26,1)/1000 -> 0.002378861244 | AG46: =(U46+T46+S46+R46+Q46+P46+N46+M46+L46+J46+I46+B46+O46+K46)/A46/Circuit1!$B$3 -> 0.09464145122 | AI46: =(A46*A46+((Circuit1!$B$8)^2)/3)*Circuit1!$J$9/1000*50 -> 54.75964 | AK46: 0.9517243975
A47: =Circuit1!$B$10/50*46 -> 27.6 | B47: =AG46*Circuit1!$B$7/1000000*AC47*(A47*A47+((Circuit1!$B$8)^2)/3)*Circuit1!$B$5*1000 -> 0.4103850546 | C47: =(Circuit1!$F$22+A47/(Circuit1!$F$23*Circuit1!$F$29))/(1+((Circuit1!$F$22+A47/(Circuit1!$F$23*Circuit1!$F$29))/Circuit1!$F$4)^(5))^(0.2) -> 3.135386611 | D47: =MAX((Circuit1!$F$4-C47), 0.001)/(Circuit1!$F$5+Circuit1!$F$28+Circuit1!$F$24/Circuit1!$F$29) -> 0.7171589956 | E47: =C47/(Circuit1!$F$6+Circuit1!$F$28+Circuit1!$F$24/Circuit1!$F$29) -> 1.959616632 | F47: =(Circuit1!$F$20/1000000000+Circuit1!$F$21/2/1000000000)*MAX(Circuit1!$F$29,1) -> 1.95e-08 | G47: 1.426315451e-08 | H47: 9.950925952e-09 | I47: =0.5*Circuit1!$B$3*(G47*MAX(A47-Circuit1!$B$8, 0)+H47*(A47+Circuit1!$B$8))*Circuit1!$B$5*1000 -> 1.485841771 | J47: =MIN(MAX((1-AG46-Circuit1!$F$7/1000000000+Circuit1!$F$8/1000000000),0.001),1)*Circuit1!$B$7/1000000*AF47*(A47*A47+Circuit1!$B$8^2/3)*Circuit1!$B$5*1000 -> 1.652725011 | K47: =Circuit1!$B$3*$AN$2*Circuit1!$J$26*0.000000001*Circuit1!$B$5*1000 -> 0.153 | L47: =Circuit1!$J$21*A47*(Circuit1!$F$7/1000000000+Circuit1!$F$8/1000000000)*Circuit1!$B$5*1000 -> 0.11592 | M47: =A47*Circuit1!$B$4 -> 33.12 | N47: =Circuit1!$F$4*($AN$3/1000000000*Circuit1!$F$29)*Circuit1!$B$5*1000+Circuit1!$F$4*Circuit1!$F$9/1000/2 -> 0.06336363636 | O47: =Circuit1!$F$4*($AN$4/1000000000*Circuit1!$J$26)*Circuit1!$B$5*1000+Circuit1!$F$4*Circuit1!$F$9/1000/2 -> 0.07871818182 | P47: =(A47*A47+((Circuit1!$B$8)^2)/3)*(Circuit1!$J$9+Circuit1!$J$12)/1000*(1+0.002*AE46) -> 2.101411165 | Q47: =Circuit1!$J$8/1000 -> 0.03 | R47: =0 -> 0 | S47: =(Circuit1!$F$19/1000000000000*Circuit1!$F$29)*Circuit1!$B$3*Circuit1!$B$3*Circuit1!$B$5*1000 -> 0.06426 | T47: 0 | U47: =Circuit1!$B$8*Circuit1!$B$8/3*Circuit1!$J$4/1000 -> 0.005642666667 | V47: 0.8431499827 | W47: 1.960486825 | X47: 1.768645011 | Y47: 2.137053832 | Z47: 0.06336363636 | AA47: =W47*Circuit1!$F$25/MAX(Circuit1!$F$29,1) -> 117.6292095 | AB47: 65.92845923 | AC47: =$AN$6*(1+AB46*0.85*Circuit1!$F$26/100)/1000/MAX(Circuit1!$F$29,1) -> 0.005683934414 | AD47: =X47*Circuit1!$J$22/MAX(Circuit1!$J$26,1) -> 80.827077 | AE47: 52.52443391 | AF47: =$AN$7*(1+AE46*Circuit1!$J$23*0.85/100)/MAX(Circuit1!$J$26,1)/1000 -> 0.002392868901 | AG47: =(U47+T47+S47+R47+Q47+P47+N47+M47+L47+J47+I47+B47+O47+K47)/A47/Circuit1!$B$3 -> 0.09488228861 | AI47: =(A47*A47+((Circuit1!$B$8)^2)/3)*Circuit1!$J$9/1000*50 -> 57.21664 | AK47: 0.9509650404
A48: =Circuit1!$B$10/50*47 -> 28.2 | B48: =AG47*Circuit1!$B$7/1000000*AC48*(A48*A48+((Circuit1!$B$8)^2)/3)*Circuit1!$B$5*1000 -> 0.430854385 | C48: =(Circuit1!$F$22+A48/(Circuit1!$F$23*Circuit1!$F$29))/(1+((Circuit1!$F$22+A48/(Circuit1!$F$23*Circuit1!$F$29))/Circuit1!$F$4)^(5))^(0.2) -> 3.158413264 | D48: =MAX((Circuit1!$F$4-C48), 0.001)/(Circuit1!$F$5+Circuit1!$F$28+Circuit1!$F$24/Circuit1!$F$29) -> 0.7083025907 | E48: =C48/(Circuit1!$F$6+Circuit1!$F$28+Circuit1!$F$24/Circuit1!$F$29) -> 1.97400829 | F48: =(Circuit1!$F$20/1000000000+Circuit1!$F$21/2/1000000000)*MAX(Circuit1!$F$29,1) -> 1.95e-08 | G48: 1.435615314e-08 | H48: 9.878377967e-09 | I48: =0.5*Circuit1!$B$3*(G48*MAX(A48-Circuit1!$B$8, 0)+H48*(A48+Circuit1!$B$8))*Circuit1!$B$5*1000 -> 1.519143009 | J48: =MIN(MAX((1-AG47-Circuit1!$F$7/1000000000+Circuit1!$F$8/1000000000),0.001),1)*Circuit1!$B$7/1000000*AF48*(A48*A48+Circuit1!$B$8^2/3)*Circuit1!$B$5*1000 -> 1.734849944 | K48: =Circuit1!$B$3*$AN$2*Circuit1!$J$26*0.000000001*Circuit1!$B$5*1000 -> 0.153 | L48: =Circuit1!$J$21*A48*(Circuit1!$F$7/1000000000+Circuit1!$F$8/1000000000)*Circuit1!$B$5*1000 -> 0.11844 | M48: =A48*Circuit1!$B$4 -> 33.84 | N48: =Circuit1!$F$4*($AN$3/1000000000*Circuit1!$F$29)*Circuit1!$B$5*1000+Circuit1!$F$4*Circuit1!$F$9/1000/2 -> 0.06336363636 | O48: =Circuit1!$F$4*($AN$4/1000000000*Circuit1!$J$26)*Circuit1!$B$5*1000+Circuit1!$F$4*Circuit1!$F$9/1000/2 -> 0.07871818182 | P48: =(A48*A48+((Circuit1!$B$8)^2)/3)*(Circuit1!$J$9+Circuit1!$J$12)/1000*(1+0.002*AE47) -> 2.200065365 | Q48: =Circuit1!$J$8/1000 -> 0.03 | R48: =0 -> 0 | S48: =(Circuit1!$F$19/1000000000000*Circuit1!$F$29)*Circuit1!$B$3*Circuit1!$B$3*Circuit1!$B$5*1000 -> 0.06426 | T48: 0 | U48: =Circuit1!$B$8*Circuit1!$B$8/3*Circuit1!$J$4/1000 -> 0.005642666667 | V48: 0.840989026 | W48: 2.014257394 | X48: 1.853289944 | Y48: 2.235708032 | Z48: 0.06336363636 | AA48: =W48*Circuit1!$F$25/MAX(Circuit1!$F$29,1) -> 120.8554437 | AB48: 66.92985862 | AC48: =$AN$6*(1+AB47*0.85*Circuit1!$F$26/100)/1000/MAX(Circuit1!$F$29,1) -> 0.005702053322 | AD48: =X48*Circuit1!$J$22/MAX(Circuit1!$J$26,1) -> 84.69535045 | AE48: 54.13103644 | AF48: =$AN$7*(1+AE47*Circuit1!$J$23*0.85/100)/MAX(Circuit1!$J$26,1)/1000 -> 0.002406815289 | AG48: =(U48+T48+S48+R48+Q48+P48+N48+M48+L48+J48+I48+B48+O48+K48)/A48/Circuit1!$B$3 -> 0.09512609265 | AI48: =(A48*A48+((Circuit1!$B$8)^2)/3)*Circuit1!$J$9/1000*50 -> 59.72764 | AK48: 0.9502001638
A49: =Circuit1!$B$10/50*48 -> 28.8 | B49: =AG48*Circuit1!$B$7/1000000*AC49*(A49*A49+((Circuit1!$B$8)^2)/3)*Circuit1!$B$5*1000 -> 0.4519306004 | C49: =(Circuit1!$F$22+A49/(Circuit1!$F$23*Circuit1!$F$29))/(1+((Circuit1!$F$22+A49/(Circuit1!$F$23*Circuit1!$F$29))/Circuit1!$F$4)^(5))^(0.2) -> 3.181327825 | D49: =MAX((Circuit1!$F$4-C49), 0.001)/(Circuit1!$F$5+Circuit1!$F$28+Circuit1!$F$24/Circuit1!$F$29) -> 0.6994892982 | E49: =C49/(Circuit1!$F$6+Circuit1!$F$28+Circuit1!$F$24/Circuit1!$F$29) -> 1.98832989 | F49: =(Circuit1!$F$20/1000000000+Circuit1!$F$21/2/1000000000)*MAX(Circuit1!$F$29,1) -> 1.95e-08 | G49: 1.444991081e-08 | H49: 9.807225699e-09 | I49: =0.5*Circuit1!$B$3*(G49*MAX(A49-Circuit1!$B$8, 0)+H49*(A49+Circuit1!$B$8))*Circuit1!$B$5*1000 -> 1.55264173 | J49: =MIN(MAX((1-AG48-Circuit1!$F$7/1000000000+Circuit1!$F$8/1000000000),0.001),1)*Circuit1!$B$7/1000000*AF49*(A49*A49+Circuit1!$B$8^2/3)*Circuit1!$B$5*1000 -> 1.819290472 | K49: =Circuit1!$B$3*$AN$2*Circuit1!$J$26*0.000000001*Circuit1!$B$5*1000 -> 0.153 | L49: =Circuit1!$J$21*A49*(Circuit1!$F$7/1000000000+Circuit1!$F$8/1000000000)*Circuit1!$B$5*1000 -> 0.12096 | M49: =A49*Circuit1!$B$4 -> 34.56 | N49: =Circuit1!$F$4*($AN$3/1000000000*Circuit1!$F$29)*Circuit1!$B$5*1000+Circuit1!$F$4*Circuit1!$F$9/1000/2 -> 0.06336363636 | O49: =Circuit1!$F$4*($AN$4/1000000000*Circuit1!$J$26)*Circuit1!$B$5*1000+Circuit1!$F$4*Circuit1!$F$9/1000/2 -> 0.07871818182 | P49: =(A49*A49+((Circuit1!$B$8)^2)/3)*(Circuit1!$J$9+Circuit1!$J$12)/1000*(1+0.002*AE48) -> 2.301219011 | Q49: =Circuit1!$J$8/1000 -> 0.03 | R49: =0 -> 0 | S49: =(Circuit1!$F$19/1000000000000*Circuit1!$F$29)*Circuit1!$B$3*Circuit1!$B$3*Circuit1!$B$5*1000 -> 0.06426 | T49: 0 | U49: =Circuit1!$B$8*Circuit1!$B$8/3*Circuit1!$J$4/1000 -> 0.005642666667 | V49: 0.8388140565 | W49: 2.06883233 | X49: 1.940250472 | Y49: 2.336861678 | Z49: 0.06336363636 | AA49: =W49*Circuit1!$F$25/MAX(Circuit1!$F$29,1) -> 124.1299398 | AB49: 67.9221357 | AC49: =$AN$6*(1+AB48*0.85*Circuit1!$F$26/100)/1000/MAX(Circuit1!$F$29,1) -> 0.005720007745 | AD49: =X49*Circuit1!$J$22/MAX(Circuit1!$J$26,1) -> 88.66944659 | AE49: 55.72735504 | AF49: =$AN$7*(1+AE48*Circuit1!$J$23*0.85/100)/MAX(Circuit1!$J$26,1)/1000 -> 0.002420686267 | AG49: =(U49+T49+S49+R49+Q49+P49+N49+M49+L49+J49+I49+B49+O49+K49)/A49/Circuit1!$B$3 -> 0.09537274606 | AI49: =(A49*A49+((Circuit1!$B$8)^2)/3)*Circuit1!$J$9/1000*50 -> 62.29264 | AK49: 0.949430048
A50: =Circuit1!$B$10/50*49 -> 29.4 | B50: =AG49*Circuit1!$B$7/1000000*AC50*(A50*A50+((Circuit1!$B$8)^2)/3)*Circuit1!$B$5*1000 -> 0.4736209525 | C50: =(Circuit1!$F$22+A50/(Circuit1!$F$23*Circuit1!$F$29))/(1+((Circuit1!$F$22+A50/(Circuit1!$F$23*Circuit1!$F$29))/Circuit1!$F$4)^(5))^(0.2) -> 3.204127669 | D50: =MAX((Circuit1!$F$4-C50), 0.001)/(Circuit1!$F$5+Circuit1!$F$28+Circuit1!$F$24/Circuit1!$F$29) -> 0.6907201273 | E50: =C50/(Circuit1!$F$6+Circuit1!$F$28+Circuit1!$F$24/Circuit1!$F$29) -> 2.002579793 | F50: =(Circuit1!$F$20/1000000000+Circuit1!$F$21/2/1000000000)*MAX(Circuit1!$F$29,1) -> 1.95e-08 | G50: 1.454442251e-08 | H50: 9.73743971e-09 | I50: =0.5*Circuit1!$B$3*(G50*MAX(A50-Circuit1!$B$8, 0)+H50*(A50+Circuit1!$B$8))*Circuit1!$B$5*1000 -> 1.586344277 | J50: =MIN(MAX((1-AG49-Circuit1!$F$7/1000000000+Circuit1!$F$8/1000000000),0.001),1)*Circuit1!$B$7/1000000*AF50*(A50*A50+Circuit1!$B$8^2/3)*Circuit1!$B$5*1000 -> 1.906053725 | K50: =Circuit1!$B$3*$AN$2*Circuit1!$J$26*0.000000001*Circuit1!$B$5*1000 -> 0.153 | L50: =Circuit1!$J$21*A50*(Circuit1!$F$7/1000000000+Circuit1!$F$8/1000000000)*Circuit1!$B$5*1000 -> 0.12348 | M50: =A50*Circuit1!$B$4 -> 35.28 | N50: =Circuit1!$F$4*($AN$3/1000000000*Circuit1!$F$29)*Circuit1!$B$5*1000+Circuit1!$F$4*Circuit1!$F$9/1000/2 -> 0.06336363636 | O50: =Circuit1!$F$4*($AN$4/1000000000*Circuit1!$J$26)*Circuit1!$B$5*1000+Circuit1!$F$4*Circuit1!$F$9/1000/2 -> 0.07871818182 | P50: =(A50*A50+((Circuit1!$B$8)^2)/3)*(Circuit1!$J$9+Circuit1!$J$12)/1000*(1+0.002*AE49) -> 2.404878267 | Q50: =Circuit1!$J$8/1000 -> 0.03 | R50: =0 -> 0 | S50: =(Circuit1!$F$19/1000000000000*Circuit1!$F$29)*Circuit1!$B$3*Circuit1!$B$3*Circuit1!$B$5*1000 -> 0.06426 | T50: 0 | U50: =Circuit1!$B$8*Circuit1!$B$8/3*Circuit1!$J$4/1000 -> 0.005642666667 | V50: 0.8366263698 | W50: 2.12422523 | X50: 2.029533725 | Y50: 2.440520934 | Z50: 0.06336363636 | AA50: =W50*Circuit1!$F$25/MAX(Circuit1!$F$29,1) -> 127.4535138 | AB50: 68.90533411 | AC50: =$AN$6*(1+AB49*0.85*Circuit1!$F$26/100)/1000/MAX(Circuit1!$F$29,1) -> 0.005737798612 | AD50: =X50*Circuit1!$J$22/MAX(Circuit1!$J$26,1) -> 92.74969124 | AE50: 57.31193154 | AF50: =$AN$7*(1+AE49*Circuit1!$J$23*0.85/100)/MAX(Circuit1!$J$26,1)/1000 -> 0.002434468456 | AG50: =(U50+T50+S50+R50+Q50+P50+N50+M50+L50+J50+I50+B50+O50+K50)/A50/Circuit1!$B$3 -> 0.09562213539 | AI50: =(A50*A50+((Circuit1!$B$8)^2)/3)*Circuit1!$J$9/1000*50 -> 64.91164 | AK50: 0.9486549621
A51: =Circuit1!$B$10/50*50 -> 30 | B51: =AG50*Circuit1!$B$7/1000000*AC51*(A51*A51+((Circuit1!$B$8)^2)/3)*Circuit1!$B$5*1000 -> 0.4959326564 | C51: =(Circuit1!$F$22+A51/(Circuit1!$F$23*Circuit1!$F$29))/(1+((Circuit1!$F$22+A51/(Circuit1!$F$23*Circuit1!$F$29))/Circuit1!$F$4)^(5))^(0.2) -> 3.226810172 | D51: =MAX((Circuit1!$F$4-C51), 0.001)/(Circuit1!$F$5+Circuit1!$F$28+Circuit1!$F$24/Circuit1!$F$29) -> 0.6819960877 | E51: =C51/(Circuit1!$F$6+Circuit1!$F$28+Circuit1!$F$24/Circuit1!$F$29) -> 2.016756357 | F51: =(Circuit1!$F$20/1000000000+Circuit1!$F$21/2/1000000000)*MAX(Circuit1!$F$29,1) -> 1.95e-08 | G51: 1.463968264e-08 | H51: 9.668991461e-09 | I51: =0.5*Circuit1!$B$3*(G51*MAX(A51-Circuit1!$B$8, 0)+H51*(A51+Circuit1!$B$8))*Circuit1!$B$5*1000 -> 1.62025684 | J51: =MIN(MAX((1-AG50-Circuit1!$F$7/1000000000+Circuit1!$F$8/1000000000),0.001),1)*Circuit1!$B$7/1000000*AF51*(A51*A51+Circuit1!$B$8^2/3)*Circuit1!$B$5*1000 -> 1.995145437 | K51: =Circuit1!$B$3*$AN$2*Circuit1!$J$26*0.000000001*Circuit1!$B$5*1000 -> 0.153 | L51: =Circuit1!$J$21*A51*(Circuit1!$F$7/1000000000+Circuit1!$F$8/1000000000)*Circuit1!$B$5*1000 -> 0.126 | M51: =A51*Circuit1!$B$4 -> 36 | N51: =Circuit1!$F$4*($AN$3/1000000000*Circuit1!$F$29)*Circuit1!$B$5*1000+Circuit1!$F$4*Circuit1!$F$9/1000/2 -> 0.06336363636 | O51: =Circuit1!$F$4*($AN$4/1000000000*Circuit1!$J$26)*Circuit1!$B$5*1000+Circuit1!$F$4*Circuit1!$F$9/1000/2 -> 0.07871818182 | P51: =(A51*A51+((Circuit1!$B$8)^2)/3)*(Circuit1!$J$9+Circuit1!$J$12)/1000*(1+0.002*AE50) -> 2.511048417 | Q51: =Circuit1!$J$8/1000 -> 0.03 | R51: =0 -> 0 | S51: =(Circuit1!$F$19/1000000000000*Circuit1!$F$29)*Circuit1!$B$3*Circuit1!$B$3*Circuit1!$B$5*1000 -> 0.06426 | T51: 0 | U51: =Circuit1!$B$8*Circuit1!$B$8/3*Circuit1!$J$4/1000 -> 0.005642666667 | V51: 0.8344272088 | W51: 2.180449497 | X51: 2.121145437 | Y51: 2.546691084 | Z51: 0.06336363636 | AA51: =W51*Circuit1!$F$25/MAX(Circuit1!$F$29,1) -> 130.8269698 | AB51: 69.87949015 | AC51: =$AN$6*(1+AB50*0.85*Circuit1!$F$26/100)/1000/MAX(Circuit1!$F$29,1) -> 0.005755426704 | AD51: =X51*Circuit1!$J$22/MAX(Circuit1!$J$26,1) -> 96.93634648 | AE51: 58.88340125 | AF51: =$AN$7*(1+AE50*Circuit1!$J$23*0.85/100)/MAX(Circuit1!$J$26,1)/1000 -> 0.002448149267 | AG51: =(U51+T51+S51+R51+Q51+P51+N51+M51+L51+J51+I51+B51+O51+K51)/A51/Circuit1!$B$3 -> 0.09587415075 | AI51: =(A51*A51+((Circuit1!$B$8)^2)/3)*Circuit1!$J$9/1000*50 -> 67.58464 | AK51: 0.9478751653

Sheet Circuit2Details (hidden)
A1: I(Load) | B1: PHC | C1: Vsp | D1: Idr(LH) | E1: Idr(HL) | F1: Qgs(sw) | G1: tr | H1: tf | I1: PswHS | J1: PconLS | K1: PQrr | L1: PDT | M1: Pout | N1: PdrHS | O1: PdrLS | P1: Pw | Q1: Pc | S1: Pcsw | U1: Pesr | V1: Circuit2 Efficiency | W1: PHS | X1: PLS | Y1: PLCR | Z1: Pdr | AA1: 0 | AB1: =AA1/((1+(AA1/150)^1)^1) -> 0 | AC1: RTHS | AD1: 0 | AE1: =AD1/((1+(AD1/150)^1)^1) -> 0 | AF1: RTLS | AG1: =Circuit2!$B$6 -> 0.1
A2: =Circuit2!$B$10/50 -> 0.6 | B2: =AG1*Circuit2!$B$7/1000000*AC2*(A2*A2+((Circuit2!$B$8)^2)/3)*Circuit2!$B$5*1000 -> 0.00065088 | C2: =(Circuit2!$F$22+A2/(Circuit2!$F$23*Circuit2!$F$29))/(1+((Circuit2!$F$22+A2/(Circuit2!$F$23*Circuit2!$F$29))/Circuit2!$F$4)^(5))^(0.2) -> 2.021688555 | D2: =MAX((Circuit2!$F$4-C2), 0.001)/(Circuit2!$F$5+Circuit2!$F$28+Circuit2!$F$24/Circuit2!$F$29) -> 1.145504402 | E2: =C2/(Circuit2!$F$6+Circuit2!$F$28+Circuit2!$F$24/Circuit2!$F$29) -> 1.263555347 | F2: =(Circuit2!$F$20/1000000000+Circuit2!$F$21/2/1000000000)*MAX(Circuit2!$F$29,1) -> 1.95e-08 | G2: =F2/D2/(1+F2/D2/0.00000003) -> 1.086045792e-08 | H2: =F2/E2 -> 1.543264413e-08 | I2: =0.5*Circuit2!$B$3*(G2*MAX((A2-Circuit2!$B$8),0)+H2*(A2+Circuit2!$B$8))*Circuit2!$B$5*1000 -> 0.06666902263 | J2: =MIN(MAX((1-AG1-Circuit2!$F$7/1000000000+Circuit2!$F$8/1000000000),0.001),1)*Circuit2!$B$7/1000000*AF2*(A2*A2+((Circuit2!$B$8)^2)/3)*Circuit2!$B$5*1000 -> 0.00253151998 | K2: =Circuit2!$B$3*$AN$2*Circuit2!$J$26*0.000000001*Circuit2!$B$5*1000 -> 0.1224 | L2: =Circuit2!$J$21*A2*(Circuit2!$F$7/1000000000+Circuit2!$F$8/1000000000)*Circuit2!$B$5*1000 -> 0.002961 | M2: =A2*Circuit2!$B$4 -> 0.72 | N2: =Circuit2!$F$4*($AN$3/1000000000*Circuit2!$F$29)*Circuit2!$B$5*1000+Circuit2!$F$4*Circuit2!$F$9/1000/2 -> 0.05636363636 | O2: =Circuit2!$F$4*($AN$4/1000000000*Circuit2!$J$26)*Circuit2!$B$5*1000+Circuit2!$F$4*Circuit2!$F$9/1000/2 -> 0.07171818182 | P2: =(A2*A2+((Circuit2!$B$8)^2)/3)*(Circuit2!$J$9+Circuit2!$J$12)/1000*(1+0.002*AE1) -> 0.0036 | Q2: =Circuit2!$J$8/1000 -> 0.03 | R2: =0 -> 0 | S2: =(Circuit2!$F$19/1000000000000*Circuit2!$F$29+0*Circuit2!$J$19/1000000000000*Circuit2!$J$26)*Circuit2!$B$3*Circuit2!$B$3*Circuit2!$B$5*1000 -> 0.0411264 | T2: 0 | U2: =(Circuit2!$B$8/1.732)^2*Circuit2!$J$4/1000 -> 0.005400316819 | V2: =M2/(U2+T2+S2+R2+Q2+P2+N2+M2+L2+J2+I2+B2+O2+K2) -> 0.6408995623 | W2: =B2+I2+S2 -> 0.1084463026 | X2: =J2+L2 -> 0.00549251998 | Y2: =P2+Q2+U2 -> 0.03900031682 | Z2: =N2 -> 0.05636363636 | AA2: =W2*Circuit2!$F$25/MAX(Circuit2!$F$29,1) -> 6.506778158 | AB2: =AA2/((1+(AA2/150)^1)^1) -> 6.236258488 | AC2: =$AN$6*(1+AB1*0.85*Circuit2!$F$26/100)/1000/MAX(Circuit2!$F$29,1) -> 0.00452 | AD2: =X2*Circuit2!$J$22/MAX(Circuit2!$J$26,1) -> 0.2510081631 | AE2: =AD2/((1+(AD2/150)^1)^1) -> 0.2505888308 | AF2: =$AN$7/1000*(1+AE1*0.85*Circuit2!$J$23/100)/MAX(Circuit2!$J$26,1) -> 0.001953333333 | AG2: =(U2+T2+S2+R2+Q2+P2+N2+M2+L2+J2+I2+B2+O2+K2)/A2/Circuit2!$B$3 -> 0.1560306886 | AM2: Qrr | AN2: =VLOOKUP(Circuit2!$J$16,MOSFETs!$A$2:$S$120,14,0) -> 34
A3: =Circuit2!$B$10/50*2 -> 1.2 | B3: =AG2*Circuit2!$B$7/1000000*AC3*(A3*A3+((Circuit2!$B$8)^2)/3)*Circuit2!$B$5*1000 -> 0.001821216119 | C3: =(Circuit2!$F$22+A3/(Circuit2!$F$23*Circuit2!$F$29))/(1+((Circuit2!$F$22+A3/(Circuit2!$F$23*Circuit2!$F$29))/Circuit2!$F$4)^(5))^(0.2) -> 2.047426629 | D3: =MAX((Circuit2!$F$4-C3), 0.001)/(Circuit2!$F$5+Circuit2!$F$28+Circuit2!$F$24/Circuit2!$F$29) -> 1.135605143 | E3: =C3/(Circuit2!$F$6+Circuit2!$F$28+Circuit2!$F$24/Circuit2!$F$29) -> 1.279641643 | F3: =(Circuit2!$F$20/1000000000+Circuit2!$F$21/2/1000000000)*MAX(Circuit2!$F$29,1) -> 1.95e-08 | G3: =F3/D3/(1+F3/D3/0.00000003) -> 1.092066747e-08 | H3: =F3/E3 -> 1.52386413e-08 | I3: =0.5*Circuit2!$B$3*(G3*MAX((A3-Circuit2!$B$8),0)+H3*(A3+Circuit2!$B$8))*Circuit2!$B$5*1000 -> 0.08228866303 | J3: =MIN(MAX((1-AG2-Circuit2!$F$7/1000000000+Circuit2!$F$8/1000000000),0.001),1)*Circuit2!$B$7/1000000*AF3*(A3*A3+((Circuit2!$B$8)^2)/3)*Circuit2!$B$5*1000 -> 0.004158955878 | K3: =Circuit2!$B$3*$AN$2*Circuit2!$J$26*0.000000001*Circuit2!$B$5*1000 -> 0.1224 | L3: =Circuit2!$J$21*A3*(Circuit2!$F$7/1000000000+Circuit2!$F$8/1000000000)*Circuit2!$B$5*1000 -> 0.005922 | M3: =A3*Circuit2!$B$4 -> 1.44 | N3: =Circuit2!$F$4*($AN$3/1000000000*Circuit2!$F$29)*Circuit2!$B$5*1000+Circuit2!$F$4*Circuit2!$F$9/1000/2 -> 0.05636363636 | O3: =Circuit2!$F$4*($AN$4/1000000000*Circuit2!$J$26)*Circuit2!$B$5*1000+Circuit2!$F$4*Circuit2!$F$9/1000/2 -> 0.07171818182 | P3: =(A3*A3+((Circuit2!$B$8)^2)/3)*(Circuit2!$J$9+Circuit2!$J$12)/1000*(1+0.002*AE2) -> 0.006303157419 | Q3: =Circuit2!$J$8/1000 -> 0.03 | R3: =0 -> 0 | S3: =(Circuit2!$F$19/1000000000000*Circuit2!$F$29+0*Circuit2!$J$19/1000000000000*Circuit2!$J$26)*Circuit2!$B$3*Circuit2!$B$3*Circuit2!$B$5*1000 -> 0.0411264 | T3: 0 | U3: =(Circuit2!$B$8/1.732)^2*Circuit2!$J$4/1000 -> 0.005400316819 | V3: =M3/(U3+T3+S3+R3+Q3+P3+N3+M3+L3+J3+I3+B3+O3+K3) -> 0.7710832938 | W3: =B3+I3+S3 -> 0.1252362792 | X3: =J3+L3 -> 0.01008095588 | Y3: =P3+Q3+U3 -> 0.04170347424 | Z3: =N3 -> 0.05636363636 | AA3: =W3*Circuit2!$F$25/MAX(Circuit2!$F$29,1) -> 7.514176749 | AB3: 7.155714715 | AC3: =$AN$6*(1+AB2*0.85*Circuit2!$F$26/100)/1000/MAX(Circuit2!$F$29,1) -> 0.004631811957 | AD3: =X3*Circuit2!$J$22/MAX(Circuit2!$J$26,1) -> 0.4606996836 | AE3: 0.4592890548 | AF3: =$AN$7/1000*(1+AE2*0.85*Circuit2!$J$23/100)/MAX(Circuit2!$J$26,1) -> 0.00195549685 | AG3: =(U3+T3+S3+R3+Q3+P3+N3+M3+L3+J3+I3+B3+O3+K3)/A3/Circuit2!$B$3 -> 0.1296876755 | AM3: QTOT_HS | AN3: =(VLOOKUP(Circuit2!$F$16, MOSFETs!$A$2:$S$120,17,0)+(Circuit2!$F$4-4.5)*(VLOOKUP(Circuit2!$F$16, MOSFETs!$A$2:$S$120,18,0)-VLOOKUP(Circuit2!$F$16, MOSFETs!$A$2:$S$120,17,0))/5.5) -> 33.90909091
A4: =Circuit2!$B$10/50*3 -> 1.8 | B4: =AG3*Circuit2!$B$7/1000000*AC4*(A4*A4+((Circuit2!$B$8)^2)/3)*Circuit2!$B$5*1000 -> 0.002604212028 | C4: =(Circuit2!$F$22+A4/(Circuit2!$F$23*Circuit2!$F$29))/(1+((Circuit2!$F$22+A4/(Circuit2!$F$23*Circuit2!$F$29))/Circuit2!$F$4)^(5))^(0.2) -> 2.07314211 | D4: =MAX((Circuit2!$F$4-C4), 0.001)/(Circuit2!$F$5+Circuit2!$F$28+Circuit2!$F$24/Circuit2!$F$29) -> 1.125714573 | E4: =C4/(Circuit2!$F$6+Circuit2!$F$28+Circuit2!$F$24/Circuit2!$F$29) -> 1.295713819 | F4: =(Circuit2!$F$20/1000000000+Circuit2!$F$21/2/1000000000)*MAX(Circuit2!$F$29,1) -> 1.95e-08 | G4: 1.09814946e-08 | H4: 1.504961954e-08 | I4: =0.5*Circuit2!$B$3*(G4*MAX((A4-Circuit2!$B$8),0)+H4*(A4+Circuit2!$B$8))*Circuit2!$B$5*1000 -> 0.0975215346 | J4: =MIN(MAX((1-AG3-Circuit2!$F$7/1000000000+Circuit2!$F$8/1000000000),0.001),1)*Circuit2!$B$7/1000000*AF4*(A4*A4+((Circuit2!$B$8)^2)/3)*Circuit2!$B$5*1000 -> 0.007358952291 | K4: =Circuit2!$B$3*$AN$2*Circuit2!$J$26*0.000000001*Circuit2!$B$5*1000 -> 0.1224 | L4: =Circuit2!$J$21*A4*(Circuit2!$F$7/1000000000+Circuit2!$F$8/1000000000)*Circuit2!$B$5*1000 -> 0.008883 | M4: =A4*Circuit2!$B$4 -> 2.16 | N4: =Circuit2!$F$4*($AN$3/1000000000*Circuit2!$F$29)*Circuit2!$B$5*1000+Circuit2!$F$4*Circuit2!$F$9/1000/2 -> 0.05636363636 | O4: =Circuit2!$F$4*($AN$4/1000000000*Circuit2!$J$26)*Circuit2!$B$5*1000+Circuit2!$F$4*Circuit2!$F$9/1000/2 -> 0.07171818182 | P4: =(A4*A4+((Circuit2!$B$8)^2)/3)*(Circuit2!$J$9+Circuit2!$J$12)/1000*(1+0.002*AE3) -> 0.01080992064 | Q4: =Circuit2!$J$8/1000 -> 0.03 | R4: =0 -> 0 | S4: =(Circuit2!$F$19/1000000000000*Circuit2!$F$29+0*Circuit2!$J$19/1000000000000*Circuit2!$J$26)*Circuit2!$B$3*Circuit2!$B$3*Circuit2!$B$5*1000 -> 0.0411264 | T4: 0 | U4: =(Circuit2!$B$8/1.732)^2*Circuit2!$J$4/1000 -> 0.005400316819 | V4: 0.8262609747 | W4: 0.1412521466 | X4: 0.01624195229 | Y4: 0.04621023746 | Z4: 0.05636363636 | AA4: =W4*Circuit2!$F$25/MAX(Circuit2!$F$29,1) -> 8.475128797 | AB4: 8.021885385 | AC4: =$AN$6*(1+AB3*0.85*Circuit2!$F$26/100)/1000/MAX(Circuit2!$F$29,1) -> 0.004648297194 | AD4: =X4*Circuit2!$J$22/MAX(Circuit2!$J$26,1) -> 0.7422572197 | AE4: 0.7386023336 | AF4: =$AN$7/1000*(1+AE3*0.85*Circuit2!$J$23/100)/MAX(Circuit2!$J$26,1) -> 0.001957298713 | AG4: =(U4+T4+S4+R4+Q4+P4+N4+M4+L4+J4+I4+B4+O4+K4)/A4/Circuit2!$B$3 -> 0.1210271368 | AM4: QTOT_LS | AN4: =(VLOOKUP(Circuit2!$J$16, MOSFETs!$A$2:$S$120,17,0)+(Circuit2!$F$4-4.5)*(VLOOKUP(Circuit2!$J$16, MOSFETs!$A$2:$S$120,18,0)-VLOOKUP(Circuit2!$J$16, MOSFETs!$A$2:$S4120,17,0))/5.5) -> 44.14545455
A5: =Circuit2!$B$10/50*4 -> 2.4 | B5: =AG4*Circuit2!$B$7/1000000*AC5*(A5*A5+((Circuit2!$B$8)^2)/3)*Circuit2!$B$5*1000 -> 0.003860835505 | C5: =(Circuit2!$F$22+A5/(Circuit2!$F$23*Circuit2!$F$29))/(1+((Circuit2!$F$22+A5/(Circuit2!$F$23*Circuit2!$F$29))/Circuit2!$F$4)^(5))^(0.2) -> 2.098833864 | D5: =MAX((Circuit2!$F$4-C5), 0.001)/(Circuit2!$F$5+Circuit2!$F$28+Circuit2!$F$24/Circuit2!$F$29) -> 1.115833129 | E5: =C5/(Circuit2!$F$6+Circuit2!$F$28+Circuit2!$F$24/Circuit2!$F$29) -> 1.311771165 | F5: =(Circuit2!$F$20/1000000000+Circuit2!$F$21/2/1000000000)*MAX(Circuit2!$F$29,1) -> 1.95e-08 | G5: 1.104294606e-08 | H5: 1.486539765e-08 | I5: =0.5*Circuit2!$B$3*(G5*MAX((A5-Circuit2!$B$8),0)+H5*(A5+Circuit2!$B$8))*Circuit2!$B$5*1000 -> 0.124308788 | J5: =MIN(MAX((1-AG4-Circuit2!$F$7/1000000000+Circuit2!$F$8/1000000000),0.001),1)*Circuit2!$B$7/1000000*AF5*(A5*A5+((Circuit2!$B$8)^2)/3)*Circuit2!$B$5*1000 -> 0.01178211955 | K5: =Circuit2!$B$3*$AN$2*Circuit2!$J$26*0.000000001*Circuit2!$B$5*1000 -> 0.1224 | L5: =Circuit2!$J$21*A5*(Circuit2!$F$7/1000000000+Circuit2!$F$8/1000000000)*Circuit2!$B$5*1000 -> 0.011844 | M5: =A5*Circuit2!$B$4 -> 2.88 | N5: =Circuit2!$F$4*($AN$3/1000000000*Circuit2!$F$29)*Circuit2!$B$5*1000+Circuit2!$F$4*Circuit2!$F$9/1000/2 -> 0.05636363636 | O5: =Circuit2!$F$4*($AN$4/1000000000*Circuit2!$J$26)*Circuit2!$B$5*1000+Circuit2!$F$4*Circuit2!$F$9/1000/2 -> 0.07171818182 | P5: =(A5*A5+((Circuit2!$B$8)^2)/3)*(Circuit2!$J$9+Circuit2!$J$12)/1000*(1+0.002*AE4) -> 0.0171252602 | Q5: =Circuit2!$J$8/1000 -> 0.03 | R5: =0 -> 0 | S5: =(Circuit2!$F$19/1000000000000*Circuit2!$F$29+0*Circuit2!$J$19/1000000000000*Circuit2!$J$26)*Circuit2!$B$3*Circuit2!$B$3*Circuit2!$B$5*1000 -> 0.0411264 | T5: 0 | U5: =(Circuit2!$B$8/1.732)^2*Circuit2!$J$4/1000 -> 0.005400316819 | V5: 0.8530983741 | W5: 0.1692960235 | X5: 0.02362611955 | Y5: 0.05252557702 | Z5: 0.05636363636 | AA5: =W5*Circuit2!$F$25/MAX(Circuit2!$F$29,1) -> 10.15776141 | AB5: 9.513520907 | AC5: =$AN$6*(1+AB4*0.85*Circuit2!$F$26/100)/1000/MAX(Circuit2!$F$29,1) -> 0.004663827057 | AD5: =X5*Circuit2!$J$22/MAX(Circuit2!$J$26,1) -> 1.079713663 | AE5: 1.071997329 | AF5: =$AN$7/1000*(1+AE4*0.85*Circuit2!$J$23/100)/MAX(Circuit2!$J$26,1) -> 0.001959710229 | AG5: =(U5+T5+S5+R5+Q5+P5+N5+M5+L5+J5+I5+B5+O5+K5)/A5/Circuit2!$B$3 -> 0.1172197756
A6: =Circuit2!$B$10/50*5 -> 3 | B6: =AG5*Circuit2!$B$7/1000000*AC6*(A6*A6+((Circuit2!$B$8)^2)/3)*Circuit2!$B$5*1000 -> 0.00554226312 | C6: =(Circuit2!$F$22+A6/(Circuit2!$F$23*Circuit2!$F$29))/(1+((Circuit2!$F$22+A6/(Circuit2!$F$23*Circuit2!$F$29))/Circuit2!$F$4)^(5))^(0.2) -> 2.124500722 | D6: =MAX((Circuit2!$F$4-C6), 0.001)/(Circuit2!$F$5+Circuit2!$F$28+Circuit2!$F$24/Circuit2!$F$29) -> 1.105961261 | E6: =C6/(Circuit2!$F$6+Circuit2!$F$28+Circuit2!$F$24/Circuit2!$F$29) -> 1.327812951 | F6: =(Circuit2!$F$20/1000000000+Circuit2!$F$21/2/1000000000)*MAX(Circuit2!$F$29,1) -> 1.95e-08 | G6: 1.110502859e-08 | H6: 1.468580343e-08 | I6: =0.5*Circuit2!$B$3*(G6*MAX((A6-Circuit2!$B$8),0)+H6*(A6+Circuit2!$B$8))*Circuit2!$B$5*1000 -> 0.1508722034 | J6: =MIN(MAX((1-AG5-Circuit2!$F$7/1000000000+Circuit2!$F$8/1000000000),0.001),1)*Circuit2!$B$7/1000000*AF6*(A6*A6+((Circuit2!$B$8)^2)/3)*Circuit2!$B$5*1000 -> 0.0174639473 | K6: =Circuit2!$B$3*$AN$2*Circuit2!$J$26*0.000000001*Circuit2!$B$5*1000 -> 0.1224 | L6: =Circuit2!$J$21*A6*(Circuit2!$F$7/1000000000+Circuit2!$F$8/1000000000)*Circuit2!$B$5*1000 -> 0.014805 | M6: =A6*Circuit2!$B$4 -> 3.6 | N6: =Circuit2!$F$4*($AN$3/1000000000*Circuit2!$F$29)*Circuit2!$B$5*1000+Circuit2!$F$4*Circuit2!$F$9/1000/2 -> 0.05636363636 | O6: =Circuit2!$F$4*($AN$4/1000000000*Circuit2!$J$26)*Circuit2!$B$5*1000+Circuit2!$F$4*Circuit2!$F$9/1000/2 -> 0.07171818182 | P6: =(A6*A6+((Circuit2!$B$8)^2)/3)*(Circuit2!$J$9+Circuit2!$J$12)/1000*(1+0.002*AE5) -> 0.02525402867 | Q6: =Circuit2!$J$8/1000 -> 0.03 | R6: =0 -> 0 | S6: =(Circuit2!$F$19/1000000000000*Circuit2!$F$29+0*Circuit2!$J$19/1000000000000*Circuit2!$J$26)*Circuit2!$B$3*Circuit2!$B$3*Circuit2!$B$5*1000 -> 0.0411264 | T6: 0 | U6: =(Circuit2!$B$8/1.732)^2*Circuit2!$J$4/1000 -> 0.005400316819 | V6: 0.8693665698 | W6: 0.1975408665 | X6: 0.0322689473 | Y6: 0.06065434548 | Z6: 0.05636363636 | AA6: =W6*Circuit2!$F$25/MAX(Circuit2!$F$29,1) -> 11.85245199 | AB6: 10.98449716 | AC6: =$AN$6*(1+AB5*0.85*Circuit2!$F$26/100)/1000/MAX(Circuit2!$F$29,1) -> 0.004690571088 | AD6: =X6*Circuit2!$J$22/MAX(Circuit2!$J$26,1) -> 1.474690892 | AE6: 1.460333951 | AF6: =$AN$7/1000*(1+AE5*0.85*Circuit2!$J$23/100)/MAX(Circuit2!$J$26,1) -> 0.001962588672 | AG6: =(U6+T6+S6+R6+Q6+P6+N6+M6+L6+J6+I6+B6+O6+K6)/A6/Circuit2!$B$3 -> 0.1150262772 | AM6: RonHS(VGS) | AN6: =(VLOOKUP(Circuit2!$F$16,MOSFETs!$A$1:$S$120,2,0)+(Circuit2!$F$4-4.5)*(VLOOKUP(Circuit2!$F$16,MOSFETs!$A$1:$S$120,13,0)-VLOOKUP(Circuit2!$F$16,MOSFETs!$A$1:$S$120,2,0))/7.5) -> 4.52
A7: =Circuit2!$B$10/50*6 -> 3.6 | B7: =AG6*Circuit2!$B$7/1000000*AC7*(A7*A7+((Circuit2!$B$8)^2)/3)*Circuit2!$B$5*1000 -> 0.007617719159 | C7: =(Circuit2!$F$22+A7/(Circuit2!$F$23*Circuit2!$F$29))/(1+((Circuit2!$F$22+A7/(Circuit2!$F$23*Circuit2!$F$29))/Circuit2!$F$4)^(5))^(0.2) -> 2.150141473 | D7: =MAX((Circuit2!$F$4-C7), 0.001)/(Circuit2!$F$5+Circuit2!$F$28+Circuit2!$F$24/Circuit2!$F$29) -> 1.096099433 | E7: =C7/(Circuit2!$F$6+Circuit2!$F$28+Circuit2!$F$24/Circuit2!$F$29) -> 1.343838421 | F7: =(Circuit2!$F$20/1000000000+Circuit2!$F$21/2/1000000000)*MAX(Circuit2!$F$29,1) -> 1.95e-08 | G7: 1.116774888e-08 | H7: 1.451067308e-08 | I7: =0.5*Circuit2!$B$3*(G7*MAX((A7-Circuit2!$B$8),0)+H7*(A7+Circuit2!$B$8))*Circuit2!$B$5*1000 -> 0.1772272488 | J7: =MIN(MAX((1-AG6-Circuit2!$F$7/1000000000+Circuit2!$F$8/1000000000),0.001),1)*Circuit2!$B$7/1000000*AF7*(A7*A7+((Circuit2!$B$8)^2)/3)*Circuit2!$B$5*1000 -> 0.02442688362 | K7: =Circuit2!$B$3*$AN$2*Circuit2!$J$26*0.000000001*Circuit2!$B$5*1000 -> 0.1224 | L7: =Circuit2!$J$21*A7*(Circuit2!$F$7/1000000000+Circuit2!$F$8/1000000000)*Circuit2!$B$5*1000 -> 0.017766 | M7: =A7*Circuit2!$B$4 -> 4.32 | N7: =Circuit2!$F$4*($AN$3/1000000000*Circuit2!$F$29)*Circuit2!$B$5*1000+Circuit2!$F$4*Circuit2!$F$9/1000/2 -> 0.05636363636 | O7: =Circuit2!$F$4*($AN$4/1000000000*Circuit2!$J$26)*Circuit2!$B$5*1000+Circuit2!$F$4*Circuit2!$F$9/1000/2 -> 0.07171818182 | P7: =(A7*A7+((Circuit2!$B$8)^2)/3)*(Circuit2!$J$9+Circuit2!$J$12)/1000*(1+0.002*AE6) -> 0.03520251544 | Q7: =Circuit2!$J$8/1000 -> 0.03 | R7: =0 -> 0 | S7: =(Circuit2!$F$19/1000000000000*Circuit2!$F$29+0*Circuit2!$J$19/1000000000000*Circuit2!$J$26)*Circuit2!$B$3*Circuit2!$B$3*Circuit2!$B$5*1000 -> 0.0411264 | T7: 0 | U7: =(Circuit2!$B$8/1.732)^2*Circuit2!$J$4/1000 -> 0.005400316819 | V7: 0.8799716792 | W7: 0.2259713679 | X7: 0.04219288362 | Y7: 0.07060283226 | Z7: 0.05636363636 | AA7: =W7*Circuit2!$F$25/MAX(Circuit2!$F$29,1) -> 13.55828208 | AB7: 12.43435848 | AC7: =$AN$6*(1+AB6*0.85*Circuit2!$F$26/100)/1000/MAX(Circuit2!$F$29,1) -> 0.004716944711 | AD7: =X7*Circuit2!$J$22/MAX(Circuit2!$J$26,1) -> 1.928214781 | AE7: 1.903742617 | AF7: =$AN$7/1000*(1+AE6*0.85*Circuit2!$J$23/100)/MAX(Circuit2!$J$26,1) -> 0.001965941467 | AG7: =(U7+T7+S7+R7+Q7+P7+N7+M7+L7+J7+I7+B7+O7+K7)/A7/Circuit2!$B$3 -> 0.1136400209 | AH7: =Circuit1!$B$13 -> 0 | AM7: RonLS(VGS) | AN7: =(VLOOKUP(Circuit2!$J$16,MOSFETs!$A$1:$S$120,2,0)+(Circuit2!$F$4-4.5)*(VLOOKUP(Circuit2!$J$16,MOSFETs!$A$1:$S$120,13,0)-VLOOKUP(Circuit2!$J$16,MOSFETs!$A$1:$S$120,2,0))/7.5) -> 1.953333333
A8: =Circuit2!$B$10/50*7 -> 4.2 | B8: =AG7*Circuit2!$B$7/1000000*AC8*(A8*A8+((Circuit2!$B$8)^2)/3)*Circuit2!$B$5*1000 -> 0.01008985111 | C8: =(Circuit2!$F$22+A8/(Circuit2!$F$23*Circuit2!$F$29))/(1+((Circuit2!$F$22+A8/(Circuit2!$F$23*Circuit2!$F$29))/Circuit2!$F$4)^(5))^(0.2) -> 2.175754867 | D8: =MAX((Circuit2!$F$4-C8), 0.001)/(Circuit2!$F$5+Circuit2!$F$28+Circuit2!$F$24/Circuit2!$F$29) -> 1.086248128 | E8: =C8/(Circuit2!$F$6+Circuit2!$F$28+Circuit2!$F$24/Circuit2!$F$29) -> 1.359846792 | F8: =(Circuit2!$F$20/1000000000+Circuit2!$F$21/2/1000000000)*MAX(Circuit2!$F$29,1) -> 1.95e-08 | G8: 1.123111362e-08 | H8: 1.433985072e-08 | I8: =0.5*Circuit2!$B$3*(G8*MAX((A8-Circuit2!$B$8),0)+H8*(A8+Circuit2!$B$8))*Circuit2!$B$5*1000 -> 0.2033887986 | J8: =MIN(MAX((1-AG7-Circuit2!$F$7/1000000000+Circuit2!$F$8/1000000000),0.001),1)*Circuit2!$B$7/1000000*AF8*(A8*A8+((Circuit2!$B$8)^2)/3)*Circuit2!$B$5*1000 -> 0.03268371696 | K8: =Circuit2!$B$3*$AN$2*Circuit2!$J$26*0.000000001*Circuit2!$B$5*1000 -> 0.1224 | L8: =Circuit2!$J$21*A8*(Circuit2!$F$7/1000000000+Circuit2!$F$8/1000000000)*Circuit2!$B$5*1000 -> 0.020727 | M8: =A8*Circuit2!$B$4 -> 5.04 | N8: =Circuit2!$F$4*($AN$3/1000000000*Circuit2!$F$29)*Circuit2!$B$5*1000+Circuit2!$F$4*Circuit2!$F$9/1000/2 -> 0.05636363636 | O8: =Circuit2!$F$4*($AN$4/1000000000*Circuit2!$J$26)*Circuit2!$B$5*1000+Circuit2!$F$4*Circuit2!$F$9/1000/2 -> 0.07171818182 | P8: =(A8*A8+((Circuit2!$B$8)^2)/3)*(Circuit2!$J$9+Circuit2!$J$12)/1000*(1+0.002*AE7) -> 0.04697819031 | Q8: =Circuit2!$J$8/1000 -> 0.03 | R8: =0 -> 0 | S8: =(Circuit2!$F$19/1000000000000*Circuit2!$F$29+0*Circuit2!$J$19/1000000000000*Circuit2!$J$26)*Circuit2!$B$3*Circuit2!$B$3*Circuit2!$B$5*1000 -> 0.0411264 | T8: 0 | U8: =(Circuit2!$B$8/1.732)^2*Circuit2!$J$4/1000 -> 0.005400316819 | V8: 0.8871871026 | W8: 0.2546050497 | X8: 0.05341071696 | Y8: 0.08237850713 | Z8: 0.05636363636 | AA8: =W8*Circuit2!$F$25/MAX(Circuit2!$F$29,1) -> 15.27630298 | AB8: 13.86433146 | AC8: =$AN$6*(1+AB7*0.85*Circuit2!$F$26/100)/1000/MAX(Circuit2!$F$29,1) -> 0.004742939758 | AD8: =X8*Circuit2!$J$22/MAX(Circuit2!$J$26,1) -> 2.440869765 | AE8: 2.401786774 | AF8: =$AN$7/1000*(1+AE7*0.85*Circuit2!$J$23/100)/MAX(Circuit2!$J$26,1) -> 0.001969769739 | AG8: =(U8+T8+S8+R8+Q8+P8+N8+M8+L8+J8+I8+B8+O8+K8)/A8/Circuit2!$B$3 -> 0.1127157955
A9: =Circuit2!$B$10/50*8 -> 4.8 | B9: =AG8*Circuit2!$B$7/1000000*AC9*(A9*A9+((Circuit2!$B$8)^2)/3)*Circuit2!$B$5*1000 -> 0.01296435739 | C9: =(Circuit2!$F$22+A9/(Circuit2!$F$23*Circuit2!$F$29))/(1+((Circuit2!$F$22+A9/(Circuit2!$F$23*Circuit2!$F$29))/Circuit2!$F$4)^(5))^(0.2) -> 2.201339615 | D9: =MAX((Circuit2!$F$4-C9), 0.001)/(Circuit2!$F$5+Circuit2!$F$28+Circuit2!$F$24/Circuit2!$F$29) -> 1.07640784 | E9: =C9/(Circuit2!$F$6+Circuit2!$F$28+Circuit2!$F$24/Circuit2!$F$29) -> 1.375837259 | F9: =(Circuit2!$F$20/1000000000+Circuit2!$F$21/2/1000000000)*MAX(Circuit2!$F$29,1) -> 1.95e-08 | G9: 1.129512943e-08 | H9: 1.41731879e-08 | I9: =0.5*Circuit2!$B$3*(G9*MAX((A9-Circuit2!$B$8),0)+H9*(A9+Circuit2!$B$8))*Circuit2!$B$5*1000 -> 0.2293711712 | J9: =MIN(MAX((1-AG8-Circuit2!$F$7/1000000000+Circuit2!$F$8/1000000000),0.001),1)*Circuit2!$B$7/1000000*AF9*(A9*A9+((Circuit2!$B$8)^2)/3)*Circuit2!$B$5*1000 -> 0.04224764812 | K9: =Circuit2!$B$3*$AN$2*Circuit2!$J$26*0.000000001*Circuit2!$B$5*1000 -> 0.1224 | L9: =Circuit2!$J$21*A9*(Circuit2!$F$7/1000000000+Circuit2!$F$8/1000000000)*Circuit2!$B$5*1000 -> 0.023688 | M9: =A9*Circuit2!$B$4 -> 5.76 | N9: =Circuit2!$F$4*($AN$3/1000000000*Circuit2!$F$29)*Circuit2!$B$5*1000+Circuit2!$F$4*Circuit2!$F$9/1000/2 -> 0.05636363636 | O9: =Circuit2!$F$4*($AN$4/1000000000*Circuit2!$J$26)*Circuit2!$B$5*1000+Circuit2!$F$4*Circuit2!$F$9/1000/2 -> 0.07171818182 | P9: =(A9*A9+((Circuit2!$B$8)^2)/3)*(Circuit2!$J$9+Circuit2!$J$12)/1000*(1+0.002*AE8) -> 0.06058965548 | Q9: =Circuit2!$J$8/1000 -> 0.03 | R9: =0 -> 0 | S9: =(Circuit2!$F$19/1000000000000*Circuit2!$F$29+0*Circuit2!$J$19/1000000000000*Circuit2!$J$26)*Circuit2!$B$3*Circuit2!$B$3*Circuit2!$B$5*1000 -> 0.0411264 | T9: 0 | U9: =(Circuit2!$B$8/1.732)^2*Circuit2!$J$4/1000 -> 0.005400316819 | V9: 0.8922113618 | W9: 0.2834619286 | X9: 0.06593564812 | Y9: 0.0959899723 | Z9: 0.05636363636 | AA9: =W9*Circuit2!$F$25/MAX(Circuit2!$F$29,1) -> 17.00771571 | AB9: 15.27568559 | AC9: =$AN$6*(1+AB8*0.85*Circuit2!$F$26/100)/1000/MAX(Circuit2!$F$29,1) -> 0.00476857822 | AD9: =X9*Circuit2!$J$22/MAX(Circuit2!$J$26,1) -> 3.013259119 | AE9: 2.953919617 | AF9: =$AN$7/1000*(1+AE8*0.85*Circuit2!$J$23/100)/MAX(Circuit2!$J$26,1) -> 0.00197406972 | AG9: =(U9+T9+S9+R9+Q9+P9+N9+M9+L9+J9+I9+B9+O9+K9)/A9/Circuit2!$B$3 -> 0.1120810654 | AH9: =Circuit1!$B$8^2/3 -> 1.128533333
A10: =Circuit2!$B$10/50*9 -> 5.4 | B10: =AG9*Circuit2!$B$7/1000000*AC10*(A10*A10+((Circuit2!$B$8)^2)/3)*Circuit2!$B$5*1000 -> 0.01624805779 | C10: =(Circuit2!$F$22+A10/(Circuit2!$F$23*Circuit2!$F$29))/(1+((Circuit2!$F$22+A10/(Circuit2!$F$23*Circuit2!$F$29))/Circuit2!$F$4)^(5))^(0.2) -> 2.226894384 | D10: =MAX((Circuit2!$F$4-C10), 0.001)/(Circuit2!$F$5+Circuit2!$F$28+Circuit2!$F$24/Circuit2!$F$29) -> 1.066579083 | E10: =C10/(Circuit2!$F$6+Circuit2!$F$28+Circuit2!$F$24/Circuit2!$F$29) -> 1.39180899 | F10: =(Circuit2!$F$20/1000000000+Circuit2!$F$21/2/1000000000)*MAX(Circuit2!$F$29,1) -> 1.95e-08 | G10: 1.135980287e-08 | H10: 1.401054321e-08 | I10: =0.5*Circuit2!$B$3*(G10*MAX((A10-Circuit2!$B$8),0)+H10*(A10+Circuit2!$B$8))*Circuit2!$B$5*1000 -> 0.2551881626 | J10: =MIN(MAX((1-AG9-Circuit2!$F$7/1000000000+Circuit2!$F$8/1000000000),0.001),1)*Circuit2!$B$7/1000000*AF10*(A10*A10+((Circuit2!$B$8)^2)/3)*Circuit2!$B$5*1000 -> 0.05313308766 | K10: =Circuit2!$B$3*$AN$2*Circuit2!$J$26*0.000000001*Circuit2!$B$5*1000 -> 0.1224 | L10: =Circuit2!$J$21*A10*(Circuit2!$F$7/1000000000+Circuit2!$F$8/1000000000)*Circuit2!$B$5*1000 -> 0.026649 | M10: =A10*Circuit2!$B$4 -> 6.48 | N10: =Circuit2!$F$4*($AN$3/1000000000*Circuit2!$F$29)*Circuit2!$B$5*1000+Circuit2!$F$4*Circuit2!$F$9/1000/2 -> 0.05636363636 | O10: =Circuit2!$F$4*($AN$4/1000000000*Circuit2!$J$26)*Circuit2!$B$5*1000+Circuit2!$F$4*Circuit2!$F$9/1000/2 -> 0.07171818182 | P10: =(A10*A10+((Circuit2!$B$8)^2)/3)*(Circuit2!$J$9+Circuit2!$J$12)/1000*(1+0.002*AE9) -> 0.07604663265 | Q10: =Circuit2!$J$8/1000 -> 0.03 | R10: =0 -> 0 | S10: =(Circuit2!$F$19/1000000000000*Circuit2!$F$29+0*Circuit2!$J$19/1000000000000*Circuit2!$J$26)*Circuit2!$B$3*Circuit2!$B$3*Circuit2!$B$5*1000 -> 0.0411264 | T10: 0 | U10: =(Circuit2!$B$8/1.732)^2*Circuit2!$J$4/1000 -> 0.005400316819 | V10: 0.8957361125 | W10: 0.3125626204 | X10: 0.07978208766 | Y10: 0.1114469495 | Z10: 0.05636363636 | AA10: =W10*Circuit2!$F$25/MAX(Circuit2!$F$29,1) -> 18.75375723 | AB10: 16.66963527 | AC10: =$AN$6*(1+AB9*0.85*Circuit2!$F$26/100)/1000/MAX(Circuit2!$F$29,1) -> 0.004793882859 | AD10: =X10*Circuit2!$J$22/MAX(Circuit2!$J$26,1) -> 3.646041406 | AE10: 3.559520349 | AF10: =$AN$7/1000*(1+AE9*0.85*Circuit2!$J$23/100)/MAX(Circuit2!$J$26,1) -> 0.001978836688 | AG10: =(U10+T10+S10+R10+Q10+P10+N10+M10+L10+J10+I10+B10+O10+K10)/A10/Circuit2!$B$3 -> 0.1116400228
A11: =Circuit2!$B$10/50*10 -> 6 | B11: =AG10*Circuit2!$B$7/1000000*AC11*(A11*A11+((Circuit2!$B$8)^2)/3)*Circuit2!$B$5*1000 -> 0.01994827484 | C11: =(Circuit2!$F$22+A11/(Circuit2!$F$23*Circuit2!$F$29))/(1+((Circuit2!$F$22+A11/(Circuit2!$F$23*Circuit2!$F$29))/Circuit2!$F$4)^(5))^(0.2) -> 2.252417803 | D11: =MAX((Circuit2!$F$4-C11), 0.001)/(Circuit2!$F$5+Circuit2!$F$28+Circuit2!$F$24/Circuit2!$F$29) -> 1.056762383 | E11: =C11/(Circuit2!$F$6+Circuit2!$F$28+Circuit2!$F$24/Circuit2!$F$29) -> 1.407761127 | F11: =(Circuit2!$F$20/1000000000+Circuit2!$F$21/2/1000000000)*MAX(Circuit2!$F$29,1) -> 1.95e-08 | G11: 1.142514048e-08 | H11: 1.385178183e-08 | I11: =0.5*Circuit2!$B$3*(G11*MAX((A11-Circuit2!$B$8),0)+H11*(A11+Circuit2!$B$8))*Circuit2!$B$5*1000 -> 0.2808530789 | J11: =MIN(MAX((1-AG10-Circuit2!$F$7/1000000000+Circuit2!$F$8/1000000000),0.001),1)*Circuit2!$B$7/1000000*AF11*(A11*A11+((Circuit2!$B$8)^2)/3)*Circuit2!$B$5*1000 -> 0.06535587963 | K11: =Circuit2!$B$3*$AN$2*Circuit2!$J$26*0.000000001*Circuit2!$B$5*1000 -> 0.1224 | L11: =Circuit2!$J$21*A11*(Circuit2!$F$7/1000000000+Circuit2!$F$8/1000000000)*Circuit2!$B$5*1000 -> 0.02961 | M11: =A11*Circuit2!$B$4 -> 7.2 | N11: =Circuit2!$F$4*($AN$3/1000000000*Circuit2!$F$29)*Circuit2!$B$5*1000+Circuit2!$F$4*Circuit2!$F$9/1000/2 -> 0.05636363636 | O11: =Circuit2!$F$4*($AN$4/1000000000*Circuit2!$J$26)*Circuit2!$B$5*1000+Circuit2!$F$4*Circuit2!$F$9/1000/2 -> 0.07171818182 | P11: =(A11*A11+((Circuit2!$B$8)^2)/3)*(Circuit2!$J$9+Circuit2!$J$12)/1000*(1+0.002*AE10) -> 0.09335993507 | Q11: =Circuit2!$J$8/1000 -> 0.03 | R11: =0 -> 0 | S11: =(Circuit2!$F$19/1000000000000*Circuit2!$F$29+0*Circuit2!$J$19/1000000000000*Circuit2!$J$26)*Circuit2!$B$3*Circuit2!$B$3*Circuit2!$B$5*1000 -> 0.0411264 | T11: 0 | U11: =(Circuit2!$B$8/1.732)^2*Circuit2!$J$4/1000 -> 0.005400316819 | V11: 0.8981883873 | W11: 0.3419277538 | X11: 0.09496587963 | Y11: 0.1287602519 | Z11: 0.05636363636 | AA11: =W11*Circuit2!$F$25/MAX(Circuit2!$F$29,1) -> 20.51566523 | AB11: 18.04731419 | AC11: =$AN$6*(1+AB10*0.85*Circuit2!$F$26/100)/1000/MAX(Circuit2!$F$29,1) -> 0.004818875447 | AD11: =X11*Circuit2!$J$22/MAX(Circuit2!$J$26,1) -> 4.339940699 | AE11: 4.217904335 | AF11: =$AN$7/1000*(1+AE10*0.85*Circuit2!$J$23/100)/MAX(Circuit2!$J$26,1) -> 0.001984065283 | AG11: =(U11+T11+S11+R11+Q11+P11+N11+M11+L11+J11+I11+B11+O11+K11)/A11/Circuit2!$B$3 -> 0.1113352181 | AH11: =Circuit2!$F$17 -> 4.6
A12: =Circuit2!$B$10/50*11 -> 6.6 | B12: =AG11*Circuit2!$B$7/1000000*AC12*(A12*A12+((Circuit2!$B$8)^2)/3)*Circuit2!$B$5*1000 -> 0.0240725943 | C12: =(Circuit2!$F$22+A12/(Circuit2!$F$23*Circuit2!$F$29))/(1+((Circuit2!$F$22+A12/(Circuit2!$F$23*Circuit2!$F$29))/Circuit2!$F$4)^(5))^(0.2) -> 2.277908458 | D12: =MAX((Circuit2!$F$4-C12), 0.001)/(Circuit2!$F$5+Circuit2!$F$28+Circuit2!$F$24/Circuit2!$F$29) -> 1.046958286 | E12: =C12/(Circuit2!$F$6+Circuit2!$F$28+Circuit2!$F$24/Circuit2!$F$29) -> 1.423692786 | F12: =(Circuit2!$F$20/1000000000+Circuit2!$F$21/2/1000000000)*MAX(Circuit2!$F$29,1) -> 1.95e-08 | G12: 1.14911487e-08 | H12: 1.369677517e-08 | I12: =0.5*Circuit2!$B$3*(G12*MAX((A12-Circuit2!$B$8),0)+H12*(A12+Circuit2!$B$8))*Circuit2!$B$5*1000 -> 0.3063787653 | J12: =MIN(MAX((1-AG11-Circuit2!$F$7/1000000000+Circuit2!$F$8/1000000000),0.001),1)*Circuit2!$B$7/1000000*AF12*(A12*A12+((Circuit2!$B$8)^2)/3)*Circuit2!$B$5*1000 -> 0.07893335757 | K12: =Circuit2!$B$3*$AN$2*Circuit2!$J$26*0.000000001*Circuit2!$B$5*1000 -> 0.1224 | L12: =Circuit2!$J$21*A12*(Circuit2!$F$7/1000000000+Circuit2!$F$8/1000000000)*Circuit2!$B$5*1000 -> 0.032571 | M12: =A12*Circuit2!$B$4 -> 7.92 | N12: =Circuit2!$F$4*($AN$3/1000000000*Circuit2!$F$29)*Circuit2!$B$5*1000+Circuit2!$F$4*Circuit2!$F$9/1000/2 -> 0.05636363636 | O12: =Circuit2!$F$4*($AN$4/1000000000*Circuit2!$J$26)*Circuit2!$B$5*1000+Circuit2!$F$4*Circuit2!$F$9/1000/2 -> 0.07171818182 | P12: =(A12*A12+((Circuit2!$B$8)^2)/3)*(Circuit2!$J$9+Circuit2!$J$12)/1000*(1+0.002*AE11) -> 0.1125414362 | Q12: =Circuit2!$J$8/1000 -> 0.03 | R12: =0 -> 0 | S12: =(Circuit2!$F$19/1000000000000*Circuit2!$F$29+0*Circuit2!$J$19/1000000000000*Circuit2!$J$26)*Circuit2!$B$3*Circuit2!$B$3*Circuit2!$B$5*1000 -> 0.0411264 | T12: 0 | U12: =(Circuit2!$B$8/1.732)^2*Circuit2!$J$4/1000 -> 0.005400316819 | V12: 0.8998460355 | W12: 0.3715777597 | X12: 0.1115043576 | Y12: 0.1479417531 | Z12: 0.05636363636 | AA12: =W12*Circuit2!$F$25/MAX(Circuit2!$F$29,1) -> 22.29466558 | AB12: 19.40977003 | AC12: =$AN$6*(1+AB11*0.85*Circuit2!$F$26/100)/1000/MAX(Circuit2!$F$29,1) -> 0.004843576312 | AD12: =X12*Circuit2!$J$22/MAX(Circuit2!$J$26,1) -> 5.095749141 | AE12: 4.92832573 | AF12: =$AN$7/1000*(1+AE11*0.85*Circuit2!$J$23/100)/MAX(Circuit2!$J$26,1) -> 0.001989749595 | AG12: =(U12+T12+S12+R12+Q12+P12+N12+M12+L12+J12+I12+B12+O12+K12)/A12/Circuit2!$B$3 -> 0.1111301223
A13: =Circuit2!$B$10/50*12 -> 7.2 | B13: =AG12*Circuit2!$B$7/1000000*AC13*(A13*A13+((Circuit2!$B$8)^2)/3)*Circuit2!$B$5*1000 -> 0.02862876248 | C13: =(Circuit2!$F$22+A13/(Circuit2!$F$23*Circuit2!$F$29))/(1+((Circuit2!$F$22+A13/(Circuit2!$F$23*Circuit2!$F$29))/Circuit2!$F$4)^(5))^(0.2) -> 2.303364891 | D13: =MAX((Circuit2!$F$4-C13), 0.001)/(Circuit2!$F$5+Circuit2!$F$28+Circuit2!$F$24/Circuit2!$F$29) -> 1.037167349 | E13: =C13/(Circuit2!$F$6+Circuit2!$F$28+Circuit2!$F$24/Circuit2!$F$29) -> 1.439603057 | F13: =(Circuit2!$F$20/1000000000+Circuit2!$F$21/2/1000000000)*MAX(Circuit2!$F$29,1) -> 1.95e-08 | G13: 1.155783391e-08 | H13: 1.354540052e-08 | I13: =0.5*Circuit2!$B$3*(G13*MAX((A13-Circuit2!$B$8),0)+H13*(A13+Circuit2!$B$8))*Circuit2!$B$5*1000 -> 0.331777634 | J13: =MIN(MAX((1-AG12-Circuit2!$F$7/1000000000+Circuit2!$F$8/1000000000),0.001),1)*Circuit2!$B$7/1000000*AF13*(A13*A13+((Circuit2!$B$8)^2)/3)*Circuit2!$B$5*1000 -> 0.09388433621 | K13: =Circuit2!$B$3*$AN$2*Circuit2!$J$26*0.000000001*Circuit2!$B$5*1000 -> 0.1224 | L13: =Circuit2!$J$21*A13*(Circuit2!$F$7/1000000000+Circuit2!$F$8/1000000000)*Circuit2!$B$5*1000 -> 0.035532 | M13: =A13*Circuit2!$B$4 -> 8.64 | N13: =Circuit2!$F$4*($AN$3/1000000000*Circuit2!$F$29)*Circuit2!$B$5*1000+Circuit2!$F$4*Circuit2!$F$9/1000/2 -> 0.05636363636 | O13: =Circuit2!$F$4*($AN$4/1000000000*Circuit2!$J$26)*Circuit2!$B$5*1000+Circuit2!$F$4*Circuit2!$F$9/1000/2 -> 0.07171818182 | P13: =(A13*A13+((Circuit2!$B$8)^2)/3)*(Circuit2!$J$9+Circuit2!$J$12)/1000*(1+0.002*AE12) -> 0.133604035 | Q13: =Circuit2!$J$8/1000 -> 0.03 | R13: =0 -> 0 | S13: =(Circuit2!$F$19/1000000000000*Circuit2!$F$29+0*Circuit2!$J$19/1000000000000*Circuit2!$J$26)*Circuit2!$B$3*Circuit2!$B$3*Circuit2!$B$5*1000 -> 0.0411264 | T13: 0 | U13: =(Circuit2!$B$8/1.732)^2*Circuit2!$J$4/1000 -> 0.005400316819 | V13: 0.9008975847 | W13: 0.4015327965 | X13: 0.1294163362 | Y13: 0.1690043518 | Z13: 0.05636363636 | AA13: =W13*Circuit2!$F$25/MAX(Circuit2!$F$29,1) -> 24.09196779 | AB13: 20.75796612 | AC13: =$AN$6*(1+AB12*0.85*Circuit2!$F$26/100)/1000/MAX(Circuit2!$F$29,1) -> 0.004868004237 | AD13: =X13*Circuit2!$J$22/MAX(Circuit2!$J$26,1) -> 5.914326565 | AE13: 5.689977337 | AF13: =$AN$7/1000*(1+AE12*0.85*Circuit2!$J$23/100)/MAX(Circuit2!$J$26,1) -> 0.001995883183 | AG13: =(U13+T13+S13+R13+Q13+P13+N13+M13+L13+J13+I13+B13+O13+K13)/A13/Circuit2!$B$3 -> 0.1110004086
A14: =Circuit2!$B$10/50*13 -> 7.8 | B14: =AG13*Circuit2!$B$7/1000000*AC14*(A14*A14+((Circuit2!$B$8)^2)/3)*Circuit2!$B$5*1000 -> 0.03362463988 | C14: =(Circuit2!$F$22+A14/(Circuit2!$F$23*Circuit2!$F$29))/(1+((Circuit2!$F$22+A14/(Circuit2!$F$23*Circuit2!$F$29))/Circuit2!$F$4)^(5))^(0.2) -> 2.328785607 | D14: =MAX((Circuit2!$F$4-C14), 0.001)/(Circuit2!$F$5+Circuit2!$F$28+Circuit2!$F$24/Circuit2!$F$29) -> 1.027390151 | E14: =C14/(Circuit2!$F$6+Circuit2!$F$28+Circuit2!$F$24/Circuit2!$F$29) -> 1.455491004 | F14: =(Circuit2!$F$20/1000000000+Circuit2!$F$21/2/1000000000)*MAX(Circuit2!$F$29,1) -> 1.95e-08 | G14: 1.162520239e-08 | H14: 1.339754072e-08 | I14: =0.5*Circuit2!$B$3*(G14*MAX((A14-Circuit2!$B$8),0)+H14*(A14+Circuit2!$B$8))*Circuit2!$B$5*1000 -> 0.3570616895 | J14: =MIN(MAX((1-AG13-Circuit2!$F$7/1000000000+Circuit2!$F$8/1000000000),0.001),1)*Circuit2!$B$7/1000000*AF14*(A14*A14+((Circuit2!$B$8)^2)/3)*Circuit2!$B$5*1000 -> 0.1102290732 | K14: =Circuit2!$B$3*$AN$2*Circuit2!$J$26*0.000000001*Circuit2!$B$5*1000 -> 0.1224 | L14: =Circuit2!$J$21*A14*(Circuit2!$F$7/1000000000+Circuit2!$F$8/1000000000)*Circuit2!$B$5*1000 -> 0.038493 | M14: =A14*Circuit2!$B$4 -> 9.36 | N14: =Circuit2!$F$4*($AN$3/1000000000*Circuit2!$F$29)*Circuit2!$B$5*1000+Circuit2!$F$4*Circuit2!$F$9/1000/2 -> 0.05636363636 | O14: =Circuit2!$F$4*($AN$4/1000000000*Circuit2!$J$26)*Circuit2!$B$5*1000+Circuit2!$F$4*Circuit2!$F$9/1000/2 -> 0.07171818182 | P14: =(A14*A14+((Circuit2!$B$8)^2)/3)*(Circuit2!$J$9+Circuit2!$J$12)/1000*(1+0.002*AE13) -> 0.156561617 | Q14: =Circuit2!$J$8/1000 -> 0.03 | R14: =0 -> 0 | S14: =(Circuit2!$F$19/1000000000000*Circuit2!$F$29+0*Circuit2!$J$19/1000000000000*Circuit2!$J$26)*Circuit2!$B$3*Circuit2!$B$3*Circuit2!$B$5*1000 -> 0.0411264 | T14: 0 | U14: =(Circuit2!$B$8/1.732)^2*Circuit2!$J$4/1000 -> 0.005400316819 | V14: 0.9014754245 | W14: 0.4318127294 | X14: 0.1487220732 | Y14: 0.1919619338 | Z14: 0.05636363636 | AA14: =W14*Circuit2!$F$25/MAX(Circuit2!$F$29,1) -> 25.90876377 | AB14: 22.09278538 | AC14: =$AN$6*(1+AB13*0.85*Circuit2!$F$26/100)/1000/MAX(Circuit2!$F$29,1) -> 0.004892176494 | AD14: =X14*Circuit2!$J$22/MAX(Circuit2!$J$26,1) -> 6.796598744 | AE14: 6.501989327 | AF14: =$AN$7/1000*(1+AE13*0.85*Circuit2!$J$23/100)/MAX(Circuit2!$J$26,1) -> 0.00200245908 | AG14: =(U14+T14+S14+R14+Q14+P14+N14+M14+L14+J14+I14+B14+O14+K14)/A14/Circuit2!$B$3 -> 0.1109292581
A15: =Circuit2!$B$10/50*14 -> 8.4 | B15: =AG14*Circuit2!$B$7/1000000*AC15*(A15*A15+((Circuit2!$B$8)^2)/3)*Circuit2!$B$5*1000 -> 0.03906818012 | C15: =(Circuit2!$F$22+A15/(Circuit2!$F$23*Circuit2!$F$29))/(1+((Circuit2!$F$22+A15/(Circuit2!$F$23*Circuit2!$F$29))/Circuit2!$F$4)^(5))^(0.2) -> 2.354169063 | D15: =MAX((Circuit2!$F$4-C15), 0.001)/(Circuit2!$F$5+Circuit2!$F$28+Circuit2!$F$24/Circuit2!$F$29) -> 1.017627284 | E15: =C15/(Circuit2!$F$6+Circuit2!$F$28+Circuit2!$F$24/Circuit2!$F$29) -> 1.471355664 | F15: =(Circuit2!$F$20/1000000000+Circuit2!$F$21/2/1000000000)*MAX(Circuit2!$F$29,1) -> 1.95e-08 | G15: 1.169326035e-08 | H15: 1.325308386e-08 | I15: =0.5*Circuit2!$B$3*(G15*MAX((A15-Circuit2!$B$8),0)+H15*(A15+Circuit2!$B$8))*Circuit2!$B$5*1000 -> 0.3822425526 | J15: =MIN(MAX((1-AG14-Circuit2!$F$7/1000000000+Circuit2!$F$8/1000000000),0.001),1)*Circuit2!$B$7/1000000*AF15*(A15*A15+((Circuit2!$B$8)^2)/3)*Circuit2!$B$5*1000 -> 0.1279892136 | K15: =Circuit2!$B$3*$AN$2*Circuit2!$J$26*0.000000001*Circuit2!$B$5*1000 -> 0.1224 | L15: =Circuit2!$J$21*A15*(Circuit2!$F$7/1000000000+Circuit2!$F$8/1000000000)*Circuit2!$B$5*1000 -> 0.041454 | M15: =A15*Circuit2!$B$4 -> 10.08 | N15: =Circuit2!$F$4*($AN$3/1000000000*Circuit2!$F$29)*Circuit2!$B$5*1000+Circuit2!$F$4*Circuit2!$F$9/1000/2 -> 0.05636363636 | O15: =Circuit2!$F$4*($AN$4/1000000000*Circuit2!$J$26)*Circuit2!$B$5*1000+Circuit2!$F$4*Circuit2!$F$9/1000/2 -> 0.07171818182 | P15: =(A15*A15+((Circuit2!$B$8)^2)/3)*(Circuit2!$J$9+Circuit2!$J$12)/1000*(1+0.002*AE14) -> 0.1814290126 | Q15: =Circuit2!$J$8/1000 -> 0.03 | R15: =0 -> 0 | S15: =(Circuit2!$F$19/1000000000000*Circuit2!$F$29+0*Circuit2!$J$19/1000000000000*Circuit2!$J$26)*Circuit2!$B$3*Circuit2!$B$3*Circuit2!$B$5*1000 -> 0.0411264 | T15: 0 | U15: =(Circuit2!$B$8/1.732)^2*Circuit2!$J$4/1000 -> 0.005400316819 | V15: 0.9016752245 | W15: 0.4624371327 | X15: 0.1694432136 | Y15: 0.2168293294 | Z15: 0.05636363636 | AA15: =W15*Circuit2!$F$25/MAX(Circuit2!$F$29,1) -> 27.74622796 | AB15: 23.41503526 | AC15: =$AN$6*(1+AB14*0.85*Circuit2!$F$26/100)/1000/MAX(Circuit2!$F$29,1) -> 0.004916108913 | AD15: =X15*Circuit2!$J$22/MAX(Circuit2!$J$26,1) -> 7.74355486 | AE15: 7.363427495 | AF15: =$AN$7/1000*(1+AE14*0.85*Circuit2!$J$23/100)/MAX(Circuit2!$J$26,1) -> 0.002009469775 | AG15: =(U15+T15+S15+R15+Q15+P15+N15+M15+L15+J15+I15+B15+O15+K15)/A15/Circuit2!$B$3 -> 0.1109046775
A16: =Circuit2!$B$10/50*15 -> 9 | B16: =AG15*Circuit2!$B$7/1000000*AC16*(A16*A16+((Circuit2!$B$8)^2)/3)*Circuit2!$B$5*1000 -> 0.04496742108 | C16: =(Circuit2!$F$22+A16/(Circuit2!$F$23*Circuit2!$F$29))/(1+((Circuit2!$F$22+A16/(Circuit2!$F$23*Circuit2!$F$29))/Circuit2!$F$4)^(5))^(0.2) -> 2.379513676 | D16: =MAX((Circuit2!$F$4-C16), 0.001)/(Circuit2!$F$5+Circuit2!$F$28+Circuit2!$F$24/Circuit2!$F$29) -> 1.007879355 | E16: =C16/(Circuit2!$F$6+Circuit2!$F$28+Circuit2!$F$24/Circuit2!$F$29) -> 1.487196048 | F16: =(Circuit2!$F$20/1000000000+Circuit2!$F$21/2/1000000000)*MAX(Circuit2!$F$29,1) -> 1.95e-08 | G16: 1.176201389e-08 | H16: 1.311192296e-08 | I16: =0.5*Circuit2!$B$3*(G16*MAX((A16-Circuit2!$B$8),0)+H16*(A16+Circuit2!$B$8))*Circuit2!$B$5*1000 -> 0.4073314823 | J16: =MIN(MAX((1-AG15-Circuit2!$F$7/1000000000+Circuit2!$F$8/1000000000),0.001),1)*Circuit2!$B$7/1000000*AF16*(A16*A16+((Circuit2!$B$8)^2)/3)*Circuit2!$B$5*1000 -> 0.147187723 | K16: =Circuit2!$B$3*$AN$2*Circuit2!$J$26*0.000000001*Circuit2!$B$5*1000 -> 0.1224 | L16: =Circuit2!$J$21*A16*(Circuit2!$F$7/1000000000+Circuit2!$F$8/1000000000)*Circuit2!$B$5*1000 -> 0.044415 | M16: =A16*Circuit2!$B$4 -> 10.8 | N16: =Circuit2!$F$4*($AN$3/1000000000*Circuit2!$F$29)*Circuit2!$B$5*1000+Circuit2!$F$4*Circuit2!$F$9/1000/2 -> 0.05636363636 | O16: =Circuit2!$F$4*($AN$4/1000000000*Circuit2!$J$26)*Circuit2!$B$5*1000+Circuit2!$F$4*Circuit2!$F$9/1000/2 -> 0.07171818182 | P16: =(A16*A16+((Circuit2!$B$8)^2)/3)*(Circuit2!$J$9+Circuit2!$J$12)/1000*(1+0.002*AE15) -> 0.2082219506 | Q16: =Circuit2!$J$8/1000 -> 0.03 | R16: =0 -> 0 | S16: =(Circuit2!$F$19/1000000000000*Circuit2!$F$29+0*Circuit2!$J$19/1000000000000*Circuit2!$J$26)*Circuit2!$B$3*Circuit2!$B$3*Circuit2!$B$5*1000 -> 0.0411264 | T16: 0 | U16: =(Circuit2!$B$8/1.732)^2*Circuit2!$J$4/1000 -> 0.005400316819 | V16: 0.901567818 | W16: 0.4934253034 | X16: 0.191602723 | Y16: 0.2436222675 | Z16: 0.05636363636 | AA16: =W16*Circuit2!$F$25/MAX(Circuit2!$F$29,1) -> 29.6055182 | AB16: 24.72545262 | AC16: =$AN$6*(1+AB15*0.85*Circuit2!$F$26/100)/1000/MAX(Circuit2!$F$29,1) -> 0.004939815972 | AD16: =X16*Circuit2!$J$22/MAX(Circuit2!$J$26,1) -> 8.75624444 | AE16: 8.273291363 | AF16: =$AN$7/1000*(1+AE15*0.85*Circuit2!$J$23/100)/MAX(Circuit2!$J$26,1) -> 0.002016907203 | AG16: =(U16+T16+S16+R16+Q16+P16+N16+M16+L16+J16+I16+B16+O16+K16)/A16/Circuit2!$B$3 -> 0.1109178899
A17: =Circuit2!$B$10/50*16 -> 9.6 | B17: =AG16*Circuit2!$B$7/1000000*AC17*(A17*A17+((Circuit2!$B$8)^2)/3)*Circuit2!$B$5*1000 -> 0.05133048201 | C17: =(Circuit2!$F$22+A17/(Circuit2!$F$23*Circuit2!$F$29))/(1+((Circuit2!$F$22+A17/(Circuit2!$F$23*Circuit2!$F$29))/Circuit2!$F$4)^(5))^(0.2) -> 2.404817822 | D17: =MAX((Circuit2!$F$4-C17), 0.001)/(Circuit2!$F$5+Circuit2!$F$28+Circuit2!$F$24/Circuit2!$F$29) -> 0.9981469915 | E17: =C17/(Circuit2!$F$6+Circuit2!$F$28+Circuit2!$F$24/Circuit2!$F$29) -> 1.503011139 | F17: =(Circuit2!$F$20/1000000000+Circuit2!$F$21/2/1000000000)*MAX(Circuit2!$F$29,1) -> 1.95e-08 | G17: 1.183146898e-08 | H17: 1.297395575e-08 | I17: =0.5*Circuit2!$B$3*(G17*MAX((A17-Circuit2!$B$8),0)+H17*(A17+Circuit2!$B$8))*Circuit2!$B$5*1000 -> 0.4323393963 | J17: =MIN(MAX((1-AG16-Circuit2!$F$7/1000000000+Circuit2!$F$8/1000000000),0.001),1)*Circuit2!$B$7/1000000*AF17*(A17*A17+((Circuit2!$B$8)^2)/3)*Circuit2!$B$5*1000 -> 0.1678488113 | K17: =Circuit2!$B$3*$AN$2*Circuit2!$J$26*0.000000001*Circuit2!$B$5*1000 -> 0.1224 | L17: =Circuit2!$J$21*A17*(Circuit2!$F$7/1000000000+Circuit2!$F$8/1000000000)*Circuit2!$B$5*1000 -> 0.047376 | M17: =A17*Circuit2!$B$4 -> 11.52 | N17: =Circuit2!$F$4*($AN$3/1000000000*Circuit2!$F$29)*Circuit2!$B$5*1000+Circuit2!$F$4*Circuit2!$F$9/1000/2 -> 0.05636363636 | O17: =Circuit2!$F$4*($AN$4/1000000000*Circuit2!$J$26)*Circuit2!$B$5*1000+Circuit2!$F$4*Circuit2!$F$9/1000/2 -> 0.07171818182 | P17: =(A17*A17+((Circuit2!$B$8)^2)/3)*(Circuit2!$J$9+Circuit2!$J$12)/1000*(1+0.002*AE16) -> 0.2369570084 | Q17: =Circuit2!$J$8/1000 -> 0.03 | R17: =0 -> 0 | S17: =(Circuit2!$F$19/1000000000000*Circuit2!$F$29+0*Circuit2!$J$19/1000000000000*Circuit2!$J$26)*Circuit2!$B$3*Circuit2!$B$3*Circuit2!$B$5*1000 -> 0.0411264 | T17: 0 | U17: =(Circuit2!$B$8/1.732)^2*Circuit2!$J$4/1000 -> 0.005400316819 | V17: 0.9012067558 | W17: 0.5247962784 | X17: 0.2152248113 | Y17: 0.2723573253 | Z17: 0.05636363636 | AA17: =W17*Circuit2!$F$25/MAX(Circuit2!$F$29,1) -> 31.4877767 | AB17: 26.02470861 | AC17: =$AN$6*(1+AB16*0.85*Circuit2!$F$26/100)/1000/MAX(Circuit2!$F$29,1) -> 0.004963310882 | AD17: =X17*Circuit2!$J$22/MAX(Circuit2!$J$26,1) -> 9.835773877 | AE17: 9.23051233 | AF17: =$AN$7/1000*(1+AE16*0.85*Circuit2!$J$23/100)/MAX(Circuit2!$J$26,1) -> 0.002024762725 | AG17: =(U17+T17+S17+R17+Q17+P17+N17+M17+L17+J17+I17+B17+O17+K17)/A17/Circuit2!$B$3 -> 0.1109623284
A18: =Circuit2!$B$10/50*17 -> 10.2 | B18: =AG17*Circuit2!$B$7/1000000*AC18*(A18*A18+((Circuit2!$B$8)^2)/3)*Circuit2!$B$5*1000 -> 0.05816556359 | C18: =(Circuit2!$F$22+A18/(Circuit2!$F$23*Circuit2!$F$29))/(1+((Circuit2!$F$22+A18/(Circuit2!$F$23*Circuit2!$F$29))/Circuit2!$F$4)^(5))^(0.2) -> 2.430079831 | D18: =MAX((Circuit2!$F$4-C18), 0.001)/(Circuit2!$F$5+Circuit2!$F$28+Circuit2!$F$24/Circuit2!$F$29) -> 0.9884308342 | E18: =C18/(Circuit2!$F$6+Circuit2!$F$28+Circuit2!$F$24/Circuit2!$F$29) -> 1.518799894 | F18: =(Circuit2!$F$20/1000000000+Circuit2!$F$21/2/1000000000)*MAX(Circuit2!$F$29,1) -> 1.95e-08 | G18: 1.190163148e-08 | H18: 1.283908438e-08 | I18: =0.5*Circuit2!$B$3*(G18*MAX((A18-Circuit2!$B$8),0)+H18*(A18+Circuit2!$B$8))*Circuit2!$B$5*1000 -> 0.4572768906 | J18: =MIN(MAX((1-AG17-Circuit2!$F$7/1000000000+Circuit2!$F$8/1000000000),0.001),1)*Circuit2!$B$7/1000000*AF18*(A18*A18+((Circuit2!$B$8)^2)/3)*Circuit2!$B$5*1000 -> 0.1899978488 | K18: =Circuit2!$B$3*$AN$2*Circuit2!$J$26*0.000000001*Circuit2!$B$5*1000 -> 0.1224 | L18: =Circuit2!$J$21*A18*(Circuit2!$F$7/1000000000+Circuit2!$F$8/1000000000)*Circuit2!$B$5*1000 -> 0.050337 | M18: =A18*Circuit2!$B$4 -> 12.24 | N18: =Circuit2!$F$4*($AN$3/1000000000*Circuit2!$F$29)*Circuit2!$B$5*1000+Circuit2!$F$4*Circuit2!$F$9/1000/2 -> 0.05636363636 | O18: =Circuit2!$F$4*($AN$4/1000000000*Circuit2!$J$26)*Circuit2!$B$5*1000+Circuit2!$F$4*Circuit2!$F$9/1000/2 -> 0.07171818182 | P18: =(A18*A18+((Circuit2!$B$8)^2)/3)*(Circuit2!$J$9+Circuit2!$J$12)/1000*(1+0.002*AE17) -> 0.2676515573 | Q18: =Circuit2!$J$8/1000 -> 0.03 | R18: =0 -> 0 | S18: =(Circuit2!$F$19/1000000000000*Circuit2!$F$29+0*Circuit2!$J$19/1000000000000*Circuit2!$J$26)*Circuit2!$B$3*Circuit2!$B$3*Circuit2!$B$5*1000 -> 0.0411264 | T18: 0 | U18: =(Circuit2!$B$8/1.732)^2*Circuit2!$J$4/1000 -> 0.005400316819 | V18: 0.9006332647 | W18: 0.5565688542 | X18: 0.2403348488 | Y18: 0.3030518741 | Z18: 0.05636363636 | AA18: =W18*Circuit2!$F$25/MAX(Circuit2!$F$29,1) -> 33.39413125 | AB18: 27.31341321 | AC18: =$AN$6*(1+AB17*0.85*Circuit2!$F$26/100)/1000/MAX(Circuit2!$F$29,1) -> 0.004986605676 | AD18: =X18*Circuit2!$J$22/MAX(Circuit2!$J$26,1) -> 10.98330259 | AE18: 10.23395198 | AF18: =$AN$7/1000*(1+AE17*0.85*Circuit2!$J$23/100)/MAX(Circuit2!$J$26,1) -> 0.002033027115 | AG18: =(U18+T18+S18+R18+Q18+P18+N18+M18+L18+J18+I18+B18+O18+K18)/A18/Circuit2!$B$3 -> 0.1110329853
A19: =Circuit2!$B$10/50*18 -> 10.8 | B19: =AG18*Circuit2!$B$7/1000000*AC19*(A19*A19+((Circuit2!$B$8)^2)/3)*Circuit2!$B$5*1000 -> 0.06548094948 | C19: =(Circuit2!$F$22+A19/(Circuit2!$F$23*Circuit2!$F$29))/(1+((Circuit2!$F$22+A19/(Circuit2!$F$23*Circuit2!$F$29))/Circuit2!$F$4)^(5))^(0.2) -> 2.455297992 | D19: =MAX((Circuit2!$F$4-C19), 0.001)/(Circuit2!$F$5+Circuit2!$F$28+Circuit2!$F$24/Circuit2!$F$29) -> 0.9787315415 | E19: =C19/(Circuit2!$F$6+Circuit2!$F$28+Circuit2!$F$24/Circuit2!$F$29) -> 1.534561245 | F19: =(Circuit2!$F$20/1000000000+Circuit2!$F$21/2/1000000000)*MAX(Circuit2!$F$29,1) -> 1.95e-08 | G19: 1.197250713e-08 | H19: 1.270721521e-08 | I19: =0.5*Circuit2!$B$3*(G19*MAX((A19-Circuit2!$B$8),0)+H19*(A19+Circuit2!$B$8))*Circuit2!$B$5*1000 -> 0.4821542566 | J19: =MIN(MAX((1-AG18-Circuit2!$F$7/1000000000+Circuit2!$F$8/1000000000),0.001),1)*Circuit2!$B$7/1000000*AF19*(A19*A19+((Circuit2!$B$8)^2)/3)*Circuit2!$B$5*1000 -> 0.2136612744 | K19: =Circuit2!$B$3*$AN$2*Circuit2!$J$26*0.000000001*Circuit2!$B$5*1000 -> 0.1224 | L19: =Circuit2!$J$21*A19*(Circuit2!$F$7/1000000000+Circuit2!$F$8/1000000000)*Circuit2!$B$5*1000 -> 0.053298 | M19: =A19*Circuit2!$B$4 -> 12.96 | N19: =Circuit2!$F$4*($AN$3/1000000000*Circuit2!$F$29)*Circuit2!$B$5*1000+Circuit2!$F$4*Circuit2!$F$9/1000/2 -> 0.05636363636 | O19: =Circuit2!$F$4*($AN$4/1000000000*Circuit2!$J$26)*Circuit2!$B$5*1000+Circuit2!$F$4*Circuit2!$F$9/1000/2 -> 0.07171818182 | P19: =(A19*A19+((Circuit2!$B$8)^2)/3)*(Circuit2!$J$9+Circuit2!$J$12)/1000*(1+0.002*AE18) -> 0.3003237041 | Q19: =Circuit2!$J$8/1000 -> 0.03 | R19: =0 -> 0 | S19: =(Circuit2!$F$19/1000000000000*Circuit2!$F$29+0*Circuit2!$J$19/1000000000000*Circuit2!$J$26)*Circuit2!$B$3*Circuit2!$B$3*Circuit2!$B$5*1000 -> 0.0411264 | T19: 0 | U19: =(Circuit2!$B$8/1.732)^2*Circuit2!$J$4/1000 -> 0.005400316819 | V19: 0.8998795961 | W19: 0.5887616061 | X19: 0.2669592744 | Y19: 0.335724021 | Z19: 0.05636363636 | AA19: =W19*Circuit2!$F$25/MAX(Circuit2!$F$29,1) -> 35.32569637 | AB19: 28.59211949 | AC19: =$AN$6*(1+AB18*0.85*Circuit2!$F$26/100)/1000/MAX(Circuit2!$F$29,1) -> 0.00500971129 | AD19: =X19*Circuit2!$J$22/MAX(Circuit2!$J$26,1) -> 12.20003884 | AE19: 11.28240066 | AF19: =$AN$7/1000*(1+AE18*0.85*Circuit2!$J$23/100)/MAX(Circuit2!$J$26,1) -> 0.002041690546 | AG19: =(U19+T19+S19+R19+Q19+P19+N19+M19+L19+J19+I19+B19+O19+K19)/A19/Circuit2!$B$3 -> 0.1111259778
A20: =Circuit2!$B$10/50*19 -> 11.4 | B20: =AG19*Circuit2!$B$7/1000000*AC20*(A20*A20+((Circuit2!$B$8)^2)/3)*Circuit2!$B$5*1000 -> 0.07328500827 | C20: =(Circuit2!$F$22+A20/(Circuit2!$F$23*Circuit2!$F$29))/(1+((Circuit2!$F$22+A20/(Circuit2!$F$23*Circuit2!$F$29))/Circuit2!$F$4)^(5))^(0.2) -> 2.480470551 | D20: =MAX((Circuit2!$F$4-C20), 0.001)/(Circuit2!$F$5+Circuit2!$F$28+Circuit2!$F$24/Circuit2!$F$29) -> 0.9690497881 | E20: =C20/(Circuit2!$F$6+Circuit2!$F$28+Circuit2!$F$24/Circuit2!$F$29) -> 1.550294094 | F20: =(Circuit2!$F$20/1000000000+Circuit2!$F$21/2/1000000000)*MAX(Circuit2!$F$29,1) -> 1.95e-08 | G20: 1.204410151e-08 | H20: 1.257825858e-08 | I20: =0.5*Circuit2!$B$3*(G20*MAX((A20-Circuit2!$B$8),0)+H20*(A20+Circuit2!$B$8))*Circuit2!$B$5*1000 -> 0.5069814981 | J20: =MIN(MAX((1-AG19-Circuit2!$F$7/1000000000+Circuit2!$F$8/1000000000),0.001),1)*Circuit2!$B$7/1000000*AF20*(A20*A20+((Circuit2!$B$8)^2)/3)*Circuit2!$B$5*1000 -> 0.2388664978 | K20: =Circuit2!$B$3*$AN$2*Circuit2!$J$26*0.000000001*Circuit2!$B$5*1000 -> 0.1224 | L20: =Circuit2!$J$21*A20*(Circuit2!$F$7/1000000000+Circuit2!$F$8/1000000000)*Circuit2!$B$5*1000 -> 0.056259 | M20: =A20*Circuit2!$B$4 -> 13.68 | N20: =Circuit2!$F$4*($AN$3/1000000000*Circuit2!$F$29)*Circuit2!$B$5*1000+Circuit2!$F$4*Circuit2!$F$9/1000/2 -> 0.05636363636 | O20: =Circuit2!$F$4*($AN$4/1000000000*Circuit2!$J$26)*Circuit2!$B$5*1000+Circuit2!$F$4*Circuit2!$F$9/1000/2 -> 0.07171818182 | P20: =(A20*A20+((Circuit2!$B$8)^2)/3)*(Circuit2!$J$9+Circuit2!$J$12)/1000*(1+0.002*AE19) -> 0.3349922289 | Q20: =Circuit2!$J$8/1000 -> 0.03 | R20: =0 -> 0 | S20: =(Circuit2!$F$19/1000000000000*Circuit2!$F$29+0*Circuit2!$J$19/1000000000000*Circuit2!$J$26)*Circuit2!$B$3*Circuit2!$B$3*Circuit2!$B$5*1000 -> 0.0411264 | T20: 0 | U20: =(Circuit2!$B$8/1.732)^2*Circuit2!$J$4/1000 -> 0.005400316819 | V20: 0.8989713421 | W20: 0.6213929063 | X20: 0.2951254978 | Y20: 0.3703925457 | Z20: 0.05636363636 | AA20: =W20*Circuit2!$F$25/MAX(Circuit2!$F$29,1) -> 37.28357438 | AB20: 29.86132754 | AC20: =$AN$6*(1+AB19*0.85*Circuit2!$F$26/100)/1000/MAX(Circuit2!$F$29,1) -> 0.005032637641 | AD20: =X20*Circuit2!$J$22/MAX(Circuit2!$J$26,1) -> 13.48723525 | AE20: 12.37457643 | AF20: =$AN$7/1000*(1+AE19*0.85*Circuit2!$J$23/100)/MAX(Circuit2!$J$26,1) -> 0.002050742572 | AG20: =(U20+T20+S20+R20+Q20+P20+N20+M20+L20+J20+I20+B20+O20+K20)/A20/Circuit2!$B$3 -> 0.1112382512
A21: =Circuit2!$B$10/50*20 -> 12 | B21: =AG20*Circuit2!$B$7/1000000*AC21*(A21*A21+((Circuit2!$B$8)^2)/3)*Circuit2!$B$5*1000 -> 0.08158619557 | C21: =(Circuit2!$F$22+A21/(Circuit2!$F$23*Circuit2!$F$29))/(1+((Circuit2!$F$22+A21/(Circuit2!$F$23*Circuit2!$F$29))/Circuit2!$F$4)^(5))^(0.2) -> 2.505595711 | D21: =MAX((Circuit2!$F$4-C21), 0.001)/(Circuit2!$F$5+Circuit2!$F$28+Circuit2!$F$24/Circuit2!$F$29) -> 0.9593862649 | E21: =C21/(Circuit2!$F$6+Circuit2!$F$28+Circuit2!$F$24/Circuit2!$F$29) -> 1.56599732 | F21: =(Circuit2!$F$20/1000000000+Circuit2!$F$21/2/1000000000)*MAX(Circuit2!$F$29,1) -> 1.95e-08 | G21: 1.211642004e-08 | H21: 1.245212859e-08 | I21: =0.5*Circuit2!$B$3*(G21*MAX((A21-Circuit2!$B$8),0)+H21*(A21+Circuit2!$B$8))*Circuit2!$B$5*1000 -> 0.5317683463 | J21: =MIN(MAX((1-AG20-Circuit2!$F$7/1000000000+Circuit2!$F$8/1000000000),0.001),1)*Circuit2!$B$7/1000000*AF21*(A21*A21+((Circuit2!$B$8)^2)/3)*Circuit2!$B$5*1000 -> 0.2656417944 | K21: =Circuit2!$B$3*$AN$2*Circuit2!$J$26*0.000000001*Circuit2!$B$5*1000 -> 0.1224 | L21: =Circuit2!$J$21*A21*(Circuit2!$F$7/1000000000+Circuit2!$F$8/1000000000)*Circuit2!$B$5*1000 -> 0.05922 | M21: =A21*Circuit2!$B$4 -> 14.4 | N21: =Circuit2!$F$4*($AN$3/1000000000*Circuit2!$F$29)*Circuit2!$B$5*1000+Circuit2!$F$4*Circuit2!$F$9/1000/2 -> 0.05636363636 | O21: =Circuit2!$F$4*($AN$4/1000000000*Circuit2!$J$26)*Circuit2!$B$5*1000+Circuit2!$F$4*Circuit2!$F$9/1000/2 -> 0.07171818182 | P21: =(A21*A21+((Circuit2!$B$8)^2)/3)*(Circuit2!$J$9+Circuit2!$J$12)/1000*(1+0.002*AE20) -> 0.3716765177 | Q21: =Circuit2!$J$8/1000 -> 0.03 | R21: =0 -> 0 | S21: =(Circuit2!$F$19/1000000000000*Circuit2!$F$29+0*Circuit2!$J$19/1000000000000*Circuit2!$J$26)*Circuit2!$B$3*Circuit2!$B$3*Circuit2!$B$5*1000 -> 0.0411264 | T21: 0 | U21: =(Circuit2!$B$8/1.732)^2*Circuit2!$J$4/1000 -> 0.005400316819 | V21: 0.8979290731 | W21: 0.6544809419 | X21: 0.3248617944 | Y21: 0.4070768346 | Z21: 0.05636363636 | AA21: =W21*Circuit2!$F$25/MAX(Circuit2!$F$29,1) -> 39.26885651 | AB21: 31.12148816 | AC21: =$AN$6*(1+AB20*0.85*Circuit2!$F$26/100)/1000/MAX(Circuit2!$F$29,1) -> 0.005055393695 | AD21: =X21*Circuit2!$J$22/MAX(Circuit2!$J$26,1) -> 14.84618401 | AE21: 13.50912437 | AF21: =$AN$7/1000*(1+AE20*0.85*Circuit2!$J$23/100)/MAX(Circuit2!$J$26,1) -> 0.002060172126 | AG21: =(U21+T21+S21+R21+Q21+P21+N21+M21+L21+J21+I21+B21+O21+K21)/A21/Circuit2!$B$3 -> 0.1113673708
A22: =Circuit2!$B$10/50*21 -> 12.6 | B22: =AG21*Circuit2!$B$7/1000000*AC22*(A22*A22+((Circuit2!$B$8)^2)/3)*Circuit2!$B$5*1000 -> 0.09039305574 | C22: =(Circuit2!$F$22+A22/(Circuit2!$F$23*Circuit2!$F$29))/(1+((Circuit2!$F$22+A22/(Circuit2!$F$23*Circuit2!$F$29))/Circuit2!$F$4)^(5))^(0.2) -> 2.530671634 | D22: =MAX((Circuit2!$F$4-C22), 0.001)/(Circuit2!$F$5+Circuit2!$F$28+Circuit2!$F$24/Circuit2!$F$29) -> 0.9497416794 | E22: =C22/(Circuit2!$F$6+Circuit2!$F$28+Circuit2!$F$24/Circuit2!$F$29) -> 1.581669771 | F22: =(Circuit2!$F$20/1000000000+Circuit2!$F$21/2/1000000000)*MAX(Circuit2!$F$29,1) -> 1.95e-08 | G22: 1.218946799e-08 | H22: 1.232874293e-08 | I22: =0.5*Circuit2!$B$3*(G22*MAX((A22-Circuit2!$B$8),0)+H22*(A22+Circuit2!$B$8))*Circuit2!$B$5*1000 -> 0.5565242744 | J22: =MIN(MAX((1-AG21-Circuit2!$F$7/1000000000+Circuit2!$F$8/1000000000),0.001),1)*Circuit2!$B$7/1000000*AF22*(A22*A22+((Circuit2!$B$8)^2)/3)*Circuit2!$B$5*1000 -> 0.2940161946 | K22: =Circuit2!$B$3*$AN$2*Circuit2!$J$26*0.000000001*Circuit2!$B$5*1000 -> 0.1224 | L22: =Circuit2!$J$21*A22*(Circuit2!$F$7/1000000000+Circuit2!$F$8/1000000000)*Circuit2!$B$5*1000 -> 0.062181 | M22: =A22*Circuit2!$B$4 -> 15.12 | N22: =Circuit2!$F$4*($AN$3/1000000000*Circuit2!$F$29)*Circuit2!$B$5*1000+Circuit2!$F$4*Circuit2!$F$9/1000/2 -> 0.05636363636 | O22: =Circuit2!$F$4*($AN$4/1000000000*Circuit2!$J$26)*Circuit2!$B$5*1000+Circuit2!$F$4*Circuit2!$F$9/1000/2 -> 0.07171818182 | P22: =(A22*A22+((Circuit2!$B$8)^2)/3)*(Circuit2!$J$9+Circuit2!$J$12)/1000*(1+0.002*AE21) -> 0.4103964922 | Q22: =Circuit2!$J$8/1000 -> 0.03 | R22: =0 -> 0 | S22: =(Circuit2!$F$19/1000000000000*Circuit2!$F$29+0*Circuit2!$J$19/1000000000000*Circuit2!$J$26)*Circuit2!$B$3*Circuit2!$B$3*Circuit2!$B$5*1000 -> 0.0411264 | T22: 0 | U22: =(Circuit2!$B$8/1.732)^2*Circuit2!$J$4/1000 -> 0.005400316819 | V22: 0.8967695185 | W22: 0.6880437302 | X22: 0.3561971946 | Y22: 0.445796809 | Z22: 0.05636363636 | AA22: =W22*Circuit2!$F$25/MAX(Circuit2!$F$29,1) -> 41.28262381 | AB22: 32.37300623 | AC22: =$AN$6*(1+AB21*0.85*Circuit2!$F$26/100)/1000/MAX(Circuit2!$F$29,1) -> 0.005077987535 | AD22: =X22*Circuit2!$J$22/MAX(Circuit2!$J$26,1) -> 16.27821179 | AE22: 14.68461648 | AF22: =$AN$7/1000*(1+AE21*0.85*Circuit2!$J$23/100)/MAX(Circuit2!$J$26,1) -> 0.002069967511 | AG22: =(U22+T22+S22+R22+Q22+P22+N22+M22+L22+J22+I22+B22+O22+K22)/A22/Circuit2!$B$3 -> 0.1115113727
A23: =Circuit2!$B$10/50*22 -> 13.2 | B23: =AG22*Circuit2!$B$7/1000000*AC23*(A23*A23+((Circuit2!$B$8)^2)/3)*Circuit2!$B$5*1000 -> 0.09971422327 | C23: =(Circuit2!$F$22+A23/(Circuit2!$F$23*Circuit2!$F$29))/(1+((Circuit2!$F$22+A23/(Circuit2!$F$23*Circuit2!$F$29))/Circuit2!$F$4)^(5))^(0.2) -> 2.555696437 | D23: =MAX((Circuit2!$F$4-C23), 0.001)/(Circuit2!$F$5+Circuit2!$F$28+Circuit2!$F$24/Circuit2!$F$29) -> 0.9401167551 | E23: =C23/(Circuit2!$F$6+Circuit2!$F$28+Circuit2!$F$24/Circuit2!$F$29) -> 1.597310273 | F23: =(Circuit2!$F$20/1000000000+Circuit2!$F$21/2/1000000000)*MAX(Circuit2!$F$29,1) -> 1.95e-08 | G23: 1.226325044e-08 | H23: 1.220802265e-08 | I23: =0.5*Circuit2!$B$3*(G23*MAX((A23-Circuit2!$B$8),0)+H23*(A23+Circuit2!$B$8))*Circuit2!$B$5*1000 -> 0.5812585108 | J23: =MIN(MAX((1-AG22-Circuit2!$F$7/1000000000+Circuit2!$F$8/1000000000),0.001),1)*Circuit2!$B$7/1000000*AF23*(A23*A23+((Circuit2!$B$8)^2)/3)*Circuit2!$B$5*1000 -> 0.3240193668 | K23: =Circuit2!$B$3*$AN$2*Circuit2!$J$26*0.000000001*Circuit2!$B$5*1000 -> 0.1224 | L23: =Circuit2!$J$21*A23*(Circuit2!$F$7/1000000000+Circuit2!$F$8/1000000000)*Circuit2!$B$5*1000 -> 0.065142 | M23: =A23*Circuit2!$B$4 -> 15.84 | N23: =Circuit2!$F$4*($AN$3/1000000000*Circuit2!$F$29)*Circuit2!$B$5*1000+Circuit2!$F$4*Circuit2!$F$9/1000/2 -> 0.05636363636 | O23: =Circuit2!$F$4*($AN$4/1000000000*Circuit2!$J$26)*Circuit2!$B$5*1000+Circuit2!$F$4*Circuit2!$F$9/1000/2 -> 0.07171818182 | P23: =(A23*A23+((Circuit2!$B$8)^2)/3)*(Circuit2!$J$9+Circuit2!$J$12)/1000*(1+0.002*AE22) -> 0.4511725348 | Q23: =Circuit2!$J$8/1000 -> 0.03 | R23: =0 -> 0 | S23: =(Circuit2!$F$19/1000000000000*Circuit2!$F$29+0*Circuit2!$J$19/1000000000000*Circuit2!$J$26)*Circuit2!$B$3*Circuit2!$B$3*Circuit2!$B$5*1000 -> 0.0411264 | T23: 0 | U23: =(Circuit2!$B$8/1.732)^2*Circuit2!$J$4/1000 -> 0.005400316819 | V23: 0.8955064316 | W23: 0.722099134 | X23: 0.3891613668 | Y23: 0.4865728516 | Z23: 0.05636363636 | AA23: =W23*Circuit2!$F$25/MAX(Circuit2!$F$29,1) -> 43.32594804 | AB23: 33.61624382 | AC23: =$AN$6*(1+AB22*0.85*Circuit2!$F$26/100)/1000/MAX(Circuit2!$F$29,1) -> 0.00510042642 | AD23: =X23*Circuit2!$J$22/MAX(Circuit2!$J$26,1) -> 17.78467446 | AE23: 15.89955208 | AF23: =$AN$7/1000*(1+AE22*0.85*Circuit2!$J$23/100)/MAX(Circuit2!$J$26,1) -> 0.002080116396 | AG23: =(U23+T23+S23+R23+Q23+P23+N23+M23+L23+J23+I23+B23+O23+K23)/A23/Circuit2!$B$3 -> 0.1116686564
A24: =Circuit2!$B$10/50*23 -> 13.8 | B24: =AG23*Circuit2!$B$7/1000000*AC24*(A24*A24+((Circuit2!$B$8)^2)/3)*Circuit2!$B$5*1000 -> 0.1095584236 | C24: =(Circuit2!$F$22+A24/(Circuit2!$F$23*Circuit2!$F$29))/(1+((Circuit2!$F$22+A24/(Circuit2!$F$23*Circuit2!$F$29))/Circuit2!$F$4)^(5))^(0.2) -> 2.580668198 | D24: =MAX((Circuit2!$F$4-C24), 0.001)/(Circuit2!$F$5+Circuit2!$F$28+Circuit2!$F$24/Circuit2!$F$29) -> 0.9305122315 | E24: =C24/(Circuit2!$F$6+Circuit2!$F$28+Circuit2!$F$24/Circuit2!$F$29) -> 1.612917624 | F24: =(Circuit2!$F$20/1000000000+Circuit2!$F$21/2/1000000000)*MAX(Circuit2!$F$29,1) -> 1.95e-08 | G24: 1.233777228e-08 | H24: 1.208989208e-08 | I24: =0.5*Circuit2!$B$3*(G24*MAX((A24-Circuit2!$B$8),0)+H24*(A24+Circuit2!$B$8))*Circuit2!$B$5*1000 -> 0.6059800508 | J24: =MIN(MAX((1-AG23-Circuit2!$F$7/1000000000+Circuit2!$F$8/1000000000),0.001),1)*Circuit2!$B$7/1000000*AF24*(A24*A24+((Circuit2!$B$8)^2)/3)*Circuit2!$B$5*1000 -> 0.3556814959 | K24: =Circuit2!$B$3*$AN$2*Circuit2!$J$26*0.000000001*Circuit2!$B$5*1000 -> 0.1224 | L24: =Circuit2!$J$21*A24*(Circuit2!$F$7/1000000000+Circuit2!$F$8/1000000000)*Circuit2!$B$5*1000 -> 0.068103 | M24: =A24*Circuit2!$B$4 -> 16.56 | N24: =Circuit2!$F$4*($AN$3/1000000000*Circuit2!$F$29)*Circuit2!$B$5*1000+Circuit2!$F$4*Circuit2!$F$9/1000/2 -> 0.05636363636 | O24: =Circuit2!$F$4*($AN$4/1000000000*Circuit2!$J$26)*Circuit2!$B$5*1000+Circuit2!$F$4*Circuit2!$F$9/1000/2 -> 0.07171818182 | P24: =(A24*A24+((Circuit2!$B$8)^2)/3)*(Circuit2!$J$9+Circuit2!$J$12)/1000*(1+0.002*AE23) -> 0.4940254111 | Q24: =Circuit2!$J$8/1000 -> 0.03 | R24: =0 -> 0 | S24: =(Circuit2!$F$19/1000000000000*Circuit2!$F$29+0*Circuit2!$J$19/1000000000000*Circuit2!$J$26)*Circuit2!$B$3*Circuit2!$B$3*Circuit2!$B$5*1000 -> 0.0411264 | T24: 0 | U24: =(Circuit2!$B$8/1.732)^2*Circuit2!$J$4/1000 -> 0.005400316819 | V24: 0.8941512345 | W24: 0.7566648743 | X24: 0.4237844959 | Y24: 0.5294257279 | Z24: 0.05636363636 | AA24: =W24*Circuit2!$F$25/MAX(Circuit2!$F$29,1) -> 45.39989246 | AB24: 34.85152312 | AC24: =$AN$6*(1+AB23*0.85*Circuit2!$F$26/100)/1000/MAX(Circuit2!$F$29,1) -> 0.005122716841 | AD24: =X24*Circuit2!$J$22/MAX(Circuit2!$J$26,1) -> 19.36695146 | AE24: 17.15235879 | AF24: =$AN$7/1000*(1+AE23*0.85*Circuit2!$J$23/100)/MAX(Circuit2!$J$26,1) -> 0.002090605826 | AG24: =(U24+T24+S24+R24+Q24+P24+N24+M24+L24+J24+I24+B24+O24+K24)/A24/Circuit2!$B$3 -> 0.1118379041
A25: =Circuit2!$B$10/50*24 -> 14.4 | B25: =AG24*Circuit2!$B$7/1000000*AC25*(A25*A25+((Circuit2!$B$8)^2)/3)*Circuit2!$B$5*1000 -> 0.1199344731 | C25: =(Circuit2!$F$22+A25/(Circuit2!$F$23*Circuit2!$F$29))/(1+((Circuit2!$F$22+A25/(Circuit2!$F$23*Circuit2!$F$29))/Circuit2!$F$4)^(5))^(0.2) -> 2.605584952 | D25: =MAX((Circuit2!$F$4-C25), 0.001)/(Circuit2!$F$5+Circuit2!$F$28+Circuit2!$F$24/Circuit2!$F$29) -> 0.9209288645 | E25: =C25/(Circuit2!$F$6+Circuit2!$F$28+Circuit2!$F$24/Circuit2!$F$29) -> 1.628490595 | F25: =(Circuit2!$F$20/1000000000+Circuit2!$F$21/2/1000000000)*MAX(Circuit2!$F$29,1) -> 1.95e-08 | G25: 1.24130382e-08 | H25: 1.197427855e-08 | I25: =0.5*Circuit2!$B$3*(G25*MAX((A25-Circuit2!$B$8),0)+H25*(A25+Circuit2!$B$8))*Circuit2!$B$5*1000 -> 0.6306976688 | J25: =MIN(MAX((1-AG24-Circuit2!$F$7/1000000000+Circuit2!$F$8/1000000000),0.001),1)*Circuit2!$B$7/1000000*AF25*(A25*A25+((Circuit2!$B$8)^2)/3)*Circuit2!$B$5*1000 -> 0.3890331566 | K25: =Circuit2!$B$3*$AN$2*Circuit2!$J$26*0.000000001*Circuit2!$B$5*1000 -> 0.1224 | L25: =Circuit2!$J$21*A25*(Circuit2!$F$7/1000000000+Circuit2!$F$8/1000000000)*Circuit2!$B$5*1000 -> 0.071064 | M25: =A25*Circuit2!$B$4 -> 17.28 | N25: =Circuit2!$F$4*($AN$3/1000000000*Circuit2!$F$29)*Circuit2!$B$5*1000+Circuit2!$F$4*Circuit2!$F$9/1000/2 -> 0.05636363636 | O25: =Circuit2!$F$4*($AN$4/1000000000*Circuit2!$J$26)*Circuit2!$B$5*1000+Circuit2!$F$4*Circuit2!$F$9/1000/2 -> 0.07171818182 | P25: =(A25*A25+((Circuit2!$B$8)^2)/3)*(Circuit2!$J$9+Circuit2!$J$12)/1000*(1+0.002*AE24) -> 0.5389761883 | Q25: =Circuit2!$J$8/1000 -> 0.03 | R25: =0 -> 0 | S25: =(Circuit2!$F$19/1000000000000*Circuit2!$F$29+0*Circuit2!$J$19/1000000000000*Circuit2!$J$26)*Circuit2!$B$3*Circuit2!$B$3*Circuit2!$B$5*1000 -> 0.0411264 | T25: 0 | U25: =(Circuit2!$B$8/1.732)^2*Circuit2!$J$4/1000 -> 0.005400316819 | V25: 0.892713504 | W25: 0.7917585419 | X25: 0.4600971566 | Y25: 0.5743765052 | Z25: 0.05636363636 | AA25: =W25*Circuit2!$F$25/MAX(Circuit2!$F$29,1) -> 47.50551251 | AB25: 36.07912907 | AC25: =$AN$6*(1+AB24*0.85*Circuit2!$F$26/100)/1000/MAX(Circuit2!$F$29,1) -> 0.005144864575 | AD25: =X25*Circuit2!$J$22/MAX(Circuit2!$J$26,1) -> 21.02644006 | AE25: 18.44139425 | AF25: =$AN$7/1000*(1+AE24*0.85*Circuit2!$J$23/100)/MAX(Circuit2!$J$26,1) -> 0.002101422225 | AG25: =(U25+T25+S25+R25+Q25+P25+N25+M25+L25+J25+I25+B25+O25+K25)/A25/Circuit2!$B$3 -> 0.112018021
A26: =Circuit2!$B$10/50*25 -> 15 | B26: =AG25*Circuit2!$B$7/1000000*AC26*(A26*A26+((Circuit2!$B$8)^2)/3)*Circuit2!$B$5*1000 -> 0.1308512792 | C26: =(Circuit2!$F$22+A26/(Circuit2!$F$23*Circuit2!$F$29))/(1+((Circuit2!$F$22+A26/(Circuit2!$F$23*Circuit2!$F$29))/Circuit2!$F$4)^(5))^(0.2) -> 2.630444695 | D26: =MAX((Circuit2!$F$4-C26), 0.001)/(Circuit2!$F$5+Circuit2!$F$28+Circuit2!$F$24/Circuit2!$F$29) -> 0.9113674251 | E26: =C26/(Circuit2!$F$6+Circuit2!$F$28+Circuit2!$F$24/Circuit2!$F$29) -> 1.644027934 | F26: =(Circuit2!$F$20/1000000000+Circuit2!$F$21/2/1000000000)*MAX(Circuit2!$F$29,1) -> 1.95e-08 | G26: 1.248905266e-08 | H26: 1.186111233e-08 | I26: =0.5*Circuit2!$B$3*(G26*MAX((A26-Circuit2!$B$8),0)+H26*(A26+Circuit2!$B$8))*Circuit2!$B$5*1000 -> 0.6554199281 | J26: =MIN(MAX((1-AG25-Circuit2!$F$7/1000000000+Circuit2!$F$8/1000000000),0.001),1)*Circuit2!$B$7/1000000*AF26*(A26*A26+((Circuit2!$B$8)^2)/3)*Circuit2!$B$5*1000 -> 0.4241051835 | K26: =Circuit2!$B$3*$AN$2*Circuit2!$J$26*0.000000001*Circuit2!$B$5*1000 -> 0.1224 | L26: =Circuit2!$J$21*A26*(Circuit2!$F$7/1000000000+Circuit2!$F$8/1000000000)*Circuit2!$B$5*1000 -> 0.074025 | M26: =A26*Circuit2!$B$4 -> 18 | N26: =Circuit2!$F$4*($AN$3/1000000000*Circuit2!$F$29)*Circuit2!$B$5*1000+Circuit2!$F$4*Circuit2!$F$9/1000/2 -> 0.05636363636 | O26: =Circuit2!$F$4*($AN$4/1000000000*Circuit2!$J$26)*Circuit2!$B$5*1000+Circuit2!$F$4*Circuit2!$F$9/1000/2 -> 0.07171818182 | P26: =(A26*A26+((Circuit2!$B$8)^2)/3)*(Circuit2!$J$9+Circuit2!$J$12)/1000*(1+0.002*AE25) -> 0.5860461521 | Q26: =Circuit2!$J$8/1000 -> 0.03 | R26: =0 -> 0 | S26: =(Circuit2!$F$19/1000000000000*Circuit2!$F$29+0*Circuit2!$J$19/1000000000000*Circuit2!$J$26)*Circuit2!$B$3*Circuit2!$B$3*Circuit2!$B$5*1000 -> 0.0411264 | T26: 0 | U26: =(Circuit2!$B$8/1.732)^2*Circuit2!$J$4/1000 -> 0.005400316819 | V26: 0.8912013439 | W26: 0.8273976073 | X26: 0.4981301835 | Y26: 0.6214464689 | Z26: 0.05636363636 | AA26: =W26*Circuit2!$F$25/MAX(Circuit2!$F$29,1) -> 49.64385644 | AB26: 37.29931188 | AC26: =$AN$6*(1+AB25*0.85*Circuit2!$F$26/100)/1000/MAX(Circuit2!$F$29,1) -> 0.005166874731 | AD26: =X26*Circuit2!$J$22/MAX(Circuit2!$J$26,1) -> 22.76454939 | AE26: 19.76494842 | AF26: =$AN$7/1000*(1+AE25*0.85*Circuit2!$J$23/100)/MAX(Circuit2!$J$26,1) -> 0.002112551414 | AG26: =(U26+T26+S26+R26+Q26+P26+N26+M26+L26+J26+I26+B26+O26+K26)/A26/Circuit2!$B$3 -> 0.1122080893
A27: =Circuit2!$B$10/50*26 -> 15.6 | B27: =AG26*Circuit2!$B$7/1000000*AC27*(A27*A27+((Circuit2!$B$8)^2)/3)*Circuit2!$B$5*1000 -> 0.1423178385 | C27: =(Circuit2!$F$22+A27/(Circuit2!$F$23*Circuit2!$F$29))/(1+((Circuit2!$F$22+A27/(Circuit2!$F$23*Circuit2!$F$29))/Circuit2!$F$4)^(5))^(0.2) -> 2.655245379 | D27: =MAX((Circuit2!$F$4-C27), 0.001)/(Circuit2!$F$5+Circuit2!$F$28+Circuit2!$F$24/Circuit2!$F$29) -> 0.9018287004 | E27: =C27/(Circuit2!$F$6+Circuit2!$F$28+Circuit2!$F$24/Circuit2!$F$29) -> 1.659528362 | F27: =(Circuit2!$F$20/1000000000+Circuit2!$F$21/2/1000000000)*MAX(Circuit2!$F$29,1) -> 1.95e-08 | G27: 1.256581992e-08 | H27: 1.175032645e-08 | I27: =0.5*Circuit2!$B$3*(G27*MAX((A27-Circuit2!$B$8),0)+H27*(A27+Circuit2!$B$8))*Circuit2!$B$5*1000 -> 0.6801551912 | J27: =MIN(MAX((1-AG26-Circuit2!$F$7/1000000000+Circuit2!$F$8/1000000000),0.001),1)*Circuit2!$B$7/1000000*AF27*(A27*A27+((Circuit2!$B$8)^2)/3)*Circuit2!$B$5*1000 -> 0.4609285375 | K27: =Circuit2!$B$3*$AN$2*Circuit2!$J$26*0.000000001*Circuit2!$B$5*1000 -> 0.1224 | L27: =Circuit2!$J$21*A27*(Circuit2!$F$7/1000000000+Circuit2!$F$8/1000000000)*Circuit2!$B$5*1000 -> 0.076986 | M27: =A27*Circuit2!$B$4 -> 18.72 | N27: =Circuit2!$F$4*($AN$3/1000000000*Circuit2!$F$29)*Circuit2!$B$5*1000+Circuit2!$F$4*Circuit2!$F$9/1000/2 -> 0.05636363636 | O27: =Circuit2!$F$4*($AN$4/1000000000*Circuit2!$J$26)*Circuit2!$B$5*1000+Circuit2!$F$4*Circuit2!$F$9/1000/2 -> 0.07171818182 | P27: =(A27*A27+((Circuit2!$B$8)^2)/3)*(Circuit2!$J$9+Circuit2!$J$12)/1000*(1+0.002*AE26) -> 0.63525672 | Q27: =Circuit2!$J$8/1000 -> 0.03 | R27: =0 -> 0 | S27: =(Circuit2!$F$19/1000000000000*Circuit2!$F$29+0*Circuit2!$J$19/1000000000000*Circuit2!$J$26)*Circuit2!$B$3*Circuit2!$B$3*Circuit2!$B$5*1000 -> 0.0411264 | T27: 0 | U27: =(Circuit2!$B$8/1.732)^2*Circuit2!$J$4/1000 -> 0.005400316819 | V27: 0.8896216726 | W27: 0.8635994297 | X27: 0.5379145375 | Y27: 0.6706570368 | Z27: 0.05636363636 | AA27: =W27*Circuit2!$F$25/MAX(Circuit2!$F$29,1) -> 51.81596578 | AB27: 38.51228934 | AC27: =$AN$6*(1+AB26*0.85*Circuit2!$F$26/100)/1000/MAX(Circuit2!$F$29,1) -> 0.005188751796 | AD27: =X27*Circuit2!$J$22/MAX(Circuit2!$J$26,1) -> 24.58269436 | AE27: 21.12124669 | AF27: =$AN$7/1000*(1+AE26*0.85*Circuit2!$J$23/100)/MAX(Circuit2!$J$26,1) -> 0.002123978627 | AG27: =(U27+T27+S27+R27+Q27+P27+N27+M27+L27+J27+I27+B27+O27+K27)/A27/Circuit2!$B$3 -> 0.1124073335
A28: =Circuit2!$B$10/50*27 -> 16.2 | B28: =AG27*Circuit2!$B$7/1000000*AC28*(A28*A28+((Circuit2!$B$8)^2)/3)*Circuit2!$B$5*1000 -> 0.1543432356 | C28: =(Circuit2!$F$22+A28/(Circuit2!$F$23*Circuit2!$F$29))/(1+((Circuit2!$F$22+A28/(Circuit2!$F$23*Circuit2!$F$29))/Circuit2!$F$4)^(5))^(0.2) -> 2.679984919 | D28: =MAX((Circuit2!$F$4-C28), 0.001)/(Circuit2!$F$5+Circuit2!$F$28+Circuit2!$F$24/Circuit2!$F$29) -> 0.8923134926 | E28: =C28/(Circuit2!$F$6+Circuit2!$F$28+Circuit2!$F$24/Circuit2!$F$29) -> 1.674990575 | F28: =(Circuit2!$F$20/1000000000+Circuit2!$F$21/2/1000000000)*MAX(Circuit2!$F$29,1) -> 1.95e-08 | G28: 1.264334397e-08 | H28: 1.164185656e-08 | I28: =0.5*Circuit2!$B$3*(G28*MAX((A28-Circuit2!$B$8),0)+H28*(A28+Circuit2!$B$8))*Circuit2!$B$5*1000 -> 0.7049116281 | J28: =MIN(MAX((1-AG27-Circuit2!$F$7/1000000000+Circuit2!$F$8/1000000000),0.001),1)*Circuit2!$B$7/1000000*AF28*(A28*A28+((Circuit2!$B$8)^2)/3)*Circuit2!$B$5*1000 -> 0.4995341712 | K28: =Circuit2!$B$3*$AN$2*Circuit2!$J$26*0.000000001*Circuit2!$B$5*1000 -> 0.1224 | L28: =Circuit2!$J$21*A28*(Circuit2!$F$7/1000000000+Circuit2!$F$8/1000000000)*Circuit2!$B$5*1000 -> 0.079947 | M28: =A28*Circuit2!$B$4 -> 19.44 | N28: =Circuit2!$F$4*($AN$3/1000000000*Circuit2!$F$29)*Circuit2!$B$5*1000+Circuit2!$F$4*Circuit2!$F$9/1000/2 -> 0.05636363636 | O28: =Circuit2!$F$4*($AN$4/1000000000*Circuit2!$J$26)*Circuit2!$B$5*1000+Circuit2!$F$4*Circuit2!$F$9/1000/2 -> 0.07171818182 | P28: =(A28*A28+((Circuit2!$B$8)^2)/3)*(Circuit2!$J$9+Circuit2!$J$12)/1000*(1+0.002*AE27) -> 0.6866293546 | Q28: =Circuit2!$J$8/1000 -> 0.03 | R28: =0 -> 0 | S28: =(Circuit2!$F$19/1000000000000*Circuit2!$F$29+0*Circuit2!$J$19/1000000000000*Circuit2!$J$26)*Circuit2!$B$3*Circuit2!$B$3*Circuit2!$B$5*1000 -> 0.0411264 | T28: 0 | U28: =(Circuit2!$B$8/1.732)^2*Circuit2!$J$4/1000 -> 0.005400316819 | V28: 0.8879804478 | W28: 0.9003812637 | X28: 0.5794811712 | Y28: 0.7220296715 | Z28: 0.05636363636 | AA28: =W28*Circuit2!$F$25/MAX(Circuit2!$F$29,1) -> 54.02287582 | AB28: 39.71824895 | AC28: =$AN$6*(1+AB27*0.85*Circuit2!$F$26/100)/1000/MAX(Circuit2!$F$29,1) -> 0.005210499673 | AD28: =X28*Circuit2!$J$22/MAX(Circuit2!$J$26,1) -> 26.48228953 | AE28: 22.50845362 | AF28: =$AN$7/1000*(1+AE27*0.85*Circuit2!$J$23/100)/MAX(Circuit2!$J$26,1) -> 0.002135688545 | AG28: =(U28+T28+S28+R28+Q28+P28+N28+M28+L28+J28+I28+B28+O28+K28)/A28/Circuit2!$B$3 -> 0.1126150922
A29: =Circuit2!$B$10/50*28 -> 16.8 | B29: =AG28*Circuit2!$B$7/1000000*AC29*(A29*A29+((Circuit2!$B$8)^2)/3)*Circuit2!$B$5*1000 -> 0.1669366404 | C29: =(Circuit2!$F$22+A29/(Circuit2!$F$23*Circuit2!$F$29))/(1+((Circuit2!$F$22+A29/(Circuit2!$F$23*Circuit2!$F$29))/Circuit2!$F$4)^(5))^(0.2) -> 2.704661191 | D29: =MAX((Circuit2!$F$4-C29), 0.001)/(Circuit2!$F$5+Circuit2!$F$28+Circuit2!$F$24/Circuit2!$F$29) -> 0.8828226188 | E29: =C29/(Circuit2!$F$6+Circuit2!$F$28+Circuit2!$F$24/Circuit2!$F$29) -> 1.690413244 | F29: =(Circuit2!$F$20/1000000000+Circuit2!$F$21/2/1000000000)*MAX(Circuit2!$F$29,1) -> 1.95e-08 | G29: 1.272162856e-08 | H29: 1.153564081e-08 | I29: =0.5*Circuit2!$B$3*(G29*MAX((A29-Circuit2!$B$8),0)+H29*(A29+Circuit2!$B$8))*Circuit2!$B$5*1000 -> 0.7296972252 | J29: =MIN(MAX((1-AG28-Circuit2!$F$7/1000000000+Circuit2!$F$8/1000000000),0.001),1)*Circuit2!$B$7/1000000*AF29*(A29*A29+((Circuit2!$B$8)^2)/3)*Circuit2!$B$5*1000 -> 0.5399528926 | K29: =Circuit2!$B$3*$AN$2*Circuit2!$J$26*0.000000001*Circuit2!$B$5*1000 -> 0.1224 | L29: =Circuit2!$J$21*A29*(Circuit2!$F$7/1000000000+Circuit2!$F$8/1000000000)*Circuit2!$B$5*1000 -> 0.082908 | M29: =A29*Circuit2!$B$4 -> 20.16 | N29: =Circuit2!$F$4*($AN$3/1000000000*Circuit2!$F$29)*Circuit2!$B$5*1000+Circuit2!$F$4*Circuit2!$F$9/1000/2 -> 0.05636363636 | O29: =Circuit2!$F$4*($AN$4/1000000000*Circuit2!$J$26)*Circuit2!$B$5*1000+Circuit2!$F$4*Circuit2!$F$9/1000/2 -> 0.07171818182 | P29: =(A29*A29+((Circuit2!$B$8)^2)/3)*(Circuit2!$J$9+Circuit2!$J$12)/1000*(1+0.002*AE28) -> 0.7401854754 | Q29: =Circuit2!$J$8/1000 -> 0.03 | R29: =0 -> 0 | S29: =(Circuit2!$F$19/1000000000000*Circuit2!$F$29+0*Circuit2!$J$19/1000000000000*Circuit2!$J$26)*Circuit2!$B$3*Circuit2!$B$3*Circuit2!$B$5*1000 -> 0.0411264 | T29: 0 | U29: =(Circuit2!$B$8/1.732)^2*Circuit2!$J$4/1000 -> 0.005400316819 | V29: 0.8862828434 | W29: 0.9377602656 | X29: 0.6228608926 | Y29: 0.7755857922 | Z29: 0.05636363636 | AA29: =W29*Circuit2!$F$25/MAX(Circuit2!$F$29,1) -> 56.26561594 | AB29: 40.91734995 | AC29: =$AN$6*(1+AB28*0.85*Circuit2!$F$26/100)/1000/MAX(Circuit2!$F$29,1) -> 0.005232121725 | AD29: =X29*Circuit2!$J$22/MAX(Circuit2!$J$26,1) -> 28.46474279 | AE29: 23.92467751 | AF29: =$AN$7/1000*(1+AE28*0.85*Circuit2!$J$23/100)/MAX(Circuit2!$J$26,1) -> 0.00214766532 | AG29: =(U29+T29+S29+R29+Q29+P29+N29+M29+L29+J29+I29+B29+O29+K29)/A29/Circuit2!$B$3 -> 0.1128307975
A30: =Circuit2!$B$10/50*29 -> 17.4 | B30: =AG29*Circuit2!$B$7/1000000*AC30*(A30*A30+((Circuit2!$B$8)^2)/3)*Circuit2!$B$5*1000 -> 0.1801073052 | C30: =(Circuit2!$F$22+A30/(Circuit2!$F$23*Circuit2!$F$29))/(1+((Circuit2!$F$22+A30/(Circuit2!$F$23*Circuit2!$F$29))/Circuit2!$F$4)^(5))^(0.2) -> 2.729272031 | D30: =MAX((Circuit2!$F$4-C30), 0.001)/(Circuit2!$F$5+Circuit2!$F$28+Circuit2!$F$24/Circuit2!$F$29) -> 0.873356911 | E30: =C30/(Circuit2!$F$6+Circuit2!$F$28+Circuit2!$F$24/Circuit2!$F$29) -> 1.70579502 | F30: =(Circuit2!$F$20/1000000000+Circuit2!$F$21/2/1000000000)*MAX(Circuit2!$F$29,1) -> 1.95e-08 | G30: 1.280067715e-08 | H30: 1.143161973e-08 | I30: =0.5*Circuit2!$B$3*(G30*MAX((A30-Circuit2!$B$8),0)+H30*(A30+Circuit2!$B$8))*Circuit2!$B$5*1000 -> 0.7545197922 | J30: =MIN(MAX((1-AG29-Circuit2!$F$7/1000000000+Circuit2!$F$8/1000000000),0.001),1)*Circuit2!$B$7/1000000*AF30*(A30*A30+((Circuit2!$B$8)^2)/3)*Circuit2!$B$5*1000 -> 0.5822152296 | K30: =Circuit2!$B$3*$AN$2*Circuit2!$J$26*0.000000001*Circuit2!$B$5*1000 -> 0.1224 | L30: =Circuit2!$J$21*A30*(Circuit2!$F$7/1000000000+Circuit2!$F$8/1000000000)*Circuit2!$B$5*1000 -> 0.085869 | M30: =A30*Circuit2!$B$4 -> 20.88 | N30: =Circuit2!$F$4*($AN$3/1000000000*Circuit2!$F$29)*Circuit2!$B$5*1000+Circuit2!$F$4*Circuit2!$F$9/1000/2 -> 0.05636363636 | O30: =Circuit2!$F$4*($AN$4/1000000000*Circuit2!$J$26)*Circuit2!$B$5*1000+Circuit2!$F$4*Circuit2!$F$9/1000/2 -> 0.07171818182 | P30: =(A30*A30+((Circuit2!$B$8)^2)/3)*(Circuit2!$J$9+Circuit2!$J$12)/1000*(1+0.002*AE29) -> 0.7959463701 | Q30: =Circuit2!$J$8/1000 -> 0.03 | R30: =0 -> 0 | S30: =(Circuit2!$F$19/1000000000000*Circuit2!$F$29+0*Circuit2!$J$19/1000000000000*Circuit2!$J$26)*Circuit2!$B$3*Circuit2!$B$3*Circuit2!$B$5*1000 -> 0.0411264 | T30: 0 | U30: =(Circuit2!$B$8/1.732)^2*Circuit2!$J$4/1000 -> 0.005400316819 | V30: 0.884533391 | W30: 0.9757534974 | X30: 0.6680842296 | Y30: 0.8313466869 | Z30: 0.05636363636 | AA30: =W30*Circuit2!$F$25/MAX(Circuit2!$F$29,1) -> 58.54520984 | AB30: 42.10972519 | AC30: =$AN$6*(1+AB29*0.85*Circuit2!$F$26/100)/1000/MAX(Circuit2!$F$29,1) -> 0.005253620806 | AD30: =X30*Circuit2!$J$22/MAX(Circuit2!$J$26,1) -> 30.53144929 | AE30: 25.36797556 | AF30: =$AN$7/1000*(1+AE29*0.85*Circuit2!$J$23/100)/MAX(Circuit2!$J$26,1) -> 0.002159892619 | AG30: =(U30+T30+S30+R30+Q30+P30+N30+M30+L30+J30+I30+B30+O30+K30)/A30/Circuit2!$B$3 -> 0.113053957
A31: =Circuit2!$B$10/50*30 -> 18 | B31: =AG30*Circuit2!$B$7/1000000*AC31*(A31*A31+((Circuit2!$B$8)^2)/3)*Circuit2!$B$5*1000 -> 0.1938645606 | C31: =(Circuit2!$F$22+A31/(Circuit2!$F$23*Circuit2!$F$29))/(1+((Circuit2!$F$22+A31/(Circuit2!$F$23*Circuit2!$F$29))/Circuit2!$F$4)^(5))^(0.2) -> 2.753815239 | D31: =MAX((Circuit2!$F$4-C31), 0.001)/(Circuit2!$F$5+Circuit2!$F$28+Circuit2!$F$24/Circuit2!$F$29) -> 0.8639172156 | E31: =C31/(Circuit2!$F$6+Circuit2!$F$28+Circuit2!$F$24/Circuit2!$F$29) -> 1.721134525 | F31: =(Circuit2!$F$20/1000000000+Circuit2!$F$21/2/1000000000)*MAX(Circuit2!$F$29,1) -> 1.95e-08 | G31: 1.288049294e-08 | H31: 1.132973613e-08 | I31: =0.5*Circuit2!$B$3*(G31*MAX((A31-Circuit2!$B$8),0)+H31*(A31+Circuit2!$B$8))*Circuit2!$B$5*1000 -> 0.7793869695 | J31: =MIN(MAX((1-AG30-Circuit2!$F$7/1000000000+Circuit2!$F$8/1000000000),0.001),1)*Circuit2!$B$7/1000000*AF31*(A31*A31+((Circuit2!$B$8)^2)/3)*Circuit2!$B$5*1000 -> 0.6263512955 | K31: =Circuit2!$B$3*$AN$2*Circuit2!$J$26*0.000000001*Circuit2!$B$5*1000 -> 0.1224 | L31: =Circuit2!$J$21*A31*(Circuit2!$F$7/1000000000+Circuit2!$F$8/1000000000)*Circuit2!$B$5*1000 -> 0.08883 | M31: =A31*Circuit2!$B$4 -> 21.6 | N31: =Circuit2!$F$4*($AN$3/1000000000*Circuit2!$F$29)*Circuit2!$B$5*1000+Circuit2!$F$4*Circuit2!$F$9/1000/2 -> 0.05636363636 | O31: =Circuit2!$F$4*($AN$4/1000000000*Circuit2!$J$26)*Circuit2!$B$5*1000+Circuit2!$F$4*Circuit2!$F$9/1000/2 -> 0.07171818182 | P31: =(A31*A31+((Circuit2!$B$8)^2)/3)*(Circuit2!$J$9+Circuit2!$J$12)/1000*(1+0.002*AE30) -> 0.8539331075 | Q31: =Circuit2!$J$8/1000 -> 0.03 | R31: =0 -> 0 | S31: =(Circuit2!$F$19/1000000000000*Circuit2!$F$29+0*Circuit2!$J$19/1000000000000*Circuit2!$J$26)*Circuit2!$B$3*Circuit2!$B$3*Circuit2!$B$5*1000 -> 0.0411264 | T31: 0 | U31: =(Circuit2!$B$8/1.732)^2*Circuit2!$J$4/1000 -> 0.005400316819 | V31: 0.8827360923 | W31: 1.01437793 | X31: 0.7151812955 | Y31: 0.8893334243 | Z31: 0.05636363636 | AA31: =W31*Circuit2!$F$25/MAX(Circuit2!$F$29,1) -> 60.86267581 | AB31: 43.29548288 | AC31: =$AN$6*(1+AB30*0.85*Circuit2!$F$26/100)/1000/MAX(Circuit2!$F$29,1) -> 0.0052749993 | AD31: =X31*Circuit2!$J$22/MAX(Circuit2!$J$26,1) -> 32.6837852 | AE31: 26.83635975 | AF31: =$AN$7/1000*(1+AE30*0.85*Circuit2!$J$23/100)/MAX(Circuit2!$J$26,1) -> 0.00217235367 | AG31: =(U31+T31+S31+R31+Q31+P31+N31+M31+L31+J31+I31+B31+O31+K31)/A31/Circuit2!$B$3 -> 0.1132841411
A32: =Circuit2!$B$10/50*31 -> 18.6 | B32: =AG31*Circuit2!$B$7/1000000*AC32*(A32*A32+((Circuit2!$B$8)^2)/3)*Circuit2!$B$5*1000 -> 0.2082178116 | C32: =(Circuit2!$F$22+A32/(Circuit2!$F$23*Circuit2!$F$29))/(1+((Circuit2!$F$22+A32/(Circuit2!$F$23*Circuit2!$F$29))/Circuit2!$F$4)^(5))^(0.2) -> 2.778288579 | D32: =MAX((Circuit2!$F$4-C32), 0.001)/(Circuit2!$F$5+Circuit2!$F$28+Circuit2!$F$24/Circuit2!$F$29) -> 0.8545043928 | E32: =C32/(Circuit2!$F$6+Circuit2!$F$28+Circuit2!$F$24/Circuit2!$F$29) -> 1.736430362 | F32: =(Circuit2!$F$20/1000000000+Circuit2!$F$21/2/1000000000)*MAX(Circuit2!$F$29,1) -> 1.95e-08 | G32: 1.296107881e-08 | H32: 1.122993495e-08 | I32: =0.5*Circuit2!$B$3*(G32*MAX((A32-Circuit2!$B$8),0)+H32*(A32+Circuit2!$B$8))*Circuit2!$B$5*1000 -> 0.8043062343 | J32: =MIN(MAX((1-AG31-Circuit2!$F$7/1000000000+Circuit2!$F$8/1000000000),0.001),1)*Circuit2!$B$7/1000000*AF32*(A32*A32+((Circuit2!$B$8)^2)/3)*Circuit2!$B$5*1000 -> 0.6723906583 | K32: =Circuit2!$B$3*$AN$2*Circuit2!$J$26*0.000000001*Circuit2!$B$5*1000 -> 0.1224 | L32: =Circuit2!$J$21*A32*(Circuit2!$F$7/1000000000+Circuit2!$F$8/1000000000)*Circuit2!$B$5*1000 -> 0.091791 | M32: =A32*Circuit2!$B$4 -> 22.32 | N32: =Circuit2!$F$4*($AN$3/1000000000*Circuit2!$F$29)*Circuit2!$B$5*1000+Circuit2!$F$4*Circuit2!$F$9/1000/2 -> 0.05636363636 | O32: =Circuit2!$F$4*($AN$4/1000000000*Circuit2!$J$26)*Circuit2!$B$5*1000+Circuit2!$F$4*Circuit2!$F$9/1000/2 -> 0.07171818182 | P32: =(A32*A32+((Circuit2!$B$8)^2)/3)*(Circuit2!$J$9+Circuit2!$J$12)/1000*(1+0.002*AE31) -> 0.9141664514 | Q32: =Circuit2!$J$8/1000 -> 0.03 | R32: =0 -> 0 | S32: =(Circuit2!$F$19/1000000000000*Circuit2!$F$29+0*Circuit2!$J$19/1000000000000*Circuit2!$J$26)*Circuit2!$B$3*Circuit2!$B$3*Circuit2!$B$5*1000 -> 0.0411264 | T32: 0 | U32: =(Circuit2!$B$8/1.732)^2*Circuit2!$J$4/1000 -> 0.005400316819 | V32: 0.8808945102 | W32: 1.053650446 | X32: 0.7641816583 | Y32: 0.9495667683 | Z32: 0.05636363636 | AA32: =W32*Circuit2!$F$25/MAX(Circuit2!$F$29,1) -> 63.21902675 | AB32: 44.47470827 | AC32: =$AN$6*(1+AB31*0.85*Circuit2!$F$26/100)/1000/MAX(Circuit2!$F$29,1) -> 0.005296259144 | AD32: =X32*Circuit2!$J$22/MAX(Circuit2!$J$26,1) -> 34.92310179 | AE32: 28.32780338 | AF32: =$AN$7/1000*(1+AE31*0.85*Circuit2!$J$23/100)/MAX(Circuit2!$J$26,1) -> 0.002185031307 | AG32: =(U32+T32+S32+R32+Q32+P32+N32+M32+L32+J32+I32+B32+O32+K32)/A32/Circuit2!$B$3 -> 0.1135209708
A33: =Circuit2!$B$10/50*32 -> 19.2 | B33: =AG32*Circuit2!$B$7/1000000*AC33*(A33*A33+((Circuit2!$B$8)^2)/3)*Circuit2!$B$5*1000 -> 0.2231765321 | C33: =(Circuit2!$F$22+A33/(Circuit2!$F$23*Circuit2!$F$29))/(1+((Circuit2!$F$22+A33/(Circuit2!$F$23*Circuit2!$F$29))/Circuit2!$F$4)^(5))^(0.2) -> 2.802689777 | D33: =MAX((Circuit2!$F$4-C33), 0.001)/(Circuit2!$F$5+Circuit2!$F$28+Circuit2!$F$24/Circuit2!$F$29) -> 0.8451193167 | E33: =C33/(Circuit2!$F$6+Circuit2!$F$28+Circuit2!$F$24/Circuit2!$F$29) -> 1.75168111 | F33: =(Circuit2!$F$20/1000000000+Circuit2!$F$21/2/1000000000)*MAX(Circuit2!$F$29,1) -> 1.95e-08 | G33: 1.304243734e-08 | H33: 1.11321632e-08 | I33: =0.5*Circuit2!$B$3*(G33*MAX((A33-Circuit2!$B$8),0)+H33*(A33+Circuit2!$B$8))*Circuit2!$B$5*1000 -> 0.8292849065 | J33: =MIN(MAX((1-AG32-Circuit2!$F$7/1000000000+Circuit2!$F$8/1000000000),0.001),1)*Circuit2!$B$7/1000000*AF33*(A33*A33+((Circuit2!$B$8)^2)/3)*Circuit2!$B$5*1000 -> 0.720362213 | K33: =Circuit2!$B$3*$AN$2*Circuit2!$J$26*0.000000001*Circuit2!$B$5*1000 -> 0.1224 | L33: =Circuit2!$J$21*A33*(Circuit2!$F$7/1000000000+Circuit2!$F$8/1000000000)*Circuit2!$B$5*1000 -> 0.094752 | M33: =A33*Circuit2!$B$4 -> 23.04 | N33: =Circuit2!$F$4*($AN$3/1000000000*Circuit2!$F$29)*Circuit2!$B$5*1000+Circuit2!$F$4*Circuit2!$F$9/1000/2 -> 0.05636363636 | O33: =Circuit2!$F$4*($AN$4/1000000000*Circuit2!$J$26)*Circuit2!$B$5*1000+Circuit2!$F$4*Circuit2!$F$9/1000/2 -> 0.07171818182 | P33: =(A33*A33+((Circuit2!$B$8)^2)/3)*(Circuit2!$J$9+Circuit2!$J$12)/1000*(1+0.002*AE32) -> 0.9766667773 | Q33: =Circuit2!$J$8/1000 -> 0.03 | R33: =0 -> 0 | S33: =(Circuit2!$F$19/1000000000000*Circuit2!$F$29+0*Circuit2!$J$19/1000000000000*Circuit2!$J$26)*Circuit2!$B$3*Circuit2!$B$3*Circuit2!$B$5*1000 -> 0.0411264 | T33: 0 | U33: =(Circuit2!$B$8/1.732)^2*Circuit2!$J$4/1000 -> 0.005400316819 | V33: 0.8790118423 | W33: 1.093587839 | X33: 0.815114213 | Y33: 1.012067094 | Z33: 0.05636363636 | AA33: =W33*Circuit2!$F$25/MAX(Circuit2!$F$29,1) -> 65.61527031 | AB33: 45.64746519 | AC33: =$AN$6*(1+AB32*0.85*Circuit2!$F$26/100)/1000/MAX(Circuit2!$F$29,1) -> 0.00531740187 | AD33: =X33*Circuit2!$J$22/MAX(Circuit2!$J$26,1) -> 37.25071954 | AE33: 29.84024811 | AF33: =$AN$7/1000*(1+AE32*0.85*Circuit2!$J$23/100)/MAX(Circuit2!$J$26,1) -> 0.002197908034 | AG33: =(U33+T33+S33+R33+Q33+P33+N33+M33+L33+J33+I33+B33+O33+K33)/A33/Circuit2!$B$3 -> 0.1137641101
A34: =Circuit2!$B$10/50*33 -> 19.8 | B34: =AG33*Circuit2!$B$7/1000000*AC34*(A34*A34+((Circuit2!$B$8)^2)/3)*Circuit2!$B$5*1000 -> 0.23875026 | C34: =(Circuit2!$F$22+A34/(Circuit2!$F$23*Circuit2!$F$29))/(1+((Circuit2!$F$22+A34/(Circuit2!$F$23*Circuit2!$F$29))/Circuit2!$F$4)^(5))^(0.2) -> 2.827016527 | D34: =MAX((Circuit2!$F$4-C34), 0.001)/(Circuit2!$F$5+Circuit2!$F$28+Circuit2!$F$24/Circuit2!$F$29) -> 0.8357628743 | E34: =C34/(Circuit2!$F$6+Circuit2!$F$28+Circuit2!$F$24/Circuit2!$F$29) -> 1.766885329 | F34: =(Circuit2!$F$20/1000000000+Circuit2!$F$21/2/1000000000)*MAX(Circuit2!$F$29,1) -> 1.95e-08 | G34: 1.312457078e-08 | H34: 1.103636986e-08 | I34: =0.5*Circuit2!$B$3*(G34*MAX((A34-Circuit2!$B$8),0)+H34*(A34+Circuit2!$B$8))*Circuit2!$B$5*1000 -> 0.8543301534 | J34: =MIN(MAX((1-AG33-Circuit2!$F$7/1000000000+Circuit2!$F$8/1000000000),0.001),1)*Circuit2!$B$7/1000000*AF34*(A34*A34+((Circuit2!$B$8)^2)/3)*Circuit2!$B$5*1000 -> 0.7702940599 | K34: =Circuit2!$B$3*$AN$2*Circuit2!$J$26*0.000000001*Circuit2!$B$5*1000 -> 0.1224 | L34: =Circuit2!$J$21*A34*(Circuit2!$F$7/1000000000+Circuit2!$F$8/1000000000)*Circuit2!$B$5*1000 -> 0.097713 | M34: =A34*Circuit2!$B$4 -> 23.76 | N34: =Circuit2!$F$4*($AN$3/1000000000*Circuit2!$F$29)*Circuit2!$B$5*1000+Circuit2!$F$4*Circuit2!$F$9/1000/2 -> 0.05636363636 | O34: =Circuit2!$F$4*($AN$4/1000000000*Circuit2!$J$26)*Circuit2!$B$5*1000+Circuit2!$F$4*Circuit2!$F$9/1000/2 -> 0.07171818182 | P34: =(A34*A34+((Circuit2!$B$8)^2)/3)*(Circuit2!$J$9+Circuit2!$J$12)/1000*(1+0.002*AE33) -> 1.041453992 | Q34: =Circuit2!$J$8/1000 -> 0.03 | R34: =0 -> 0 | S34: =(Circuit2!$F$19/1000000000000*Circuit2!$F$29+0*Circuit2!$J$19/1000000000000*Circuit2!$J$26)*Circuit2!$B$3*Circuit2!$B$3*Circuit2!$B$5*1000 -> 0.0411264 | T34: 0 | U34: =(Circuit2!$B$8/1.732)^2*Circuit2!$J$4/1000 -> 0.005400316819 | V34: 0.8770909816 | W34: 1.134206813 | X34: 0.8680070599 | Y34: 1.076854309 | Z34: 0.05636363636 | AA34: =W34*Circuit2!$F$25/MAX(Circuit2!$F$29,1) -> 68.0524088 | AB34: 46.81379755 | AC34: =$AN$6*(1+AB33*0.85*Circuit2!$F$26/100)/1000/MAX(Circuit2!$F$29,1) -> 0.005338428619 | AD34: =X34*Circuit2!$J$22/MAX(Circuit2!$J$26,1) -> 39.66792264 | AE34: 31.37161157 | AF34: =$AN$7/1000*(1+AE33*0.85*Circuit2!$J$23/100)/MAX(Circuit2!$J$26,1) -> 0.002210966078 | AG34: =(U34+T34+S34+R34+Q34+P34+N34+M34+L34+J34+I34+B34+O34+K34)/A34/Circuit2!$B$3 -> 0.1140132576
A35: =Circuit2!$B$10/50*34 -> 20.4 | B35: =AG34*Circuit2!$B$7/1000000*AC35*(A35*A35+((Circuit2!$B$8)^2)/3)*Circuit2!$B$5*1000 -> 0.2549485907 | C35: =(Circuit2!$F$22+A35/(Circuit2!$F$23*Circuit2!$F$29))/(1+((Circuit2!$F$22+A35/(Circuit2!$F$23*Circuit2!$F$29))/Circuit2!$F$4)^(5))^(0.2) -> 2.85126649 | D35: =MAX((Circuit2!$F$4-C35), 0.001)/(Circuit2!$F$5+Circuit2!$F$28+Circuit2!$F$24/Circuit2!$F$29) -> 0.8264359653 | E35: =C35/(Circuit2!$F$6+Circuit2!$F$28+Circuit2!$F$24/Circuit2!$F$29) -> 1.782041556 | F35: =(Circuit2!$F$20/1000000000+Circuit2!$F$21/2/1000000000)*MAX(Circuit2!$F$29,1) -> 1.95e-08 | G35: 1.320748103e-08 | H35: 1.094250576e-08 | I35: =0.5*Circuit2!$B$3*(G35*MAX((A35-Circuit2!$B$8),0)+H35*(A35+Circuit2!$B$8))*Circuit2!$B$5*1000 -> 0.8794489951 | J35: =MIN(MAX((1-AG34-Circuit2!$F$7/1000000000+Circuit2!$F$8/1000000000),0.001),1)*Circuit2!$B$7/1000000*AF35*(A35*A35+((Circuit2!$B$8)^2)/3)*Circuit2!$B$5*1000 -> 0.8222133895 | K35: =Circuit2!$B$3*$AN$2*Circuit2!$J$26*0.000000001*Circuit2!$B$5*1000 -> 0.1224 | L35: =Circuit2!$J$21*A35*(Circuit2!$F$7/1000000000+Circuit2!$F$8/1000000000)*Circuit2!$B$5*1000 -> 0.100674 | M35: =A35*Circuit2!$B$4 -> 24.48 | N35: =Circuit2!$F$4*($AN$3/1000000000*Circuit2!$F$29)*Circuit2!$B$5*1000+Circuit2!$F$4*Circuit2!$F$9/1000/2 -> 0.05636363636 | O35: =Circuit2!$F$4*($AN$4/1000000000*Circuit2!$J$26)*Circuit2!$B$5*1000+Circuit2!$F$4*Circuit2!$F$9/1000/2 -> 0.07171818182 | P35: =(A35*A35+((Circuit2!$B$8)^2)/3)*(Circuit2!$J$9+Circuit2!$J$12)/1000*(1+0.002*AE34) -> 1.108547456 | Q35: =Circuit2!$J$8/1000 -> 0.03 | R35: =0 -> 0 | S35: =(Circuit2!$F$19/1000000000000*Circuit2!$F$29+0*Circuit2!$J$19/1000000000000*Circuit2!$J$26)*Circuit2!$B$3*Circuit2!$B$3*Circuit2!$B$5*1000 -> 0.0411264 | T35: 0 | U35: =(Circuit2!$B$8/1.732)^2*Circuit2!$J$4/1000 -> 0.005400316819 | V35: 0.8751345646 | W35: 1.175523986 | X35: 0.9228873895 | Y35: 1.143947773 | Z35: 0.05636363636 | AA35: =W35*Circuit2!$F$25/MAX(Circuit2!$F$29,1) -> 70.53143915 | AB35: 47.9737307 | AC35: =$AN$6*(1+AB34*0.85*Circuit2!$F$26/100)/1000/MAX(Circuit2!$F$29,1) -> 0.005359340181 | AD35: =X35*Circuit2!$J$22/MAX(Circuit2!$J$26,1) -> 42.1759537 | AE35: 32.91979529 | AF35: =$AN$7/1000*(1+AE34*0.85*Circuit2!$J$23/100)/MAX(Circuit2!$J$26,1) -> 0.002224187462 | AG35: =(U35+T35+S35+R35+Q35+P35+N35+M35+L35+J35+I35+B35+O35+K35)/A35/Circuit2!$B$3 -> 0.1142681412
A36: =Circuit2!$B$10/50*35 -> 21 | B36: =AG35*Circuit2!$B$7/1000000*AC36*(A36*A36+((Circuit2!$B$8)^2)/3)*Circuit2!$B$5*1000 -> 0.2717811712 | C36: =(Circuit2!$F$22+A36/(Circuit2!$F$23*Circuit2!$F$29))/(1+((Circuit2!$F$22+A36/(Circuit2!$F$23*Circuit2!$F$29))/Circuit2!$F$4)^(5))^(0.2) -> 2.875437295 | D36: =MAX((Circuit2!$F$4-C36), 0.001)/(Circuit2!$F$5+Circuit2!$F$28+Circuit2!$F$24/Circuit2!$F$29) -> 0.8171395019 | E36: =C36/(Circuit2!$F$6+Circuit2!$F$28+Circuit2!$F$24/Circuit2!$F$29) -> 1.797148309 | F36: =(Circuit2!$F$20/1000000000+Circuit2!$F$21/2/1000000000)*MAX(Circuit2!$F$29,1) -> 1.95e-08 | G36: 1.329116964e-08 | H36: 1.085052352e-08 | I36: =0.5*Circuit2!$B$3*(G36*MAX((A36-Circuit2!$B$8),0)+H36*(A36+Circuit2!$B$8))*Circuit2!$B$5*1000 -> 0.9046483079 | J36: =MIN(MAX((1-AG35-Circuit2!$F$7/1000000000+Circuit2!$F$8/1000000000),0.001),1)*Circuit2!$B$7/1000000*AF36*(A36*A36+((Circuit2!$B$8)^2)/3)*Circuit2!$B$5*1000 -> 0.8761463749 | K36: =Circuit2!$B$3*$AN$2*Circuit2!$J$26*0.000000001*Circuit2!$B$5*1000 -> 0.1224 | L36: =Circuit2!$J$21*A36*(Circuit2!$F$7/1000000000+Circuit2!$F$8/1000000000)*Circuit2!$B$5*1000 -> 0.103635 | M36: =A36*Circuit2!$B$4 -> 25.2 | N36: =Circuit2!$F$4*($AN$3/1000000000*Circuit2!$F$29)*Circuit2!$B$5*1000+Circuit2!$F$4*Circuit2!$F$9/1000/2 -> 0.05636363636 | O36: =Circuit2!$F$4*($AN$4/1000000000*Circuit2!$J$26)*Circuit2!$B$5*1000+Circuit2!$F$4*Circuit2!$F$9/1000/2 -> 0.07171818182 | P36: =(A36*A36+((Circuit2!$B$8)^2)/3)*(Circuit2!$J$9+Circuit2!$J$12)/1000*(1+0.002*AE35) -> 1.177965916 | Q36: =Circuit2!$J$8/1000 -> 0.03 | R36: =0 -> 0 | S36: =(Circuit2!$F$19/1000000000000*Circuit2!$F$29+0*Circuit2!$J$19/1000000000000*Circuit2!$J$26)*Circuit2!$B$3*Circuit2!$B$3*Circuit2!$B$5*1000 -> 0.0411264 | T36: 0 | U36: =(Circuit2!$B$8/1.732)^2*Circuit2!$J$4/1000 -> 0.005400316819 | V36: 0.8731450124 | W36: 1.217555879 | X36: 0.9797813749 | Y36: 1.213366232 | Z36: 0.05636363636 | AA36: =W36*Circuit2!$F$25/MAX(Circuit2!$F$29,1) -> 73.05335274 | AB36: 49.12727281 | AC36: =$AN$6*(1+AB35*0.85*Circuit2!$F$26/100)/1000/MAX(Circuit2!$F$29,1) -> 0.005380137009 | AD36: =X36*Circuit2!$J$22/MAX(Circuit2!$J$26,1) -> 44.77600883 | AE36: 34.48269304 | AF36: =$AN$7/1000*(1+AE35*0.85*Circuit2!$J$23/100)/MAX(Circuit2!$J$26,1) -> 0.002237554067 | AG36: =(U36+T36+S36+R36+Q36+P36+N36+M36+L36+J36+I36+B36+O36+K36)/A36/Circuit2!$B$3 -> 0.1145285131
A37: =Circuit2!$B$10/50*36 -> 21.6 | B37: =AG36*Circuit2!$B$7/1000000*AC37*(A37*A37+((Circuit2!$B$8)^2)/3)*Circuit2!$B$5*1000 -> 0.2892576924 | C37: =(Circuit2!$F$22+A37/(Circuit2!$F$23*Circuit2!$F$29))/(1+((Circuit2!$F$22+A37/(Circuit2!$F$23*Circuit2!$F$29))/Circuit2!$F$4)^(5))^(0.2) -> 2.899526541 | D37: =MAX((Circuit2!$F$4-C37), 0.001)/(Circuit2!$F$5+Circuit2!$F$28+Circuit2!$F$24/Circuit2!$F$29) -> 0.8078744075 | E37: =C37/(Circuit2!$F$6+Circuit2!$F$28+Circuit2!$F$24/Circuit2!$F$29) -> 1.812204088 | F37: =(Circuit2!$F$20/1000000000+Circuit2!$F$21/2/1000000000)*MAX(Circuit2!$F$29,1) -> 1.95e-08 | G37: 1.337563778e-08 | H37: 1.076037745e-08 | I37: =0.5*Circuit2!$B$3*(G37*MAX((A37-Circuit2!$B$8),0)+H37*(A37+Circuit2!$B$8))*Circuit2!$B$5*1000 -> 0.9299348286 | J37: =MIN(MAX((1-AG36-Circuit2!$F$7/1000000000+Circuit2!$F$8/1000000000),0.001),1)*Circuit2!$B$7/1000000*AF37*(A37*A37+((Circuit2!$B$8)^2)/3)*Circuit2!$B$5*1000 -> 0.932118074 | K37: =Circuit2!$B$3*$AN$2*Circuit2!$J$26*0.000000001*Circuit2!$B$5*1000 -> 0.1224 | L37: =Circuit2!$J$21*A37*(Circuit2!$F$7/1000000000+Circuit2!$F$8/1000000000)*Circuit2!$B$5*1000 -> 0.106596 | M37: =A37*Circuit2!$B$4 -> 25.92 | N37: =Circuit2!$F$4*($AN$3/1000000000*Circuit2!$F$29)*Circuit2!$B$5*1000+Circuit2!$F$4*Circuit2!$F$9/1000/2 -> 0.05636363636 | O37: =Circuit2!$F$4*($AN$4/1000000000*Circuit2!$J$26)*Circuit2!$B$5*1000+Circuit2!$F$4*Circuit2!$F$9/1000/2 -> 0.07171818182 | P37: =(A37*A37+((Circuit2!$B$8)^2)/3)*(Circuit2!$J$9+Circuit2!$J$12)/1000*(1+0.002*AE36) -> 1.249727433 | Q37: =Circuit2!$J$8/1000 -> 0.03 | R37: =0 -> 0 | S37: =(Circuit2!$F$19/1000000000000*Circuit2!$F$29+0*Circuit2!$J$19/1000000000000*Circuit2!$J$26)*Circuit2!$B$3*Circuit2!$B$3*Circuit2!$B$5*1000 -> 0.0411264 | T37: 0 | U37: =(Circuit2!$B$8/1.732)^2*Circuit2!$J$4/1000 -> 0.005400316819 | V37: =M37/(U37+T37+S37+R37+Q37+P37+N37+M37+L37+J37+I37+B37+O37+K37) -> 0.871124563 | W37: 1.260318921 | X37: 1.038714074 | Y37: =P37+Q37+U37 -> 1.28512775 | Z37: =N37 -> 0.05636363636 | AA37: =W37*Circuit2!$F$25/MAX(Circuit2!$F$29,1) -> 75.61913526 | AB37: 50.27441611 | AC37: =$AN$6*(1+AB36*0.85*Circuit2!$F$26/100)/1000/MAX(Circuit2!$F$29,1) -> 0.00540081925 | AD37: =X37*Circuit2!$J$22/MAX(Circuit2!$J$26,1) -> 47.46923318 | AE37: 36.05819936 | AF37: =$AN$7/1000*(1+AE36*0.85*Circuit2!$J$23/100)/MAX(Circuit2!$J$26,1) -> 0.00225104771 | AG37: =(U37+T37+S37+R37+Q37+P37+N37+M37+L37+J37+I37+B37+O37+K37)/A37/Circuit2!$B$3 -> 0.1147941457
A38: =Circuit2!$B$10/50*37 -> 22.2 | B38: =AG37*Circuit2!$B$7/1000000*AC38*(A38*A38+((Circuit2!$B$8)^2)/3)*Circuit2!$B$5*1000 -> 0.3073878828 | C38: =(Circuit2!$F$22+A38/(Circuit2!$F$23*Circuit2!$F$29))/(1+((Circuit2!$F$22+A38/(Circuit2!$F$23*Circuit2!$F$29))/Circuit2!$F$4)^(5))^(0.2) -> 2.923531796 | D38: =MAX((Circuit2!$F$4-C38), 0.001)/(Circuit2!$F$5+Circuit2!$F$28+Circuit2!$F$24/Circuit2!$F$29) -> 0.7986416168 | E38: =C38/(Circuit2!$F$6+Circuit2!$F$28+Circuit2!$F$24/Circuit2!$F$29) -> 1.827207373 | F38: =(Circuit2!$F$20/1000000000+Circuit2!$F$21/2/1000000000)*MAX(Circuit2!$F$29,1) -> 1.95e-08 | G38: 1.346088624e-08 | H38: 1.067202349e-08 | I38: =0.5*Circuit2!$B$3*(G38*MAX((A38-Circuit2!$B$8),0)+H38*(A38+Circuit2!$B$8))*Circuit2!$B$5*1000 -> 0.9553151573 | J38: =MIN(MAX((1-AG37-Circuit2!$F$7/1000000000+Circuit2!$F$8/1000000000),0.001),1)*Circuit2!$B$7/1000000*AF38*(A38*A38+((Circuit2!$B$8)^2)/3)*Circuit2!$B$5*1000 -> 0.9901523403 | K38: =Circuit2!$B$3*$AN$2*Circuit2!$J$26*0.000000001*Circuit2!$B$5*1000 -> 0.1224 | L38: =Circuit2!$J$21*A38*(Circuit2!$F$7/1000000000+Circuit2!$F$8/1000000000)*Circuit2!$B$5*1000 -> 0.109557 | M38: =A38*Circuit2!$B$4 -> 26.64 | N38: =Circuit2!$F$4*($AN$3/1000000000*Circuit2!$F$29)*Circuit2!$B$5*1000+Circuit2!$F$4*Circuit2!$F$9/1000/2 -> 0.05636363636 | O38: =Circuit2!$F$4*($AN$4/1000000000*Circuit2!$J$26)*Circuit2!$B$5*1000+Circuit2!$F$4*Circuit2!$F$9/1000/2 -> 0.07171818182 | P38: =(A38*A38+((Circuit2!$B$8)^2)/3)*(Circuit2!$J$9+Circuit2!$J$12)/1000*(1+0.002*AE37) -> 1.323849329 | Q38: =Circuit2!$J$8/1000 -> 0.03 | R38: =0 -> 0 | S38: =(Circuit2!$F$19/1000000000000*Circuit2!$F$29+0*Circuit2!$J$19/1000000000000*Circuit2!$J$26)*Circuit2!$B$3*Circuit2!$B$3*Circuit2!$B$5*1000 -> 0.0411264 | T38: 0 | U38: =(Circuit2!$B$8/1.732)^2*Circuit2!$J$4/1000 -> 0.005400316819 | V38: 0.8690752989 | W38: 1.30382944 | X38: 1.09970934 | Y38: 1.359249646 | Z38: 0.05636363636 | AA38: =W38*Circuit2!$F$25/MAX(Circuit2!$F$29,1) -> 78.2297664 | AB38: 51.41513811 | AC38: =$AN$6*(1+AB37*0.85*Circuit2!$F$26/100)/1000/MAX(Circuit2!$F$29,1) -> 0.005421386765 | AD38: =X38*Circuit2!$J$22/MAX(Circuit2!$J$26,1) -> 50.25671685 | AE38: 37.64421811 | AF38: =$AN$7/1000*(1+AE37*0.85*Circuit2!$J$23/100)/MAX(Circuit2!$J$26,1) -> 0.002264650211 | AG38: =(U38+T38+S38+R38+Q38+P38+N38+M38+L38+J38+I38+B38+O38+K38)/A38/Circuit2!$B$3 -> 0.1150648282
A39: =Circuit2!$B$10/50*38 -> 22.8 | B39: =AG38*Circuit2!$B$7/1000000*AC39*(A39*A39+((Circuit2!$B$8)^2)/3)*Circuit2!$B$5*1000 -> 0.3261815004 | C39: =(Circuit2!$F$22+A39/(Circuit2!$F$23*Circuit2!$F$29))/(1+((Circuit2!$F$22+A39/(Circuit2!$F$23*Circuit2!$F$29))/Circuit2!$F$4)^(5))^(0.2) -> 2.947450605 | D39: =MAX((Circuit2!$F$4-C39), 0.001)/(Circuit2!$F$5+Circuit2!$F$28+Circuit2!$F$24/Circuit2!$F$29) -> 0.7894420749 | E39: =C39/(Circuit2!$F$6+Circuit2!$F$28+Circuit2!$F$24/Circuit2!$F$29) -> 1.842156628 | F39: =(Circuit2!$F$20/1000000000+Circuit2!$F$21/2/1000000000)*MAX(Circuit2!$F$29,1) -> 1.95e-08 | G39: 1.354691539e-08 | H39: 1.058541912e-08 | I39: =0.5*Circuit2!$B$3*(G39*MAX((A39-Circuit2!$B$8),0)+H39*(A39+Circuit2!$B$8))*Circuit2!$B$5*1000 -> 0.9807957606 | J39: =MIN(MAX((1-AG38-Circuit2!$F$7/1000000000+Circuit2!$F$8/1000000000),0.001),1)*Circuit2!$B$7/1000000*AF39*(A39*A39+((Circuit2!$B$8)^2)/3)*Circuit2!$B$5*1000 -> 1.050271745 | K39: =Circuit2!$B$3*$AN$2*Circuit2!$J$26*0.000000001*Circuit2!$B$5*1000 -> 0.1224 | L39: =Circuit2!$J$21*A39*(Circuit2!$F$7/1000000000+Circuit2!$F$8/1000000000)*Circuit2!$B$5*1000 -> 0.112518 | M39: =A39*Circuit2!$B$4 -> 27.36 | N39: =Circuit2!$F$4*($AN$3/1000000000*Circuit2!$F$29)*Circuit2!$B$5*1000+Circuit2!$F$4*Circuit2!$F$9/1000/2 -> 0.05636363636 | O39: =Circuit2!$F$4*($AN$4/1000000000*Circuit2!$J$26)*Circuit2!$B$5*1000+Circuit2!$F$4*Circuit2!$F$9/1000/2 -> 0.07171818182 | P39: =(A39*A39+((Circuit2!$B$8)^2)/3)*(Circuit2!$J$9+Circuit2!$J$12)/1000*(1+0.002*AE38) -> 1.40034813 | Q39: =Circuit2!$J$8/1000 -> 0.03 | R39: =0 -> 0 | S39: =(Circuit2!$F$19/1000000000000*Circuit2!$F$29+0*Circuit2!$J$19/1000000000000*Circuit2!$J$26)*Circuit2!$B$3*Circuit2!$B$3*Circuit2!$B$5*1000 -> 0.0411264 | T39: 0 | U39: =(Circuit2!$B$8/1.732)^2*Circuit2!$J$4/1000 -> 0.005400316819 | V39: 0.866999169 | W39: 1.348103661 | X39: 1.162789745 | Y39: 1.435748447 | Z39: 0.05636363636 | AA39: =W39*Circuit2!$F$25/MAX(Circuit2!$F$29,1) -> 80.88621966 | AB39: 52.54940276 | AC39: =$AN$6*(1+AB38*0.85*Circuit2!$F$26/100)/1000/MAX(Circuit2!$F$29,1) -> 0.00544183915 | AD39: =X39*Circuit2!$J$22/MAX(Circuit2!$J$26,1) -> 53.13949136 | AE39: 39.23867117 | AF39: =$AN$7/1000*(1+AE38*0.85*Circuit2!$J$23/100)/MAX(Circuit2!$J$26,1) -> 0.002278343474 | AG39: =(U39+T39+S39+R39+Q39+P39+N39+M39+L39+J39+I39+B39+O39+K39)/A39/Circuit2!$B$3 -> 0.1153403643
A40: =Circuit2!$B$10/50*39 -> 23.4 | B40: =AG39*Circuit2!$B$7/1000000*AC40*(A40*A40+((Circuit2!$B$8)^2)/3)*Circuit2!$B$5*1000 -> 0.3456483253 | C40: =(Circuit2!$F$22+A40/(Circuit2!$F$23*Circuit2!$F$29))/(1+((Circuit2!$F$22+A40/(Circuit2!$F$23*Circuit2!$F$29))/Circuit2!$F$4)^(5))^(0.2) -> 2.971280485 | D40: =MAX((Circuit2!$F$4-C40), 0.001)/(Circuit2!$F$5+Circuit2!$F$28+Circuit2!$F$24/Circuit2!$F$29) -> 0.7802767366 | E40: =C40/(Circuit2!$F$6+Circuit2!$F$28+Circuit2!$F$24/Circuit2!$F$29) -> 1.857050303 | F40: =(Circuit2!$F$20/1000000000+Circuit2!$F$21/2/1000000000)*MAX(Circuit2!$F$29,1) -> 1.95e-08 | G40: 1.363372521e-08 | H40: 1.050052331e-08 | I40: =0.5*Circuit2!$B$3*(G40*MAX((A40-Circuit2!$B$8),0)+H40*(A40+Circuit2!$B$8))*Circuit2!$B$5*1000 -> 1.006382974 | J40: =MIN(MAX((1-AG39-Circuit2!$F$7/1000000000+Circuit2!$F$8/1000000000),0.001),1)*Circuit2!$B$7/1000000*AF40*(A40*A40+((Circuit2!$B$8)^2)/3)*Circuit2!$B$5*1000 -> 1.112497512 | K40: =Circuit2!$B$3*$AN$2*Circuit2!$J$26*0.000000001*Circuit2!$B$5*1000 -> 0.1224 | L40: =Circuit2!$J$21*A40*(Circuit2!$F$7/1000000000+Circuit2!$F$8/1000000000)*Circuit2!$B$5*1000 -> 0.115479 | M40: =A40*Circuit2!$B$4 -> 28.08 | N40: =Circuit2!$F$4*($AN$3/1000000000*Circuit2!$F$29)*Circuit2!$B$5*1000+Circuit2!$F$4*Circuit2!$F$9/1000/2 -> 0.05636363636 | O40: =Circuit2!$F$4*($AN$4/1000000000*Circuit2!$J$26)*Circuit2!$B$5*1000+Circuit2!$F$4*Circuit2!$F$9/1000/2 -> 0.07171818182 | P40: =(A40*A40+((Circuit2!$B$8)^2)/3)*(Circuit2!$J$9+Circuit2!$J$12)/1000*(1+0.002*AE39) -> 1.479239523 | Q40: =Circuit2!$J$8/1000 -> 0.03 | R40: =0 -> 0 | S40: =(Circuit2!$F$19/1000000000000*Circuit2!$F$29+0*Circuit2!$J$19/1000000000000*Circuit2!$J$26)*Circuit2!$B$3*Circuit2!$B$3*Circuit2!$B$5*1000 -> 0.0411264 | T40: 0 | U40: =(Circuit2!$B$8/1.732)^2*Circuit2!$J$4/1000 -> 0.005400316819 | V40: 0.8648980071 | W40: 1.393157699 | X40: 1.227976512 | Y40: 1.51463984 | Z40: 0.05636363636 | AA40: =W40*Circuit2!$F$25/MAX(Circuit2!$F$29,1) -> 83.58946194 | AB40: 53.67716157 | AC40: =$AN$6*(1+AB39*0.85*Circuit2!$F$26/100)/1000/MAX(Circuit2!$F$29,1) -> 0.005462175759 | AD40: =X40*Circuit2!$J$22/MAX(Circuit2!$J$26,1) -> 56.1185266 | AE40: 40.8395069 | AF40: =$AN$7/1000*(1+AE39*0.85*Circuit2!$J$23/100)/MAX(Circuit2!$J$26,1) -> 0.002292109557 | AG40: =(U40+T40+S40+R40+Q40+P40+N40+M40+L40+J40+I40+B40+O40+K40)/A40/Circuit2!$B$3 -> 0.1156205693
A41: =Circuit2!$B$10/50*40 -> 24 | B41: =AG40*Circuit2!$B$7/1000000*AC41*(A41*A41+((Circuit2!$B$8)^2)/3)*Circuit2!$B$5*1000 -> 0.3657981516 | C41: =(Circuit2!$F$22+A41/(Circuit2!$F$23*Circuit2!$F$29))/(1+((Circuit2!$F$22+A41/(Circuit2!$F$23*Circuit2!$F$29))/Circuit2!$F$4)^(5))^(0.2) -> 2.995018929 | D41: =MAX((Circuit2!$F$4-C41), 0.001)/(Circuit2!$F$5+Circuit2!$F$28+Circuit2!$F$24/Circuit2!$F$29) -> 0.7711465659 | E41: =C41/(Circuit2!$F$6+Circuit2!$F$28+Circuit2!$F$24/Circuit2!$F$29) -> 1.87188683 | F41: =(Circuit2!$F$20/1000000000+Circuit2!$F$21/2/1000000000)*MAX(Circuit2!$F$29,1) -> 1.95e-08 | G41: 1.372131522e-08 | H41: 1.041729643e-08 | I41: =0.5*Circuit2!$B$3*(G41*MAX((A41-Circuit2!$B$8),0)+H41*(A41+Circuit2!$B$8))*Circuit2!$B$5*1000 -> 1.032083002 | J41: =MIN(MAX((1-AG40-Circuit2!$F$7/1000000000+Circuit2!$F$8/1000000000),0.001),1)*Circuit2!$B$7/1000000*AF41*(A41*A41+((Circuit2!$B$8)^2)/3)*Circuit2!$B$5*1000 -> 1.17684946 | K41: =Circuit2!$B$3*$AN$2*Circuit2!$J$26*0.000000001*Circuit2!$B$5*1000 -> 0.1224 | L41: =Circuit2!$J$21*A41*(Circuit2!$F$7/1000000000+Circuit2!$F$8/1000000000)*Circuit2!$B$5*1000 -> 0.11844 | M41: =A41*Circuit2!$B$4 -> 28.8 | N41: =Circuit2!$F$4*($AN$3/1000000000*Circuit2!$F$29)*Circuit2!$B$5*1000+Circuit2!$F$4*Circuit2!$F$9/1000/2 -> 0.05636363636 | O41: =Circuit2!$F$4*($AN$4/1000000000*Circuit2!$J$26)*Circuit2!$B$5*1000+Circuit2!$F$4*Circuit2!$F$9/1000/2 -> 0.07171818182 | P41: =(A41*A41+((Circuit2!$B$8)^2)/3)*(Circuit2!$J$9+Circuit2!$J$12)/1000*(1+0.002*AE40) -> 1.560538313 | Q41: =Circuit2!$J$8/1000 -> 0.03 | R41: =0 -> 0 | S41: =(Circuit2!$F$19/1000000000000*Circuit2!$F$29+0*Circuit2!$J$19/1000000000000*Circuit2!$J$26)*Circuit2!$B$3*Circuit2!$B$3*Circuit2!$B$5*1000 -> 0.0411264 | T41: 0 | U41: =(Circuit2!$B$8/1.732)^2*Circuit2!$J$4/1000 -> 0.005400316819 | V41: 0.8627735468 | W41: 1.439007554 | X41: 1.29528946 | Y41: 1.59593863 | Z41: 0.05636363636 | AA41: =W41*Circuit2!$F$25/MAX(Circuit2!$F$29,1) -> 86.34045324 | AB41: 54.7983547 | AC41: =$AN$6*(1+AB40*0.85*Circuit2!$F$26/100)/1000/MAX(Circuit2!$F$29,1) -> 0.005482395722 | AD41: =X41*Circuit2!$J$22/MAX(Circuit2!$J$26,1) -> 59.19472834 | AE41: 42.44470844 | AF41: =$AN$7/1000*(1+AE40*0.85*Circuit2!$J$23/100)/MAX(Circuit2!$J$26,1) -> 0.002305930745 | AG41: =(U41+T41+S41+R41+Q41+P41+N41+M41+L41+J41+I41+B41+O41+K41)/A41/Circuit2!$B$3 -> 0.115905269
A42: =Circuit2!$B$10/50*41 -> 24.6 | B42: =AG41*Circuit2!$B$7/1000000*AC42*(A42*A42+((Circuit2!$B$8)^2)/3)*Circuit2!$B$5*1000 -> 0.3866407796 | C42: =(Circuit2!$F$22+A42/(Circuit2!$F$23*Circuit2!$F$29))/(1+((Circuit2!$F$22+A42/(Circuit2!$F$23*Circuit2!$F$29))/Circuit2!$F$4)^(5))^(0.2) -> 3.018663409 | D42: =MAX((Circuit2!$F$4-C42), 0.001)/(Circuit2!$F$5+Circuit2!$F$28+Circuit2!$F$24/Circuit2!$F$29) -> 0.762052535 | E42: =C42/(Circuit2!$F$6+Circuit2!$F$28+Circuit2!$F$24/Circuit2!$F$29) -> 1.886664631 | F42: =(Circuit2!$F$20/1000000000+Circuit2!$F$21/2/1000000000)*MAX(Circuit2!$F$29,1) -> 1.95e-08 | G42: 1.38096845e-08 | H42: 1.03357002e-08 | I42: =0.5*Circuit2!$B$3*(G42*MAX((A42-Circuit2!$B$8),0)+H42*(A42+Circuit2!$B$8))*Circuit2!$B$5*1000 -> 1.057901925 | J42: =MIN(MAX((1-AG41-Circuit2!$F$7/1000000000+Circuit2!$F$8/1000000000),0.001),1)*Circuit2!$B$7/1000000*AF42*(A42*A42+((Circuit2!$B$8)^2)/3)*Circuit2!$B$5*1000 -> 1.243345964 | K42: =Circuit2!$B$3*$AN$2*Circuit2!$J$26*0.000000001*Circuit2!$B$5*1000 -> 0.1224 | L42: =Circuit2!$J$21*A42*(Circuit2!$F$7/1000000000+Circuit2!$F$8/1000000000)*Circuit2!$B$5*1000 -> 0.121401 | M42: =A42*Circuit2!$B$4 -> 29.52 | N42: =Circuit2!$F$4*($AN$3/1000000000*Circuit2!$F$29)*Circuit2!$B$5*1000+Circuit2!$F$4*Circuit2!$F$9/1000/2 -> 0.05636363636 | O42: =Circuit2!$F$4*($AN$4/1000000000*Circuit2!$J$26)*Circuit2!$B$5*1000+Circuit2!$F$4*Circuit2!$F$9/1000/2 -> 0.07171818182 | P42: =(A42*A42+((Circuit2!$B$8)^2)/3)*(Circuit2!$J$9+Circuit2!$J$12)/1000*(1+0.002*AE41) -> 1.6442584 | Q42: =Circuit2!$J$8/1000 -> 0.03 | R42: =0 -> 0 | S42: =(Circuit2!$F$19/1000000000000*Circuit2!$F$29+0*Circuit2!$J$19/1000000000000*Circuit2!$J$26)*Circuit2!$B$3*Circuit2!$B$3*Circuit2!$B$5*1000 -> 0.0411264 | T42: 0 | U42: =(Circuit2!$B$8/1.732)^2*Circuit2!$J$4/1000 -> 0.005400316819 | V42: 0.8606274336 | W42: 1.485669105 | X42: 1.364746964 | Y42: 1.679658717 | Z42: 0.05636363636 | AA42: =W42*Circuit2!$F$25/MAX(Circuit2!$F$29,1) -> 89.14014629 | AB42: 55.91291195 | AC42: =$AN$6*(1+AB41*0.85*Circuit2!$F$26/100)/1000/MAX(Circuit2!$F$29,1) -> 0.005502497967 | AD42: =X42*Circuit2!$J$22/MAX(Circuit2!$J$26,1) -> 62.36893626 | AE42: 44.05230164 | AF42: =$AN$7/1000*(1+AE41*0.85*Circuit2!$J$23/100)/MAX(Circuit2!$J$26,1) -> 0.002319789627 | AG42: =(U42+T42+S42+R42+Q42+P42+N42+M42+L42+J42+I42+B42+O42+K42)/A42/Circuit2!$B$3 -> 0.1161942974
A43: =Circuit2!$B$10/50*42 -> 25.2 | B43: =AG42*Circuit2!$B$7/1000000*AC43*(A43*A43+((Circuit2!$B$8)^2)/3)*Circuit2!$B$5*1000 -> 0.4081860079 | C43: =(Circuit2!$F$22+A43/(Circuit2!$F$23*Circuit2!$F$29))/(1+((Circuit2!$F$22+A43/(Circuit2!$F$23*Circuit2!$F$29))/Circuit2!$F$4)^(5))^(0.2) -> 3.042211378 | D43: =MAX((Circuit2!$F$4-C43), 0.001)/(Circuit2!$F$5+Circuit2!$F$28+Circuit2!$F$24/Circuit2!$F$29) -> 0.7529956238 | E43: =C43/(Circuit2!$F$6+Circuit2!$F$28+Circuit2!$F$24/Circuit2!$F$29) -> 1.901382111 | F43: =(Circuit2!$F$20/1000000000+Circuit2!$F$21/2/1000000000)*MAX(Circuit2!$F$29,1) -> 1.95e-08 | G43: 1.389883166e-08 | H43: 1.025569762e-08 | I43: =0.5*Circuit2!$B$3*(G43*MAX((A43-Circuit2!$B$8),0)+H43*(A43+Circuit2!$B$8))*Circuit2!$B$5*1000 -> 1.083845694 | J43: =MIN(MAX((1-AG42-Circuit2!$F$7/1000000000+Circuit2!$F$8/1000000000),0.001),1)*Circuit2!$B$7/1000000*AF43*(A43*A43+((Circuit2!$B$8)^2)/3)*Circuit2!$B$5*1000 -> 1.312003921 | K43: =Circuit2!$B$3*$AN$2*Circuit2!$J$26*0.000000001*Circuit2!$B$5*1000 -> 0.1224 | L43: =Circuit2!$J$21*A43*(Circuit2!$F$7/1000000000+Circuit2!$F$8/1000000000)*Circuit2!$B$5*1000 -> 0.124362 | M43: =A43*Circuit2!$B$4 -> 30.24 | N43: =Circuit2!$F$4*($AN$3/1000000000*Circuit2!$F$29)*Circuit2!$B$5*1000+Circuit2!$F$4*Circuit2!$F$9/1000/2 -> 0.05636363636 | O43: =Circuit2!$F$4*($AN$4/1000000000*Circuit2!$J$26)*Circuit2!$B$5*1000+Circuit2!$F$4*Circuit2!$F$9/1000/2 -> 0.07171818182 | P43: =(A43*A43+((Circuit2!$B$8)^2)/3)*(Circuit2!$J$9+Circuit2!$J$12)/1000*(1+0.002*AE42) -> 1.730412751 | Q43: =Circuit2!$J$8/1000 -> 0.03 | R43: =0 -> 0 | S43: =(Circuit2!$F$19/1000000000000*Circuit2!$F$29+0*Circuit2!$J$19/1000000000000*Circuit2!$J$26)*Circuit2!$B$3*Circuit2!$B$3*Circuit2!$B$5*1000 -> 0.0411264 | T43: 0 | U43: =(Circuit2!$B$8/1.732)^2*Circuit2!$J$4/1000 -> 0.005400316819 | V43: 0.8584612349 | W43: 1.533158102 | X43: 1.436365921 | Y43: 1.765813067 | Z43: 0.05636363636 | AA43: =W43*Circuit2!$F$25/MAX(Circuit2!$F$29,1) -> 91.98948612 | AB43: 57.02075383 | AC43: =$AN$6*(1+AB42*0.85*Circuit2!$F$26/100)/1000/MAX(Circuit2!$F$29,1) -> 0.005522481236 | AD43: =X43*Circuit2!$J$22/MAX(Circuit2!$J$26,1) -> 65.64192258 | AE43: 45.66036265 | AF43: =$AN$7/1000*(1+AE42*0.85*Circuit2!$J$23/100)/MAX(Circuit2!$J$26,1) -> 0.002333669158 | AG43: =(U43+T43+S43+R43+Q43+P43+N43+M43+L43+J43+I43+B43+O43+K43)/A43/Circuit2!$B$3 -> 0.1164874964
A44: =Circuit2!$B$10/50*43 -> 25.8 | B44: =AG43*Circuit2!$B$7/1000000*AC44*(A44*A44+((Circuit2!$B$8)^2)/3)*Circuit2!$B$5*1000 -> 0.4304436252 | C44: =(Circuit2!$F$22+A44/(Circuit2!$F$23*Circuit2!$F$29))/(1+((Circuit2!$F$22+A44/(Circuit2!$F$23*Circuit2!$F$29))/Circuit2!$F$4)^(5))^(0.2) -> 3.06566027 | D44: =MAX((Circuit2!$F$4-C44), 0.001)/(Circuit2!$F$5+Circuit2!$F$28+Circuit2!$F$24/Circuit2!$F$29) -> 0.7439768191 | E44: =C44/(Circuit2!$F$6+Circuit2!$F$28+Circuit2!$F$24/Circuit2!$F$29) -> 1.916037669 | F44: =(Circuit2!$F$20/1000000000+Circuit2!$F$21/2/1000000000)*MAX(Circuit2!$F$29,1) -> 1.95e-08 | G44: 1.398875486e-08 | H44: 1.017725294e-08 | I44: =0.5*Circuit2!$B$3*(G44*MAX((A44-Circuit2!$B$8),0)+H44*(A44+Circuit2!$B$8))*Circuit2!$B$5*1000 -> 1.109920136 | J44: =MIN(MAX((1-AG43-Circuit2!$F$7/1000000000+Circuit2!$F$8/1000000000),0.001),1)*Circuit2!$B$7/1000000*AF44*(A44*A44+((Circuit2!$B$8)^2)/3)*Circuit2!$B$5*1000 -> 1.382838733 | K44: =Circuit2!$B$3*$AN$2*Circuit2!$J$26*0.000000001*Circuit2!$B$5*1000 -> 0.1224 | L44: =Circuit2!$J$21*A44*(Circuit2!$F$7/1000000000+Circuit2!$F$8/1000000000)*Circuit2!$B$5*1000 -> 0.127323 | M44: =A44*Circuit2!$B$4 -> 30.96 | N44: =Circuit2!$F$4*($AN$3/1000000000*Circuit2!$F$29)*Circuit2!$B$5*1000+Circuit2!$F$4*Circuit2!$F$9/1000/2 -> 0.05636363636 | O44: =Circuit2!$F$4*($AN$4/1000000000*Circuit2!$J$26)*Circuit2!$B$5*1000+Circuit2!$F$4*Circuit2!$F$9/1000/2 -> 0.07171818182 | P44: =(A44*A44+((Circuit2!$B$8)^2)/3)*(Circuit2!$J$9+Circuit2!$J$12)/1000*(1+0.002*AE43) -> 1.819013385 | Q44: =Circuit2!$J$8/1000 -> 0.03 | R44: =0 -> 0 | S44: =(Circuit2!$F$19/1000000000000*Circuit2!$F$29+0*Circuit2!$J$19/1000000000000*Circuit2!$J$26)*Circuit2!$B$3*Circuit2!$B$3*Circuit2!$B$5*1000 -> 0.0411264 | T44: 0 | U44: =(Circuit2!$B$8/1.732)^2*Circuit2!$J$4/1000 -> 0.005400316819 | V44: 0.8562764482 | W44: 1.581490161 | X44: 1.510161733 | Y44: 1.854413702 | Z44: 0.05636363636 | AA44: =W44*Circuit2!$F$25/MAX(Circuit2!$F$29,1) -> 94.88940966 | AB44: 58.12179248 | AC44: =$AN$6*(1+AB43*0.85*Circuit2!$F$26/100)/1000/MAX(Circuit2!$F$29,1) -> 0.005542344102 | AD44: =X44*Circuit2!$J$22/MAX(Circuit2!$J$26,1) -> 69.01439119 | AE44: 47.26702489 | AF44: =$AN$7/1000*(1+AE43*0.85*Circuit2!$J$23/100)/MAX(Circuit2!$J$26,1) -> 0.002347552728 | AG44: =(U44+T44+S44+R44+Q44+P44+N44+M44+L44+J44+I44+B44+O44+K44)/A44/Circuit2!$B$3 -> 0.1167847139
A45: =Circuit2!$B$10/50*44 -> 26.4 | B45: =AG44*Circuit2!$B$7/1000000*AC45*(A45*A45+((Circuit2!$B$8)^2)/3)*Circuit2!$B$5*1000 -> 0.4534234026 | C45: =(Circuit2!$F$22+A45/(Circuit2!$F$23*Circuit2!$F$29))/(1+((Circuit2!$F$22+A45/(Circuit2!$F$23*Circuit2!$F$29))/Circuit2!$F$4)^(5))^(0.2) -> 3.089007505 | D45: =MAX((Circuit2!$F$4-C45), 0.001)/(Circuit2!$F$5+Circuit2!$F$28+Circuit2!$F$24/Circuit2!$F$29) -> 0.7349971135 | E45: =C45/(Circuit2!$F$6+Circuit2!$F$28+Circuit2!$F$24/Circuit2!$F$29) -> 1.93062969 | F45: =(Circuit2!$F$20/1000000000+Circuit2!$F$21/2/1000000000)*MAX(Circuit2!$F$29,1) -> 1.95e-08 | G45: 1.407945173e-08 | H45: 1.010033156e-08 | I45: =0.5*Circuit2!$B$3*(G45*MAX((A45-Circuit2!$B$8),0)+H45*(A45+Circuit2!$B$8))*Circuit2!$B$5*1000 -> 1.136130953 | J45: =MIN(MAX((1-AG44-Circuit2!$F$7/1000000000+Circuit2!$F$8/1000000000),0.001),1)*Circuit2!$B$7/1000000*AF45*(A45*A45+((Circuit2!$B$8)^2)/3)*Circuit2!$B$5*1000 -> 1.455864301 | K45: =Circuit2!$B$3*$AN$2*Circuit2!$J$26*0.000000001*Circuit2!$B$5*1000 -> 0.1224 | L45: =Circuit2!$J$21*A45*(Circuit2!$F$7/1000000000+Circuit2!$F$8/1000000000)*Circuit2!$B$5*1000 -> 0.130284 | M45: =A45*Circuit2!$B$4 -> 31.68 | N45: =Circuit2!$F$4*($AN$3/1000000000*Circuit2!$F$29)*Circuit2!$B$5*1000+Circuit2!$F$4*Circuit2!$F$9/1000/2 -> 0.05636363636 | O45: =Circuit2!$F$4*($AN$4/1000000000*Circuit2!$J$26)*Circuit2!$B$5*1000+Circuit2!$F$4*Circuit2!$F$9/1000/2 -> 0.07171818182 | P45: =(A45*A45+((Circuit2!$B$8)^2)/3)*(Circuit2!$J$9+Circuit2!$J$12)/1000*(1+0.002*AE44) -> 1.91007137 | Q45: =Circuit2!$J$8/1000 -> 0.03 | R45: =0 -> 0 | S45: =(Circuit2!$F$19/1000000000000*Circuit2!$F$29+0*Circuit2!$J$19/1000000000000*Circuit2!$J$26)*Circuit2!$B$3*Circuit2!$B$3*Circuit2!$B$5*1000 -> 0.0411264 | T45: 0 | U45: =(Circuit2!$B$8/1.732)^2*Circuit2!$J$4/1000 -> 0.005400316819 | V45: 0.8540745076 | W45: 1.630680755 | X45: 1.586148301 | Y45: 1.945471687 | Z45: 0.05636363636 | AA45: =W45*Circuit2!$F$25/MAX(Circuit2!$F$29,1) -> 97.84084531 | AB45: 59.21593262 | AC45: =$AN$6*(1+AB44*0.85*Circuit2!$F$26/100)/1000/MAX(Circuit2!$F$29,1) -> 0.005562084991 | AD45: =X45*Circuit2!$J$22/MAX(Circuit2!$J$26,1) -> 72.48697736 | AE45: 48.87048551 | AF45: =$AN$7/1000*(1+AE44*0.85*Circuit2!$J$23/100)/MAX(Circuit2!$J$26,1) -> 0.002361424222 | AG45: =(U45+T45+S45+R45+Q45+P45+N45+M45+L45+J45+I45+B45+O45+K45)/A45/Circuit2!$B$3 -> 0.1170858035
A46: =Circuit2!$B$10/50*45 -> 27 | B46: =AG45*Circuit2!$B$7/1000000*AC46*(A46*A46+((Circuit2!$B$8)^2)/3)*Circuit2!$B$5*1000 -> 0.4771350862 | C46: =(Circuit2!$F$22+A46/(Circuit2!$F$23*Circuit2!$F$29))/(1+((Circuit2!$F$22+A46/(Circuit2!$F$23*Circuit2!$F$29))/Circuit2!$F$4)^(5))^(0.2) -> 3.112250487 | D46: =MAX((Circuit2!$F$4-C46), 0.001)/(Circuit2!$F$5+Circuit2!$F$28+Circuit2!$F$24/Circuit2!$F$29) -> 0.726057505 | E46: =C46/(Circuit2!$F$6+Circuit2!$F$28+Circuit2!$F$24/Circuit2!$F$29) -> 1.945156554 | F46: =(Circuit2!$F$20/1000000000+Circuit2!$F$21/2/1000000000)*MAX(Circuit2!$F$29,1) -> 1.95e-08 | G46: 1.41709194e-08 | H46: 1.002490003e-08 | I46: =0.5*Circuit2!$B$3*(G46*MAX((A46-Circuit2!$B$8),0)+H46*(A46+Circuit2!$B$8))*Circuit2!$B$5*1000 -> 1.162483722 | J46: =MIN(MAX((1-AG45-Circuit2!$F$7/1000000000+Circuit2!$F$8/1000000000),0.001),1)*Circuit2!$B$7/1000000*AF46*(A46*A46+((Circuit2!$B$8)^2)/3)*Circuit2!$B$5*1000 -> 1.531093029 | K46: =Circuit2!$B$3*$AN$2*Circuit2!$J$26*0.000000001*Circuit2!$B$5*1000 -> 0.1224 | L46: =Circuit2!$J$21*A46*(Circuit2!$F$7/1000000000+Circuit2!$F$8/1000000000)*Circuit2!$B$5*1000 -> 0.133245 | M46: =A46*Circuit2!$B$4 -> 32.4 | N46: =Circuit2!$F$4*($AN$3/1000000000*Circuit2!$F$29)*Circuit2!$B$5*1000+Circuit2!$F$4*Circuit2!$F$9/1000/2 -> 0.05636363636 | O46: =Circuit2!$F$4*($AN$4/1000000000*Circuit2!$J$26)*Circuit2!$B$5*1000+Circuit2!$F$4*Circuit2!$F$9/1000/2 -> 0.07171818182 | P46: =(A46*A46+((Circuit2!$B$8)^2)/3)*(Circuit2!$J$9+Circuit2!$J$12)/1000*(1+0.002*AE45) -> 2.00359682 | Q46: =Circuit2!$J$8/1000 -> 0.03 | R46: =0 -> 0 | S46: =(Circuit2!$F$19/1000000000000*Circuit2!$F$29+0*Circuit2!$J$19/1000000000000*Circuit2!$J$26)*Circuit2!$B$3*Circuit2!$B$3*Circuit2!$B$5*1000 -> 0.0411264 | T46: 0 | U46: =(Circuit2!$B$8/1.732)^2*Circuit2!$J$4/1000 -> 0.005400316819 | V46: 0.8518567885 | W46: 1.680745208 | X46: 1.664338029 | Y46: 2.038997137 | Z46: 0.05636363636 | AA46: =W46*Circuit2!$F$25/MAX(Circuit2!$F$29,1) -> 100.8447125 | AB46: 60.30307246 | AC46: =$AN$6*(1+AB45*0.85*Circuit2!$F$26/100)/1000/MAX(Circuit2!$F$29,1) -> 0.005581702195 | AD46: =X46*Circuit2!$J$22/MAX(Circuit2!$J$26,1) -> 76.06024793 | AE46: 50.46901122 | AF46: =$AN$7/1000*(1+AE45*0.85*Circuit2!$J$23/100)/MAX(Circuit2!$J$26,1) -> 0.002375268073 | AG46: =(U46+T46+S46+R46+Q46+P46+N46+M46+L46+J46+I46+B46+O46+K46)/A46/Circuit2!$B$3 -> 0.1173906241
A47: =Circuit2!$B$10/50*46 -> 27.6 | B47: =AG46*Circuit2!$B$7/1000000*AC47*(A47*A47+((Circuit2!$B$8)^2)/3)*Circuit2!$B$5*1000 -> 0.5015883893 | C47: =(Circuit2!$F$22+A47/(Circuit2!$F$23*Circuit2!$F$29))/(1+((Circuit2!$F$22+A47/(Circuit2!$F$23*Circuit2!$F$29))/Circuit2!$F$4)^(5))^(0.2) -> 3.135386611 | D47: =MAX((Circuit2!$F$4-C47), 0.001)/(Circuit2!$F$5+Circuit2!$F$28+Circuit2!$F$24/Circuit2!$F$29) -> 0.7171589956 | E47: =C47/(Circuit2!$F$6+Circuit2!$F$28+Circuit2!$F$24/Circuit2!$F$29) -> 1.959616632 | F47: =(Circuit2!$F$20/1000000000+Circuit2!$F$21/2/1000000000)*MAX(Circuit2!$F$29,1) -> 1.95e-08 | G47: 1.426315451e-08 | H47: 9.950925952e-09 | I47: =0.5*Circuit2!$B$3*(G47*MAX((A47-Circuit2!$B$8),0)+H47*(A47+Circuit2!$B$8))*Circuit2!$B$5*1000 -> 1.188983897 | J47: =MIN(MAX((1-AG46-Circuit2!$F$7/1000000000+Circuit2!$F$8/1000000000),0.001),1)*Circuit2!$B$7/1000000*AF47*(A47*A47+((Circuit2!$B$8)^2)/3)*Circuit2!$B$5*1000 -> 1.608535838 | K47: =Circuit2!$B$3*$AN$2*Circuit2!$J$26*0.000000001*Circuit2!$B$5*1000 -> 0.1224 | L47: =Circuit2!$J$21*A47*(Circuit2!$F$7/1000000000+Circuit2!$F$8/1000000000)*Circuit2!$B$5*1000 -> 0.136206 | M47: =A47*Circuit2!$B$4 -> 33.12 | N47: =Circuit2!$F$4*($AN$3/1000000000*Circuit2!$F$29)*Circuit2!$B$5*1000+Circuit2!$F$4*Circuit2!$F$9/1000/2 -> 0.05636363636 | O47: =Circuit2!$F$4*($AN$4/1000000000*Circuit2!$J$26)*Circuit2!$B$5*1000+Circuit2!$F$4*Circuit2!$F$9/1000/2 -> 0.07171818182 | P47: =(A47*A47+((Circuit2!$B$8)^2)/3)*(Circuit2!$J$9+Circuit2!$J$12)/1000*(1+0.002*AE46) -> 2.099598903 | Q47: =Circuit2!$J$8/1000 -> 0.03 | R47: =0 -> 0 | S47: =(Circuit2!$F$19/1000000000000*Circuit2!$F$29+0*Circuit2!$J$19/1000000000000*Circuit2!$J$26)*Circuit2!$B$3*Circuit2!$B$3*Circuit2!$B$5*1000 -> 0.0411264 | T47: 0 | U47: =(Circuit2!$B$8/1.732)^2*Circuit2!$J$4/1000 -> 0.005400316819 | V47: 0.8496246125 | W47: 1.731698686 | X47: 1.744741838 | Y47: 2.134999219 | Z47: 0.05636363636 | AA47: =W47*Circuit2!$F$25/MAX(Circuit2!$F$29,1) -> 103.9019212 | AB47: 61.38310457 | AC47: =$AN$6*(1+AB46*0.85*Circuit2!$F$26/100)/1000/MAX(Circuit2!$F$29,1) -> 0.005601193887 | AD47: =X47*Circuit2!$J$22/MAX(Circuit2!$J$26,1) -> 79.73470201 | AE47: 52.06094333 | AF47: =$AN$7/1000*(1+AE46*0.85*Circuit2!$J$23/100)/MAX(Circuit2!$J$26,1) -> 0.002389069318 | AG47: =(U47+T47+S47+R47+Q47+P47+N47+M47+L47+J47+I47+B47+O47+K47)/A47/Circuit2!$B$3 -> 0.1176990385
A48: =Circuit2!$B$10/50*47 -> 28.2 | B48: =AG47*Circuit2!$B$7/1000000*AC48*(A48*A48+((Circuit2!$B$8)^2)/3)*Circuit2!$B$5*1000 -> 0.5267929854 | C48: =(Circuit2!$F$22+A48/(Circuit2!$F$23*Circuit2!$F$29))/(1+((Circuit2!$F$22+A48/(Circuit2!$F$23*Circuit2!$F$29))/Circuit2!$F$4)^(5))^(0.2) -> 3.158413264 | D48: =MAX((Circuit2!$F$4-C48), 0.001)/(Circuit2!$F$5+Circuit2!$F$28+Circuit2!$F$24/Circuit2!$F$29) -> 0.7083025907 | E48: =C48/(Circuit2!$F$6+Circuit2!$F$28+Circuit2!$F$24/Circuit2!$F$29) -> 1.97400829 | F48: =(Circuit2!$F$20/1000000000+Circuit2!$F$21/2/1000000000)*MAX(Circuit2!$F$29,1) -> 1.95e-08 | G48: 1.435615314e-08 | H48: 9.878377967e-09 | I48: =0.5*Circuit2!$B$3*(G48*MAX((A48-Circuit2!$B$8),0)+H48*(A48+Circuit2!$B$8))*Circuit2!$B$5*1000 -> 1.215636807 | J48: =MIN(MAX((1-AG47-Circuit2!$F$7/1000000000+Circuit2!$F$8/1000000000),0.001),1)*Circuit2!$B$7/1000000*AF48*(A48*A48+((Circuit2!$B$8)^2)/3)*Circuit2!$B$5*1000 -> 1.688202193 | K48: =Circuit2!$B$3*$AN$2*Circuit2!$J$26*0.000000001*Circuit2!$B$5*1000 -> 0.1224 | L48: =Circuit2!$J$21*A48*(Circuit2!$F$7/1000000000+Circuit2!$F$8/1000000000)*Circuit2!$B$5*1000 -> 0.139167 | M48: =A48*Circuit2!$B$4 -> 33.84 | N48: =Circuit2!$F$4*($AN$3/1000000000*Circuit2!$F$29)*Circuit2!$B$5*1000+Circuit2!$F$4*Circuit2!$F$9/1000/2 -> 0.05636363636 | O48: =Circuit2!$F$4*($AN$4/1000000000*Circuit2!$J$26)*Circuit2!$B$5*1000+Circuit2!$F$4*Circuit2!$F$9/1000/2 -> 0.07171818182 | P48: =(A48*A48+((Circuit2!$B$8)^2)/3)*(Circuit2!$J$9+Circuit2!$J$12)/1000*(1+0.002*AE47) -> 2.198085852 | Q48: =Circuit2!$J$8/1000 -> 0.03 | R48: =0 -> 0 | S48: =(Circuit2!$F$19/1000000000000*Circuit2!$F$29+0*Circuit2!$J$19/1000000000000*Circuit2!$J$26)*Circuit2!$B$3*Circuit2!$B$3*Circuit2!$B$5*1000 -> 0.0411264 | T48: 0 | U48: =(Circuit2!$B$8/1.732)^2*Circuit2!$J$4/1000 -> 0.005400316819 | V48: 0.8473792501 | W48: 1.783556193 | X48: 1.827369193 | Y48: 2.233486169 | Z48: 0.05636363636 | AA48: =W48*Circuit2!$F$25/MAX(Circuit2!$F$29,1) -> 107.0133716 | AB48: 62.45591674 | AC48: =$AN$6*(1+AB47*0.85*Circuit2!$F$26/100)/1000/MAX(Circuit2!$F$29,1) -> 0.005620558143 | AD48: =X48*Circuit2!$J$22/MAX(Circuit2!$J$26,1) -> 83.51077214 | AE48: 53.64470215 | AF48: =$AN$7/1000*(1+AE47*0.85*Circuit2!$J$23/100)/MAX(Circuit2!$J$26,1) -> 0.002402813635 | AG48: =(U48+T48+S48+R48+Q48+P48+N48+M48+L48+J48+I48+B48+O48+K48)/A48/Circuit2!$B$3 -> 0.1180109142
A49: =Circuit2!$B$10/50*48 -> 28.8 | B49: =AG48*Circuit2!$B$7/1000000*AC49*(A49*A49+((Circuit2!$B$8)^2)/3)*Circuit2!$B$5*1000 -> 0.552758501 | C49: =(Circuit2!$F$22+A49/(Circuit2!$F$23*Circuit2!$F$29))/(1+((Circuit2!$F$22+A49/(Circuit2!$F$23*Circuit2!$F$29))/Circuit2!$F$4)^(5))^(0.2) -> 3.181327825 | D49: =MAX((Circuit2!$F$4-C49), 0.001)/(Circuit2!$F$5+Circuit2!$F$28+Circuit2!$F$24/Circuit2!$F$29) -> 0.6994892982 | E49: =C49/(Circuit2!$F$6+Circuit2!$F$28+Circuit2!$F$24/Circuit2!$F$29) -> 1.98832989 | F49: =(Circuit2!$F$20/1000000000+Circuit2!$F$21/2/1000000000)*MAX(Circuit2!$F$29,1) -> 1.95e-08 | G49: 1.444991081e-08 | H49: 9.807225699e-09 | I49: =0.5*Circuit2!$B$3*(G49*MAX((A49-Circuit2!$B$8),0)+H49*(A49+Circuit2!$B$8))*Circuit2!$B$5*1000 -> 1.242447657 | J49: =MIN(MAX((1-AG48-Circuit2!$F$7/1000000000+Circuit2!$F$8/1000000000),0.001),1)*Circuit2!$B$7/1000000*AF49*(A49*A49+((Circuit2!$B$8)^2)/3)*Circuit2!$B$5*1000 -> 1.770100136 | K49: =Circuit2!$B$3*$AN$2*Circuit2!$J$26*0.000000001*Circuit2!$B$5*1000 -> 0.1224 | L49: =Circuit2!$J$21*A49*(Circuit2!$F$7/1000000000+Circuit2!$F$8/1000000000)*Circuit2!$B$5*1000 -> 0.142128 | M49: =A49*Circuit2!$B$4 -> 34.56 | N49: =Circuit2!$F$4*($AN$3/1000000000*Circuit2!$F$29)*Circuit2!$B$5*1000+Circuit2!$F$4*Circuit2!$F$9/1000/2 -> 0.05636363636 | O49: =Circuit2!$F$4*($AN$4/1000000000*Circuit2!$J$26)*Circuit2!$B$5*1000+Circuit2!$F$4*Circuit2!$F$9/1000/2 -> 0.07171818182 | P49: =(A49*A49+((Circuit2!$B$8)^2)/3)*(Circuit2!$J$9+Circuit2!$J$12)/1000*(1+0.002*AE48) -> 2.29906499 | Q49: =Circuit2!$J$8/1000 -> 0.03 | R49: =0 -> 0 | S49: =(Circuit2!$F$19/1000000000000*Circuit2!$F$29+0*Circuit2!$J$19/1000000000000*Circuit2!$J$26)*Circuit2!$B$3*Circuit2!$B$3*Circuit2!$B$5*1000 -> 0.0411264 | T49: 0 | U49: =(Circuit2!$B$8/1.732)^2*Circuit2!$J$4/1000 -> 0.005400316819 | V49: 0.8451219238 | W49: 1.836332558 | X49: 1.912228136 | Y49: 2.334465307 | Z49: 0.05636363636 | AA49: =W49*Circuit2!$F$25/MAX(Circuit2!$F$29,1) -> 110.1799535 | AB49: 63.52139279 | AC49: =$AN$6*(1+AB48*0.85*Circuit2!$F$26/100)/1000/MAX(Circuit2!$F$29,1) -> 0.00563979295 | AD49: =X49*Circuit2!$J$22/MAX(Circuit2!$J$26,1) -> 87.3888258 | AE49: 55.21879063 | AF49: =$AN$7/1000*(1+AE48*0.85*Circuit2!$J$23/100)/MAX(Circuit2!$J$26,1) -> 0.002416487386 | AG49: =(U49+T49+S49+R49+Q49+P49+N49+M49+L49+J49+I49+B49+O49+K49)/A49/Circuit2!$B$3 -> 0.1183261222
A50: =Circuit2!$B$10/50*49 -> 29.4 | B50: =AG49*Circuit2!$B$7/1000000*AC50*(A50*A50+((Circuit2!$B$8)^2)/3)*Circuit2!$B$5*1000 -> 0.5794945097 | C50: =(Circuit2!$F$22+A50/(Circuit2!$F$23*Circuit2!$F$29))/(1+((Circuit2!$F$22+A50/(Circuit2!$F$23*Circuit2!$F$29))/Circuit2!$F$4)^(5))^(0.2) -> 3.204127669 | D50: =MAX((Circuit2!$F$4-C50), 0.001)/(Circuit2!$F$5+Circuit2!$F$28+Circuit2!$F$24/Circuit2!$F$29) -> 0.6907201273 | E50: =C50/(Circuit2!$F$6+Circuit2!$F$28+Circuit2!$F$24/Circuit2!$F$29) -> 2.002579793 | F50: =(Circuit2!$F$20/1000000000+Circuit2!$F$21/2/1000000000)*MAX(Circuit2!$F$29,1) -> 1.95e-08 | G50: 1.454442251e-08 | H50: 9.73743971e-09 | I50: =0.5*Circuit2!$B$3*(G50*MAX((A50-Circuit2!$B$8),0)+H50*(A50+Circuit2!$B$8))*Circuit2!$B$5*1000 -> 1.269421524 | J50: =MIN(MAX((1-AG49-Circuit2!$F$7/1000000000+Circuit2!$F$8/1000000000),0.001),1)*Circuit2!$B$7/1000000*AF50*(A50*A50+((Circuit2!$B$8)^2)/3)*Circuit2!$B$5*1000 -> 1.854236326 | K50: =Circuit2!$B$3*$AN$2*Circuit2!$J$26*0.000000001*Circuit2!$B$5*1000 -> 0.1224 | L50: =Circuit2!$J$21*A50*(Circuit2!$F$7/1000000000+Circuit2!$F$8/1000000000)*Circuit2!$B$5*1000 -> 0.145089 | M50: =A50*Circuit2!$B$4 -> 35.28 | N50: =Circuit2!$F$4*($AN$3/1000000000*Circuit2!$F$29)*Circuit2!$B$5*1000+Circuit2!$F$4*Circuit2!$F$9/1000/2 -> 0.05636363636 | O50: =Circuit2!$F$4*($AN$4/1000000000*Circuit2!$J$26)*Circuit2!$B$5*1000+Circuit2!$F$4*Circuit2!$F$9/1000/2 -> 0.07171818182 | P50: =(A50*A50+((Circuit2!$B$8)^2)/3)*(Circuit2!$J$9+Circuit2!$J$12)/1000*(1+0.002*AE49) -> 2.402542751 | Q50: =Circuit2!$J$8/1000 -> 0.03 | R50: =0 -> 0 | S50: =(Circuit2!$F$19/1000000000000*Circuit2!$F$29+0*Circuit2!$J$19/1000000000000*Circuit2!$J$26)*Circuit2!$B$3*Circuit2!$B$3*Circuit2!$B$5*1000 -> 0.0411264 | T50: 0 | U50: =(Circuit2!$B$8/1.732)^2*Circuit2!$J$4/1000 -> 0.005400316819 | V50: 0.8428538098 | W50: 1.890042434 | X50: 1.999325326 | Y50: 2.437943068 | Z50: 0.05636363636 | AA50: =W50*Circuit2!$F$25/MAX(Circuit2!$F$29,1) -> 113.402546 | AB50: 64.57941338 | AC50: =$AN$6*(1+AB49*0.85*Circuit2!$F$26/100)/1000/MAX(Circuit2!$F$29,1) -> 0.005658896225 | AD50: =X50*Circuit2!$J$22/MAX(Circuit2!$J$26,1) -> 91.36916738 | AE50: 56.78179718 | AF50: =$AN$7/1000*(1+AE49*0.85*Circuit2!$J$23/100)/MAX(Circuit2!$J$26,1) -> 0.002430077647 | AG50: =(U50+T50+S50+R50+Q50+P50+N50+M50+L50+J50+I50+B50+O50+K50)/A50/Circuit2!$B$3 -> 0.118644537
A51: =Circuit2!$B$10/50*50 -> 30 | B51: =AG50*Circuit2!$B$7/1000000*AC51*(A51*A51+((Circuit2!$B$8)^2)/3)*Circuit2!$B$5*1000 -> 0.6070105257 | C51: =(Circuit2!$F$22+A51/(Circuit2!$F$23*Circuit2!$F$29))/(1+((Circuit2!$F$22+A51/(Circuit2!$F$23*Circuit2!$F$29))/Circuit2!$F$4)^(5))^(0.2) -> 3.226810172 | D51: =MAX((Circuit2!$F$4-C51), 0.001)/(Circuit2!$F$5+Circuit2!$F$28+Circuit2!$F$24/Circuit2!$F$29) -> 0.6819960877 | E51: =C51/(Circuit2!$F$6+Circuit2!$F$28+Circuit2!$F$24/Circuit2!$F$29) -> 2.016756357 | F51: =(Circuit2!$F$20/1000000000+Circuit2!$F$21/2/1000000000)*MAX(Circuit2!$F$29,1) -> 1.95e-08 | G51: 1.463968264e-08 | H51: 9.668991461e-09 | I51: =0.5*Circuit2!$B$3*(G51*MAX((A51-Circuit2!$B$8),0)+H51*(A51+Circuit2!$B$8))*Circuit2!$B$5*1000 -> 1.296563362 | J51: =MIN(MAX((1-AG50-Circuit2!$F$7/1000000000+Circuit2!$F$8/1000000000),0.001),1)*Circuit2!$B$7/1000000*AF51*(A51*A51+((Circuit2!$B$8)^2)/3)*Circuit2!$B$5*1000 -> 1.940616092 | K51: =Circuit2!$B$3*$AN$2*Circuit2!$J$26*0.000000001*Circuit2!$B$5*1000 -> 0.1224 | L51: =Circuit2!$J$21*A51*(Circuit2!$F$7/1000000000+Circuit2!$F$8/1000000000)*Circuit2!$B$5*1000 -> 0.14805 | M51: =A51*Circuit2!$B$4 -> 36 | N51: =Circuit2!$F$4*($AN$3/1000000000*Circuit2!$F$29)*Circuit2!$B$5*1000+Circuit2!$F$4*Circuit2!$F$9/1000/2 -> 0.05636363636 | O51: =Circuit2!$F$4*($AN$4/1000000000*Circuit2!$J$26)*Circuit2!$B$5*1000+Circuit2!$F$4*Circuit2!$F$9/1000/2 -> 0.07171818182 | P51: =(A51*A51+((Circuit2!$B$8)^2)/3)*(Circuit2!$J$9+Circuit2!$J$12)/1000*(1+0.002*AE50) -> 2.508524709 | Q51: =Circuit2!$J$8/1000 -> 0.03 | R51: =0 -> 0 | S51: =(Circuit2!$F$19/1000000000000*Circuit2!$F$29+0*Circuit2!$J$19/1000000000000*Circuit2!$J$26)*Circuit2!$B$3*Circuit2!$B$3*Circuit2!$B$5*1000 -> 0.0411264 | T51: 0 | U51: =(Circuit2!$B$8/1.732)^2*Circuit2!$J$4/1000 -> 0.005400316819 | V51: 0.8405760396 | W51: 1.944700288 | X51: 2.088666092 | Y51: 2.543925026 | Z51: 0.05636363636 | AA51: =W51*Circuit2!$F$25/MAX(Circuit2!$F$29,1) -> 116.6820173 | AB51: 65.62985674 | AC51: =$AN$6*(1+AB50*0.85*Circuit2!$F$26/100)/1000/MAX(Circuit2!$F$29,1) -> 0.005677865829 | AD51: =X51*Circuit2!$J$22/MAX(Circuit2!$J$26,1) -> 95.45204042 | AE51: 58.3323978 | AF51: =$AN$7/1000*(1+AE50*0.85*Circuit2!$J$23/100)/MAX(Circuit2!$J$26,1) -> 0.002443572228 | AG51: =(U51+T51+S51+R51+Q51+P51+N51+M51+L51+J51+I51+B51+O51+K51)/A51/Circuit2!$B$3 -> 0.1189660367

Sheet Constants (hidden)
A1: Nominal Values of Capacitance (uC) | C1: NominalValueofInductor(Uh) | E1: LowSide_MOSFET | F1: HighSide_MOSFET | G1: =CONCATENATE(Circuit2!F16,"x",Circuit2!F29,"+",Circuit2!J16,"x",Circuit2!J26,"@",Circuit2!B5,"kHz;") -> NTD4804Nx1+NTMFS4897NFx1@300kHz; | L1: DPAK | M1: HighSide
A2: 0.01 | C2: 0.0018 | E2: NTD4804N | F2: NTD4804N | G2: =CONCATENATE("Vin=",Circuit2!$B$3,"V;","Vout=",Circuit2!B4,"V;","Driver=",Circuit2!F3,"(",Circuit2!$F$4,"V)") -> Vin=12V;Vout=1.2V;Driver=NCP5901(5V) | L2: SOIC−8 | M2: LowSide
A3: 0.015 | C3: 0.0022 | E3: NTD4805N | F3: NTD4805N | L3: SO−8FL
A4: 0.022 | C4: 0.0027 | E4: NTD4806N | F4: NTD4806N | G4: =CONCATENATE(Circuit1!F16,"x",Circuit1!F29,"+",Circuit1!J16,"x",Circuit1!J26,"@",Circuit1!B5,"kHz;") -> NTD4804Nx1+NTMFS4897NFx1@300kHz; | L4: u-8FL
A5: 0.033 | C5: 0.0033 | E5: NTD4808N | F5: NTD4808N | G5: =CONCATENATE("Vin=",Circuit1!$B$3,"V;","Vout=",Circuit1!B4,"V;","Driver=",Circuit1!F3,"(",Circuit1!$F$4,"V)") -> Vin=15V;Vout=1.2V;Driver=NCP5359A(5V)
A6: 0.047 | C6: 0.0039 | E6: NTD4809N | F6: NTD4809N
A7: 0.068 | C7: 0.0047 | E7: NTD4809NH | F7: NTD4809NH
A8: 0.1 | C8: 0.0056 | E8: NTD4810N | F8: NTD4810N
A9: 0.15 | C9: 0.0068 | E9: NTD4813NH | F9: NTD4813NH
A10: 0.22 | C10: 0.0082 | E10: NTD4815N | F10: NTD4815N
A11: 0.33 | C11: 0.010 | E11: NTD4855N | F11: NTD4855N | G11: -
A12: 0.47 | B12: =INDEX(A2:A15,1+MATCH(0.9,A2:A15)) -> 1 | C12: 0.012 | E12: NTD4856N | F12: NTD4856N | G12: -
A13: 0.68 | C13: 0.015 | E13: NTD4857N | F13: NTD4857N | G13: -
A14: 1 | C14: 0.018 | E14: NTD4858N | F14: NTD4858N
A15: 1.5 | C15: 0.022 | E15: NTD4860N | F15: NTD4860N
A16: 2.2 | C16: 0.027 | E16: NTD4863N | F16: NTD4863N
A17: 3.3 | C17: 0.033 | E17: NTD4865N | F17: NTD4865N | H17: =MIN(MAX(IF(ISNUMBER(VLOOKUP(Circuit1!F16,MOSFETs!A1:S120,2,0)+(Circuit1!$F$4-4.5)*(VLOOKUP(Circuit1!F16,MOSFETs!A1:AD1020,13,0)-VLOOKUP(Circuit1!F16,MOSFETs!A1:S120,2,0))/5.5),VLOOKUP(Circuit1!F16,MOSFETs!A1:S120,2,0), 0.001),0.001),1000) -> 4.6 | I17: =MIN(MAX(IF(ISNUMBER(VLOOKUP(Circuit1!J16,MOSFETs!A1:S120,2,0)+(Circuit1!$F$4-4.5)*(VLOOKUP(Circuit1!J16,MOSFETs!A1:AD1020,13,0)-VLOOKUP(Circuit1!J16,MOSFETs!A1:S120,2,0))/5.5),VLOOKUP(Circuit1!J16,MOSFETs!A1:S120,2,0), 0.001),0.001),1000) -> 2 | J17: =MIN(MAX(IF(ISNUMBER(VLOOKUP(Circuit2!F16,MOSFETs!A1:S120,2,0)+(Circuit2!$F$4-4.5)*(VLOOKUP(Circuit2!F16,MOSFETs!A1:AD1020,13,0)-VLOOKUP(Circuit2!F16,MOSFETs!A1:S120,2,0))/5.5),VLOOKUP(Circuit2!F16,MOSFETs!A1:S120,2,0), 0.001),0.001),1000) -> 4.6 | K17: =MIN(MAX(IF(ISNUMBER(VLOOKUP(Circuit2!J16,MOSFETs!A1:S120,2,0)+(Circuit2!$F$4-4.5)*(VLOOKUP(Circuit2!J16,MOSFETs!A1:AD1020,13,0)-VLOOKUP(Circuit2!J16,MOSFETs!A1:S120,2,0))/5.5),VLOOKUP(Circuit2!J16,MOSFETs!A1:S120,2,0), 0.001),0.001),1000) -> 2
A18: 4.7 | C18: 0.039 | E18: NTD4904N | F18: NTD4960N | H18: =MIN(MAX(IF(ISNUMBER(VLOOKUP(Circuit1!F16, MOSFETs!A2:S120,17,0)+(Circuit1!F4-4.5)*(VLOOKUP(Circuit1!F16, MOSFETs!A2:S120,18,0)-VLOOKUP(Circuit1!F16, MOSFETs!A2:S120,17,0))/5.5),VLOOKUP(Circuit1!F16, MOSFETs!A2:S120,17,0),20),0.001),1000000) -> 30 | I18: =MIN(MAX(IF(ISNUMBER(VLOOKUP(Circuit1!J16, MOSFETs!A2:S120,17,0)+(Circuit1!F4-4.5)*(VLOOKUP(Circuit1!J16, MOSFETs!A2:S120,18,0)-VLOOKUP(Circuit1!J16, MOSFETs!A2:S120,17,0))/5.5),VLOOKUP(Circuit1!J16, MOSFETs!A2:S120,17,0),20),0.001),1000000) -> 40.2 | J18: =MIN(MAX(IF(ISNUMBER(VLOOKUP(Circuit2!F16, MOSFETs!A2:S120,17,0)+(Circuit2!F4-4.5)*(VLOOKUP(Circuit2!F16, MOSFETs!A2:S120,18,0)-VLOOKUP(Circuit2!F16, MOSFETs!A2:S120,17,0))/5.5),VLOOKUP(Circuit2!F16, MOSFETs!A2:S120,17,0),20),0.001),1000000) -> 30 | K18: =MIN(MAX(IF(ISNUMBER(VLOOKUP(Circuit2!J16, MOSFETs!A2:S120,17,0)+(Circuit2!F4-4.5)*(VLOOKUP(Circuit2!J16, MOSFETs!A2:S120,18,0)-VLOOKUP(Circuit2!J16, MOSFETs!A2:S120,17,0))/5.5),VLOOKUP(Circuit2!J16, MOSFETs!A2:S120,17,0),20),0.001),1000000) -> 40.2
A19: 6.8 | C19: 0.047 | E19: NTD4906N | F19: NTD4963N | H19: =IF(ISNUMBER(VLOOKUP(Circuit1!F16,MOSFETs!A1:S120,4,0)),VLOOKUP(Circuit1!F16,MOSFETs!A1:S120,4,0),0.000000001) -> 952 | I19: =IF(ISNUMBER(VLOOKUP(Circuit1!J16,MOSFETs!A2:S120,4,0)),VLOOKUP(Circuit1!J16,MOSFETs!A2:S120,4,0),0.000000001) -> 1150 | J19: =IF(ISNUMBER(VLOOKUP(Circuit2!F16,MOSFETs!A1:S120,4,0)),VLOOKUP(Circuit2!F16,MOSFETs!A1:S120,4,0),0.000000001) -> 952 | K19: =IF(ISNUMBER(VLOOKUP(Circuit2!J16,MOSFETs!A2:S120,4,0)),VLOOKUP(Circuit2!J16,MOSFETs!A2:S120,4,0),0.000000001) -> 1150
A20: 10 | C20: 0.056 | E20: NTD4909N | F20: NTD4965N | H20: =IF(ISNUMBER(VLOOKUP(Circuit1!F16,MOSFETs!A1:S120,5,0)),VLOOKUP(Circuit1!F16,MOSFETs!A1:S120,5,0),0.000000001) -> 13 | I20: =IF(ISNUMBER(VLOOKUP(Circuit1!J16,MOSFETs!A2:S120,14,0)),VLOOKUP(Circuit1!J16,MOSFETs!A2:S120,14,0),1) -> 34 | J20: =IF(ISNUMBER(VLOOKUP(Circuit2!F16,MOSFETs!A1:S120,5,0)),VLOOKUP(Circuit2!F16,MOSFETs!A1:S120,5,0),0.000000001) -> 13 | K20: =IF(ISNUMBER(VLOOKUP(Circuit2!J16,MOSFETs!A2:S120,14,0)),VLOOKUP(Circuit2!J16,MOSFETs!A2:S120,14,0),1) -> 34
A21: 15 | C21: 0.068 | E21: NTD4910N | F21: NTD4969N | H21: =IF(ISNUMBER(VLOOKUP(Circuit1!F16,MOSFETs!A1:S120,6,0)),VLOOKUP(Circuit1!F16,MOSFETs!A1:S120,6,0),0.000000001) -> 13 | I21: =IF(ISNUMBER(VLOOKUP(Circuit1!J16, MOSFETs!A2:S120,8,0)),VLOOKUP(Circuit1!J16, MOSFETs!A2:S120,8,0),0.7) -> 0.35 | J21: =IF(ISNUMBER(VLOOKUP(Circuit2!F16,MOSFETs!A1:S120,6,0)),VLOOKUP(Circuit2!F16,MOSFETs!A1:S120,6,0),0.000000001) -> 13 | K21: =IF(ISNUMBER(VLOOKUP(Circuit2!J16, MOSFETs!A2:S120,8,0)),VLOOKUP(Circuit2!J16, MOSFETs!A2:S120,8,0),0.7) -> 0.35
A22: 22 | C22: 0.082 | E22: NTD4913N | F22: NTD4970N | H22: =IF(ISNUMBER(VLOOKUP(Circuit1!F16,MOSFETs!A1:S120,7,0)),VLOOKUP(Circuit1!F16,MOSFETs!A1:S120,7,0),0.000000001) -> 2 | I22: =IF(ISNUMBER(VLOOKUP(Circuit1!J16, MOSFETs!A2:S120,11,0)),VLOOKUP(Circuit1!J16, MOSFETs!A2:S120,11,0),50) -> 45.7 | J22: =IF(ISNUMBER(VLOOKUP(Circuit2!F16,MOSFETs!A1:S120,7,0)),VLOOKUP(Circuit2!F16,MOSFETs!A1:S120,7,0),0.000000001) -> 2 | K22: =IF(ISNUMBER(VLOOKUP(Circuit2!J16, MOSFETs!A2:S120,11,0)),VLOOKUP(Circuit2!J16, MOSFETs!A2:S120,11,0),50) -> 45.7
A23: 33 | C23: 0.100 | E23: NTD4960N | F23: NTMFS4821N | H23: =IF(ISNUMBER(VLOOKUP(Circuit1!F16,MOSFETs!A1:S120,9,0)),VLOOKUP(Circuit1!F16,MOSFETs!A1:S120,9,0),10) -> 23 | I23: =IF(ISNUMBER(VLOOKUP(Circuit1!J16, MOSFETs!A2:S120,12,0)),VLOOKUP(Circuit1!J16, MOSFETs!A2:S120,12,0),0.005)*100 -> 0.52 | J23: =IF(ISNUMBER(VLOOKUP(Circuit2!F16,MOSFETs!A1:S120,9,0)),VLOOKUP(Circuit2!F16,MOSFETs!A1:S120,9,0),10) -> 23 | K23: =IF(ISNUMBER(VLOOKUP(Circuit2!J16, MOSFETs!A2:S120,12,0)),VLOOKUP(Circuit2!J16, MOSFETs!A2:S120,12,0),0.005)*100 -> 0.52
A24: 47 | C24: 0.12 | E24: NTD4963N | F24: NTMFS4823N | H24: =IF(ISNUMBER(VLOOKUP(Circuit1!F16,MOSFETs!A1:S120,10,0)),VLOOKUP(Circuit1!F16,MOSFETs!A1:S120,10,0),0) -> 0.6 | I24: =IF(ISNUMBER(VLOOKUP(Circuit1!J16,MOSFETs!A1:AD120,20,0)),VLOOKUP(Circuit1!J16,MOSFETs!A1:AD120,20,0),"IDSMAX UNKOWN") -> 171 | J24: =IF(ISNUMBER(VLOOKUP(Circuit2!F16,MOSFETs!A1:S120,10,0)),VLOOKUP(Circuit2!F16,MOSFETs!A1:S120,10,0),0) -> 0.6 | K24: =IF(ISNUMBER(VLOOKUP(Circuit2!J16,MOSFETs!A1:AD120,20,0)),VLOOKUP(Circuit2!J16,MOSFETs!A1:AD120,20,0),"IDSMAX UNKOWN") -> 171
A25: 68 | C25: 0.15 | E25: NTD4965N | F25: NTMFS4826NE | H25: =IF(ISNUMBER(VLOOKUP(Circuit1!F16,MOSFETs!A1:S120,11,0)),VLOOKUP(Circuit1!F16,MOSFETs!A1:S120,11,0),50) -> 60 | J25: =IF(ISNUMBER(VLOOKUP(Circuit2!F16,MOSFETs!A1:S120,11,0)),VLOOKUP(Circuit2!F16,MOSFETs!A1:S120,11,0),50) -> 60
A26: 100 | C26: 0.18 | E26: NTD4969N | F26: NTMFS4833N | H26: =IF(ISNUMBER(VLOOKUP(Circuit1!F16,MOSFETs!A1:S120,12,0)),VLOOKUP(Circuit1!F16,MOSFETs!A1:S120,12,0),0.005)*100 -> 0.4666666667 | J26: =IF(ISNUMBER(VLOOKUP(Circuit2!F16,MOSFETs!A1:S120,12,0)),VLOOKUP(Circuit2!F16,MOSFETs!A1:S120,12,0),0.005)*100 -> 0.4666666667
A27: 150 | C27: 0.22 | E27: NTD4970N | F27: NTMFS4834N | H27: =IF(ISNUMBER(VLOOKUP(Circuit1!F16,MOSFETs!A1:AD120,20,0)),VLOOKUP(Circuit1!F16,MOSFETs!A1:AD120,20,0),0) -> 117 | J27: =IF(ISNUMBER(VLOOKUP(Circuit2!F16,MOSFETs!A1:AD120,20,0)),VLOOKUP(Circuit2!F16,MOSFETs!A1:AD120,20,0),0) -> 117
A28: 220 | C28: 0.27 | E28: NTMFS4821N | F28: NTMFS4835N
A29: 330 | C29: 0.33 | E29: NTMFS4823N | F29: NTMFS4836N
A30: 470 | C30: 0.39 | E30: NTMFS4825NFE | F30: NTMFS4837NH
A31: 680 | C31: 0.47 | E31: NTMFS4826NE | F31: NTMFS4839NH | H31: 1
A32: 1000 | C32: 0.56 | E32: NTMFS4833N | F32: NTMFS4841N | H32: 2
A33: 1500 | C33: 0.68 | E33: NTMFS4834N | F33: NTMFS4841NH | H33: 3
A34: 2200 | C34: 0.82 | E34: NTMFS4835N | F34: NTMFS4845N | H34: 4
A35: 3300 | C35: 1.0 | E35: NTMFS4836N | F35: NTMFS4846N | H35: 5
A36: 4700 | C36: 1.2 | E36: NTMFS4837NH | F36: NTMFS4847N | H36: 6
A37: 6800 | C37: 1.5 | E37: NTMFS4839NH | F37: NTMFS4851N | H37: 7
A38: 10000 | C38: 1.8 | E38: NTMFS4841N | F38: NTMFS4852N | H38: 8
C39: 2.2 | E39: NTMFS4841NH | F39: NTMFS4921N | H39: 9
C40: 2.7 | E40: NTMFS4845N | F40: NTMFS4925N | H40: 10
C41: 3.3 | E41: NTMFS4846N | F41: NTMFS4926N | H41: 11
C42: 3.9 | E42: NTMFS4847N | F42: NTMFS4927N | H42: 12
C43: 4.7 | E43: NTMFS4851N | F43: NTMS4800N | H43: 13
C44: 5.6 | E44: NTMFS4852N | F44: NTMS4801N | H44: 14
C45: 6.8 | E45: NTMFS4897NF | F45: NTMS4802N | H45: 15
C46: 8.2 | E46: NTMFS4898NF | F46: NTMS4807N | H46: 16
C47: 10 | E47: NTMFS4899NF | F47: NTMS4816N | H47: 17
C48: 12 | E48: NTMFS4921N | F48: NTMS4916N | H48: 18
C49: 15 | E49: NTMFS4923NE | F49: NTMS4917N | H49: 19
C50: 18 | E50: NTMFS4925N | F50: NTTFS4821N | H50: 20
C51: 22 | E51: NTMFS4926N | F51: NTTFS4823N | H51: 21
